Workbook

Sheet Inputs
G1: Sector | H1: Discipline
D5: Analysis Date | E5: ="Version "&VersionNum -> Version 15
D6: TBD | E6: =VerDate -> 2019-04-22 | J6: Haskett Consulting International Strategy Decision Support Teaching Model
A8: HCI Teaching Model | C8: 1 | D8: List Box Data
C9: Number | D9: Strategy | G9: RUN?
C10: 1 | D10: Momentum | G10: FALSE
C11: 2 | D11: Strict Investing | G11: FALSE
C12: 3 | D12: High Control | G12: FALSE
C13: 4 | D13: Small Change | G13: FALSE
C14: 5 | D14: Free Agent | G14: FALSE
C15: 6 | D15: Organic | G15: FALSE
A16: Number of CB Iterations | B16: 150 | C16: 7 | D16: Gas Domination | G16: FALSE
C17: 8 | D17: Hybrid 1 | G17: FALSE
C18: 9 | D18: Optimal Hybrid | G18: TRUE
A20: Input Data | L20: =strategy1 -> Momentum | O20: =strategy2 -> Strict Investing | R20: =strategy3 -> High Control | U20: =strategy4 -> Small Change | X20: =strategy5 -> Free Agent | AA20: =strategy6 -> Organic | AD20: =strategy7 -> Gas Domination | AG20: =strategy8 -> Hybrid 1 | AJ20: =strategy9 -> Optimal Hybrid | AM20: EXPERT
A21: Description | B21: Unit | C21: Name | D21: Current | E21: Select | F21: Low | G21: Base | H21: High | I21: EV | J21: CB | L21: Low | M21: Base | N21: High | O21: Low | P21: Base | Q21: High | R21: Low | S21: Base | T21: High | U21: Low | V21: Base | W21: High | X21: Low | Y21: Base | Z21: High | AA21: Low | AB21: Base | AC21: High | AD21: Low | AE21: Base | AF21: High | AG21: Low | AH21: Base | AI21: High | AJ21: Low | AK21: Base | AL21: High
A22: Exploration
A23: SNS Working Interest | B23: % | F23: =INDEX($L23:$AL23,(Strategy-1)*3+1) -> 0.2 | G23: =INDEX($L23:$AL23,(Strategy-1)*3+2) -> 0.25 | H23: =INDEX($L23:$AL23,(Strategy-1)*3+3) -> 0.3 | L23: 0.2 | M23: 0.25 | N23: 0.3 | O23: 0.1 | P23: 0.15 | Q23: 0.3 | R23: 0.4 | S23: 0.5 | T23: 0.6 | U23: 0.5 | V23: 0.75 | W23: 0.8 | X23: 0.15 | Y23: 0.2 | Z23: 0.4 | AA23: 0.15 | AB23: 0.2 | AC23: 0.4 | AD23: 0.4 | AE23: 0.5 | AF23: 0.6 | AG23: 0.25 | AH23: 0.33 | AI23: 0.4 | AJ23: 0.25 | AK23: 0.33 | AL23: 0.4
A24: CNS Working Interest | B24: % | F24: 0.2 | G24: 0.25 | H24: 0.3 | L24: 0.2 | M24: 0.25 | N24: 0.3 | O24: 0.1 | P24: 0.15 | Q24: 0.3 | R24: 0.4 | S24: 0.5 | T24: 0.6 | U24: 0.5 | V24: 0.75 | W24: 0.8 | X24: 0.15 | Y24: 0.2 | Z24: 0.4 | AA24: 0.15 | AB24: 0.2 | AC24: 0.4 | AD24: 0.4 | AE24: 0.5 | AF24: 0.6 | AG24: 0.25 | AH24: 0.33 | AI24: 0.4 | AJ24: 0.25 | AK24: 0.33 | AL24: 0.4
A25: NNS Working Interest | B25: % | F25: 0 | G25: 0 | H25: 0 | L25: 0 | M25: 0 | N25: 0 | O25: 0.1 | P25: 0.15 | Q25: 0.3 | R25: 0.4 | S25: 0.5 | T25: 0.6 | U25: 0.5 | V25: 0.75 | W25: 0.8 | X25: 0.15 | Y25: 0.2 | Z25: 0.4 | AA25: 0.15 | AB25: 0.2 | AC25: 0.4 | AD25: 0.4 | AE25: 0.5 | AF25: 0.6 | AG25: 0.25 | AH25: 0.33 | AI25: 0.4 | AJ25: 0.25 | AK25: 0.33 | AL25: 0.4
A26: WOS Working Interest | B26: % | F26: 0.2 | G26: 0.25 | H26: 0.3 | L26: 0.2 | M26: 0.25 | N26: 0.3 | O26: 0.1 | P26: 0.15 | Q26: 0.3 | R26: 0.4 | S26: 0.5 | T26: 0.6 | U26: 0.5 | V26: 0.75 | W26: 0.8 | X26: 0.15 | Y26: 0.2 | Z26: 0.4 | AA26: 0.15 | AB26: 0.2 | AC26: 0.4 | AD26: 0.4 | AE26: 0.5 | AF26: 0.6 | AG26: 0.25 | AH26: 0.33 | AI26: 0.4 | AJ26: 0.25 | AK26: 0.33 | AL26: 0.4
A27: EIS Working Interest | B27: % | F27: 0 | G27: 0 | H27: 0 | L27: 0 | M27: 0 | N27: 0 | O27: 0.1 | P27: 0.15 | Q27: 0.3 | R27: 0.4 | S27: 0.5 | T27: 0.6 | U27: 0.5 | V27: 0.75 | W27: 0.8 | X27: 0.15 | Y27: 0.2 | Z27: 0.4 | AA27: 0.15 | AB27: 0.2 | AC27: 0.4 | AD27: 0.4 | AE27: 0.5 | AF27: 0.6 | AG27: 0.25 | AH27: 0.33 | AI27: 0.4 | AJ27: 0.25 | AK27: 0.33 | AL27: 0.4
L28: 0 | M28: 0 | N28: 0 | O28: 0 | P28: 0 | Q28: 0 | R28: 0 | S28: 0 | T28: 0 | U28: 0 | V28: 0 | W28: 0 | X28: 0 | Y28: 0 | Z28: 0 | AA28: 0 | AB28: 0 | AC28: 0 | AD28: 0 | AE28: 0 | AF28: 0 | AG28: 0 | AH28: 0 | AI28: 0 | AJ28: 0 | AK28: 0 | AL28: 0
A29: Operate non-operate split | B29: % | D29: =CHOOSE(E29,F29,G29,H29,I29,CHOOSE(J29,F29,G29,H29)) -> 0.15 | E29: 5 | F29: 0.15 | G29: 0.15 | H29: 0.15 | I29: =0.3*F29+0.4*G29+0.3*H29 -> 0.15 | J29: 2 | L29: 0.15 | M29: 0.15 | N29: 0.15 | O29: 0.05 | P29: 0.05 | Q29: 0.05 | R29: 0.5 | S29: 0.6 | T29: 0.7 | U29: 0.5 | V29: 0.6 | W29: 0.7 | X29: 0.3 | Y29: 0.4 | Z29: 0.5 | AA29: 0.1 | AB29: 0.2 | AC29: 0.3 | AD29: 0.5 | AE29: 0.6 | AF29: 0.7 | AG29: 0.4 | AH29: 0.5 | AI29: 0.6 | AJ29: 0.4 | AK29: 0.5 | AL29: 0.6
A30: WI Op reduction factor | B30: % | D30: =CHOOSE(E30,F30,G30,H30,I30,CHOOSE(J30,F30,G30,H30)) -> 0 | E30: 5 | F30: 0 | G30: 0 | H30: 0 | I30: =0.3*F30+0.4*G30+0.3*H30 -> 0 | J30: 2 | L30: 0 | M30: 0 | N30: 0 | O30: 0 | P30: 0 | Q30: 0 | R30: 0 | S30: 0 | T30: 0 | U30: 0 | V30: 0 | W30: 0 | X30: 0 | Y30: 0 | Z30: 0 | AA30: 0 | AB30: 0 | AC30: 0 | AD30: 0 | AE30: 0 | AF30: 0 | AG30: 0 | AH30: 0 | AI30: 0 | AJ30: 0 | AK30: 0 | AL30: 0
A31: SNS License Round Blocks | B31: Blocks/Year | F31: =INDEX($L31:$AL31,(Strategy-1)*3+1) -> 0.5 | G31: =INDEX($L31:$AL31,(Strategy-1)*3+2) -> 1.4 | H31: =INDEX($L31:$AL31,(Strategy-1)*3+3) -> 2.4 | L31: 0.5 | M31: 1.4 | N31: 2.4 | O31: 0 | P31: 0 | Q31: 0 | R31: 1 | S31: 2.8 | T31: 4.8 | U31: 1 | V31: 2.8 | W31: 4.8 | X31: 1 | Y31: 2.8 | Z31: 4.8 | AA31: 1 | AB31: 2.8 | AC31: 4.8 | AD31: 1 | AE31: 2.8 | AF31: 4.8 | AG31: 1 | AH31: 3 | AI31: 5 | AJ31: 0 | AK31: 0 | AL31: 0
A32: CNS License Round Blocks | B32: Blocks/Year | F32: 0.75 | G32: 2.1 | H32: 3.6 | L32: 0.75 | M32: 2.1 | N32: 3.6 | O32: 0 | P32: 0 | Q32: 0 | R32: 1.5 | S32: 4.2 | T32: 7.2 | U32: 1.5 | V32: 4.2 | W32: 7.2 | X32: 1.5 | Y32: 4.2 | Z32: 7.2 | AA32: 1.5 | AB32: 4.2 | AC32: 7.2 | AD32: 0 | AE32: 0 | AF32: 0 | AG32: 1.5 | AH32: 4.2 | AI32: 7.2 | AJ32: 1.5 | AK32: 4.2 | AL32: 7.2
A33: NNS License Round Blocks | B33: Blocks/Year | F33: 0 | G33: 0 | H33: 0 | L33: 0 | M33: 0 | N33: 0 | O33: 0 | P33: 0 | Q33: 0 | R33: 0 | S33: 0 | T33: 0 | U33: 1 | V33: 2.8 | W33: 4.8 | X33: 1 | Y33: 2.8 | Z33: 4.8 | AA33: 0 | AB33: 0 | AC33: 0 | AD33: 0 | AE33: 0 | AF33: 0 | AG33: 0 | AH33: 0 | AI33: 0 | AJ33: 0 | AK33: 0 | AL33: 0
A34: WOS License Round Blocks | B34: Blocks/Year | F34: 0.5 | G34: 1.4 | H34: 2.4 | L34: 0.5 | M34: 1.4 | N34: 2.4 | O34: 0 | P34: 0 | Q34: 0 | R34: 1 | S34: 2.8 | T34: 4.8 | U34: 1 | V34: 2.8 | W34: 4.8 | X34: 1 | Y34: 2.8 | Z34: 4.8 | AA34: 1 | AB34: 2.8 | AC34: 4.8 | AD34: 0 | AE34: 0 | AF34: 0 | AG34: 1 | AH34: 2.8 | AI34: 4.8 | AJ34: 1 | AK34: 2.8 | AL34: 4.8
A35: EIS License Round Blocks | B35: Blocks/Year | F35: 0 | G35: 0 | H35: 0 | L35: 0 | M35: 0 | N35: 0 | O35: 0 | P35: 0 | Q35: 0 | R35: 0 | S35: 0 | T35: 0 | U35: 0.5 | V35: 1.4 | W35: 2.4 | X35: 0.5 | Y35: 1.4 | Z35: 2.4 | AA35: 0 | AB35: 0 | AC35: 0 | AD35: 0 | AE35: 0 | AF35: 0 | AG35: 0 | AH35: 0 | AI35: 0 | AJ35: 0 | AK35: 0 | AL35: 0
A36: Farmins | B36: Blocks/Year | F36: 1 | G36: 1 | H36: 1 | L36: 1 | M36: 1 | N36: 1 | O36: 1 | P36: 2 | Q36: 4 | R36: 1 | S36: 1 | T36: 2 | U36: 1 | V36: 1 | W36: 2 | X36: 1 | Y36: 2 | Z36: 6 | AA36: 2 | AB36: 4 | AC36: 10 | AD36: 1 | AE36: 2 | AF36: 3 | AG36: 1 | AH36: 3 | AI36: 6 | AJ36: 1 | AK36: 3 | AL36: 6
A37: Corp Asset Acquistion Prospects
A38: Number of Exploration Prospects #1 | D38: =CHOOSE(E38,F38,G38,H38,I38,J38) -> 8.503176622 | E38: 5 | F38: =INDEX($L38:$AL38,(Strategy-1)*3+1) -> 3 | G38: =INDEX($L38:$AL38,(Strategy-1)*3+2) -> 5 | H38: =INDEX($L38:$AL38,(Strategy-1)*3+3) -> 8 | I38: =0.3*F38+0.4*G38+0.3*H38 -> 5.3 | J38: 8.503176622 | L38: 3 | M38: 5 | N38: 8 | O38: -1e-08 | P38: 0 | Q38: 1e-08 | R38: 5 | S38: 9 | T38: 12 | U38: 5 | V38: 9 | W38: 12 | X38: 5 | Y38: 9 | Z38: 12 | AA38: -1e-08 | AB38: 0 | AC38: 1e-08 | AD38: 3 | AE38: 5 | AF38: 9 | AG38: 5 | AH38: 9 | AI38: 12 | AJ38: 5 | AK38: 9 | AL38: 12
A39: Number of Exploration Prospects #2 | D39: =CHOOSE(E39,F39,G39,H39,I39,J39) -> 8.503176622 | E39: 5 | F39: =INDEX($L39:$AL39,(Strategy-1)*3+1) -> 5 | G39: =INDEX($L39:$AL39,(Strategy-1)*3+2) -> 9 | H39: =INDEX($L39:$AL39,(Strategy-1)*3+3) -> 12 | I39: =0.3*F39+0.4*G39+0.3*H39 -> 8.7 | J39: 8.503176622 | L39: 5 | M39: 9 | N39: 12 | O39: -1e-08 | P39: 0 | Q39: 1e-08 | R39: -1e-08 | S39: 0 | T39: 1e-08 | U39: 5 | V39: 9 | W39: 12 | X39: -1e-08 | Y39: 0 | Z39: 1e-08 | AA39: -1e-08 | AB39: 0 | AC39: 1e-08 | AD39: -1e-08 | AE39: 0 | AF39: 1e-08 | AG39: 5 | AH39: 9 | AI39: 12 | AJ39: 5 | AK39: 9 | AL39: 12
A40: Asset Acquisition WI | F40: =INDEX($L40:$AL40,(Strategy-1)*3+1) -> 0.05 | H40: =INDEX($L40:$AL40,(Strategy-1)*3+3) -> 0.5 | L40: 0.05 | N40: 0.5 | O40: 0.05 | Q40: 0.4 | R40: 0.5 | T40: 1 | U40: 0.75 | W40: 1 | X40: 0.05 | Z40: 1 | AA40: 0.05 | AC40: 0.5 | AD40: 0.5 | AF40: 0.75 | AG40: 0.4 | AI40: 0.6 | AJ40: 0.4 | AL40: 0.6
D41: =CHOOSE(E41,F41,G41,H41,I41,J41) -> 0 | E41: 2 | F41: =INDEX($L41:$AL41,(Strategy-1)*3+1) -> 0 | G41: =INDEX($L41:$AL41,(Strategy-1)*3+2) -> 0 | H41: =INDEX($L41:$AL41,(Strategy-1)*3+3) -> 0 | I41: =0.3*F41+0.4*G41+0.3*H41 -> 0 | J41: 0 | L41: 0 | M41: 0 | N41: 0 | O41: 0 | P41: 0 | Q41: 0 | R41: 0 | S41: 0 | T41: 0 | U41: 0 | V41: 0 | W41: 0 | X41: 0 | Y41: 0 | Z41: 0 | AA41: 0 | AB41: 0 | AC41: 0 | AD41: 0 | AE41: 0 | AF41: 0 | AG41: 0 | AH41: 0 | AI41: 0 | AJ41: 0 | AK41: 0 | AL41: 0
E42: EndLoop
A43: Farm-In Sector Allocation | M43: Farmins | P43: Farmins | S43: Farmins | V43: Farmins | Y43: Farmins | AB43: Farmins | AE43: Farmins | AH43: Farmins | AK43: Farmins
A44: SNS | B44: % | G44: =CHOOSE(Strategy,M44,P44,S44,V44,Y44,AB44,AE44,AH44,AK44) -> 0.2 | M44: 0.2 | P44: 0.2 | S44: 0.2 | V44: 0.2 | Y44: 0.2 | AB44: 0.2 | AE44: 0.2 | AH44: 0.2 | AK44: 0
A45: CNS | B45: % | G45: =CHOOSE(Strategy,M45,P45,S45,V45,Y45,AB45,AE45,AH45,AK45) -> 0.3 | M45: 0.3 | P45: 0.3 | S45: 0.3 | V45: 0.3 | Y45: 0.3 | AB45: 0.3 | AE45: 0.3 | AH45: 0.3 | AK45: 0.5
A46: NNS | B46: % | G46: =CHOOSE(Strategy,M46,P46,S46,V46,Y46,AB46,AE46,AH46,AK46) -> 0.2 | M46: 0.2 | P46: 0.2 | S46: 0.2 | V46: 0.2 | Y46: 0.2 | AB46: 0.2 | AE46: 0.2 | AH46: 0.2 | AK46: 0
A47: WOS | B47: % | G47: =CHOOSE(Strategy,M47,P47,S47,V47,Y47,AB47,AE47,AH47,AK47) -> 0.2 | M47: 0.2 | P47: 0.2 | S47: 0.2 | V47: 0.2 | Y47: 0.2 | AB47: 0.2 | AE47: 0.2 | AH47: 0.2 | AK47: 0.5
A48: EIS | B48: % | G48: =CHOOSE(Strategy,M48,P48,S48,V48,Y48,AB48,AE48,AH48,AK48) -> 0.1 | M48: 0.1 | P48: 0.1 | S48: 0.1 | V48: 0.1 | Y48: 0.1 | AB48: 0.1 | AE48: 0.1 | AH48: 0.1 | AK48: 0
A50: Asset Acquisition Allocation | M50: Assets | P50: Assets | S50: Assets | V50: Assets | Y50: Assets | AB50: Assets | AE50: Assets | AH50: Assets | AK50: Assets
A51: SNS | B51: % | G51: =CHOOSE(Strategy,M51,P51,S51,V51,Y51,AB51,AE51,AH51,AK51) -> 0.2 | M51: 0.2 | P51: 0.2 | S51: 0.2 | V51: 0.2 | Y51: 0.2 | AB51: 0.2 | AE51: 0.2 | AH51: 0.2 | AK51: 0.3
A52: CNS | B52: % | G52: =CHOOSE(Strategy,M52,P52,S52,V52,Y52,AB52,AE52,AH52,AK52) -> 0.3 | M52: 0.3 | P52: 0.3 | S52: 0.3 | V52: 0.3 | Y52: 0.3 | AB52: 0.3 | AE52: 0.3 | AH52: 0.3 | AK52: 0.4
A53: NNS | B53: % | G53: =CHOOSE(Strategy,M53,P53,S53,V53,Y53,AB53,AE53,AH53,AK53) -> 0.2 | M53: 0.2 | P53: 0.2 | S53: 0.2 | V53: 0.2 | Y53: 0.2 | AB53: 0.2 | AE53: 0.2 | AH53: 0.2 | AK53: 0
A54: WOS | B54: % | G54: =CHOOSE(Strategy,M54,P54,S54,V54,Y54,AB54,AE54,AH54,AK54) -> 0.2 | M54: 0.2 | P54: 0.2 | S54: 0.2 | V54: 0.2 | Y54: 0.2 | AB54: 0.2 | AE54: 0.2 | AH54: 0.2 | AK54: 0.3
A55: EIS | B55: % | G55: =CHOOSE(Strategy,M55,P55,S55,V55,Y55,AB55,AE55,AH55,AK55) -> 0.1 | M55: 0.1 | P55: 0.1 | S55: 0.1 | V55: 0.1 | Y55: 0.1 | AB55: 0.1 | AE55: 0.1 | AH55: 0.1 | AK55: 0
A57: Facts and Assumptions
A58: Description | B58: Unit | C58: Name | D58: Current
A59: Inflation Rate | B59: %/yr | C59: Inflation | D59: 0.015
A60: Gas to Oil Rato | B60: mscf/btu | D60: 6
A61: First Year | B61: year | C61: FirstYear | D61: 2019
A62: Start Year | B62: year | C62: StartYear | D62: 2020
A63: Lifecycle | B63: years | C63: Lifecycle | D63: 25
A64: End Year | B64: year | C64: endyear | D64: =StartYear+Lifecycle-1 -> 2044
A65: Discount Rate | B65: % | C65: DiscRate | D65: 0.1
A66: Gas Caloric Heat Value | B66: Btu/scf | C66: GasCaloricValue | D66: 1000
A67: Income Tax Rate | B67: % | C67: TaxRate | D67: 0.5
A68: Current Year Tax Payment | B68: % | C68: CurrYrTaxPct | D68: =2/3 -> 0.6666666667
A69: Condensate Discount Factor | B69: % | C69: CondDisc | D69: 0.8
A70: Capital Development Correlation Factor | B70: % | C70: DevelCorr | D70: 0.85
A72: Global Uncertanties
A73: Timing Factors
A74: Exploration Delays | B74: Years | F74: 1 | G74: 2 | H74: 5
A75: Small Field Production Delay | B75: Months | F75: 18 | G75: =(H75+F75)/2 -> 33 | H75: 48
A76: Medium Field Production Delay | B76: Months | F76: 36 | G76: 54 | H76: 72
A77: Large Field Production Delay | B77: Months | E77: Min | F77: 48 | G77: 72 | H77: 96 | I77: Max
A78: Partner Lag | B78: Months | E78: 0 | F78: 3 | G78: 18 | H78: 24 | I78: 120
A79: Infrastructure Wait | B79: Months | F79: 0 | G79: 24 | H79: 0
A80: Services Delay | B80: Months | F80: 3 | G80: 6 | H80: 24
A81: Partner Lag Correlation Factor | B81: % | G81: -0.5
A83: Capital Expenses
A84: Exploration Well Costs
A85: Southern North Sea | B85: $MM | F85: 10 | G85: 18 | H85: 40
A86: Central North Sea (HPHT) | B86: $MM | F86: 30 | G86: 40 | H86: 75
A87: Central North Sea (Simple or Shallow) | B87: $MM | F87: 7 | G87: 12 | H87: 30
A88: Northern North Sea | B88: $MM | F88: 12 | G88: 20 | H88: 50
A89: West of Shetlands | B89: $MM | F89: 15 | G89: 25 | H89: 60
A90: East Irish Sea | B90: $MM | F90: 9 | G90: 16 | H90: 30
A91: Development Costs
A92: Southern North Sea | B92: $MM | F92: 30 | G92: 75 | H92: 230
A93: Central North Sea (HPHT) | B93: $MM | F93: 60 | G93: 200 | H93: 750 | I93: ties to resource 1
A94: Central North Sea (Simple or Shallow) | B94: $MM | F94: 30 | G94: 80 | H94: 300 | I94: ties to resource 2
A95: Northern North Sea | B95: $MM | F95: 50 | G95: 120 | H95: 300
A96: West of Shetlands | B96: $MM | F96: 65 | G96: 200 | H96: 1000
A97: East Irish Sea | B97: $MM | F97: 50 | G97: 100 | H97: 350
A98: Development Cost Spend Profile | J98: First Prod Yr | K98: Years
A99: Small | B99: % | H99: 0.1 | I99: 0.8 | J99: 0.1 | K99: =COUNT(D99:J99) -> 3
A100: Medium | B100: % | G100: 0.3 | H100: 0.3 | I100: 0.3 | J100: 0.1 | K100: =COUNT(D100:J100) -> 4
A101: Large | B101: % | D101: 0.05 | E101: 0.3 | F101: 0.2 | G101: 0.2 | H101: 0.1 | I101: 0.1 | J101: 0.05 | K101: =COUNT(D101:J101) -> 7
D102: -6 | E102: -5 | F102: -4 | G102: -3 | H102: -2 | I102: -1 | J102: 0
A103: Asset Acquisition Costs | M103: Swanson Selector
A104: Pre-Development Gas £/boe | B104: $/boe | C104: PreDevGasCost | D104: =CHOOSE(E104,F104,G104,H104,I104,J104) -> 3 | E104: 5 | F104: 2 | G104: 3 | H104: 5 | I104: =0.3*F104+0.4*G104+0.3*H104 -> 3.3 | J104: =CHOOSE(M104,F104,G104,H104) -> 3 | M104: 2
A105: Pre-Development Oil £/boe | B105: $/boe | C105: PreDevOilCost | D105: =CHOOSE(E105,F105,G105,H105,I105,J105) -> 4.5 | E105: 5 | F105: 2 | G105: 4.5 | H105: 6 | I105: =0.3*F105+0.4*G105+0.3*H105 -> 4.2 | J105: =CHOOSE(M105,F105,G105,H105) -> 4.5 | M105: 2
A106: Production Oil £/boe | B106: $/boe | C106: ProductionOilCost | D106: =CHOOSE(E106,F106,G106,H106,I106,J106) -> 8 | E106: 5 | F106: 2 | G106: 8 | H106: 16 | I106: =0.3*F106+0.4*G106+0.3*H106 -> 8.6 | J106: =CHOOSE(M106,F106,G106,H106) -> 8 | M106: 2
A107: Production Gas £/boe | B107: $/boe | C107: ProductionGasCost | D107: =CHOOSE(E107,F107,G107,H107,I107,J107) -> 5 | E107: 5 | F107: 2 | G107: 5 | H107: 9 | I107: =0.3*F107+0.4*G107+0.3*H107 -> 5.3 | J107: =CHOOSE(M107,F107,G107,H107) -> 5 | M107: 2
A109: Operating Expenses
A110: Southern North Sea | B110: $/boe | G110: 13
A111: Central North Sea (Simple or Shallow) | B111: $/boe | G111: 10
A112: East Irish Sea | B112: $/boe | G112: 10
A113: Northern North Sea | B113: $/boe | G113: 17
A114: West of Shetlands | B114: $/boe | G114: 13
A116: Core Inputs
A117: Core Production Factor | B117: % | D117: =CHOOSE(E117,F117,G117,H117,I117,J117) -> 0.9954051403 | E117: 5 | F117: =G117*110/138 -> 0.7971014493 | G117: 1 | H117: =G117*165/135 -> 1.222222222 | I117: =0.3*F117+0.4*G117+0.3*H117 -> 1.005797101 | J117: 0.9954051403
A118: Core Capex Factor | B118: % | D118: =CHOOSE(E118,F118,G118,H118,I118,J118) -> 0.99999952 | E118: 5 | F118: 0.66 | G118: 1 | H118: 1.39 | I118: =0.3*F118+0.4*G118+0.3*H118 -> 1.015 | J118: 0.99999952
A119: Core Opex Factor | B119: % | D119: =CHOOSE(E119,F119,G119,H119,I119,J119) -> 0.9999996634 | E119: 5 | F119: 0.8 | G119: 1 | H119: 1.34 | I119: =0.3*F119+0.4*G119+0.3*H119 -> 1.042 | J119: 0.9999996634
A121: Ramp Up Factor
A122: Ramp Up Year | B122: Year | D122: =FirstYear -> 2019 | E122: =D122+1 -> 2020 | F122: =E122+1 -> 2021 | G122: 2022 | H122: 2023 | I122: 2024 | J122: 2025 | K122: 2026 | L122: 2027
A123: Ramp Up Percentage | B123: % | D123: 0.25 | E123: 0.75 | F123: 1 | G123: 1 | H123: 1 | I123: 1 | J123: 1 | K123: 1 | L123: 1
A125: Corporate Acquisition | E125: Min | I125: Max
A126: Corporate Acquisition Rate | B126: % | C126: AcqRate | E126: 0.05 | F126: 0.07 | H126: 0.14 | I126: 0.16 | J126: 0.105
A127: Corporate Acquisition Tariffs | G127: $/ boe | H127: $/bbl | M127: Acq #1 Year | N127: Acq #1 Size | O127: Acq #2 year | P127: Acq #2 Size
A128: SNS | G128: 3.6 | L128: =strategy1 -> Momentum | M128: 2022 | N128: Small | O128: 2024 | P128: Medium
A129: WOS | G129: 5 | L129: =strategy2 -> Strict Investing | M129: 2022 | O129: 2022
A130: CNS | G130: 3 | H130: 2.5 | L130: =strategy3 -> High Control | M130: 2022 | N130: Medium | O130: 2022
A131: NNS | G131: 3 | H131: 3 | L131: =strategy4 -> Small Change | M131: 2021 | N131: Medium | O131: 2025 | P131: Medium
A132: EIS | G132: 3 | H132: 2.5 | L132: =strategy5 -> Free Agent | M132: 2021 | N132: Medium | O132: 2022
A133: Normalized Percent Distributions | L133: =strategy6 -> Organic | M133: 2022 | O133: 2022
A134: SNS | B134: % | G134: 0.2 | L134: =strategy7 -> Gas Domination | M134: 2021 | N134: Large | O134: 2025 | P134: Large
A135: CNS | B135: % | G135: 0.3 | L135: =strategy8 -> Hybrid 1 | M135: 2022 | N135: Medium | O135: 2025 | P135: Medium
A136: NNS | B136: % | G136: 0.2 | L136: =strategy9 -> Optimal Hybrid | M136: 2022 | N136: Medium | O136: 2025 | P136: Medium
A137: WOS | B137: % | G137: 0.2
A138: EIS | B138: % | G138: 0.1
A141: FTE Data
A142: Pre LR FTE's
A143: Operating | B143: FTE | D143: =CHOOSE(E143,F143,G143,H143,I143,J143) -> 2 | E143: 2 | G143: 2
A144: Non-Operating | B144: FTE | D144: =CHOOSE(E144,F144,G144,H144,I144,J144) -> 0.5 | E144: 2 | G144: 0.5
A145: Non-Operated - Development FTE's | M145: Swanson Selector
A146: Small | B146: FTE | D146: =CHOOSE(E146,F146,G146,H146,I146,J146) -> 1.5 | E146: 5 | F146: 0.5 | G146: 1.5 | H146: 2 | I146: =0.3*F146+0.4*G146+0.3*H146 -> 1.35 | J146: =CHOOSE(M146,F146,G146,H146) -> 1.5 | M146: 2
A147: Medium | B147: FTE | D147: =CHOOSE(E147,F147,G147,H147,I147,J147) -> 2 | E147: 5 | F147: 1 | G147: 2 | H147: 3 | I147: =0.3*F147+0.4*G147+0.3*H147 -> 2 | J147: 2 | M147: 2
A148: Large | B148: FTE | D148: =CHOOSE(E148,F148,G148,H148,I148,J148) -> 2.666666667 | E148: 5 | F148: 2 | G148: 2.666666667 | H148: 3 | I148: 2.566666667 | J148: =CHOOSE(M148,F148,G148,H148) -> 2.666666667 | M148: 2
A149: Operated - Development FTE's
A150: Small | B150: FTE | D150: =CHOOSE(E150,F150,G150,H150,I150,J150) -> 8 | E150: 5 | F150: 4 | G150: 8 | H150: 12 | I150: 8 | J150: 8 | M150: 2
A151: Medium | B151: FTE | D151: =CHOOSE(E151,F151,G151,H151,I151,J151) -> 10 | E151: 5 | F151: 5 | G151: 10 | H151: 15 | I151: 10 | J151: 10 | M151: 2
A152: Large | B152: FTE | D152: =CHOOSE(E152,F152,G152,H152,I152,J152) -> 27.5 | E152: 5 | F152: 15 | G152: 27.5 | H152: 40 | I152: 27.5 | J152: 27.5 | M152: 2
A153: Non-Operated - Operations FTE's
A154: Small | B154: FTE | D154: =CHOOSE(E154,F154,G154,H154,I154,J154) -> 0.7 | E154: 5 | F154: 0.1 | G154: 0.7 | H154: 1 | I154: =0.3*F154+0.4*G154+0.3*H154 -> 0.61 | J154: =CHOOSE(M154,F154,G154,H154) -> 0.7 | M154: 2
A155: Medium | B155: FTE | D155: 1.066666667 | E155: 5 | F155: 0.2 | G155: 1.066666667 | H155: 2 | I155: 1.086666667 | J155: 1.066666667 | M155: 2
A156: Large | B156: FTE | D156: 1.666666667 | E156: 5 | F156: 1 | G156: 1.666666667 | H156: 3 | I156: 1.866666667 | J156: 1.666666667 | M156: 2
A157: Operated - Operations FTE's
A158: Small | B158: FTE | D158: 2.5 | E158: 5 | F158: 1 | G158: 2.5 | H158: 4 | I158: 2.5 | J158: 2.5 | M158: 2
A159: Medium | B159: FTE | D159: 6 | E159: 5 | F159: 2 | G159: 6 | H159: 10 | I159: 6 | J159: 6 | M159: 2
A160: Large | B160: FTE | D160: 37.5 | E160: 5 | F160: 10 | G160: 37.5 | H160: 65 | I160: 37.5 | J160: 37.5 | M160: 2
D162: FTE Reference Table
F163: Operated | G163: Non-Operated | I163: Core Workforce
E164: Small | F164: =D150 -> 8 | G164: =D146 -> 1.5 | I164: Total | J164: 73
D165: Development | E165: Medium | F165: =D151 -> 10 | G165: =D147 -> 2 | I165: Exploration | J165: 20
E166: Large | F166: =D152 -> 27.5 | G166: =D148 -> 2.666666667 | I166: Support | J166: =INT(0.4*J164) -> 29
E167: Small | F167: =D158 -> 2.5 | G167: =D154 -> 0.7 | I167: Ops | J167: =J164-J165-J166 -> 24
D168: Operations | E168: Medium | F168: =D159 -> 6 | G168: =D155 -> 1.066666667
E169: Large | F169: =D160 -> 37.5 | G169: =D156 -> 1.666666667
D171: Corp Acq FTE | E171: No. of staff prior to acquisition | F171: No. of staff retained after acquisition | G171: Additional FTEs Needed | H171: % retention
J172: Corp Acq Split | M172: Corp Acq Activity Level
D173: Small | E173: 12 | F173: =E173*H173 -> 5.04 | G173: =E173-F173 -> 6.96 | H173: 0.42 | J173: 0.2 | K173: Exploration | M173: 3 | N173: Small
D174: Medium | E174: 50 | F174: =E174*H174 -> 30 | G174: =E174-F174 -> 20 | H174: 0.6 | J174: 0.6 | K174: Ops | M174: 18 | N174: Medium
D175: Large | E175: 330 | F175: =E175*H175 -> 264 | G175: =E175-F175 -> 66 | H175: 0.8 | J175: 0.2 | K175: Support | M175: 60 | N175: Large
E177: BD FTEs | M177: Core Activity Level
D178: Farm-in | E178: 2 | M178: 1 | N178: Operated
D179: Asset Acq | E179: 2
D180: Corporate Acq | E180: 3
A183: Price Data | C183: 2019 | D183: 2020 | E183: 2021 | F183: 2022 | G183: 2023 | H183: 2024 | I183: 2025 | J183: 2026 | K183: 2027 | L183: 2028 | M183: 2029 | N183: 2030 | O183: 2031 | P183: 2032 | Q183: 2033 | R183: 2034 | S183: 2035 | T183: 2036 | U183: 2037 | V183: 2038 | W183: 2039 | X183: 2040 | Y183: 2041 | Z183: 2042 | AA183: 2043 | AB183: 2044 | AC183: 2045 | AD183: 2046 | AE183: 2047 | AF183: 2048 | AG183: 2049
A184: Oil/Condensate price | B184: USD/bl | C184: 72.51966667 | D184: 97.8581859 | E184: 97.52731268 | F184: 92.54070225 | G184: 79.81844159 | H184: 66.30355342 | I184: 59.34303241 | J184: 60.58923609 | K184: 61.86161005 | L184: 63.16070386 | M184: 64.48707864 | N184: 65.84130729 | O184: 67.22397474 | P184: 68.63567821 | Q184: 70.07702745 | R184: 71.54864503 | S184: 73.05116658 | T184: 74.58524107 | U184: 76.15153114 | V184: 77.75071329 | W184: 79.38347827 | X184: 81.05053131 | Y184: 82.75259247 | Z184: 84.49039691 | AA184: 86.26469525 | AB184: 88.07625385 | AC184: 89.92585518 | AD184: 91.81429814 | AE184: 93.7423984 | AF184: 95.71098877 | AG184: 97.72091953
A185: Gas price | B185: p/therm | C185: 30.08321637 | D185: 52.7978917 | E185: 57.79661919 | F185: 56.01897097 | G185: 55.68901349 | H185: 50.26903416 | I185: 42.60710455 | J185: 42.96881308 | K185: 43.33126294 | L185: 44.43456294 | M185: 44.87937972 | N185: 45.95304033 | O185: 46.60587145 | P185: 47.69576986 | Q185: 48.811156 | R185: 49.95262593 | S185: 51.12078963 | T185: 52.31627134 | U185: 53.53970991 | V185: 54.79175911 | W185: 56.07308803 | X185: 57.38438137 | Y185: 58.72633988 | Z185: 60.09968066 | AA185: 61.50513761 | AB185: 62.94346177 | AC185: 64.41542177 | AD185: 65.92180419 | AE185: 67.46341401 | AF185: 69.04107503 | AG185: 70.65563035
A186: Exchange rate | B186: USD | C186: 1 | D186: 1 | E186: 1 | F186: 1 | G186: 1 | H186: 1 | I186: 1 | J186: 1 | K186: 1 | L186: 1 | M186: 1 | N186: 1 | O186: 1 | P186: 1 | Q186: 1 | R186: 1 | S186: 1 | T186: 1 | U186: 1 | V186: 1 | W186: 1 | X186: 1 | Y186: 1 | Z186: 1 | AA186: 1 | AB186: 1 | AC186: 1 | AD186: 1 | AE186: 1 | AF186: 1 | AG186: 1
G188: 2019 | H188: 2020 | I188: 2021 | J188: 2022 | K188: 2023 | L188: 2024 | M188: 2025 | N188: 2026 | O188: 2027
A189: Recycle Blocks Available | G189: 247 | H189: 70 | I189: 204 | J189: 205 | K189: 80 | L189: 5 | M189: 10 | N189: 17 | O189: 2
D191: Farmin Allocation
E192: Sectors | F192: Percentage | G192: =$G$36 -> 1 | H192: =$G$36 -> 1 | I192: 1 | J192: 1 | K192: 1 | L192: 1 | M192: 1 | N192: 1 | O192: 1
E193: SNS | F193: =G44 -> 0.2 | G193: =IF(G$212=0,0,ROUND(G207/G$212*G$192,0)) -> 0 | H193: 0 | I193: 0 | J193: 0 | K193: 0 | L193: 0 | M193: 0 | N193: 0 | O193: 0
E194: CNS | F194: =G45 -> 0.3 | G194: =G192-G193-G195-G196-G197 -> 1 | H194: =H192-H193-H195-H196-H197 -> 1 | I194: 1 | J194: 1 | K194: 1 | L194: 1 | M194: 1 | N194: 1 | O194: 1
E195: NNS | F195: =G46 -> 0.2 | G195: =IF(G$212=0,0,ROUND(G209/G$212*G$192,0)) -> 0 | H195: 0 | I195: 0 | J195: 0 | K195: 0 | L195: 0 | M195: 0 | N195: 0 | O195: 0
E196: WOS | F196: =G47 -> 0.2 | G196: =IF(G$212=0,0,ROUND(G210/G$212*G$192,0)) -> 0 | H196: 0 | I196: 0 | J196: 0 | K196: 0 | L196: 0 | M196: 0 | N196: 0 | O196: 0
E197: EIS | F197: =G48 -> 0.1 | G197: =IF(G$212=0,0,ROUND(G211/G$212*G$192,0)) -> 0 | H197: 0 | I197: 0 | J197: 0 | K197: 0 | L197: 0 | M197: 0 | N197: 0 | O197: 0
F198: =SUM(F193:F197) -> 1
F200: SNS | G200: =RAND() -> 0.06734180219 | H200: =RAND() -> 0.3440313528 | I200: 0.07401905365 | J200: 0.9201918404 | K200: 0.9246965074 | L200: 0.5344294332 | M200: 0.1244835004 | N200: 0.5135698987 | O200: 0.8815141944
F201: CNS | G201: =RAND() -> 0.9320560956 | H201: 0.09146352266 | I201: 0.05912998661 | J201: 0.6456046527 | K201: 0.188345947 | L201: 0.8499625079 | M201: 0.6741092936 | N201: 0.4817855746 | O201: 0.7998306652
F202: NNS | G202: =RAND() -> 0.2232520167 | H202: 0.8575343711 | I202: 0.8370263851 | J202: 0.6355556188 | K202: 0.01436679962 | L202: 0.64567465 | M202: 0.2379629936 | N202: 0.3479415291 | O202: 0.08675156444
F203: WOS | G203: =RAND() -> 0.9325110108 | H203: 0.6432464205 | I203: 0.9366728327 | J203: 0.2997005119 | K203: 0.739667477 | L203: 0.7601214924 | M203: 0.879233895 | N203: 0.6235226517 | O203: 0.6407059585
F204: EIS | G204: =RAND() -> 0.40800935 | H204: 0.0711749859 | I204: 0.2075839107 | J204: 0.05548956705 | K204: 0.729542466 | L204: 0.6147206699 | M204: 0.05335083105 | N204: 0.8241709162 | O204: 0.8715764608
G205: =SUM(G200:G204) -> 2.563170275 | H205: =SUM(H200:H204) -> 2.007450653 | I205: 2.114432169 | J205: 2.556542191 | K205: 2.596619197 | L205: 3.404908753 | M205: 1.969140514 | N205: 2.79099057 | O205: 3.280378843
F207: SNS | G207: =IF($F$198*G$205=0,0,($F193/$F$198*G200/G$205)) -> 0.005254571094 | H207: =IF($F$198*H$205=0,0,($F193/$F$198*H200/H$205)) -> 0.03427544805 | I207: 0.007001317398 | J207: 0.07198722115 | K207: 0.07122311261 | L207: 0.03139170368 | M207: 0.012643435 | N207: 0.03680198021 | O207: 0.05374465795
F208: CNS | G208: =IF($F$198*G$205=0,0,($F194/$F$198*G201/G$205)) -> 0.1090902276 | H208: 0.01366860837 | I208: 0.008389484536 | J208: 0.07575912359 | K208: 0.02176052005 | L208: 0.07488857143 | M208: 0.1027010448 | N208: 0.05178651405 | O208: 0.07314679524
F209: NNS | G209: 0.01741999108 | H209: 0.08543516323 | I209: 0.07917268735 | J209: 0.04971993978 | K209: 0.001106577325 | L209: 0.03792610591 | M209: 0.02416922428 | N209: 0.02493319274 | O209: 0.005289118641
F210: WOS | G210: 0.07276231468 | H210: 0.06408590114 | I210: 0.08859804978 | J210: 0.02344577085 | K210: 0.05697157888 | L210: 0.04464856755 | M210: 0.0893012854 | N210: 0.04468110056 | O210: 0.03906292469
F211: EIS | G211: 0.01591815237 | H211: 0.003545540997 | I211: 0.009817477891 | J211: 0.002170492912 | K211: 0.02809585891 | L211: 0.01805395429 | M211: 0.002709346067 | N211: 0.02952969189 | O211: 0.02656938428
G212: =SUM(G207:G211) -> 0.2204452568 | H212: =SUM(H207:H211) -> 0.2010106618 | I212: 0.192979017 | J212: 0.2230825483 | K212: 0.1791576478 | L212: 0.2069089029 | M212: 0.2315243355 | N212: 0.1877324795 | O212: 0.1978128808
D214: Corporate Acquisition | F214: SNS | G214: =RAND() -> 0.272518057 | H214: 0.5865607364 | I214: 0.3537348425 | J214: 0.4574469906 | K214: 0.2802623056 | L214: 0.1762169375 | M214: 0.2369725909 | N214: 0.2668059106 | O214: 0.6935813348
F215: CNS | G215: 0.5272129028 | H215: 0.5886684042 | I215: 0.1013101047 | J215: 0.4081665535 | K215: 0.40409437 | L215: 0.128031372 | M215: 0.7917525413 | N215: 0.6984129773 | O215: 0.9996516383
F216: NNS | G216: 0.1561622022 | H216: 0.4584679975 | I216: 0.2307855829 | J216: 0.4515292608 | K216: 0.5452267667 | L216: 0.5678490386 | M216: 0.4519606588 | N216: 0.3841242995 | O216: 0.101233348
F217: WOS | G217: 0.7306847594 | H217: 0.5346593998 | I217: 0.2780189665 | J217: 0.3615874024 | K217: 0.455421884 | L217: 0.2085415504 | M217: 0.5366615479 | N217: 0.4908899792 | O217: 0.04233724553
F218: EIS | G218: 0.005231780912 | H218: 0.9478218314 | I218: 0.4496732168 | J218: 0.428607432 | K218: 0.04506413249 | L218: 0.7852680379 | M218: 0.1393845213 | N218: 0.570382573 | O218: 0.490734292
G219: =SUM(G214:G218) -> 1.691809702 | H219: 3.116178369 | I219: 1.413522713 | J219: 2.107337639 | K219: 1.730069459 | L219: 1.865906936 | M219: 2.15673186 | N219: 2.41061574 | O219: 2.327537859
F221: SNS | G221: =IF($F$236*G$219=0,0,($F231/$F$236*G214/G$219)) -> 0.0322161596 | H221: =IF($F$236*H$219=0,0,($F231/$F$236*H214/H$219)) -> 0.03764615929 | I221: 0.05005011085 | J221: 0.0434146842 | K221: 0.03239896574 | L221: 0.01888807357 | M221: 0.02197515559 | N221: 0.02213591376 | O221: 0.05959785635
F222: CNS | G222: =IF($F$236*G$219=0,0,($F232/$F$236*G215/G$219)) -> 0.09348797955 | H222: 0.05667214784 | I222: 0.02150162223 | J222: 0.058106477 | K222: 0.07007135488 | L222: 0.0205848485 | M222: 0.1101322639 | N222: 0.08691716799 | O222: 0.1288466653
F223: NNS | G223: 0.01846096544 | H223: 0.02942501636 | I223: 0.03265396172 | J223: 0.04285305329 | K223: 0.06302946554 | L223: 0.06086574068 | M223: 0.0419116226 | N223: 0.0318693928 | O223: 0.008698749852
F224: WOS | G224: 0.08637907188 | H224: 0.03431507035 | I224: 0.03933703561 | J224: 0.034316988 | K224: 0.052647815 | L224: 0.02235283511 | M224: 0.04976618168 | N224: 0.04072735203 | O224: 0.00363794259
F225: EIS | G225: 0.0003092416898 | H225: 0.03041616105 | I225: 0.0318122385 | J225: 0.02033881159 | K225: 0.00260475857 | L225: 0.04208505915 | M225: 0.006462765439 | N225: 0.02366128138 | O225: 0.02108383716
G226: =SUM(G221:G225) -> 0.2308534182 | H226: 0.1884745549 | I226: 0.1753549689 | J226: 0.1990300141 | K226: 0.2207523597 | L226: 0.164776557 | M226: 0.2302479892 | N226: 0.205311108 | O226: 0.2218650513
... 171 more rows

Sheet RiskProfile_NPV
C2: =ProjName -> HCI Teaching Model | J2: ="Version "&VersionNum -> Version 15
C3: Risk Profile NPV | J3: =VerDate -> 2019-04-22
F5: =CHOOSE(Strategy,strategy1,strategy2,strategy3,strategy4,strategy5,strategy6,strategy7,strategy8,strategy9,strategy10,strategy11,strategy12,strategy13,strategy14) -> Momentum | I5: Analysis Date | J5: =EvalDate -> TBD
A6: curve | J6: Run? | K6: =Inputs!$G10 -> FALSE | L6: =Inputs!$G11 -> FALSE | M6: =Inputs!$G12 -> FALSE | N6: =Inputs!$G13 -> FALSE | O6: =Inputs!$G14 -> FALSE | P6: =Inputs!$G15 -> FALSE | Q6: =Inputs!$G16 -> FALSE | R6: =Inputs!$G17 -> FALSE | S6: =Inputs!$G18 -> TRUE
K7: =strategy1 -> Momentum | L7: =strategy2 -> Strict Investing | M7: =strategy3 -> High Control | N7: =strategy4 -> Small Change | O7: =strategy5 -> Free Agent | P7: =strategy6 -> Organic | Q7: =strategy7 -> Gas Domination | R7: =strategy8 -> Hybrid 1 | S7: =strategy9 -> Optimal Hybrid
J8: < %iles | K8: NPV | L8: NPV | M8: NPV | N8: NPV | O8: NPV | P8: NPV | Q8: NPV | R8: NPV | S8: NPV
J9: 1 | K9: 790.7612408 | L9: 802.4999823 | M9: 1151.334727 | N9: 933.123273 | O9: 1024.909114 | P9: 971.996555 | Q9: 427.5429165 | R9: 963.8788536 | S9: 1224.528036
J10: =J9-0.05 -> 0.95 | K10: 973.8366929 | L10: 1000.97756 | M10: 1326.978854 | N10: 1152.846386 | O10: 1218.087308 | P10: 1086.469222 | Q10: 624.6838272 | R10: 1395.963878 | S10: 1434.324688
J11: =J10-0.05 -> 0.9 | K11: 1042.723681 | L11: 1074.863562 | M11: 1418.722118 | N11: 1346.441555 | O11: 1294.91426 | P11: 1166.654497 | Q11: 705.263636 | R11: 1526.580681 | S11: 1664.10718
J12: 0.85 | K12: 1120.277507 | L12: 1109.19962 | M12: 1581.312904 | N12: 1466.843402 | O12: 1378.35394 | P12: 1229.807793 | Q12: 817.5190868 | R12: 1581.467248 | S12: 1765.252818
J13: 0.8 | K13: 1168.333804 | L13: 1143.316916 | M13: 1693.287488 | N13: 1559.61617 | O13: 1467.30685 | P13: 1298.60541 | Q13: 851.0026973 | R13: 1672.931987 | S13: 1833.872641
J14: 0.75 | K14: 1206.612193 | L14: 1190.114249 | M14: 1771.670765 | N14: 1698.440845 | O14: 1541.540405 | P14: 1362.924021 | Q14: 924.5634191 | R14: 1789.607659 | S14: 1958.329184
J15: 0.7 | K15: 1231.4937 | L15: 1221.23987 | M15: 1900.325504 | N15: 1900.112008 | O15: 1571.349716 | P15: 1389.217329 | Q15: 988.7809174 | R15: 1867.28996 | S15: 1998.863948
J16: 0.65 | K16: 1257.497098 | L16: 1249.267107 | M16: 1992.871721 | N16: 2025.527139 | O16: 1636.127915 | P16: 1434.222681 | Q16: 1020.168913 | R16: 1917.37345 | S16: 2198.096001
J17: 0.6 | K17: 1268.00465 | L17: 1275.856537 | M17: 2030.48858 | N17: 2118.949998 | O17: 1696.6313 | P17: 1514.185433 | Q17: 1048.183264 | R17: 1970.071509 | S17: 2312.851822
J18: 0.55 | K18: 1290.222777 | L18: 1308.867639 | M18: 2099.075358 | N18: 2302.538437 | O18: 1747.235122 | P18: 1563.224748 | Q18: 1072.220705 | R18: 2039.805958 | S18: 2400.000721
J19: 0.5 | K19: 1338.720855 | L19: 1339.390671 | M19: 2191.411678 | N19: 2418.472901 | O19: 1818.186985 | P19: 1595.538146 | Q19: 1107.758641 | R19: 2164.89328 | S19: 2497.207759
J20: 0.45 | K20: 1384.803308 | L20: 1356.161494 | M20: 2290.222718 | N20: 2531.824494 | O20: 1902.978067 | P20: 1648.074397 | Q20: 1144.823731 | R20: 2260.688708 | S20: 2575.976238
J21: 0.4 | K21: 1430.585455 | L21: 1381.615723 | M21: 2413.549444 | N21: 2681.591653 | O21: 1956.911904 | P21: 1715.877259 | Q21: 1182.466636 | R21: 2361.845367 | S21: 2630.726208
J22: 0.35 | K22: 1477.270252 | L22: 1404.791968 | M22: 2520.149664 | N22: 2823.062228 | O22: 2022.535598 | P22: 1747.064491 | Q22: 1233.556294 | R22: 2399.794605 | S22: 2750.745371
J23: 0.3 | K23: 1518.372621 | L23: 1438.558865 | M23: 2621.394341 | N23: 3051.410928 | O23: 2073.559431 | P23: 1858.449279 | Q23: 1264.52802 | R23: 2540.31027 | S23: 2862.16886
J24: 0.25 | K24: 1537.884023 | L24: 1471.272097 | M24: 2900.303355 | N24: 3228.711315 | O24: 2135.330713 | P24: 1927.183357 | Q24: 1290.839383 | R24: 2702.084874 | S24: 2956.528892
J25: 0.2 | K25: 1611.133881 | L25: 1505.079924 | M25: 3011.297785 | N25: 3353.275614 | O25: 2232.133746 | P25: 2001.590158 | Q25: 1326.602701 | R25: 2807.866291 | S25: 3059.141087
J26: 0.15 | K26: 1708.538965 | L26: 1546.065394 | M26: 3292.524294 | N26: 3633.78571 | O26: 2444.49593 | P26: 2144.927814 | Q26: 1368.341177 | R26: 3062.30234 | S26: 3379.032148
J27: 0.1 | K27: 1816.609073 | L27: 1592.072821 | M27: 3455.789975 | N27: 4558.938297 | O27: 2665.688205 | P27: 2317.924445 | Q27: 1451.268401 | R27: 3310.258605 | S27: 3606.121966
J28: 0.05 | K28: 2086.777445 | L28: 1717.202534 | M28: 4391.62753 | N28: 5523.265436 | O28: 2978.898502 | P28: 2578.535535 | Q28: 1591.678242 | R28: 3561.613199 | S28: 4200.245323
J29: -3.191891196e-16 | K29: 2885.660424 | L29: 1900.431891 | M29: 8532.245883 | N29: 8591.477006 | O29: 3795.196709 | P29: 4365.891284 | Q29: 1783.523593 | R29: 5038.737429 | S29: 4974.376975
J30: eNPV | K30: =(0.3*K11)+(0.4*K19)+(0.3*K27) -> 1393.288168 | L30: 1335.837183 | M30: 2338.918299 | N30: 2739.003116 | O30: 1915.455533 | P30: 1683.588941 | Q30: 1090.063068 | R30: 2317.009098 | S30: 2579.951848
J31: Statistics from Crystal Ball Run
K32: 969.8112066 | L32: 1007.115884 | M32: 1281.380047 | N32: 1261.233727 | O32: 1132.962247 | P32: 994.5679538 | Q32: 929.9139783 | R32: 1195.259802 | S32: 1230.111337
A33: Production | J33: Statistics | K33: =K7 -> Momentum | L33: Strict Investing | M33: High Control | N33: Small Change | O33: =O7 -> Free Agent | P33: Organic | Q33: Gas Domination | R33: Hybrid 1 | S33: Optimal Hybrid
J34: Trials | K34: 150 | L34: 150 | M34: 150 | N34: 150 | O34: 150 | P34: 150 | Q34: 150 | R34: 150 | S34: 150
J35: Mean (ENPV) | K35: 1415.176502 | L35: 1335.758001 | M35: 2468.619706 | N35: 2681.111259 | O35: 1910.758883 | P35: 1706.667197 | Q35: 1107.632315 | R35: 2302.23523 | S35: 2566.050237
J36: Median | K36: 1339.576517 | L36: 1341.973203 | M36: 2196.259737 | N36: 2420.148297 | O36: 1821.480832 | P36: 1600.060255 | Q36: 1112.885663 | R36: 2170.725094 | S36: 2498.998288
J37: Mode | K37: --- | L37: --- | M37: --- | N37: --- | O37: --- | P37: --- | Q37: --- | R37: --- | S37: ---
J38: Standard Deviation | K38: 346.3101289 | L38: 207.4489483 | M38: 1085.860481 | N38: 1313.797224 | O38: 528.5607358 | P38: 528.7116288 | Q38: 279.1637269 | R38: 737.502576 | S38: 798.8201342
J39: Variance | K39: 119930.7054 | L39: 43035.06616 | M39: 1179092.984 | N39: 1726063.146 | O39: 279376.4515 | P39: 279535.9865 | Q39: 77932.38643 | R39: 543910.0495 | S39: 638113.6069
J40: Skewness | K40: 1.362836496 | L40: 0.1465715866 | M40: 2.398804745 | N40: 1.428829487 | O40: 0.9422869148 | P40: 1.822190604 | Q40: -0.0559510866 | R40: 0.9858900602 | S40: 0.7641305835
J41: Kurtosis | K41: 5.898102182 | L41: 2.824427798 | M41: 11.62459516 | N41: 5.539563655 | O41: 3.768836516 | P41: 8.156137681 | Q41: 2.744638527 | R41: 4.110273103 | S41: 3.333512785
J42: Coeff. of Variability | K42: 0.2447116161 | L42: 0.1553042902 | M42: 0.4398654351 | N42: 0.4900196587 | O42: 0.2766234612 | P42: 0.3097918737 | Q42: 0.2520364594 | R42: 0.3203419731 | S42: 0.3113033886
J43: Range Minimum | K43: 790.7612408 | L43: 802.4999823 | M43: 1151.334727 | N43: 933.123273 | O43: 1024.909114 | P43: 971.996555 | Q43: 427.5429165 | R43: 963.8788536 | S43: 1224.528036
J44: Range Maximum | K44: 2885.660424 | L44: 1900.431891 | M44: 8532.245883 | N44: 8591.477006 | O44: 3795.196709 | P44: 4365.891284 | Q44: 1783.523593 | R44: 5038.737429 | S44: 4974.376975
J45: Range Width | K45: 28.27610362 | L45: 16.9381357 | M45: 88.66013701 | N45: 107.2710942 | O45: 43.15680336 | P45: 43.16912372 | Q45: 22.79362285 | R45: 60.21683317 | S45: 65.22339084
J46: Mean Std. Error | K46: 790.8727803 | L46: 840.2390823 | M46: 1167.945312 | N46: 963.4794209 | O46: 1072.336926 | P46: 976.8260652 | Q46: 439.2800004 | R46: 1000.085705 | S46: 1242.287212
K49: =K7 -> Momentum | L49: =L7 -> Strict Investing | M49: High Control | N49: Small Change | O49: Free Agent | P49: Organic | Q49: Gas Domination | R49: Hybrid 1 | S49: Optimal Hybrid | U49: =J49 -> 0 | V49: =K49 -> Momentum | W49: Strict Investing | X49: High Control | Y49: Small Change | Z49: Free Agent | AA49: Organic | AB49: Gas Domination | AC49: =S49 -> Optimal Hybrid
J50: P100 | K50: =K9 -> 790.7612408 | L50: =L9 -> 802.4999823 | M50: 1151.334727 | N50: 933.123273 | O50: 1024.909114 | P50: 971.996555 | Q50: 427.5429165 | R50: 963.8788536 | S50: 1224.528036 | U50: =J50 -> P100 | V50: =K50 -> 790.7612408 | W50: =L50 -> 802.4999823 | X50: =M50 -> 1151.334727 | Y50: =N50 -> 933.123273 | Z50: =O50 -> 1024.909114 | AA50: =P50 -> 971.996555 | AB50: =Q50 -> 427.5429165 | AC50: 1224.528036
J51: P100 - 90 | K51: =K11-SUM(K50) -> 251.9624406 | L51: =L11-SUM(L50) -> 272.3635792 | M51: 267.3873903 | N51: 413.3182818 | O51: 270.0051461 | P51: 194.6579418 | Q51: 277.7207195 | R51: 562.701827 | S51: 439.5791439 | U51: P100 - 90 | V51: 251.9624406 | W51: 272.3635792 | X51: 267.3873903 | Y51: 413.3182818 | Z51: 270.0051461 | AA51: 194.6579418 | AB51: 277.7207195 | AC51: 439.5791439
J52: P90 - 65 | K52: =K16-SUM(K50:K51) -> 214.773417 | L52: =L16-SUM(L50:L51) -> 174.403545 | M52: 574.149603 | N52: 679.0855845 | O52: 341.2136552 | P52: 267.568184 | Q52: 314.9052773 | R52: 390.7927691 | S52: 533.9888207 | U52: P90 - 65 | V52: 214.773417 | W52: 174.403545 | X52: 574.149603 | Y52: 679.0855845 | Z52: 341.2136552 | AA52: 267.568184 | AB52: 314.9052773 | AC52: 533.9888207
J53: P65 - 55 | K53: =K18-SUM(K50:K52) -> 32.7256781 | L53: =L18-SUM(L50:L52) -> 59.60053258 | M53: 106.2036376 | N53: 277.0112978 | O53: 111.1072069 | P53: 129.002067 | Q53: 52.05179207 | R53: 122.4325086 | S53: 201.9047203 | U53: P65 - 55 | V53: 32.7256781 | W53: 59.60053258 | X53: 106.2036376 | Y53: 277.0112978 | Z53: 111.1072069 | AA53: 129.002067 | AB53: 52.05179207 | AC53: 201.9047203
J54: P55 - 45 | K54: =K20-SUM(K50:K53) -> 94.58053187 | L54: =L20-SUM(L50:L53) -> 47.29385488 | M54: 191.1473595 | N54: 229.2860571 | O54: 155.7429443 | P54: 84.8496494 | Q54: 72.60302604 | R54: 220.8827495 | S54: 175.9755173 | U54: P55 - 45 | V54: 94.58053187 | W54: 47.29385488 | X54: 191.1473595 | Y54: 229.2860571 | Z54: 155.7429443 | AA54: 84.8496494 | AB54: 72.60302604 | AC54: 175.9755173
J55: P45 - 35 | K55: =K22-SUM(K50:K54) -> 92.46694323 | L55: =L22-SUM(L50:L54) -> 48.63047397 | M55: 229.9269463 | N55: 291.237734 | O55: 119.5575313 | P55: 98.99009408 | Q55: 88.73256209 | R55: 139.1058977 | S55: 174.7691323 | U55: P45 - 35 | V55: 92.46694323 | W55: 48.63047397 | X55: 229.9269463 | Y55: 291.237734 | Z55: 119.5575313 | AA55: 98.99009408 | AB55: 88.73256209 | AC55: 174.7691323
J56: P35 - 10 | K56: =K27-SUM(K50:K55) -> 339.3388211 | L56: =L27-SUM(L50:L55) -> 187.2808534 | M56: 935.6403106 | N56: 1735.876069 | O56: 643.1526067 | P56: 570.8599541 | Q56: 217.7121078 | R56: 910.4639999 | S56: 855.3765955 | U56: P35 - 10 | V56: 339.3388211 | W56: 187.2808534 | X56: 935.6403106 | Y56: 1735.876069 | Z56: 643.1526067 | AA56: 570.8599541 | AB56: 217.7121078 | AC56: 855.3765955
B57: Current Run | J57: P10 - 0 | K57: =K29-SUM(K50:K56) -> 1069.051351 | L57: =L29-SUM(L50:L56) -> 308.3590694 | M57: 5076.455909 | N57: 4032.538709 | O57: 1129.508504 | P57: 2047.966839 | Q57: 332.2551915 | R57: 1728.478824 | S57: 1368.255009 | U57: P10 - 0 | V57: 1069.051351 | W57: 308.3590694 | X57: 5076.455909 | Y57: 4032.538709 | Z57: 1129.508504 | AA57: 2047.966839 | AB57: 332.2551915 | AC57: 1368.255009
U58: 0 | V58: 0 | W58: 0 | X58: 0 | Y58: 0 | Z58: 0 | AA58: 0 | AB58: 0 | AC58: 0
K59: =SUM(K50:K58) -> 2885.660424 | L59: =SUM(L50:L58) -> 1900.431891 | M59: 8532.245883 | N59: 8591.477006 | O59: 3795.196709 | P59: 4365.891284 | Q59: 1783.523593 | R59: 5038.737429 | S59: 4974.376975 | U59: 0 | V59: 2885.660424 | W59: 1900.431891 | X59: 8532.245883 | Y59: 8591.477006 | Z59: 3795.196709 | AA59: 4365.891284 | AB59: 1783.523593 | AC59: 4974.376975
K60: =SUM(K50:K56) -> 1816.609073 | L60: =SUM(L50:L56) -> 1592.072821 | M60: 3455.789975 | N60: 4558.938297 | O60: 2665.688205 | P60: 2317.924445 | Q60: 1451.268401 | R60: 3310.258605 | S60: 3606.121966 | U60: 0 | V60: 1816.609073 | W60: 1592.072821 | X60: 3455.789975 | Y60: 4558.938297 | Z60: 2665.688205 | AA60: 2317.924445 | AB60: 1451.268401 | AC60: 3606.121966
B62: Statistics
B63: Trials | C63: =Data!C4 -> 150
B64: Mean (ENPV) | C64: =Data!C5 -> 2566.050237
B65: Median | C65: =Data!C6 -> 2498.998288
B66: Mode | C66: =Data!C7 -> ---
B67: Standard Deviation | C67: =Data!C8 -> 798.8201342
B68: Variance | C68: =Data!C9 -> 638113.6069
B69: Skewness | C69: =Data!C10 -> 0.7641305835
B70: Kurtosis | C70: =Data!C11 -> 3.333512785
B71: Coeff. of Variability | C71: =Data!C12 -> 0.3113033886
B72: Range Minimum | C72: =Data!C13 -> 1224.528036
B73: Range Maximum | C73: =Data!C14 -> 4974.376975
B74: Range Width | C74: =Data!C15 -> 65.22339084
B75: Mean Std. Error | C75: =Data!C16 -> 1242.287212
K76: =K33 -> Momentum | L76: =L33 -> Strict Investing | M76: High Control | N76: Small Change | O76: Free Agent | P76: Organic | Q76: Gas Domination | R76: Hybrid 1 | S76: Optimal Hybrid
J77: EV/EV Investments | K77: =K35/CashFlow!W197 -> 1.595306399 | L77: =L35/CashFlow!W203 -> 2.172278138 | M77: =M35/CashFlow!W209 -> 2.010129521 | N77: =N35/CashFlow!W215 -> 1.746725074 | O77: =O35/CashFlow!W221 -> 1.715495413 | P77: =P35/CashFlow!W227 -> 2.13740665 | Q77: =Q35/CashFlow!W233 -> 0.4399700377 | R77: =R35/CashFlow!W239 -> 1.659832347 | S77: =S35/CashFlow!W245 -> 2.01965249
B78: < %iles | C78: NPV | J78: Capex/BOE | K78: =SUM(CashFlow!E197:V197)/SUM(RiskProfile_NPV!D131:V131) -> 4.889427305 | L78: =SUM(CashFlow!E203:V203)/SUM(RiskProfile_NPV!D148:V148) -> 3.394299638 | M78: =SUM(CashFlow!E209:V209)/SUM(RiskProfile_NPV!D165:V165) -> 3.261378338 | N78: =SUM(CashFlow!E215:V215)/SUM(D182:V182) -> 3.62802403 | O78: =SUM(CashFlow!E221:V221)/SUM(RiskProfile_NPV!D199:V199) -> 3.721238073 | P78: =SUM(CashFlow!E227:V227)/SUM(RiskProfile_NPV!D216:V216) -> 3.878046229 | Q78: =SUM(CashFlow!E233:V233)/SUM(RiskProfile_NPV!D233:V233) -> 6.833181393 | R78: =SUM(CashFlow!E239:V239)/SUM(RiskProfile_NPV!D250:V250) -> 4.17679932 | S78: =SUM(CashFlow!E245:V245)/SUM(RiskProfile_NPV!D267:V267) -> 3.112999771
B79: 0 | C79: =Data!C13 -> 1224.528036
B80: 0.05 | C80: =Data!C20 -> 1434.324688
B81: 0.1 | C81: =Data!C25 -> 1664.10718
B82: 0.15 | C82: =Data!C30 -> 1765.252818
B83: 0.2 | C83: =Data!C35 -> 1833.872641
B84: 0.25 | C84: =Data!C40 -> 1958.329184
B85: 0.3 | C85: =Data!C45 -> 1998.863948
B86: 0.35 | C86: =Data!C50 -> 2198.096001
B87: 0.4 | C87: =Data!C55 -> 2312.851822
B88: 0.45 | C88: =Data!C60 -> 2400.000721
B89: 0.5 | C89: =Data!C65 -> 2497.207759
B90: 0.55 | C90: =Data!C70 -> 2575.976238
B91: 0.6 | C91: =Data!C75 -> 2630.726208
B92: 0.65 | C92: =Data!C80 -> 2750.745371
B93: 0.7 | C93: =Data!C85 -> 2862.16886
B94: 0.75 | C94: =Data!C90 -> 2956.528892
B95: 0.8 | C95: =Data!C95 -> 3059.141087
B96: 0.85 | C96: =Data!C100 -> 3379.032148
B97: 0.9 | C97: =Data!C105 -> 3606.121966
B98: 0.95 | C98: =Data!C110 -> 4200.245323
B99: 1 | C99: =Data!C115 -> 4974.376975
A104: Plotting | C104: MMBoe | D104: =CHOOSE(Strategy,D131,D148,D165,D182,D199,D216,D233,D250,D267) -> 0 | E104: =CHOOSE(Strategy,E131,E148,E165,E182,E199,E216,E233,E250,E267) -> 15.24543057 | F104: 17.80949666 | G104: 21.23466941 | H104: 24.69671945 | I104: 28.33870263 | J104: 27.20423361 | K104: 24.57551324 | L104: 22.0180838 | M104: 19.36763265 | N104: 16.6775583 | O104: 14.97203645 | P104: 13.31137969 | Q104: 11.7877817 | R104: 10.19829051 | S104: 8.695974292 | T104: 7.469653447 | U104: 6.407011109 | V104: 3.224213565
D105: =StartYear-1 -> 2019 | E105: =D105+1 -> 2020 | F105: =E105+1 -> 2021 | G105: 2022 | H105: 2023 | I105: 2024 | J105: 2025 | K105: 2026 | L105: 2027 | M105: 2028 | N105: 2029 | O105: 2030 | P105: 2031 | Q105: 2032 | R105: 2033 | S105: 2034 | T105: 2035 | U105: 2036 | V105: 2037
B106: Oil (MMBO) | C106: Mean | D106: =CHOOSE(Strategy,D133,D150,D167,D184,D201,D218,D235,D252,D269) -> 0 | E106: 3.283960909 | F106: 3.152829949 | G106: 3.626430916 | H106: 3.476495308 | I106: 7.123628754 | J106: 5.83283502 | K106: 4.848367488 | L106: 4.096343087 | M106: 3.193986775 | N106: 2.540510211 | O106: 3.449607017 | P106: =CHOOSE(Strategy,P133,P150,P167,P184,P201,P218,P235,P252,P269) -> 4.161711502 | Q106: 4.712359593 | R106: 4.310416456 | S106: 3.930476477 | T106: 3.391135606 | U106: 2.87109186 | V106: 1.932782943
C107: 0.1 | D107: =CHOOSE(Strategy,D134,D151,D168,D185,D202,D219,D236,D253,D270) -> 0 | E107: 2.519733543 | F107: 2.197453529 | G107: 2.735844388 | H107: 2.464668011 | I107: 6.070355789 | J107: 4.943150891 | K107: 4.007020948 | L107: 3.303466557 | M107: 2.418163981 | N107: 1.85433895 | O107: 2.856286682 | P107: =CHOOSE(Strategy,P134,P151,P168,P185,P202,P219,P236,P253,P270) -> 3.630994562 | Q107: 4.267023222 | R107: 3.950199953 | S107: 3.59174538 | T107: 3.107716527 | U107: 2.633579301 | V107: 1.788383795
C108: 0.5 | D108: =CHOOSE(Strategy,D135,D152,D169,D186,D203,D220,D237,D254,D271) -> 0 | E108: 3.129164171 | F108: 2.772637811 | G108: 3.261697782 | H108: 2.999181103 | I108: 6.536917378 | J108: 5.349112485 | K108: 4.350476061 | L108: 3.631001323 | M108: 2.698363002 | N108: 2.085808363 | O108: 3.049274501 | P108: =CHOOSE(Strategy,P135,P152,P169,P186,P203,P220,P237,P254,P271) -> 3.796445542 | Q108: 4.439371351 | R108: 4.099715081 | S108: 3.72689358 | T108: 3.226475082 | U108: 2.738474987 | V108: 1.788383795
C109: 0.9 | D109: =CHOOSE(Strategy,D136,D153,D170,D187,D204,D221,D238,D255,D272) -> 0 | E109: 3.915365374 | F109: 3.978440603 | G109: 4.473136292 | H109: 4.702345734 | I109: 9.394330403 | J109: 7.439824804 | K109: 6.470408169 | L109: 5.324876463 | M109: 4.446820027 | N109: 3.74401889 | O109: 4.8065656 | P109: =CHOOSE(Strategy,P136,P153,P170,P187,P204,P221,P238,P255,P272) -> 5.348629717 | Q109: 5.60677513 | R109: 5.04612301 | S109: 4.526756403 | T109: 3.856209662 | U109: 3.201425525 | V109: 2.238501097
D111: =StartYear-1 -> 2019 | E111: =D111+1 -> 2020 | F111: =E111+1 -> 2021 | G111: 2022 | H111: 2023 | I111: 2024 | J111: 2025 | K111: 2026 | L111: 2027 | M111: 2028 | N111: 2029 | O111: 2030 | P111: 2031 | Q111: 2032 | R111: 2033 | S111: 2034 | T111: 2035 | U111: 2036 | V111: 2037
B112: Gas (BCF) | C112: Mean | D112: =CHOOSE(Strategy,D139,D156,D173,D190,D207,D224,D241,D258,D275) -> 0 | E112: 71.76881799 | F112: 87.94000028 | G112: 105.649431 | H112: 127.3213448 | I112: 127.2904433 | J112: 128.2283915 | K112: 118.3628745 | L112: 107.5304443 | M112: 97.04187523 | N112: 84.82228854 | O112: 69.1345766 | P112: =CHOOSE(Strategy,P139,P156,P173,P190,P207,P224,P241,P258,P275) -> 54.89800913 | Q112: 42.45253266 | R112: 35.32724431 | S112: 28.59298689 | T112: 24.47110704 | U112: 21.21551549 | V112: 7.748583736
C113: 0.1 | D113: =CHOOSE(Strategy,D140,D157,D174,D191,D208,D225,D242,D259,D276) -> 0 | E113: 48.97460007 | F113: 55.60806466 | G113: 66.15817124 | H113: 85.38379258 | I113: 86.3666547 | J113: 83.84851768 | K113: 75.84785358 | L113: 66.47556719 | M113: 54.97453698 | N113: 48.19712526 | O113: 36.73893912 | P113: =CHOOSE(Strategy,P140,P157,P174,P191,P208,P225,P242,P259,P276) -> 29.78200476 | Q113: 23.70596317 | R113: 19.96173403 | S113: 15.27766208 | T113: 13.52243955 | U113: 12.57591874 | V113: 0.7423351497
C114: 0.5 | D114: =CHOOSE(Strategy,D141,D158,D175,D192,D209,D226,D243,D260,D277) -> 0 | E114: =CHOOSE(Strategy,E141,E158,E175,E192,E209,E226,E243,E260,E277) -> 65.25108498 | F114: 79.55607289 | G114: 93.02714701 | H114: 117.855778 | I114: 116.7600797 | J114: 113.8049321 | K114: 103.6771561 | L114: 92.38219292 | M114: 83.7926064 | N114: 72.85470156 | O114: 57.25422012 | P114: =CHOOSE(Strategy,P141,P158,P175,P192,P209,P226,P243,P260,P277) -> 46.05362087 | Q114: 36.43905637 | R114: 29.24596409 | S114: 23.5858403 | T114: 20.49320317 | U114: 18.50117474 | V114: 4.828087446
C115: 0.9 | D115: =CHOOSE(Strategy,D142,D159,D176,D193,D210,D227,D244,D261,D278) -> 0 | E115: 98.7329941 | F115: 129.1328065 | G115: 148.9430887 | H115: 185.3543398 | I115: 177.0482517 | J115: 185.4011591 | K115: 190.2148385 | L115: 163.3702734 | M115: 152.0032819 | N115: 136.7449796 | O115: 108.6616288 | P115: =CHOOSE(Strategy,P142,P159,P176,P193,P210,P227,P244,P261,P278) -> 90.73545564 | Q115: 65.57135759 | R115: 53.02466482 | S115: 43.8331728 | T115: 37.13168755 | U115: 31.73867839 | V115: 15.41616183
A116: Current Run Production
C117: MMBoe | D117: =Data!H3 -> 0 | E117: =Data!I3 -> 24.20043464 | F117: =Data!J3 -> 31.01702522 | G117: =Data!K3 -> 43.25766735 | H117: =Data!L3 -> 48.71310029 | I117: =Data!M3 -> 49.17933391 | J117: =Data!N3 -> 55.23116858 | K117: =Data!O3 -> 55.05409918 | L117: =Data!P3 -> 51.62642798 | M117: =Data!Q3 -> 48.81644513 | N117: =Data!R3 -> 43.01201877 | O117: =Data!S3 -> 38.08810212 | P117: =Data!T3 -> 33.41283562 | Q117: =Data!U3 -> 28.88081413 | R117: =Data!V3 -> 25.10420155 | S117: =Data!W3 -> 21.08778749 | T117: =Data!X3 -> 17.3725697 | U117: =Data!Y3 -> 14.50599509 | V117: =Data!Z3 -> 9.995158028
D118: =StartYear-1 -> 2019 | E118: =D118+1 -> 2020 | F118: =E118+1 -> 2021 | G118: 2022 | H118: 2023 | I118: 2024 | J118: 2025 | K118: 2026 | L118: 2027 | M118: 2028 | N118: 2029 | O118: 2030 | P118: 2031 | Q118: 2032 | R118: 2033 | S118: 2034 | T118: 2035 | U118: 2036 | V118: 2037
B119: Oil (MMBO) | C119: Mean | D119: =Data!H5 -> 0 | E119: =Data!I5 -> 4.60176808 | F119: =Data!J5 -> 5.53017254 | G119: =Data!K5 -> 10.11969405 | H119: =Data!L5 -> 9.299998213 | I119: =Data!M5 -> 9.471436515 | J119: =Data!N5 -> 13.13830084 | K119: =Data!O5 -> 12.57570129 | L119: =Data!P5 -> 11.1931846 | M119: =Data!Q5 -> 11.78608592 | N119: =Data!R5 -> 11.44648241 | O119: =Data!S5 -> 10.85109156 | P119: =Data!T5 -> 11.33264561 | Q119: =Data!U5 -> 11.29846646 | R119: =Data!V5 -> 10.75897674 | S119: =Data!W5 -> 9.36960603 | T119: =Data!X5 -> 7.920546695 | U119: =Data!Y5 -> 6.537979971 | V119: =Data!Z5 -> 4.978834609
C120: 0.1 | D120: =Data!H6 -> 0 | E120: =Data!I6 -> 2.545126388 | F120: =Data!J6 -> 2.397915242 | G120: =Data!K6 -> 6.068848835 | H120: =Data!L6 -> 5.093386833 | I120: =Data!M6 -> 4.576193789 | J120: =Data!N6 -> 7.761249307 | K120: =Data!O6 -> 6.26598702 | L120: =Data!P6 -> 5.285362377 | M120: =Data!Q6 -> 5.763430467 | N120: =Data!R6 -> 5.748636669 | O120: =Data!S6 -> 5.826580359 | P120: =Data!T6 -> 6.771452355 | Q120: =Data!U6 -> 7.271398094 | R120: =Data!V6 -> 7.321240176 | S120: =Data!W6 -> 6.439011611 | T120: =Data!X6 -> 5.492807086 | U120: =Data!Y6 -> 4.535232144 | V120: =Data!Z6 -> 3.387564347
C121: 0.5 | D121: =Data!H7 -> 0 | E121: =Data!I7 -> 3.438854208 | F121: =Data!J7 -> 3.853444781 | G121: =Data!K7 -> 7.947057283 | H121: =Data!L7 -> 6.997235914 | I121: =Data!M7 -> 7.426177132 | J121: =Data!N7 -> 10.76361868 | K121: =Data!O7 -> 9.323825627 | L121: =Data!P7 -> 8.472960911 | M121: =Data!Q7 -> 8.919329094 | N121: =Data!R7 -> 9.106091334 | O121: =Data!S7 -> 9.052960974 | P121: =Data!T7 -> 9.660031095 | Q121: =Data!U7 -> 9.864637735 | R121: =Data!V7 -> 9.332041803 | S121: =Data!W7 -> 8.212714237 | T121: =Data!X7 -> 6.878549688 | U121: =Data!Y7 -> 5.593235167 | V121: =Data!Z7 -> 4.270074028
C122: 0.9 | D122: =Data!H8 -> 0 | E122: =Data!I8 -> 6.730991888 | F122: =Data!J8 -> 10.07326995 | G122: =Data!K8 -> 16.580166 | H122: =Data!L8 -> 16.40611706 | I122: =Data!M8 -> 18.11800681 | J122: =Data!N8 -> 22.03637558 | K122: =Data!O8 -> 22.47621202 | L122: =Data!P8 -> 19.42801431 | M122: =Data!Q8 -> 19.9292085 | N122: =Data!R8 -> 19.10758072 | O122: =Data!S8 -> 17.68243912 | P122: =Data!T8 -> 17.68794973 | Q122: =Data!U8 -> 17.07751992 | R122: =Data!V8 -> 15.79217147 | S122: =Data!W8 -> 13.02888727 | T122: =Data!X8 -> 11.50926145 | U122: =Data!Y8 -> 9.433662026 | V122: =Data!Z8 -> 7.193159115
D124: =StartYear-1 -> 2019 | E124: =D124+1 -> 2020 | F124: =E124+1 -> 2021 | G124: 2022 | H124: 2023 | I124: 2024 | J124: 2025 | K124: 2026 | L124: 2027 | M124: 2028 | N124: 2029 | O124: 2030 | P124: 2031 | Q124: 2032 | R124: 2033 | S124: 2034 | T124: 2035 | U124: 2036 | V124: 2037
B125: Gas (BCF) | C125: Mean | D125: =Data!H14 -> 0 | E125: =Data!I14 -> 117.5919993 | F125: =Data!J14 -> 152.9211161 | G125: =Data!K14 -> 198.8278398 | H125: =Data!L14 -> 236.4786125 | I125: =Data!M14 -> 238.2473844 | J125: =Data!N14 -> 252.5572064 | K125: =Data!O14 -> 254.8703873 | L125: =Data!P14 -> 242.5994603 | M125: =Data!Q14 -> 222.1821553 | N125: =Data!R14 -> 189.3932181 | O125: =Data!S14 -> 163.4220633 | P125: =Data!T14 -> 132.48114 | Q125: =Data!U14 -> 105.494086 | R125: =Data!V14 -> 86.07134886 | S125: =Data!W14 -> 70.30908876 | T125: =Data!X14 -> 56.71213805 | U125: =Data!Y14 -> 47.80809069 | V125: =Data!Z14 -> 30.09794051
C126: 0.1 | D126: =Data!H15 -> 0 | E126: =Data!I15 -> 59.21911475 | F126: =Data!J15 -> 75.5927633 | G126: =Data!K15 -> 112.6789206 | H126: =Data!L15 -> 140.5286858 | I126: =Data!M15 -> 133.0544878 | J126: =Data!N15 -> 154.784973 | K126: =Data!O15 -> 149.3325895 | L126: =Data!P15 -> 147.740659 | M126: =Data!Q15 -> 134.7779612 | N126: =Data!R15 -> 117.8879109 | O126: =Data!S15 -> 93.40381312 | P126: =Data!T15 -> 78.63225166 | Q126: =Data!U15 -> 58.94040011 | R126: =Data!V15 -> 51.18226573 | S126: =Data!W15 -> 39.87192967 | T126: =Data!X15 -> 31.55574044 | U126: =Data!Y15 -> 25.85643903 | V126: =Data!Z15 -> 10.87800531
C127: 0.5 | D127: =Data!H16 -> 0 | E127: =Data!I16 -> 87.94137314 | F127: =Data!J16 -> 123.4910807 | G127: =Data!K16 -> 172.898691 | H127: =Data!L16 -> 210.2856635 | I127: =Data!M16 -> 219.0069147 | J127: =Data!N16 -> 237.5511831 | K127: =Data!O16 -> 233.6711421 | L127: =Data!P16 -> 231.8557626 | M127: =Data!Q16 -> 197.2693945 | N127: =Data!R16 -> 172.1703188 | O127: =Data!S16 -> 142.2236964 | P127: =Data!T16 -> 115.7137224 | Q127: =Data!U16 -> 94.64434412 | R127: =Data!V16 -> 79.69079043 | S127: =Data!W16 -> 62.50248584 | T127: =Data!X16 -> 50.36184545 | U127: =Data!Y16 -> 41.78285881 | V127: =Data!Z16 -> 25.72325065
C128: 0.9 | D128: =Data!H17 -> 0 | E128: =Data!I17 -> 197.5511551 | F128: =Data!J17 -> 264.7990693 | G128: =Data!K17 -> 297.8666169 | H128: =Data!L17 -> 360.344099 | I128: =Data!M17 -> 368.0354442 | J128: =Data!N17 -> 366.8509994 | K128: =Data!O17 -> 394.8184865 | L128: =Data!P17 -> 379.4904668 | M128: =Data!Q17 -> 361.2383309 | N128: =Data!R17 -> 284.1754089 | O128: =Data!S17 -> 265.382686 | P128: =Data!T17 -> 212.9667297 | Q128: =Data!U17 -> 159.3401195 | R128: =Data!V17 -> 131.707777 | S128: =Data!W17 -> 107.8935094 | T128: =Data!X17 -> 89.40121867 | U128: =Data!Y17 -> 78.0504384 | V128: =Data!Z17 -> 52.05507403
A130: Production
A131: =strategy1 -> Momentum | C131: MMBoe | D131: 0 | E131: 15.24543057 | F131: 17.80949666 | G131: 21.23466941 | H131: 24.69671945 | I131: 28.33870263 | J131: 27.20423361 | K131: 24.57551324 | L131: 22.0180838 | M131: 19.36763265 | N131: 16.6775583 | O131: 14.97203645 | P131: 13.31137969 | Q131: 11.7877817 | R131: 10.19829051 | S131: 8.695974292 | T131: 7.469653447 | U131: 6.407011109 | V131: 3.224213565
D132: 2019 | E132: 2020 | F132: 2021 | G132: 2022 | H132: 2023 | I132: 2024 | J132: 2025 | K132: 2026 | L132: 2027 | M132: 2028 | N132: 2029 | O132: 2030 | P132: 2031 | Q132: 2032 | R132: 2033 | S132: 2034 | T132: 2035 | U132: 2036 | V132: 2037
B133: Oil (MMBO) | C133: Mean | D133: 0 | E133: 3.283960909 | F133: 3.152829949 | G133: 3.626430916 | H133: 3.476495308 | I133: 7.123628754 | J133: 5.83283502 | K133: 4.848367488 | L133: 4.096343087 | M133: 3.193986775 | N133: 2.540510211 | O133: 3.449607017 | P133: 4.161711502 | Q133: 4.712359593 | R133: 4.310416456 | S133: 3.930476477 | T133: 3.391135606 | U133: 2.87109186 | V133: 1.932782943
C134: 0.1 | D134: 0 | E134: 2.519733543 | F134: 2.197453529 | G134: 2.735844388 | H134: 2.464668011 | I134: 6.070355789 | J134: 4.943150891 | K134: 4.007020948 | L134: 3.303466557 | M134: 2.418163981 | N134: 1.85433895 | O134: 2.856286682 | P134: 3.630994562 | Q134: 4.267023222 | R134: 3.950199953 | S134: 3.59174538 | T134: 3.107716527 | U134: 2.633579301 | V134: 1.788383795
C135: 0.5 | D135: 0 | E135: 3.129164171 | F135: 2.772637811 | G135: 3.261697782 | H135: 2.999181103 | I135: 6.536917378 | J135: 5.349112485 | K135: 4.350476061 | L135: 3.631001323 | M135: 2.698363002 | N135: 2.085808363 | O135: 3.049274501 | P135: 3.796445542 | Q135: 4.439371351 | R135: 4.099715081 | S135: 3.72689358 | T135: 3.226475082 | U135: 2.738474987 | V135: 1.788383795
C136: 0.9 | D136: 0 | E136: 3.915365374 | F136: 3.978440603 | G136: 4.473136292 | H136: 4.702345734 | I136: 9.394330403 | J136: 7.439824804 | K136: 6.470408169 | L136: 5.324876463 | M136: 4.446820027 | N136: 3.74401889 | O136: 4.8065656 | P136: 5.348629717 | Q136: 5.60677513 | R136: 5.04612301 | S136: 4.526756403 | T136: 3.856209662 | U136: 3.201425525 | V136: 2.238501097
D138: 2019 | E138: 2020 | F138: 2021 | G138: 2022 | H138: 2023 | I138: 2024 | J138: 2025 | K138: 2026 | L138: 2027 | M138: 2028 | N138: 2029 | O138: 2030 | P138: 2031 | Q138: 2032 | R138: 2033 | S138: 2034 | T138: 2035 | U138: 2036 | V138: 2037
B139: Gas (BCF) | C139: Mean | D139: 0 | E139: 71.76881799 | F139: 87.94000028 | G139: 105.649431 | H139: 127.3213448 | I139: 127.2904433 | J139: 128.2283915 | K139: 118.3628745 | L139: 107.5304443 | M139: 97.04187523 | N139: 84.82228854 | O139: 69.1345766 | P139: 54.89800913 | Q139: 42.45253266 | R139: 35.32724431 | S139: 28.59298689 | T139: 24.47110704 | U139: 21.21551549 | V139: 7.748583736
C140: 0.1 | D140: 0 | E140: 48.97460007 | F140: 55.60806466 | G140: 66.15817124 | H140: 85.38379258 | I140: 86.3666547 | J140: 83.84851768 | K140: 75.84785358 | L140: 66.47556719 | M140: 54.97453698 | N140: 48.19712526 | O140: 36.73893912 | P140: 29.78200476 | Q140: 23.70596317 | R140: 19.96173403 | S140: 15.27766208 | T140: 13.52243955 | U140: 12.57591874 | V140: 0.7423351497
C141: 0.5 | D141: 0 | E141: 65.25108498 | F141: 79.55607289 | G141: 93.02714701 | H141: 117.855778 | I141: 116.7600797 | J141: 113.8049321 | K141: 103.6771561 | L141: 92.38219292 | M141: 83.7926064 | N141: 72.85470156 | O141: 57.25422012 | P141: 46.05362087 | Q141: 36.43905637 | R141: 29.24596409 | S141: 23.5858403 | T141: 20.49320317 | U141: 18.50117474 | V141: 4.828087446
C142: 0.9 | D142: 0 | E142: 98.7329941 | F142: 129.1328065 | G142: 148.9430887 | H142: 185.3543398 | I142: 177.0482517 | J142: 185.4011591 | K142: 190.2148385 | L142: 163.3702734 | M142: 152.0032819 | N142: 136.7449796 | O142: 108.6616288 | P142: 90.73545564 | Q142: 65.57135759 | R142: 53.02466482 | S142: 43.8331728 | T142: 37.13168755 | U142: 31.73867839 | V142: 15.41616183
A148: =strategy2 -> Strict Investing | C148: MMBoe | D148: 0 | E148: 13.4885589 | F148: 15.57117168 | G148: 19.15591513 | H148: 20.85215944 | I148: 20.45564901 | J148: 21.32987105 | K148: 20.50787752 | L148: 19.61521972 | M148: 19.05755911 | N148: 16.84370014 | O148: 15.33496233 | P148: 13.92105946 | Q148: 12.00426004 | R148: 10.15844156 | S148: 8.202160712 | T148: 6.785096589 | U148: 5.76389481 | V148: 2.735447705
D149: 2019 | E149: 2020 | F149: 2021 | G149: 2022 | H149: 2023 | I149: 2024 | J149: 2025 | K149: 2026 | L149: 2027 | M149: 2028 | N149: 2029 | O149: 2030 | P149: 2031 | Q149: 2032 | R149: 2033 | S149: 2034 | T149: 2035 | U149: 2036 | V149: 2037
B150: Oil (MMBO) | C150: Mean | D150: 0 | E150: 3.404301052 | F150: 3.392019294 | G150: 3.555455596 | H150: 3.327041074 | I150: 3.557458272 | J150: 3.691944382 | K150: 3.74543323 | L150: 4.02076482 | M150: 4.013573291 | N150: 3.722695986 | O150: 3.475999512 | P150: 3.178202927 | Q150: 2.977979915 | R150: 2.624760934 | S150: 2.245640103 | T150: 1.872955558 | U150: 1.566686084 | V150: 0.962862439
C151: 0.1 | D151: 0 | E151: 2.459636454 | F151: 2.259196893 | G151: 2.266653446 | H151: 2.053261322 | I151: 1.88565438 | J151: 1.760858878 | K151: 1.709284064 | L151: 2.134728216 | M151: 2.102783896 | N151: 1.811015062 | O151: 1.63338353 | P151: 1.650834155 | Q151: 1.5477032 | R151: 1.20110047 | S151: 1.01131861 | T151: 0.8814994493 | U151: 0.7413636185 | V151: 0.2818905474
C152: 0.5 | D152: 0 | E152: 3.298360292 | F152: 3.1683255 | G152: 3.232739423 | H152: 3.039218707 | I152: 3.220927646 | J152: 3.506480812 | K152: 3.434682687 | L152: 3.814534181 | M152: 3.905176933 | N152: 3.624858094 | O152: 3.26744146 | P152: 3.024910628 | Q152: 2.811041748 | R152: 2.497834074 | S152: 2.184047583 | T152: 1.856295158 | U152: 1.509079936 | V152: 0.873045141
C153: 0.9 | D153: 0 | E153: 4.29162301 | F153: 4.722174512 | G153: 5.01946324 | H153: 4.955916344 | I153: 5.399961147 | J153: 5.695063829 | K153: 5.738246214 | L153: 6.383231832 | M153: 5.963898009 | N153: 5.70154214 | O153: 5.280620531 | P153: 4.622456354 | Q153: 4.69708428 | R153: 4.099724706 | S153: 3.514323604 | T153: 3.0185533 | U153: 2.505684839 | V153: 1.803281328
D155: 2019 | E155: 2020 | F155: 2021 | G155: 2022 | H155: 2023 | I155: 2024 | J155: 2025 | K155: 2026 | L155: 2027 | M155: 2028 | N155: 2029 | O155: 2030 | P155: 2031 | Q155: 2032 | R155: 2033 | S155: 2034 | T155: 2035 | U155: 2036 | V155: 2037
B156: Gas (BCF) | C156: Mean | D156: 0 | E156: 60.50554708 | F156: 73.07491429 | G156: 93.60275723 | H156: 105.1507102 | I156: 101.3891444 | J156: 105.82756 | K156: 100.5746657 | L156: 93.56672939 | M156: 90.26391495 | N156: 78.72602494 | O156: 71.15377689 | P156: 64.45713921 | Q156: 54.15768073 | R156: 45.20208373 | S156: 35.73912366 | T156: 29.47284618 | U156: 25.18325235 | V156: 10.63551159
C157: 0.1 | D157: 0 | E157: 47.13953631 | F157: 53.70647146 | G157: 66.79317145 | H157: 79.57798373 | I157: 75.83212314 | J157: 78.42991794 | K157: 77.29074828 | L157: 71.97364368 | M157: 68.08299421 | N157: 59.18054818 | O157: 50.97956241 | P157: 43.11508047 | Q157: 38.24820826 | R157: 32.67754482 | S157: 26.18805774 | T157: 21.72760993 | U157: 19.32891299 | V157: 5.793234474
C158: 0.5 | D158: 0 | E158: 60.7676397 | F158: 72.02580818 | G158: 90.99531516 | H158: 103.4461646 | I158: 100.505954 | J158: 105.4997983 | K158: 100.6300238 | L158: 91.26122539 | M158: 88.8541719 | N158: 76.94520454 | O158: 68.32840073 | P158: 60.70794344 | Q158: 51.41800079 | R158: 42.61862107 | S158: 33.8857338 | T158: 28.04176125 | U158: 24.52637893 | V158: 9.840062939
C159: 0.9 | D159: 0 | E159: 73.68599647 | F159: 90.68564507 | G159: 126.6802484 | H159: 134.4530995 | I159: 128.262234 | J159: 131.0527101 | K159: 123.3195436 | L159: 119.7323172 | M159: 113.2041197 | N159: 101.0611741 | O159: 95.77062221 | P159: 90.13566668 | Q159: 72.98981095 | R159: 61.34043543 | S159: 46.89658663 | T159: 37.70842796 | U159: 32.18362272 | V159: 15.68038867
A165: =strategy3 -> High Control | C165: MMBoe | D165: 0 | E165: 22.79674306 | F165: 29.76584489 | G165: 41.72539189 | H165: 49.17526776 | I165: 50.48333994 | J165: 52.52242103 | K165: 46.78918867 | L165: 46.00221381 | M165: 42.95168255 | N165: 38.32177795 | O165: 34.14058991 | P165: 30.04948187 | Q165: 25.65533371 | R165: 22.48755583 | S165: 18.7131752 | T165: 15.44642744 | U165: 12.94932606 | V165: 8.366833487
D166: 2019 | E166: 2020 | F166: 2021 | G166: 2022 | H166: 2023 | I166: 2024 | J166: 2025 | K166: 2026 | L166: 2027 | M166: 2028 | N166: 2029 | O166: 2030 | P166: 2031 | Q166: 2032 | R166: 2033 | S166: 2034 | T166: 2035 | U166: 2036 | V166: 2037
B167: Oil (MMBO) | C167: Mean | D167: 0 | E167: 4.370455523 | F167: 4.465159556 | G167: 8.249163035 | H167: 7.615400217 | I167: 7.098087248 | J167: 6.682623449 | K167: 6.351793188 | L167: 6.074333435 | M167: 7.398083039 | N167: 7.741602066 | O167: 8.108415924 | P167: 7.451673441 | Q167: 6.82495005 | R167: 6.028189892 | S167: 5.230182772 | T167: 4.273398418 | U167: 3.391038927 | V167: 2.444873989
C168: 0.1 | D168: 0 | E168: 2.552847628 | F168: 2.209623196 | G168: 5.831321457 | H168: 4.730270289 | I168: 3.934134095 | J168: 3.204195539 | K168: 2.394732887 | L168: 2.001634756 | M168: 3.190248365 | N168: 3.858502694 | O168: 4.42883451 | P168: 4.106844824 | Q168: 3.81450921 | R168: 3.312415167 | S168: 2.772025647 | T168: 2.175469414 | U168: 1.68474255 | V168: 1.031895962
C169: 0.5 | D169: 0 | E169: 3.261467218 | F169: 2.91404427 | G169: 6.509341923 | H169: 5.577419599 | I169: 4.901635615 | J169: 4.487194888 | K169: 4.391514575 | L169: 4.120245503 | M169: 5.467292786 | N169: 5.989926783 | O169: 6.430097399 | P169: 5.85998778 | Q169: 5.462639607 | R169: 4.691405554 | S169: 4.029264177 | T169: 3.344048865 | U169: 2.55080894 | V169: 1.693184397
C170: 0.9 | D170: 0 | E170: 7.043989437 | F170: 7.966098278 | G170: 11.5017898 | H170: 12.84125078 | I170: 12.58670482 | J170: 11.62265419 | K170: 11.78173737 | L170: 13.78660734 | M170: 13.72091916 | N170: 14.11346554 | O170: 14.11170031 | P170: 12.38609869 | Q170: 11.31465219 | R170: 10.4811777 | S170: 9.371002818 | T170: 7.584598365 | U170: 6.089895884 | V170: 4.247310974
D172: 2019 | E172: 2020 | F172: 2021 | G172: 2022 | H172: 2023 | I172: 2024 | J172: 2025 | K172: 2026 | L172: 2027 | M172: 2028 | N172: 2029 | O172: 2030 | P172: 2031 | Q172: 2032 | R172: 2033 | S172: 2034 | T172: 2035 | U172: 2036 | V172: 2037
B173: Gas (BCF) | C173: Mean | D173: 0 | E173: 110.5577252 | F173: 151.804112 | G173: 200.8573732 | H173: 249.3592052 | I173: 260.3115162 | J173: 275.0387855 | K173: 242.6243729 | L173: 239.5672823 | M173: 213.3215971 | N173: 183.4810553 | O173: 156.1930439 | P173: 135.5868506 | Q173: 112.982302 | R173: 98.75619566 | S173: 80.89795458 | T173: 67.03817415 | U173: 57.3497228 | V173: 35.53175699
C174: 0.1 | D174: 0 | E174: 56.30675272 | F174: 68.63363712 | G174: 102.4427739 | H174: 133.6143008 | I174: 133.8630933 | J174: 139.5870743 | K174: 130.7146195 | L174: 139.6443754 | M174: 119.3504658 | N174: 99.9731877 | O174: 78.65965684 | P174: 70.14477795 | Q174: 58.50142918 | R174: 51.46634414 | S174: 42.53468664 | T174: 35.97418119 | U174: 29.52521061 | V174: 14.25676921
C175: 0.5 | D175: 0 | E175: 87.23419875 | F175: 128.0805221 | G175: 171.0556346 | H175: 225.136484 | I175: 225.5685668 | J175: 235.6924546 | K175: 223.2709946 | L175: 218.7889839 | M175: 187.5834201 | N175: 160.0815481 | O175: 134.8519894 | P175: 116.0452878 | Q175: 104.2885541 | R175: 91.83510787 | S175: 76.1099418 | T175: 62.52651539 | U175: 52.56176786 | V175: 31.30457666
C176: 0.9 | D176: 0 | E176: 196.199685 | F176: 247.5516964 | G176: 338.0924448 | H176: 394.6277857 | I176: 412.2900179 | J176: 458.6446383 | K176: 363.5546139 | L176: 370.6793422 | M176: 333.5232301 | N176: 301.4368705 | O176: 255.4165315 | P176: 219.6220324 | Q176: 190.4724342 | R176: 151.0985284 | S176: 122.2653788 | T176: 101.8897378 | U176: 88.8235216 | V176: 59.68263033
A182: =strategy4 -> Small Change | C182: MMBoe | D182: 0 | E182: 20.94419051 | F182: 31.73363128 | G182: 42.66200809 | H182: 52.9285709 | I182: 54.5748364 | J182: 64.2868204 | K182: 58.28430888 | L182: 56.40532242 | M182: 50.49278161 | N182: 45.17946528 | O182: 40.07390956 | P182: 35.96609011 | Q182: 32.34676589 | R182: 29.93144811 | S182: 25.92935622 | T182: 21.21108908 | U182: 17.77090205 | V182: 12.43743782
D183: 2019 | E183: 2020 | F183: 2021 | G183: 2022 | H183: 2023 | I183: 2024 | J183: 2025 | K183: 2026 | L183: 2027 | M183: 2028 | N183: 2029 | O183: 2030 | P183: 2031 | Q183: 2032 | R183: 2033 | S183: 2034 | T183: 2035 | U183: 2036 | V183: 2037
B184: Oil (MMBO) | C184: Mean | D184: 0 | E184: 4.173335079 | F184: 8.254671511 | G184: 7.543716427 | H184: 7.520193927 | I184: 7.25783481 | J184: 11.06919118 | K184: 10.43109455 | L184: 11.43027807 | M184: 11.70098892 | N184: 10.80027445 | O184: 9.74008234 | P184: 10.03881199 | Q184: 10.1584843 | R184: 9.802031997 | S184: 8.365981793 | T184: 7.13541505 | U184: 5.948983212 | V184: 4.559145416
C185: 0.1 | D185: 0 | E185: 2.540970309 | F185: 6.039901915 | G185: 5.026583762 | H185: 4.057770993 | I185: 3.284381858 | J185: 6.298551101 | K185: 5.004271279 | L185: 5.733852563 | M185: 5.862448452 | N185: 5.658840726 | O185: 4.958091969 | P185: 5.903586777 | Q185: 6.349529648 | R185: 6.45711136 | S185: 5.635318863 | T185: 4.843700591 | U185: 4.102454844 | V185: 3.09745706
C186: 0.5 | D186: 0 | E186: 3.266857792 | F186: 6.745717177 | G186: 5.803448755 | H186: 4.896589607 | I186: 4.440234586 | J186: 7.919981224 | K186: 6.974238127 | L186: 8.601146075 | M186: 8.612196705 | N186: 7.917737874 | O186: 7.043937762 | P186: 7.667860163 | Q186: 7.852631805 | R186: 7.636369912 | S186: 6.54300769 | T186: 5.559203292 | U186: 4.742541325 | V186: 3.593714346
C187: 0.9 | D187: 0 | E187: 5.960143693 | F187: 10.59369473 | G187: 11.60287158 | H187: 12.62923829 | I187: 13.16235853 | J187: 19.37730996 | K187: 24.34180338 | L187: 21.69636962 | M187: 23.185782 | N187: 20.58034872 | O187: 17.46111143 | P187: 17.89493697 | Q187: 17.58265807 | R187: 15.85298379 | S187: 14.67844625 | T187: 12.0451377 | U187: 9.332590635 | V187: 7.201457694
D189: 2019 | E189: 2020 | F189: 2021 | G189: 2022 | H189: 2023 | I189: 2024 | J189: 2025 | K189: 2026 | L189: 2027 | M189: 2028 | N189: 2029 | O189: 2030 | P189: 2031 | Q189: 2032 | R189: 2033 | S189: 2034 | T189: 2035 | U189: 2036 | V189: 2037
B190: Gas (BCF) | C190: Mean | D190: 0 | E190: 100.6251326 | F190: 140.8737586 | G190: 210.70975 | H190: 272.4502618 | I190: 283.9020095 | J190: 319.3057753 | K190: 287.119286 | L190: 269.8502661 | M190: 232.7507562 | N190: 206.275145 | O190: 182.0029633 | P190: 155.5636687 | Q190: 133.1296895 | R190: 120.7764967 | S190: 105.3802466 | T190: 84.45404416 | U190: 70.93151301 | V190: 47.26975444
C191: 0.1 | D191: 0 | E191: 50.20581122 | F191: 69.60895657 | G191: 94.48018049 | H191: 126.3934355 | I191: 116.714729 | J191: 146.8330779 | K191: 137.3728372 | L191: 119.66138 | M191: 102.9740305 | N191: 93.45195043 | O191: 74.02659274 | P191: 60.87730512 | Q191: 49.60897017 | R191: 45.4297427 | S191: 34.30929813 | T191: 28.61186469 | U191: 26.44411812 | V191: 12.34015328
C192: 0.5 | D192: 0 | E192: 74.443331 | F192: 111.4354483 | G192: 164.7440206 | H192: 208.4329046 | I192: 230.4570643 | J192: 276.1781906 | K192: 264.9377704 | L192: 239.8279612 | M192: 199.78522 | N192: 170.9097937 | O192: 145.9405969 | P192: 124.8182764 | Q192: 106.1772744 | R192: 100.9507403 | S192: 84.47580839 | T192: 65.43273085 | U192: 56.10639316 | V192: 34.18882385
C193: 0.9 | D193: 0 | E193: 173.4146078 | F193: 261.814318 | G193: 393.8269302 | H193: 489.6068432 | I193: 514.2780348 | J193: 520.2100528 | K193: 474.2707444 | L193: 442.8663674 | M193: 384.5837617 | N193: 358.6310702 | O193: 304.17145 | P193: 272.7455216 | Q193: 249.4884028 | R193: 224.3039593 | S193: 197.8637728 | T193: 155.1685166 | U193: 140.2864126 | V193: 97.51157805
A199: =strategy5 -> Free Agent | C199: MMBoe | D199: 0 | E199: 18.57914032 | F199: 29.91122663 | G199: 32.89541108 | H199: 38.0355975 | I199: 34.76444283 | J199: 35.41969698 | K199: 35.04871991 | L199: 36.35328527 | M199: 34.74859858 | N199: 31.07928572 | O199: 27.48553108 | P199: 24.47643194 | Q199: 20.92396528 | R199: 18.01062152 | S199: 14.70597955 | T199: 12.2292273 | U199: 10.37129347 | V199: 6.459627659
D200: 2019 | E200: 2020 | F200: 2021 | G200: 2022 | H200: 2023 | I200: 2024 | J200: 2025 | K200: 2026 | L200: 2027 | M200: 2028 | N200: 2029 | O200: 2030 | P200: 2031 | Q200: 2032 | R200: 2033 | S200: 2034 | T200: 2035 | U200: 2036 | V200: 2037
B201: Oil (MMBO) | C201: Mean | D201: 0 | E201: 3.42989484 | F201: 7.516210397 | G201: 6.813362834 | H201: 6.628314055 | I201: 6.020549577 | J201: 5.534704209 | K201: 4.972545932 | L201: 6.507254675 | M201: 7.308454537 | N201: 7.684490235 | O201: 7.196034319 | P201: 6.688183585 | Q201: 6.024541307 | R201: 5.198670704 | S201: 4.271241631 | T201: 3.452370261 | U201: 2.858129516 | V201: 2.010640787
C202: 0.1 | D202: 0 | E202: 2.544871092 | F202: 6.13383733 | G202: 5.147747495 | H202: 4.226482358 | I202: 3.536086237 | J202: 2.766390466 | K202: 2.279943666 | L202: 3.51936578 | M202: 4.178741738 | N202: 4.620745709 | O202: 4.275927295 | P202: 3.916613376 | Q202: 3.46299101 | R202: 2.915929657 | S202: 2.320896506 | T202: 1.793943006 | U202: 1.480342868 | V202: 0.8664375972
C203: 0.5 | D203: 0 | E203: 3.24449299 | F203: 6.878191543 | G203: 6.021544397 | H203: 5.219103736 | I203: 4.84713933 | J203: 4.504655752 | K203: 4.152264404 | L203: 5.475188172 | M203: 6.325304253 | N203: 6.523405189 | O203: 6.022431473 | P203: 5.546258642 | Q203: 5.038303566 | R203: 4.325143797 | S203: 3.390327973 | T203: 2.691248872 | U203: 2.204887323 | V203: 1.452388403
C204: 0.9 | D204: 0 | E204: 4.220436671 | F204: 9.260772663 | G204: 9.19187081 | H204: 10.96538473 | I204: 10.31351416 | J204: 9.275094378 | K204: 8.469807015 | L204: 11.61623703 | M204: 11.63984474 | N204: 12.37721414 | O204: 11.72114093 | P204: 11.14587771 | Q204: 10.46153906 | R204: 9.012468317 | S204: 7.645968612 | T204: 5.906515907 | U204: 4.996313067 | V204: 3.617773064
D206: 2019 | E206: 2020 | F206: 2021 | G206: 2022 | H206: 2023 | I206: 2024 | J206: 2025 | K206: 2026 | L206: 2027 | M206: 2028 | N206: 2029 | O206: 2030 | P206: 2031 | Q206: 2032 | R206: 2033 | S206: 2034 | T206: 2035 | U206: 2036 | V206: 2037
B207: Gas (BCF) | C207: Mean | D207: 0 | E207: 90.89547291 | F207: 134.3700974 | G207: 156.4922894 | H207: 188.4437007 | I207: 172.4633595 | J207: 179.3099566 | K207: 180.4570438 | L207: 179.0761836 | M207: 164.6408643 | N207: 140.3687729 | O207: 121.7369806 | P207: 106.7294901 | Q207: 89.39654382 | R207: 76.8717049 | S207: 62.60842749 | T207: 52.66114225 | U207: 45.07898375 | V207: 26.69392123
C208: 0.1 | D208: 0 | E208: 55.04415138 | F208: 79.52843161 | G208: 98.72617797 | H208: 120.6283473 | I208: 110.6248446 | J208: 111.1698634 | K208: 106.9623145 | L208: 113.3162499 | M208: 95.68667156 | N208: 81.84438559 | O208: 69.85631786 | P208: 58.05956189 | Q208: 48.15619115 | R208: 41.64350952 | S208: 32.7865078 | T208: 28.20252379 | U208: 25.93277772 | V208: 11.25869941
C209: 0.5 | D209: 0 | E209: 74.72722908 | F209: 122.9320951 | G209: 146.3777924 | H209: 174.1883466 | I209: 157.9743244 | J209: 170.5677729 | K209: 163.078152 | L209: 167.1269322 | M209: 155.2589285 | N209: 129.6492913 | O209: 112.1138683 | P209: 97.01619831 | Q209: 82.06637672 | R209: 70.48275482 | S209: 57.67737296 | T209: 48.0248485 | U209: 41.24759605 | V209: 24.67715815
C210: 0.9 | D210: 0 | E210: 138.17958 | F210: 198.5284385 | G210: 225.9699995 | H210: 266.6565525 | I210: 272.8875479 | J210: 249.7471752 | K210: 267.4726443 | L210: 271.75544 | M210: 250.1487396 | N210: 211.3610534 | O210: 185.2008808 | P210: 174.8555318 | Q210: 134.3773857 | R210: 116.4740207 | S210: 92.61985643 | T210: 74.23825004 | U210: 62.84162485 | V210: 40.86696533
A216: =strategy6 -> Organic | C216: MMBoe | D216: 0 | E216: 16.65984487 | F216: 18.46865111 | G216: 21.4379847 | H216: 25.89582695 | I216: 25.13698932 | J216: 26.98739522 | K216: 25.93241444 | L216: 23.49421085 | M216: 20.13582347 | N216: 17.89262096 | O216: 15.25246878 | P216: 13.10550388 | Q216: 11.36323622 | R216: 9.341278306 | S216: 7.989956678 | T216: 6.863270952 | U216: 6.341929147 | V216: 3.427033225
D217: 2019 | E217: 2020 | F217: 2021 | G217: 2022 | H217: 2023 | I217: 2024 | J217: 2025 | K217: 2026 | L217: 2027 | M217: 2028 | N217: 2029 | O217: 2030 | P217: 2031 | Q217: 2032 | R217: 2033 | S217: 2034 | T217: 2035 | U217: 2036 | V217: 2037
B218: Oil (MMBO) | C218: Mean | D218: 0 | E218: 3.267989953 | F218: 3.101305765 | G218: 3.117893447 | H218: 3.076857621 | I218: 3.111645418 | J218: 3.430481786 | K218: 3.516895641 | L218: 3.653353799 | M218: 3.623342215 | N218: 3.16411421 | O218: 2.826568288 | P218: 2.567625447 | Q218: 2.441458234 | R218: 2.039716842 | S218: 1.830585835 | T218: 1.525968285 | U218: 1.270080064 | V218: 0.7322305731
C219: 0.1 | D219: 0 | E219: 2.510489356 | F219: 2.216437871 | G219: 1.990714887 | H219: 1.634851796 | I219: 1.425932301 | J219: 1.355391897 | K219: 1.160862184 | L219: 1.106532475 | M219: 0.9457231613 | N219: 0.7516010577 | O219: 0.639234868 | P219: 0.570002753 | Q219: 0.5853342738 | R219: 0.5186785536 | S219: 0.4601247672 | T219: 0.4043246799 | U219: 0.3593538024 | V219: 0
C220: 0.5 | D220: 0 | E220: 3.118874914 | F220: 2.805987091 | G220: 2.609628033 | H220: 2.172018106 | I220: 1.992178613 | J220: 1.81699036 | K220: 1.683873465 | L220: 1.614592244 | M220: 1.622915141 | N220: 1.336891011 | O220: 1.131684274 | P220: 1.046887123 | Q220: 1.029573287 | R220: 0.8502545043 | S220: 0.6796630187 | T220: 0.6111498091 | U220: 0.5377269667 | V220: 0.1604179314
C221: 0.9 | D221: 0 | E221: 3.904859178 | F221: 4.197878143 | G221: 4.962797645 | H221: 4.966067346 | I221: 6.446030938 | J221: 7.170149916 | K221: 7.755574343 | L221: 8.279250463 | M221: 8.282213974 | N221: 6.869926763 | O221: 7.151946188 | P221: 6.348609334 | Q221: 6.386018827 | R221: 5.247285926 | S221: 4.480286191 | T221: 3.593446159 | U221: 2.984556488 | V221: 2.186839925
D223: 2019 | E223: 2020 | F223: 2021 | G223: 2022 | H223: 2023 | I223: 2024 | J223: 2025 | K223: 2026 | L223: 2027 | M223: 2028 | N223: 2029 | O223: 2030 | P223: 2031 | Q223: 2032 | R223: 2033 | S223: 2034 | T223: 2035 | U223: 2036 | V223: 2037
B224: Gas (BCF) | C224: Mean | D224: 0 | E224: 80.35112952 | F224: 92.20407209 | G224: 109.9205475 | H224: 136.9138159 | I224: 132.1520634 | J224: 141.3414806 | K224: 134.4931128 | L224: 119.0451423 | M224: 99.07488755 | N224: 88.37104053 | O224: 74.55540296 | P224: 63.22727058 | Q224: 53.53066793 | R224: 43.80936878 | S224: 36.95622506 | T224: 32.023816 | U224: 30.43109449 | V224: 16.16881591
C225: 0.1 | D225: 0 | E225: 49.51443444 | F225: 54.45810133 | G225: 64.3299994 | H225: 78.42420413 | I225: 72.86616414 | J225: 68.69414463 | K225: 66.28563608 | L225: 56.89506079 | M225: 45.95068076 | N225: 41.79356239 | O225: 31.36632545 | P225: 29.65110229 | Q225: 23.97326045 | R225: 20.07423541 | S225: 18.01150808 | T225: 15.71025372 | U225: 15.52950155 | V225: 3.142421111
C226: 0.5 | D226: 0 | E226: 71.131835 | F226: 79.31236532 | G226: 94.48818127 | H226: 122.5993712 | I226: 119.7781014 | J226: 117.5112803 | K226: 113.2102008 | L226: 101.5996231 | M226: 90.96450115 | N226: 78.56071042 | O226: 62.54296532 | P226: 53.84173187 | Q226: 47.51056955 | R226: 41.57108668 | S226: 34.12174586 | T226: 29.56188492 | U226: 27.25569618 | V226: 13.12551303
C227: 0.9 | D227: 0 | E227: 113.1782964 | F227: 160.7058458 | G227: 180.6446386 | H227: 223.6190434 | I227: 218.2097517 | J227: 247.8265909 | K227: 225.9541038 | L227: 210.7501054 | M227: 162.3214009 | N227: 144.6237476 | O227: 121.7752542 | P227: 100.7625616 | Q227: 84.81043555 | R227: 68.46970501 | S227: 57.67299197 | T227: 49.53982968 | U227: 43.76301022 | V227: 27.7334449
A233: =strategy7 -> Gas Domination | C233: MMBoe | D233: 0 | E233: 13.93222314 | F233: 47.6863424 | G233: 44.89076783 | H233: 47.84300274 | I233: 43.44112331 | J233: 74.17744368 | K233: 64.59681714 | L233: 57.35164989 | M233: 51.7759813 | N233: 44.48496119 | O233: 38.37107977 | P233: 31.63591224 | Q233: 25.90201173 | R233: 20.86263825 | S233: 17.31687771 | T233: 14.20231891 | U233: 11.96951122 | V233: 8.13791234
D234: 2019 | E234: 2020 | F234: 2021 | G234: 2022 | H234: 2023 | I234: 2024 | J234: 2025 | K234: 2026 | L234: 2027 | M234: 2028 | N234: 2029 | O234: 2030 | P234: 2031 | Q234: 2032 | R234: 2033 | S234: 2034 | T234: 2035 | U234: 2036 | V234: 2037
B235: Oil (MMBO) | C235: Mean | D235: 0 | E235: 3.261379102 | F235: 21.92723285 | G235: 19.30371075 | H235: 17.69932721 | I235: 17.49757186 | J235: 34.38454871 | K235: 29.68970173 | L235: 26.46754642 | M235: 24.53415888 | N235: 20.47688936 | O235: 17.05356035 | P235: 14.56691433 | Q235: 12.01888571 | R235: 9.578999477 | S235: 7.887668801 | T235: 6.297170407 | U235: 5.212412094 | V235: 4.203453479
C236: 0.1 | D236: 0 | E236: 2.547223739 | F236: 21.30844415 | G236: 18.58612709 | H236: 16.69459564 | I236: 16.57257452 | J236: 33.50176782 | K236: 28.78776679 | L236: 25.64634119 | M236: 23.77291494 | N236: 19.78134092 | O236: 16.45072932 | P236: 14.05557688 | Q236: 11.58050252 | R236: 9.222202438 | S236: 7.585695573 | T236: 6.053072148 | U236: 5.011685994 | V236: 4.087470184
C237: 0.5 | D237: 0 | E237: 3.175414907 | F237: 21.85217648 | G237: 19.12033324 | H237: 17.18271564 | I237: 16.98109865 | J237: 33.88451396 | K237: 29.15037687 | L237: 25.96185395 | M237: 24.03035429 | N237: 19.98947726 | O237: 16.62352243 | P237: 14.20245335 | Q237: 11.73222668 | R237: 9.355696199 | S237: 7.705001267 | T237: 6.157796113 | U237: 5.105178952 | V237: 4.087470184
C238: 0.9 | D238: 0 | E238: 3.97861497 | F238: 22.54158611 | G238: 20.17696256 | H238: 19.55423162 | I238: 18.89479279 | J238: 35.66003018 | K238: 31.67569035 | L238: 27.99396556 | M238: 25.69033838 | N238: 21.46395275 | O238: 17.95526855 | P238: 15.44055559 | Q238: 12.71178365 | R238: 10.19700492 | S238: 8.549282344 | T238: 6.69100902 | U238: 5.618261851 | V238: 4.55776957
D240: 2019 | E240: 2020 | F240: 2021 | G240: 2022 | H240: 2023 | I240: 2024 | J240: 2025 | K240: 2026 | L240: 2027 | M240: 2028 | N240: 2029 | O240: 2030 | P240: 2031 | Q240: 2032 | R240: 2033 | S240: 2034 | T240: 2035 | U240: 2036 | V240: 2037
B241: Gas (BCF) | C241: Mean | D241: 0 | E241: 64.02506423 | F241: 154.5546573 | G241: 153.5223425 | H241: 180.8620531 | I241: 155.6613088 | J241: 238.7573699 | K241: 209.4426924 | L241: 185.3046209 | M241: 163.4509345 | N241: 144.048431 | O241: 127.9051165 | P241: 102.4139875 | Q241: 83.29875617 | R241: 67.70183261 | S241: 56.57525343 | T241: 47.43089105 | U241: 40.54259477 | V241: 23.60675317
C242: 0.1 | D242: 0 | E242: 47.04286667 | F242: 140.0262794 | G242: 136.526428 | H242: 151.1364567 | I242: 133.9696907 | J242: 216.0004695 | K242: 190.9225137 | L242: 169.2402552 | M242: 146.8023983 | N242: 124.6952447 | O242: 108.1805941 | P242: 86.84163544 | Q242: 69.0733581 | R242: 55.48997824 | S242: 45.30045512 | T242: 36.90174182 | U242: 30.79179324 | V242: 14.69999165
C243: 0.5 | D243: 0 | E243: 61.11669952 | F243: 153.0046358 | G243: 151.6834934 | H243: 174.4077011 | I243: 151.1429445 | J243: 236.5008809 | K243: 206.5234899 | L243: 181.4846763 | M243: 160.1121718 | N243: 138.3645131 | O243: 121.5190819 | P243: 98.37113361 | Q243: 78.99577729 | R243: 64.95326417 | S243: 53.68457771 | T243: 43.79201628 | U243: 37.28751791 | V243: 20.80613974
C244: 0.9 | D244: 0 | E244: 85.12419801 | F244: 171.4856191 | G244: 172.2345019 | H244: 212.424246 | I244: 184.205407 | J244: 265.5373318 | K244: 230.8895287 | L244: 203.3737065 | M244: 181.5562444 | N244: 171.8728063 | O244: 154.1436585 | P244: 123.2957214 | Q244: 102.0223796 | R244: 82.90708674 | S244: 71.21501033 | T244: 60.56425886 | U244: 49.93355809 | V244: 36.59038273
A250: =strategy8 -> Hybrid 1 | C250: MMBoe | D250: 0 | E250: 20.75513347 | F250: 27.92924448 | G250: 37.57279484 | H250: 41.79608245 | I250: 44.14222501 | J250: 49.50518151 | K250: 47.49800979 | L250: 44.44844367 | M250: 40.8387065 | N250: 35.85304647 | O250: 32.41985938 | P250: 29.07271992 | Q250: 26.1676653 | R250: 23.3339118 | S250: 19.31162286 | T250: 15.96484966 | U250: 13.46350661 | V250: 9.15079697
D251: 2019 | E251: 2020 | F251: 2021 | G251: 2022 | H251: 2023 | I251: 2024 | J251: 2025 | K251: 2026 | L251: 2027 | M251: 2028 | N251: 2029 | O251: 2030 | P251: 2031 | Q251: 2032 | R251: 2033 | S251: 2034 | T251: 2035 | U251: 2036 | V251: 2037
B252: Oil (MMBO) | C252: Mean | D252: 0 | E252: 3.845610776 | F252: 4.205022848 | G252: 8.117688763 | H252: 7.474768973 | I252: 7.435944583 | J252: 11.23878441 | K252: 9.782742117 | L252: 9.013385494 | M252: 9.422455708 | N252: 9.605178534 | O252: 9.491158421 | P252: 9.998336606 | Q252: 10.2649989 | R252: 9.831951101 | S252: 8.628967117 | T252: 7.245930327 | U252: 5.888613552 | V252: 4.442050216
C253: 0.1 | D253: 0 | E253: 2.600037986 | F253: 2.356968217 | G253: 5.966508034 | H253: 4.794232176 | I253: 4.020024944 | J253: 7.164640604 | K253: 5.614609019 | L253: 4.583416433 | M253: 5.269381588 | N253: 5.267028506 | O253: 5.405073455 | P253: 6.356336135 | Q253: 6.947267592 | R253: 7.0117184 | S253: 6.241003555 | T253: 5.359605401 | U253: 4.424783589 | V253: 3.295684406
C254: 0.5 | D254: 0 | E254: 3.396762209 | F254: 3.150050248 | G254: 6.780335664 | H254: 6.012733504 | I254: 5.420338628 | J254: 8.698966092 | K254: 7.660572962 | L254: 6.627221453 | M254: 7.38517861 | N254: 7.430670054 | O254: 7.467011136 | P254: 8.221965758 | Q254: 8.557320643 | R254: 8.484816716 | S254: 7.241575929 | T254: 6.151783897 | U254: 5.042538077 | V254: 3.86969016
... 17 more rows

Sheet Tornado Charts (hidden)
A5: Tornado Charts - NPV
D7: © Copyright 2006 by Decision Strategies, Inc.
B11: =CONCATENATE(strategy1," - NPV ($MM)") -> Momentum - NPV ($MM) | J11: =CONCATENATE(strategy2," - NPV ($MM)") -> Strict Investing - NPV ($MM) | R11: =CONCATENATE(strategy3," - NPV ($MM)") -> High Control - NPV ($MM) | Z11: =CONCATENATE(strategy4," - NPV ($MM)") -> Small Change - NPV ($MM) | AH11: =CONCATENATE(strategy5," - NPV ($MM)") -> Free Agent - NPV ($MM)
C12: NPV | F12: Input | K12: NPV | N12: Input | S12: NPV | V12: Input | AA12: NPV | AD12: Input | AI12: NPV | AL12: Input
B13: Variable | C13: Downside | D13: Upside | E13: Range | F13: Downside | G13: Upside | H13: Base Case | J13: Variable | K13: Downside | L13: Upside | M13: Range | N13: Downside | O13: Upside | P13: Base Case | R13: Variable | S13: Downside | T13: Upside | U13: Range | V13: Downside | W13: Upside | X13: Base Case | Z13: Variable | AA13: Downside | AB13: Upside | AC13: Range | AD13: Downside | AE13: Upside | AF13: Base Case | AH13: Variable | AI13: Downside | AJ13: Upside | AK13: Range | AL13: Downside | AM13: Upside | AN13: Base Case
B44: =CONCATENATE(strategy6," - NPV ($MM)") -> Organic - NPV ($MM) | J44: =CONCATENATE(strategy7," - NPV ($MM)") -> Gas Domination - NPV ($MM) | R44: =CONCATENATE(strategy8," - NPV ($MM)") -> Hybrid 1 - NPV ($MM) | Z44: =CONCATENATE(strategy9," - NPV ($MM)") -> Optimal Hybrid - NPV ($MM) | AH44: =CONCATENATE(strategy10," - NPV ($MM)") -> 
C45: NPV | F45: Input | K45: Project NPV, $MM | N45: Input | S45: NPV | V45: Input | AA45: NPV | AD45: Input | AI45: Project NPV, $MM | AL45: Input
B46: Variable | C46: Downside | D46: Upside | E46: Range | F46: Downside | G46: Upside | H46: Base Case | J46: Variable | K46: Downside | L46: Upside | M46: Range | N46: Downside | O46: Upside | P46: Base Case | R46: Variable | S46: Downside | T46: Upside | U46: Range | V46: Downside | W46: Upside | X46: Base Case | Z46: Variable | AA46: Downside | AB46: Upside | AC46: Range | AD46: Downside | AE46: Upside | AF46: Base Case | AH46: Variable | AI46: Downside | AJ46: Upside | AK46: Range | AL46: Downside | AM46: Upside | AN46: Base Case
B114: =CONCATENATE(strategy11," - NPV ($MM)") ->  | J114: =CONCATENATE(strategy12," - NPV ($MM)") ->  | R114: =CONCATENATE(strategy13," - NPV ($MM)") ->  | Z114: =CONCATENATE(strategy14," - NPV ($MM)") -> 
C115: NPV | F115: Input | K115: NPV | N115: Input | S115: NPV | V115: Input | AA115: NPV | AD115: Input
B116: Variable | C116: Downside | D116: Upside | E116: Range | F116: Downside | G116: Upside | H116: Base Case | J116: Variable | K116: Downside | L116: Upside | M116: Range | N116: Downside | O116: Upside | P116: Base Case | R116: Variable | S116: Downside | T116: Upside | U116: Range | V116: Downside | W116: Upside | X116: Base Case | Z116: Variable | AA116: Downside | AB116: Upside | AC116: Range | AD116: Downside | AE116: Upside | AF116: Base Case

Sheet Comparison Tornado Charts (hidden)
B1: =CONCATENATE(B46," vrs ",J46,", $MM") -> Momentum - NPV ($MM) vrs Strict Investing - NPV ($MM), $MM
K3: 1 | L3: Project Selected 1
K4: 2 | L4: Project Selected 2
L6: Project Selector
K7: 1 | L7: =R45 -> Momentum - NPV ($MM)
K8: 2 | L8: =Z45 -> Strict Investing - NPV ($MM)
K9: 3 | L9: =AH45 -> High Control - NPV ($MM)
K10: 4 | L10: =AP45 -> Small Change - NPV ($MM)
K11: 5 | L11: =AX45 -> Free Agent - NPV ($MM)
K12: 6 | L12: =R70 -> Organic - NPV ($MM)
K13: 7 | L13: =Z70 -> Gas Domination - NPV ($MM)
K14: 8 | L14: =AH70 -> Hybrid 1 - NPV ($MM)
K15: 9 | L15: =AP70 -> Optimal Hybrid - NPV ($MM)
K16: 10 | L16: =AX70 -> 
K17: 11 | L17: =R95 -> 
K18: 12 | L18: =Z95 -> 
K19: 13 | L19: =AH95 -> 
K20: 14 | L20: =AP95 -> 
K28: Project Selector 1
K30: Project Selector 2
C41: Cross | D41: Min | E41: Max
B42: Axis 1 | C42: =B47 -> 0 | D42: =MIN(C49:C108) -> 0 | E42: =MAX(D49:D108) -> 0
B43: Axis 2 | C43: =J47 -> 0 | D43: =MIN(K49:K108) -> 0 | E43: =MAX(L49:L108) -> 0
S44: Position 1 | AA44: Position 2 | AI44: Position 3 | AQ44: Position 4 | AY44: Position 5
B45: Selected Tornado Data 1 | J45: Resorted Selected Tornado Data 2 | R45: ='Tornado Charts'!B11 -> Momentum - NPV ($MM) | Z45: ='Tornado Charts'!J11 -> Strict Investing - NPV ($MM) | AH45: ='Tornado Charts'!R11 -> High Control - NPV ($MM) | AP45: ='Tornado Charts'!Z11 -> Small Change - NPV ($MM) | AX45: ='Tornado Charts'!AH11 -> Free Agent - NPV ($MM)
B46: =CHOOSE(K3,L7,L8,L9,L10,L11,L12,L13,L14,L15,L16,L17,L18,L19,L20) -> Momentum - NPV ($MM) | J46: =B112 -> Strict Investing - NPV ($MM) | R46: ='Tornado Charts'!B12 -> 0 | S46: NPV | V46: Input | Z46: ='Tornado Charts'!J12 -> 0 | AA46: Project NPV, $MM | AD46: Input | AH46: ='Tornado Charts'!R12 -> 0 | AI46: Project NPV, $MM | AL46: Input | AP46: ='Tornado Charts'!Z12 -> 0 | AQ46: Project NPV, $MM | AT46: Input | AX46: ='Tornado Charts'!AH12 -> 0 | AY46: Project NPV, $MM | BB46: Input
B47: =CHOOSE($K$3,R46,Z46,AH46,AP46,AX46,R71,Z71,AH71,AP71,AX71,R96,Z96,AH96,AP96) -> 0 | C47: Project NPV, $MM | E47: Input | J47: =B113 -> 0 | K47: Project NPV, $MM | M47: Input | R47: Variable | S47: Downside | T47: Upside | U47: Range | V47: Downside | W47: Upside | X47: Base Case | Z47: Variable | AA47: Downside | AB47: Upside | AC47: Range | AD47: Downside | AE47: Upside | AF47: Base Case | AH47: Variable | AI47: Downside | AJ47: Upside | AK47: Range | AL47: Downside | AM47: Upside | AN47: Base Case | AP47: Variable | AQ47: Downside | AR47: Upside | AS47: Range | AT47: Downside | AU47: Upside | AV47: Base Case | AX47: Variable | AY47: Downside | AZ47: Upside | BA47: Range | BB47: Downside | BC47: Upside | BD47: Base Case
B48: Variable | C48: Downside | D48: Upside | E48: Downside | F48: Upside | J48: Variable | K48: Downside | L48: Upside | M48: Downside | N48: Upside | R48: ='Tornado Charts'!B14 -> 0 | S48: ='Tornado Charts'!C14 -> 0 | T48: ='Tornado Charts'!D14 -> 0 | U48: ='Tornado Charts'!E14 -> 0 | V48: ='Tornado Charts'!F14 -> 0 | W48: ='Tornado Charts'!G14 -> 0 | X48: ='Tornado Charts'!H14 -> 0 | Z48: ='Tornado Charts'!J14 -> 0 | AA48: ='Tornado Charts'!K14 -> 0 | AB48: ='Tornado Charts'!L14 -> 0 | AC48: ='Tornado Charts'!M14 -> 0 | AD48: ='Tornado Charts'!N14 -> 0 | AE48: ='Tornado Charts'!O14 -> 0 | AF48: ='Tornado Charts'!P14 -> 0 | AH48: ='Tornado Charts'!R14 -> 0 | AI48: ='Tornado Charts'!S14 -> 0 | AJ48: ='Tornado Charts'!T14 -> 0 | AK48: ='Tornado Charts'!U14 -> 0 | AL48: ='Tornado Charts'!V14 -> 0 | AM48: ='Tornado Charts'!W14 -> 0 | AN48: ='Tornado Charts'!X14 -> 0 | AP48: ='Tornado Charts'!Z14 -> 0 | AQ48: ='Tornado Charts'!AA14 -> 0 | AR48: ='Tornado Charts'!AB14 -> 0 | AS48: ='Tornado Charts'!AC14 -> 0 | AT48: ='Tornado Charts'!AD14 -> 0 | AU48: ='Tornado Charts'!AE14 -> 0 | AV48: ='Tornado Charts'!AF14 -> 0 | AX48: ='Tornado Charts'!AH14 -> 0 | AY48: ='Tornado Charts'!AI14 -> 0 | AZ48: ='Tornado Charts'!AJ14 -> 0 | BA48: ='Tornado Charts'!AK14 -> 0 | BB48: ='Tornado Charts'!AL14 -> 0 | BC48: ='Tornado Charts'!AM14 -> 0 | BD48: ='Tornado Charts'!AN14 -> 0
B49: =CHOOSE($K$3,R48,Z48,AH48,AP48,AX48,R73,Z73,AH73,AP73,AX73,R98,Z98,AH98,AP98) -> 0 | C49: =CHOOSE($K$3,S48,AA48,AI48,AQ48,AY48,S73,AA73,AI73,AQ73,AY73,S98,AA98,AI98,AQ98) -> 0 | D49: =CHOOSE($K$3,T48,AB48,AJ48,AR48,AZ48,T73,AB73,AJ73,AR73,AZ73,T98,AB98,AJ98,AR98) -> 0 | E49: =CHOOSE($K$3,V48,AD48,AL48,AT48,BB48,V73,AD73,AL73,AT73,BB73,V98,AD98,AL98,AT98) -> 0 | F49: =CHOOSE($K$3,W48,AE48,AM48,AU48,BC48,W73,AE73,AM73,AU73,BC73,W98,AE98,AM98,AU98) -> 0 | R49: ='Tornado Charts'!B15 -> 0 | S49: ='Tornado Charts'!C15 -> 0 | T49: ='Tornado Charts'!D15 -> 0 | U49: ='Tornado Charts'!E15 -> 0 | V49: ='Tornado Charts'!F15 -> 0 | W49: ='Tornado Charts'!G15 -> 0 | X49: ='Tornado Charts'!H15 -> 0 | Z49: ='Tornado Charts'!J15 -> 0 | AA49: ='Tornado Charts'!K15 -> 0 | AB49: ='Tornado Charts'!L15 -> 0 | AC49: ='Tornado Charts'!M15 -> 0 | AD49: ='Tornado Charts'!N15 -> 0 | AE49: ='Tornado Charts'!O15 -> 0 | AF49: ='Tornado Charts'!P15 -> 0 | AH49: ='Tornado Charts'!R15 -> 0 | AI49: ='Tornado Charts'!S15 -> 0 | AJ49: ='Tornado Charts'!T15 -> 0 | AK49: ='Tornado Charts'!U15 -> 0 | AL49: ='Tornado Charts'!V15 -> 0 | AM49: ='Tornado Charts'!W15 -> 0 | AN49: ='Tornado Charts'!X15 -> 0 | AP49: ='Tornado Charts'!Z15 -> 0 | AQ49: ='Tornado Charts'!AA15 -> 0 | AR49: ='Tornado Charts'!AB15 -> 0 | AS49: ='Tornado Charts'!AC15 -> 0 | AT49: ='Tornado Charts'!AD15 -> 0 | AU49: ='Tornado Charts'!AE15 -> 0 | AV49: ='Tornado Charts'!AF15 -> 0 | AX49: ='Tornado Charts'!AH15 -> 0 | AY49: ='Tornado Charts'!AI15 -> 0 | AZ49: ='Tornado Charts'!AJ15 -> 0 | BA49: ='Tornado Charts'!AK15 -> 0 | BB49: ='Tornado Charts'!AL15 -> 0 | BC49: ='Tornado Charts'!AM15 -> 0 | BD49: ='Tornado Charts'!AN15 -> 0
J50: =B49 -> 0 | K50: =IF(ISERROR(INDEX($B$115:$F$134,MATCH($J50,$B$115:$B$134,0),2)),$B$113,INDEX($B$115:$F$134,MATCH($J50,$B$115:$B$134,0),2)) -> 0 | L50: =IF(ISERROR(INDEX($B$115:$F$134,MATCH($J50,$B$115:$B$134,0),2)),$B$113,INDEX($B$115:$F$134,MATCH($J50,$B$115:$B$134,0),3)) -> 0 | M50: =IF(ISERROR(INDEX($B$115:$F$134,MATCH($J50,$B$115:$B$134,0),2)),$B$113,INDEX($B$115:$F$134,MATCH($J50,$B$115:$B$134,0),4)) -> 0 | N50: =IF(ISERROR(INDEX($B$115:$F$134,MATCH($J50,$B$115:$B$134,0),2)),$B$113,INDEX($B$115:$F$134,MATCH($J50,$B$115:$B$134,0),5)) -> 0 | R50: ='Tornado Charts'!B16 -> 0 | S50: ='Tornado Charts'!C16 -> 0 | T50: ='Tornado Charts'!D16 -> 0 | U50: ='Tornado Charts'!E16 -> 0 | V50: ='Tornado Charts'!F16 -> 0 | W50: ='Tornado Charts'!G16 -> 0 | X50: ='Tornado Charts'!H16 -> 0 | Z50: ='Tornado Charts'!J16 -> 0 | AA50: ='Tornado Charts'!K16 -> 0 | AB50: ='Tornado Charts'!L16 -> 0 | AC50: ='Tornado Charts'!M16 -> 0 | AD50: ='Tornado Charts'!N16 -> 0 | AE50: ='Tornado Charts'!O16 -> 0 | AF50: ='Tornado Charts'!P16 -> 0 | AH50: ='Tornado Charts'!R16 -> 0 | AI50: ='Tornado Charts'!S16 -> 0 | AJ50: ='Tornado Charts'!T16 -> 0 | AK50: ='Tornado Charts'!U16 -> 0 | AL50: ='Tornado Charts'!V16 -> 0 | AM50: ='Tornado Charts'!W16 -> 0 | AN50: ='Tornado Charts'!X16 -> 0 | AP50: ='Tornado Charts'!Z16 -> 0 | AQ50: ='Tornado Charts'!AA16 -> 0 | AR50: ='Tornado Charts'!AB16 -> 0 | AS50: ='Tornado Charts'!AC16 -> 0 | AT50: ='Tornado Charts'!AD16 -> 0 | AU50: ='Tornado Charts'!AE16 -> 0 | AV50: ='Tornado Charts'!AF16 -> 0 | AX50: ='Tornado Charts'!AH16 -> 0 | AY50: ='Tornado Charts'!AI16 -> 0 | AZ50: ='Tornado Charts'!AJ16 -> 0 | BA50: ='Tornado Charts'!AK16 -> 0 | BB50: ='Tornado Charts'!AL16 -> 0 | BC50: ='Tornado Charts'!AM16 -> 0 | BD50: ='Tornado Charts'!AN16 -> 0
R51: ='Tornado Charts'!B17 -> 0 | S51: ='Tornado Charts'!C17 -> 0 | T51: ='Tornado Charts'!D17 -> 0 | U51: ='Tornado Charts'!E17 -> 0 | V51: ='Tornado Charts'!F17 -> 0 | W51: ='Tornado Charts'!G17 -> 0 | X51: ='Tornado Charts'!H17 -> 0 | Z51: ='Tornado Charts'!J17 -> 0 | AA51: ='Tornado Charts'!K17 -> 0 | AB51: ='Tornado Charts'!L17 -> 0 | AC51: ='Tornado Charts'!M17 -> 0 | AD51: ='Tornado Charts'!N17 -> 0 | AE51: ='Tornado Charts'!O17 -> 0 | AF51: ='Tornado Charts'!P17 -> 0 | AH51: ='Tornado Charts'!R17 -> 0 | AI51: ='Tornado Charts'!S17 -> 0 | AJ51: ='Tornado Charts'!T17 -> 0 | AK51: ='Tornado Charts'!U17 -> 0 | AL51: ='Tornado Charts'!V17 -> 0 | AM51: ='Tornado Charts'!W17 -> 0 | AN51: ='Tornado Charts'!X17 -> 0 | AP51: ='Tornado Charts'!Z17 -> 0 | AQ51: ='Tornado Charts'!AA17 -> 0 | AR51: ='Tornado Charts'!AB17 -> 0 | AS51: ='Tornado Charts'!AC17 -> 0 | AT51: ='Tornado Charts'!AD17 -> 0 | AU51: ='Tornado Charts'!AE17 -> 0 | AV51: ='Tornado Charts'!AF17 -> 0 | AX51: ='Tornado Charts'!AH17 -> 0 | AY51: ='Tornado Charts'!AI17 -> 0 | AZ51: ='Tornado Charts'!AJ17 -> 0 | BA51: ='Tornado Charts'!AK17 -> 0 | BB51: ='Tornado Charts'!AL17 -> 0 | BC51: ='Tornado Charts'!AM17 -> 0 | BD51: ='Tornado Charts'!AN17 -> 0
B52: =CHOOSE($K$3,R49,Z49,AH49,AP49,AX49,R74,Z74,AH74,AP74,AX74,R99,Z99,AH99,AP99) -> 0 | C52: =CHOOSE($K$3,S49,AA49,AI49,AQ49,AY49,S74,AA74,AI74,AQ74,AY74,S99,AA99,AI99,AQ99) -> 0 | D52: =CHOOSE($K$3,T49,AB49,AJ49,AR49,AZ49,T74,AB74,AJ74,AR74,AZ74,T99,AB99,AJ99,AR99) -> 0 | E52: =CHOOSE($K$3,V49,AD49,AL49,AT49,BB49,V74,AD74,AL74,AT74,BB74,V99,AD99,AL99,AT99) -> 0 | F52: =CHOOSE($K$3,W49,AE49,AM49,AU49,BC49,W74,AE74,AM74,AU74,BC74,W99,AE99,AM99,AU99) -> 0 | R52: ='Tornado Charts'!B18 -> 0 | S52: ='Tornado Charts'!C18 -> 0 | T52: ='Tornado Charts'!D18 -> 0 | U52: ='Tornado Charts'!E18 -> 0 | V52: ='Tornado Charts'!F18 -> 0 | W52: ='Tornado Charts'!G18 -> 0 | X52: ='Tornado Charts'!H18 -> 0 | Z52: ='Tornado Charts'!J18 -> 0 | AA52: ='Tornado Charts'!K18 -> 0 | AB52: ='Tornado Charts'!L18 -> 0 | AC52: ='Tornado Charts'!M18 -> 0 | AD52: ='Tornado Charts'!N18 -> 0 | AE52: ='Tornado Charts'!O18 -> 0 | AF52: ='Tornado Charts'!P18 -> 0 | AH52: ='Tornado Charts'!R18 -> 0 | AI52: ='Tornado Charts'!S18 -> 0 | AJ52: ='Tornado Charts'!T18 -> 0 | AK52: ='Tornado Charts'!U18 -> 0 | AL52: ='Tornado Charts'!V18 -> 0 | AM52: ='Tornado Charts'!W18 -> 0 | AN52: ='Tornado Charts'!X18 -> 0 | AP52: ='Tornado Charts'!Z18 -> 0 | AQ52: ='Tornado Charts'!AA18 -> 0 | AR52: ='Tornado Charts'!AB18 -> 0 | AS52: ='Tornado Charts'!AC18 -> 0 | AT52: ='Tornado Charts'!AD18 -> 0 | AU52: ='Tornado Charts'!AE18 -> 0 | AV52: ='Tornado Charts'!AF18 -> 0 | AX52: ='Tornado Charts'!AH18 -> 0 | AY52: ='Tornado Charts'!AI18 -> 0 | AZ52: ='Tornado Charts'!AJ18 -> 0 | BA52: ='Tornado Charts'!AK18 -> 0 | BB52: ='Tornado Charts'!AL18 -> 0 | BC52: ='Tornado Charts'!AM18 -> 0 | BD52: ='Tornado Charts'!AN18 -> 0
J53: =B52 -> 0 | K53: =IF(ISERROR(INDEX($B$115:$F$134,MATCH($J53,$B$115:$B$134,0),2)),$B$113,INDEX($B$115:$F$134,MATCH($J53,$B$115:$B$134,0),2)) -> 0 | L53: =IF(ISERROR(INDEX($B$115:$F$134,MATCH($J53,$B$115:$B$134,0),2)),$B$113,INDEX($B$115:$F$134,MATCH($J53,$B$115:$B$134,0),3)) -> 0 | M53: =IF(ISERROR(INDEX($B$115:$F$134,MATCH($J53,$B$115:$B$134,0),2)),$B$113,INDEX($B$115:$F$134,MATCH($J53,$B$115:$B$134,0),4)) -> 0 | N53: =IF(ISERROR(INDEX($B$115:$F$134,MATCH($J53,$B$115:$B$134,0),2)),$B$113,INDEX($B$115:$F$134,MATCH($J53,$B$115:$B$134,0),5)) -> 0 | R53: ='Tornado Charts'!B19 -> 0 | S53: ='Tornado Charts'!C19 -> 0 | T53: ='Tornado Charts'!D19 -> 0 | U53: ='Tornado Charts'!E19 -> 0 | V53: ='Tornado Charts'!F19 -> 0 | W53: ='Tornado Charts'!G19 -> 0 | X53: ='Tornado Charts'!H19 -> 0 | Z53: ='Tornado Charts'!J19 -> 0 | AA53: ='Tornado Charts'!K19 -> 0 | AB53: ='Tornado Charts'!L19 -> 0 | AC53: ='Tornado Charts'!M19 -> 0 | AD53: ='Tornado Charts'!N19 -> 0 | AE53: ='Tornado Charts'!O19 -> 0 | AF53: ='Tornado Charts'!P19 -> 0 | AH53: ='Tornado Charts'!R19 -> 0 | AI53: ='Tornado Charts'!S19 -> 0 | AJ53: ='Tornado Charts'!T19 -> 0 | AK53: ='Tornado Charts'!U19 -> 0 | AL53: ='Tornado Charts'!V19 -> 0 | AM53: ='Tornado Charts'!W19 -> 0 | AN53: ='Tornado Charts'!X19 -> 0 | AP53: ='Tornado Charts'!Z19 -> 0 | AQ53: ='Tornado Charts'!AA19 -> 0 | AR53: ='Tornado Charts'!AB19 -> 0 | AS53: ='Tornado Charts'!AC19 -> 0 | AT53: ='Tornado Charts'!AD19 -> 0 | AU53: ='Tornado Charts'!AE19 -> 0 | AV53: ='Tornado Charts'!AF19 -> 0 | AX53: ='Tornado Charts'!AH19 -> 0 | AY53: ='Tornado Charts'!AI19 -> 0 | AZ53: ='Tornado Charts'!AJ19 -> 0 | BA53: ='Tornado Charts'!AK19 -> 0 | BB53: ='Tornado Charts'!AL19 -> 0 | BC53: ='Tornado Charts'!AM19 -> 0 | BD53: ='Tornado Charts'!AN19 -> 0
R54: ='Tornado Charts'!B20 -> 0 | S54: ='Tornado Charts'!C20 -> 0 | T54: ='Tornado Charts'!D20 -> 0 | U54: ='Tornado Charts'!E20 -> 0 | V54: ='Tornado Charts'!F20 -> 0 | W54: ='Tornado Charts'!G20 -> 0 | X54: ='Tornado Charts'!H20 -> 0 | Z54: ='Tornado Charts'!J20 -> 0 | AA54: ='Tornado Charts'!K20 -> 0 | AB54: ='Tornado Charts'!L20 -> 0 | AC54: ='Tornado Charts'!M20 -> 0 | AD54: ='Tornado Charts'!N20 -> 0 | AE54: ='Tornado Charts'!O20 -> 0 | AF54: ='Tornado Charts'!P20 -> 0 | AH54: ='Tornado Charts'!R20 -> 0 | AI54: ='Tornado Charts'!S20 -> 0 | AJ54: ='Tornado Charts'!T20 -> 0 | AK54: ='Tornado Charts'!U20 -> 0 | AL54: ='Tornado Charts'!V20 -> 0 | AM54: ='Tornado Charts'!W20 -> 0 | AN54: ='Tornado Charts'!X20 -> 0 | AP54: ='Tornado Charts'!Z20 -> 0 | AQ54: ='Tornado Charts'!AA20 -> 0 | AR54: ='Tornado Charts'!AB20 -> 0 | AS54: ='Tornado Charts'!AC20 -> 0 | AT54: ='Tornado Charts'!AD20 -> 0 | AU54: ='Tornado Charts'!AE20 -> 0 | AV54: ='Tornado Charts'!AF20 -> 0 | AX54: ='Tornado Charts'!AH20 -> 0 | AY54: ='Tornado Charts'!AI20 -> 0 | AZ54: ='Tornado Charts'!AJ20 -> 0 | BA54: ='Tornado Charts'!AK20 -> 0 | BB54: ='Tornado Charts'!AL20 -> 0 | BC54: ='Tornado Charts'!AM20 -> 0 | BD54: ='Tornado Charts'!AN20 -> 0
B55: =CHOOSE($K$3,R50,Z50,AH50,AP50,AX50,R75,Z75,AH75,AP75,AX75,R100,Z100,AH100,AP100) -> 0 | C55: =CHOOSE($K$3,S50,AA50,AI50,AQ50,AY50,S75,AA75,AI75,AQ75,AY75,S100,AA100,AI100,AQ100) -> 0 | D55: =CHOOSE($K$3,T50,AB50,AJ50,AR50,AZ50,T75,AB75,AJ75,AR75,AZ75,T100,AB100,AJ100,AR100) -> 0 | E55: =CHOOSE($K$3,V50,AD50,AL50,AT50,BB50,V75,AD75,AL75,AT75,BB75,V100,AD100,AL100,AT100) -> 0 | F55: =CHOOSE($K$3,W50,AE50,AM50,AU50,BC50,W75,AE75,AM75,AU75,BC75,W100,AE100,AM100,AU100) -> 0 | R55: ='Tornado Charts'!B21 -> 0 | S55: ='Tornado Charts'!C21 -> 0 | T55: ='Tornado Charts'!D21 -> 0 | U55: ='Tornado Charts'!E21 -> 0 | V55: ='Tornado Charts'!F21 -> 0 | W55: ='Tornado Charts'!G21 -> 0 | X55: ='Tornado Charts'!H21 -> 0 | Z55: ='Tornado Charts'!J21 -> 0 | AA55: ='Tornado Charts'!K21 -> 0 | AB55: ='Tornado Charts'!L21 -> 0 | AC55: ='Tornado Charts'!M21 -> 0 | AD55: ='Tornado Charts'!N21 -> 0 | AE55: ='Tornado Charts'!O21 -> 0 | AF55: ='Tornado Charts'!P21 -> 0 | AH55: ='Tornado Charts'!R21 -> 0 | AI55: ='Tornado Charts'!S21 -> 0 | AJ55: ='Tornado Charts'!T21 -> 0 | AK55: ='Tornado Charts'!U21 -> 0 | AL55: ='Tornado Charts'!V21 -> 0 | AM55: ='Tornado Charts'!W21 -> 0 | AN55: ='Tornado Charts'!X21 -> 0 | AP55: ='Tornado Charts'!Z21 -> 0 | AQ55: ='Tornado Charts'!AA21 -> 0 | AR55: ='Tornado Charts'!AB21 -> 0 | AS55: ='Tornado Charts'!AC21 -> 0 | AT55: ='Tornado Charts'!AD21 -> 0 | AU55: ='Tornado Charts'!AE21 -> 0 | AV55: ='Tornado Charts'!AF21 -> 0 | AX55: ='Tornado Charts'!AH21 -> 0 | AY55: ='Tornado Charts'!AI21 -> 0 | AZ55: ='Tornado Charts'!AJ21 -> 0 | BA55: ='Tornado Charts'!AK21 -> 0 | BB55: ='Tornado Charts'!AL21 -> 0 | BC55: ='Tornado Charts'!AM21 -> 0 | BD55: ='Tornado Charts'!AN21 -> 0
J56: =B55 -> 0 | K56: =IF(ISERROR(INDEX($B$115:$F$134,MATCH($J56,$B$115:$B$134,0),2)),$B$113,INDEX($B$115:$F$134,MATCH($J56,$B$115:$B$134,0),2)) -> 0 | L56: =IF(ISERROR(INDEX($B$115:$F$134,MATCH($J56,$B$115:$B$134,0),2)),$B$113,INDEX($B$115:$F$134,MATCH($J56,$B$115:$B$134,0),3)) -> 0 | M56: =IF(ISERROR(INDEX($B$115:$F$134,MATCH($J56,$B$115:$B$134,0),2)),$B$113,INDEX($B$115:$F$134,MATCH($J56,$B$115:$B$134,0),4)) -> 0 | N56: =IF(ISERROR(INDEX($B$115:$F$134,MATCH($J56,$B$115:$B$134,0),2)),$B$113,INDEX($B$115:$F$134,MATCH($J56,$B$115:$B$134,0),5)) -> 0 | R56: ='Tornado Charts'!B22 -> 0 | S56: ='Tornado Charts'!C22 -> 0 | T56: ='Tornado Charts'!D22 -> 0 | U56: ='Tornado Charts'!E22 -> 0 | V56: ='Tornado Charts'!F22 -> 0 | W56: ='Tornado Charts'!G22 -> 0 | X56: ='Tornado Charts'!H22 -> 0 | Z56: ='Tornado Charts'!J22 -> 0 | AA56: ='Tornado Charts'!K22 -> 0 | AB56: ='Tornado Charts'!L22 -> 0 | AC56: ='Tornado Charts'!M22 -> 0 | AD56: ='Tornado Charts'!N22 -> 0 | AE56: ='Tornado Charts'!O22 -> 0 | AF56: ='Tornado Charts'!P22 -> 0 | AH56: ='Tornado Charts'!R22 -> 0 | AI56: ='Tornado Charts'!S22 -> 0 | AJ56: ='Tornado Charts'!T22 -> 0 | AK56: ='Tornado Charts'!U22 -> 0 | AL56: ='Tornado Charts'!V22 -> 0 | AM56: ='Tornado Charts'!W22 -> 0 | AN56: ='Tornado Charts'!X22 -> 0 | AP56: ='Tornado Charts'!Z22 -> 0 | AQ56: ='Tornado Charts'!AA22 -> 0 | AR56: ='Tornado Charts'!AB22 -> 0 | AS56: ='Tornado Charts'!AC22 -> 0 | AT56: ='Tornado Charts'!AD22 -> 0 | AU56: ='Tornado Charts'!AE22 -> 0 | AV56: ='Tornado Charts'!AF22 -> 0 | AX56: ='Tornado Charts'!AH22 -> 0 | AY56: ='Tornado Charts'!AI22 -> 0 | AZ56: ='Tornado Charts'!AJ22 -> 0 | BA56: ='Tornado Charts'!AK22 -> 0 | BB56: ='Tornado Charts'!AL22 -> 0 | BC56: ='Tornado Charts'!AM22 -> 0 | BD56: ='Tornado Charts'!AN22 -> 0
R57: ='Tornado Charts'!B23 -> 0 | S57: ='Tornado Charts'!C23 -> 0 | T57: ='Tornado Charts'!D23 -> 0 | U57: ='Tornado Charts'!E23 -> 0 | V57: ='Tornado Charts'!F23 -> 0 | W57: ='Tornado Charts'!G23 -> 0 | X57: ='Tornado Charts'!H23 -> 0 | Z57: ='Tornado Charts'!J23 -> 0 | AA57: ='Tornado Charts'!K23 -> 0 | AB57: ='Tornado Charts'!L23 -> 0 | AC57: ='Tornado Charts'!M23 -> 0 | AD57: ='Tornado Charts'!N23 -> 0 | AE57: ='Tornado Charts'!O23 -> 0 | AF57: ='Tornado Charts'!P23 -> 0 | AH57: ='Tornado Charts'!R23 -> 0 | AI57: ='Tornado Charts'!S23 -> 0 | AJ57: ='Tornado Charts'!T23 -> 0 | AK57: ='Tornado Charts'!U23 -> 0 | AL57: ='Tornado Charts'!V23 -> 0 | AM57: ='Tornado Charts'!W23 -> 0 | AN57: ='Tornado Charts'!X23 -> 0 | AP57: ='Tornado Charts'!Z23 -> 0 | AQ57: ='Tornado Charts'!AA23 -> 0 | AR57: ='Tornado Charts'!AB23 -> 0 | AS57: ='Tornado Charts'!AC23 -> 0 | AT57: ='Tornado Charts'!AD23 -> 0 | AU57: ='Tornado Charts'!AE23 -> 0 | AV57: ='Tornado Charts'!AF23 -> 0 | AX57: ='Tornado Charts'!AH23 -> 0 | AY57: ='Tornado Charts'!AI23 -> 0 | AZ57: ='Tornado Charts'!AJ23 -> 0 | BA57: ='Tornado Charts'!AK23 -> 0 | BB57: ='Tornado Charts'!AL23 -> 0 | BC57: ='Tornado Charts'!AM23 -> 0 | BD57: ='Tornado Charts'!AN23 -> 0
B58: =CHOOSE($K$3,R51,Z51,AH51,AP51,AX51,R76,Z76,AH76,AP76,AX76,R101,Z101,AH101,AP101) -> 0 | C58: =CHOOSE($K$3,S51,AA51,AI51,AQ51,AY51,S76,AA76,AI76,AQ76,AY76,S101,AA101,AI101,AQ101) -> 0 | D58: =CHOOSE($K$3,T51,AB51,AJ51,AR51,AZ51,T76,AB76,AJ76,AR76,AZ76,T101,AB101,AJ101,AR101) -> 0 | E58: =CHOOSE($K$3,V51,AD51,AL51,AT51,BB51,V76,AD76,AL76,AT76,BB76,V101,AD101,AL101,AT101) -> 0 | F58: =CHOOSE($K$3,W51,AE51,AM51,AU51,BC51,W76,AE76,AM76,AU76,BC76,W101,AE101,AM101,AU101) -> 0 | R58: ='Tornado Charts'!B24 -> 0 | S58: ='Tornado Charts'!C24 -> 0 | T58: ='Tornado Charts'!D24 -> 0 | U58: ='Tornado Charts'!E24 -> 0 | V58: ='Tornado Charts'!F24 -> 0 | W58: ='Tornado Charts'!G24 -> 0 | X58: ='Tornado Charts'!H24 -> 0 | Z58: ='Tornado Charts'!J24 -> 0 | AA58: ='Tornado Charts'!K24 -> 0 | AB58: ='Tornado Charts'!L24 -> 0 | AC58: ='Tornado Charts'!M24 -> 0 | AD58: ='Tornado Charts'!N24 -> 0 | AE58: ='Tornado Charts'!O24 -> 0 | AF58: ='Tornado Charts'!P24 -> 0 | AH58: ='Tornado Charts'!R24 -> 0 | AI58: ='Tornado Charts'!S24 -> 0 | AJ58: ='Tornado Charts'!T24 -> 0 | AK58: ='Tornado Charts'!U24 -> 0 | AL58: ='Tornado Charts'!V24 -> 0 | AM58: ='Tornado Charts'!W24 -> 0 | AN58: ='Tornado Charts'!X24 -> 0 | AP58: ='Tornado Charts'!Z24 -> 0 | AQ58: ='Tornado Charts'!AA24 -> 0 | AR58: ='Tornado Charts'!AB24 -> 0 | AS58: ='Tornado Charts'!AC24 -> 0 | AT58: ='Tornado Charts'!AD24 -> 0 | AU58: ='Tornado Charts'!AE24 -> 0 | AV58: ='Tornado Charts'!AF24 -> 0 | AX58: ='Tornado Charts'!AH24 -> 0 | AY58: ='Tornado Charts'!AI24 -> 0 | AZ58: ='Tornado Charts'!AJ24 -> 0 | BA58: ='Tornado Charts'!AK24 -> 0 | BB58: ='Tornado Charts'!AL24 -> 0 | BC58: ='Tornado Charts'!AM24 -> 0 | BD58: ='Tornado Charts'!AN24 -> 0
J59: =B58 -> 0 | K59: =IF(ISERROR(INDEX($B$115:$F$134,MATCH($J59,$B$115:$B$134,0),2)),$B$113,INDEX($B$115:$F$134,MATCH($J59,$B$115:$B$134,0),2)) -> 0 | L59: =IF(ISERROR(INDEX($B$115:$F$134,MATCH($J59,$B$115:$B$134,0),2)),$B$113,INDEX($B$115:$F$134,MATCH($J59,$B$115:$B$134,0),3)) -> 0 | M59: =IF(ISERROR(INDEX($B$115:$F$134,MATCH($J59,$B$115:$B$134,0),2)),$B$113,INDEX($B$115:$F$134,MATCH($J59,$B$115:$B$134,0),4)) -> 0 | N59: =IF(ISERROR(INDEX($B$115:$F$134,MATCH($J59,$B$115:$B$134,0),2)),$B$113,INDEX($B$115:$F$134,MATCH($J59,$B$115:$B$134,0),5)) -> 0 | R59: ='Tornado Charts'!B25 -> 0 | S59: ='Tornado Charts'!C25 -> 0 | T59: ='Tornado Charts'!D25 -> 0 | U59: ='Tornado Charts'!E25 -> 0 | V59: ='Tornado Charts'!F25 -> 0 | W59: ='Tornado Charts'!G25 -> 0 | X59: ='Tornado Charts'!H25 -> 0 | Z59: ='Tornado Charts'!J25 -> 0 | AA59: ='Tornado Charts'!K25 -> 0 | AB59: ='Tornado Charts'!L25 -> 0 | AC59: ='Tornado Charts'!M25 -> 0 | AD59: ='Tornado Charts'!N25 -> 0 | AE59: ='Tornado Charts'!O25 -> 0 | AF59: ='Tornado Charts'!P25 -> 0 | AH59: ='Tornado Charts'!R25 -> 0 | AI59: ='Tornado Charts'!S25 -> 0 | AJ59: ='Tornado Charts'!T25 -> 0 | AK59: ='Tornado Charts'!U25 -> 0 | AL59: ='Tornado Charts'!V25 -> 0 | AM59: ='Tornado Charts'!W25 -> 0 | AN59: ='Tornado Charts'!X25 -> 0 | AP59: ='Tornado Charts'!Z25 -> 0 | AQ59: ='Tornado Charts'!AA25 -> 0 | AR59: ='Tornado Charts'!AB25 -> 0 | AS59: ='Tornado Charts'!AC25 -> 0 | AT59: ='Tornado Charts'!AD25 -> 0 | AU59: ='Tornado Charts'!AE25 -> 0 | AV59: ='Tornado Charts'!AF25 -> 0 | AX59: ='Tornado Charts'!AH25 -> 0 | AY59: ='Tornado Charts'!AI25 -> 0 | AZ59: ='Tornado Charts'!AJ25 -> 0 | BA59: ='Tornado Charts'!AK25 -> 0 | BB59: ='Tornado Charts'!AL25 -> 0 | BC59: ='Tornado Charts'!AM25 -> 0 | BD59: ='Tornado Charts'!AN25 -> 0
R60: ='Tornado Charts'!B26 -> 0 | S60: ='Tornado Charts'!C26 -> 0 | T60: ='Tornado Charts'!D26 -> 0 | U60: ='Tornado Charts'!E26 -> 0 | V60: ='Tornado Charts'!F26 -> 0 | W60: ='Tornado Charts'!G26 -> 0 | X60: ='Tornado Charts'!H26 -> 0 | Z60: ='Tornado Charts'!J26 -> 0 | AA60: ='Tornado Charts'!K26 -> 0 | AB60: ='Tornado Charts'!L26 -> 0 | AC60: ='Tornado Charts'!M26 -> 0 | AD60: ='Tornado Charts'!N26 -> 0 | AE60: ='Tornado Charts'!O26 -> 0 | AF60: ='Tornado Charts'!P26 -> 0 | AH60: ='Tornado Charts'!R26 -> 0 | AI60: ='Tornado Charts'!S26 -> 0 | AJ60: ='Tornado Charts'!T26 -> 0 | AK60: ='Tornado Charts'!U26 -> 0 | AL60: ='Tornado Charts'!V26 -> 0 | AM60: ='Tornado Charts'!W26 -> 0 | AN60: ='Tornado Charts'!X26 -> 0 | AP60: ='Tornado Charts'!Z26 -> 0 | AQ60: ='Tornado Charts'!AA26 -> 0 | AR60: ='Tornado Charts'!AB26 -> 0 | AS60: ='Tornado Charts'!AC26 -> 0 | AT60: ='Tornado Charts'!AD26 -> 0 | AU60: ='Tornado Charts'!AE26 -> 0 | AV60: ='Tornado Charts'!AF26 -> 0 | AX60: ='Tornado Charts'!AH26 -> 0 | AY60: ='Tornado Charts'!AI26 -> 0 | AZ60: ='Tornado Charts'!AJ26 -> 0 | BA60: ='Tornado Charts'!AK26 -> 0 | BB60: ='Tornado Charts'!AL26 -> 0 | BC60: ='Tornado Charts'!AM26 -> 0 | BD60: ='Tornado Charts'!AN26 -> 0
B61: =CHOOSE($K$3,R52,Z52,AH52,AP52,AX52,R77,Z77,AH77,AP77,AX77,R102,Z102,AH102,AP102) -> 0 | C61: =CHOOSE($K$3,S52,AA52,AI52,AQ52,AY52,S77,AA77,AI77,AQ77,AY77,S102,AA102,AI102,AQ102) -> 0 | D61: =CHOOSE($K$3,T52,AB52,AJ52,AR52,AZ52,T77,AB77,AJ77,AR77,AZ77,T102,AB102,AJ102,AR102) -> 0 | E61: =CHOOSE($K$3,V52,AD52,AL52,AT52,BB52,V77,AD77,AL77,AT77,BB77,V102,AD102,AL102,AT102) -> 0 | F61: =CHOOSE($K$3,W52,AE52,AM52,AU52,BC52,W77,AE77,AM77,AU77,BC77,W102,AE102,AM102,AU102) -> 0 | R61: ='Tornado Charts'!B27 -> 0 | S61: ='Tornado Charts'!C27 -> 0 | T61: ='Tornado Charts'!D27 -> 0 | U61: ='Tornado Charts'!E27 -> 0 | V61: ='Tornado Charts'!F27 -> 0 | W61: ='Tornado Charts'!G27 -> 0 | X61: ='Tornado Charts'!H27 -> 0 | Z61: ='Tornado Charts'!J27 -> 0 | AA61: ='Tornado Charts'!K27 -> 0 | AB61: ='Tornado Charts'!L27 -> 0 | AC61: ='Tornado Charts'!M27 -> 0 | AD61: ='Tornado Charts'!N27 -> 0 | AE61: ='Tornado Charts'!O27 -> 0 | AF61: ='Tornado Charts'!P27 -> 0 | AH61: ='Tornado Charts'!R27 -> 0 | AI61: ='Tornado Charts'!S27 -> 0 | AJ61: ='Tornado Charts'!T27 -> 0 | AK61: ='Tornado Charts'!U27 -> 0 | AL61: ='Tornado Charts'!V27 -> 0 | AM61: ='Tornado Charts'!W27 -> 0 | AN61: ='Tornado Charts'!X27 -> 0 | AP61: ='Tornado Charts'!Z27 -> 0 | AQ61: ='Tornado Charts'!AA27 -> 0 | AR61: ='Tornado Charts'!AB27 -> 0 | AS61: ='Tornado Charts'!AC27 -> 0 | AT61: ='Tornado Charts'!AD27 -> 0 | AU61: ='Tornado Charts'!AE27 -> 0 | AV61: ='Tornado Charts'!AF27 -> 0 | AX61: ='Tornado Charts'!AH27 -> 0 | AY61: ='Tornado Charts'!AI27 -> 0 | AZ61: ='Tornado Charts'!AJ27 -> 0 | BA61: ='Tornado Charts'!AK27 -> 0 | BB61: ='Tornado Charts'!AL27 -> 0 | BC61: ='Tornado Charts'!AM27 -> 0 | BD61: ='Tornado Charts'!AN27 -> 0
J62: =B61 -> 0 | K62: =IF(ISERROR(INDEX($B$115:$F$134,MATCH($J62,$B$115:$B$134,0),2)),$B$113,INDEX($B$115:$F$134,MATCH($J62,$B$115:$B$134,0),2)) -> 0 | L62: =IF(ISERROR(INDEX($B$115:$F$134,MATCH($J62,$B$115:$B$134,0),2)),$B$113,INDEX($B$115:$F$134,MATCH($J62,$B$115:$B$134,0),3)) -> 0 | M62: =IF(ISERROR(INDEX($B$115:$F$134,MATCH($J62,$B$115:$B$134,0),2)),$B$113,INDEX($B$115:$F$134,MATCH($J62,$B$115:$B$134,0),4)) -> 0 | N62: =IF(ISERROR(INDEX($B$115:$F$134,MATCH($J62,$B$115:$B$134,0),2)),$B$113,INDEX($B$115:$F$134,MATCH($J62,$B$115:$B$134,0),5)) -> 0 | R62: ='Tornado Charts'!B28 -> 0 | S62: ='Tornado Charts'!C28 -> 0 | T62: ='Tornado Charts'!D28 -> 0 | U62: ='Tornado Charts'!E28 -> 0 | V62: ='Tornado Charts'!F28 -> 0 | W62: ='Tornado Charts'!G28 -> 0 | X62: ='Tornado Charts'!H28 -> 0 | Z62: ='Tornado Charts'!J28 -> 0 | AA62: ='Tornado Charts'!K28 -> 0 | AB62: ='Tornado Charts'!L28 -> 0 | AC62: ='Tornado Charts'!M28 -> 0 | AD62: ='Tornado Charts'!N28 -> 0 | AE62: ='Tornado Charts'!O28 -> 0 | AF62: ='Tornado Charts'!P28 -> 0 | AH62: ='Tornado Charts'!R28 -> 0 | AI62: ='Tornado Charts'!S28 -> 0 | AJ62: ='Tornado Charts'!T28 -> 0 | AK62: ='Tornado Charts'!U28 -> 0 | AL62: ='Tornado Charts'!V28 -> 0 | AM62: ='Tornado Charts'!W28 -> 0 | AN62: ='Tornado Charts'!X28 -> 0 | AP62: ='Tornado Charts'!Z28 -> 0 | AQ62: ='Tornado Charts'!AA28 -> 0 | AR62: ='Tornado Charts'!AB28 -> 0 | AS62: ='Tornado Charts'!AC28 -> 0 | AT62: ='Tornado Charts'!AD28 -> 0 | AU62: ='Tornado Charts'!AE28 -> 0 | AV62: ='Tornado Charts'!AF28 -> 0 | AX62: ='Tornado Charts'!AH28 -> 0 | AY62: ='Tornado Charts'!AI28 -> 0 | AZ62: ='Tornado Charts'!AJ28 -> 0 | BA62: ='Tornado Charts'!AK28 -> 0 | BB62: ='Tornado Charts'!AL28 -> 0 | BC62: ='Tornado Charts'!AM28 -> 0 | BD62: ='Tornado Charts'!AN28 -> 0
R63: ='Tornado Charts'!B29 -> 0 | S63: ='Tornado Charts'!C29 -> 0 | T63: ='Tornado Charts'!D29 -> 0 | U63: ='Tornado Charts'!E29 -> 0 | V63: ='Tornado Charts'!F29 -> 0 | W63: ='Tornado Charts'!G29 -> 0 | X63: ='Tornado Charts'!H29 -> 0 | Z63: ='Tornado Charts'!J29 -> 0 | AA63: ='Tornado Charts'!K29 -> 0 | AB63: ='Tornado Charts'!L29 -> 0 | AC63: ='Tornado Charts'!M29 -> 0 | AD63: ='Tornado Charts'!N29 -> 0 | AE63: ='Tornado Charts'!O29 -> 0 | AF63: ='Tornado Charts'!P29 -> 0 | AH63: ='Tornado Charts'!R29 -> 0 | AI63: ='Tornado Charts'!S29 -> 0 | AJ63: ='Tornado Charts'!T29 -> 0 | AK63: ='Tornado Charts'!U29 -> 0 | AL63: ='Tornado Charts'!V29 -> 0 | AM63: ='Tornado Charts'!W29 -> 0 | AN63: ='Tornado Charts'!X29 -> 0 | AP63: ='Tornado Charts'!Z29 -> 0 | AQ63: ='Tornado Charts'!AA29 -> 0 | AR63: ='Tornado Charts'!AB29 -> 0 | AS63: ='Tornado Charts'!AC29 -> 0 | AT63: ='Tornado Charts'!AD29 -> 0 | AU63: ='Tornado Charts'!AE29 -> 0 | AV63: ='Tornado Charts'!AF29 -> 0 | AX63: ='Tornado Charts'!AH29 -> 0 | AY63: ='Tornado Charts'!AI29 -> 0 | AZ63: ='Tornado Charts'!AJ29 -> 0 | BA63: ='Tornado Charts'!AK29 -> 0 | BB63: ='Tornado Charts'!AL29 -> 0 | BC63: ='Tornado Charts'!AM29 -> 0 | BD63: ='Tornado Charts'!AN29 -> 0
B64: =CHOOSE($K$3,R53,Z53,AH53,AP53,AX53,R78,Z78,AH78,AP78,AX78,R103,Z103,AH103,AP103) -> 0 | C64: =CHOOSE($K$3,S53,AA53,AI53,AQ53,AY53,S78,AA78,AI78,AQ78,AY78,S103,AA103,AI103,AQ103) -> 0 | D64: =CHOOSE($K$3,T53,AB53,AJ53,AR53,AZ53,T78,AB78,AJ78,AR78,AZ78,T103,AB103,AJ103,AR103) -> 0 | E64: =CHOOSE($K$3,V53,AD53,AL53,AT53,BB53,V78,AD78,AL78,AT78,BB78,V103,AD103,AL103,AT103) -> 0 | F64: =CHOOSE($K$3,W53,AE53,AM53,AU53,BC53,W78,AE78,AM78,AU78,BC78,W103,AE103,AM103,AU103) -> 0 | R64: ='Tornado Charts'!B30 -> 0 | S64: ='Tornado Charts'!C30 -> 0 | T64: ='Tornado Charts'!D30 -> 0 | U64: ='Tornado Charts'!E30 -> 0 | V64: ='Tornado Charts'!F30 -> 0 | W64: ='Tornado Charts'!G30 -> 0 | X64: ='Tornado Charts'!H30 -> 0 | Z64: ='Tornado Charts'!J30 -> 0 | AA64: ='Tornado Charts'!K30 -> 0 | AB64: ='Tornado Charts'!L30 -> 0 | AC64: ='Tornado Charts'!M30 -> 0 | AD64: ='Tornado Charts'!N30 -> 0 | AE64: ='Tornado Charts'!O30 -> 0 | AF64: ='Tornado Charts'!P30 -> 0 | AH64: ='Tornado Charts'!R30 -> 0 | AI64: ='Tornado Charts'!S30 -> 0 | AJ64: ='Tornado Charts'!T30 -> 0 | AK64: ='Tornado Charts'!U30 -> 0 | AL64: ='Tornado Charts'!V30 -> 0 | AM64: ='Tornado Charts'!W30 -> 0 | AN64: ='Tornado Charts'!X30 -> 0 | AP64: ='Tornado Charts'!Z30 -> 0 | AQ64: ='Tornado Charts'!AA30 -> 0 | AR64: ='Tornado Charts'!AB30 -> 0 | AS64: ='Tornado Charts'!AC30 -> 0 | AT64: ='Tornado Charts'!AD30 -> 0 | AU64: ='Tornado Charts'!AE30 -> 0 | AV64: ='Tornado Charts'!AF30 -> 0 | AX64: ='Tornado Charts'!AH30 -> 0 | AY64: ='Tornado Charts'!AI30 -> 0 | AZ64: ='Tornado Charts'!AJ30 -> 0 | BA64: ='Tornado Charts'!AK30 -> 0 | BB64: ='Tornado Charts'!AL30 -> 0 | BC64: ='Tornado Charts'!AM30 -> 0 | BD64: ='Tornado Charts'!AN30 -> 0
J65: =B64 -> 0 | K65: =IF(ISERROR(INDEX($B$115:$F$134,MATCH($J65,$B$115:$B$134,0),2)),$B$113,INDEX($B$115:$F$134,MATCH($J65,$B$115:$B$134,0),2)) -> 0 | L65: =IF(ISERROR(INDEX($B$115:$F$134,MATCH($J65,$B$115:$B$134,0),2)),$B$113,INDEX($B$115:$F$134,MATCH($J65,$B$115:$B$134,0),3)) -> 0 | M65: =IF(ISERROR(INDEX($B$115:$F$134,MATCH($J65,$B$115:$B$134,0),2)),$B$113,INDEX($B$115:$F$134,MATCH($J65,$B$115:$B$134,0),4)) -> 0 | N65: =IF(ISERROR(INDEX($B$115:$F$134,MATCH($J65,$B$115:$B$134,0),2)),$B$113,INDEX($B$115:$F$134,MATCH($J65,$B$115:$B$134,0),5)) -> 0 | R65: ='Tornado Charts'!B31 -> 0 | S65: ='Tornado Charts'!C31 -> 0 | T65: ='Tornado Charts'!D31 -> 0 | U65: ='Tornado Charts'!E31 -> 0 | V65: ='Tornado Charts'!F31 -> 0 | W65: ='Tornado Charts'!G31 -> 0 | X65: ='Tornado Charts'!H31 -> 0 | Z65: ='Tornado Charts'!J31 -> 0 | AA65: ='Tornado Charts'!K31 -> 0 | AB65: ='Tornado Charts'!L31 -> 0 | AC65: ='Tornado Charts'!M31 -> 0 | AD65: ='Tornado Charts'!N31 -> 0 | AE65: ='Tornado Charts'!O31 -> 0 | AF65: ='Tornado Charts'!P31 -> 0 | AH65: ='Tornado Charts'!R31 -> 0 | AI65: ='Tornado Charts'!S31 -> 0 | AJ65: ='Tornado Charts'!T31 -> 0 | AK65: ='Tornado Charts'!U31 -> 0 | AL65: ='Tornado Charts'!V31 -> 0 | AM65: ='Tornado Charts'!W31 -> 0 | AN65: ='Tornado Charts'!X31 -> 0 | AP65: ='Tornado Charts'!Z31 -> 0 | AQ65: ='Tornado Charts'!AA31 -> 0 | AR65: ='Tornado Charts'!AB31 -> 0 | AS65: ='Tornado Charts'!AC31 -> 0 | AT65: ='Tornado Charts'!AD31 -> 0 | AU65: ='Tornado Charts'!AE31 -> 0 | AV65: ='Tornado Charts'!AF31 -> 0 | AX65: ='Tornado Charts'!AH31 -> 0 | AY65: ='Tornado Charts'!AI31 -> 0 | AZ65: ='Tornado Charts'!AJ31 -> 0 | BA65: ='Tornado Charts'!AK31 -> 0 | BB65: ='Tornado Charts'!AL31 -> 0 | BC65: ='Tornado Charts'!AM31 -> 0 | BD65: ='Tornado Charts'!AN31 -> 0
R66: ='Tornado Charts'!B32 -> 0 | S66: ='Tornado Charts'!C32 -> 0 | T66: ='Tornado Charts'!D32 -> 0 | U66: ='Tornado Charts'!E32 -> 0 | V66: ='Tornado Charts'!F32 -> 0 | W66: ='Tornado Charts'!G32 -> 0 | X66: ='Tornado Charts'!H32 -> 0 | Z66: ='Tornado Charts'!J32 -> 0 | AA66: ='Tornado Charts'!K32 -> 0 | AB66: ='Tornado Charts'!L32 -> 0 | AC66: ='Tornado Charts'!M32 -> 0 | AD66: ='Tornado Charts'!N32 -> 0 | AE66: ='Tornado Charts'!O32 -> 0 | AF66: ='Tornado Charts'!P32 -> 0 | AH66: ='Tornado Charts'!R32 -> 0 | AI66: ='Tornado Charts'!S32 -> 0 | AJ66: ='Tornado Charts'!T32 -> 0 | AK66: ='Tornado Charts'!U32 -> 0 | AL66: ='Tornado Charts'!V32 -> 0 | AM66: ='Tornado Charts'!W32 -> 0 | AN66: ='Tornado Charts'!X32 -> 0 | AP66: ='Tornado Charts'!Z32 -> 0 | AQ66: ='Tornado Charts'!AA32 -> 0 | AR66: ='Tornado Charts'!AB32 -> 0 | AS66: ='Tornado Charts'!AC32 -> 0 | AT66: ='Tornado Charts'!AD32 -> 0 | AU66: ='Tornado Charts'!AE32 -> 0 | AV66: ='Tornado Charts'!AF32 -> 0 | AX66: ='Tornado Charts'!AH32 -> 0 | AY66: ='Tornado Charts'!AI32 -> 0 | AZ66: ='Tornado Charts'!AJ32 -> 0 | BA66: ='Tornado Charts'!AK32 -> 0 | BB66: ='Tornado Charts'!AL32 -> 0 | BC66: ='Tornado Charts'!AM32 -> 0 | BD66: ='Tornado Charts'!AN32 -> 0
B67: =CHOOSE($K$3,R54,Z54,AH54,AP54,AX54,R79,Z79,AH79,AP79,AX79,R104,Z104,AH104,AP104) -> 0 | C67: =CHOOSE($K$3,S54,AA54,AI54,AQ54,AY54,S79,AA79,AI79,AQ79,AY79,S104,AA104,AI104,AQ104) -> 0 | D67: =CHOOSE($K$3,T54,AB54,AJ54,AR54,AZ54,T79,AB79,AJ79,AR79,AZ79,T104,AB104,AJ104,AR104) -> 0 | E67: =CHOOSE($K$3,V54,AD54,AL54,AT54,BB54,V79,AD79,AL79,AT79,BB79,V104,AD104,AL104,AT104) -> 0 | F67: =CHOOSE($K$3,W54,AE54,AM54,AU54,BC54,W79,AE79,AM79,AU79,BC79,W104,AE104,AM104,AU104) -> 0 | R67: ='Tornado Charts'!B33 -> 0 | S67: ='Tornado Charts'!C33 -> 0 | T67: ='Tornado Charts'!D33 -> 0 | U67: ='Tornado Charts'!E33 -> 0 | V67: ='Tornado Charts'!F33 -> 0 | W67: ='Tornado Charts'!G33 -> 0 | X67: ='Tornado Charts'!H33 -> 0 | Z67: ='Tornado Charts'!J33 -> 0 | AA67: ='Tornado Charts'!K33 -> 0 | AB67: ='Tornado Charts'!L33 -> 0 | AC67: ='Tornado Charts'!M33 -> 0 | AD67: ='Tornado Charts'!N33 -> 0 | AE67: ='Tornado Charts'!O33 -> 0 | AF67: ='Tornado Charts'!P33 -> 0 | AH67: ='Tornado Charts'!R33 -> 0 | AI67: ='Tornado Charts'!S33 -> 0 | AJ67: ='Tornado Charts'!T33 -> 0 | AK67: ='Tornado Charts'!U33 -> 0 | AL67: ='Tornado Charts'!V33 -> 0 | AM67: ='Tornado Charts'!W33 -> 0 | AN67: ='Tornado Charts'!X33 -> 0 | AP67: ='Tornado Charts'!Z33 -> 0 | AQ67: ='Tornado Charts'!AA33 -> 0 | AR67: ='Tornado Charts'!AB33 -> 0 | AS67: ='Tornado Charts'!AC33 -> 0 | AT67: ='Tornado Charts'!AD33 -> 0 | AU67: ='Tornado Charts'!AE33 -> 0 | AV67: ='Tornado Charts'!AF33 -> 0 | AX67: ='Tornado Charts'!AH33 -> 0 | AY67: ='Tornado Charts'!AI33 -> 0 | AZ67: ='Tornado Charts'!AJ33 -> 0 | BA67: ='Tornado Charts'!AK33 -> 0 | BB67: ='Tornado Charts'!AL33 -> 0 | BC67: ='Tornado Charts'!AM33 -> 0 | BD67: ='Tornado Charts'!AN33 -> 0
J68: =B67 -> 0 | K68: =IF(ISERROR(INDEX($B$115:$F$134,MATCH($J68,$B$115:$B$134,0),2)),$B$113,INDEX($B$115:$F$134,MATCH($J68,$B$115:$B$134,0),2)) -> 0 | L68: =IF(ISERROR(INDEX($B$115:$F$134,MATCH($J68,$B$115:$B$134,0),2)),$B$113,INDEX($B$115:$F$134,MATCH($J68,$B$115:$B$134,0),3)) -> 0 | M68: =IF(ISERROR(INDEX($B$115:$F$134,MATCH($J68,$B$115:$B$134,0),2)),$B$113,INDEX($B$115:$F$134,MATCH($J68,$B$115:$B$134,0),4)) -> 0 | N68: =IF(ISERROR(INDEX($B$115:$F$134,MATCH($J68,$B$115:$B$134,0),2)),$B$113,INDEX($B$115:$F$134,MATCH($J68,$B$115:$B$134,0),5)) -> 0
S69: Position 6 | AA69: Position 7 | AI69: Position 8 | AQ69: Position 9 | AY69: Position 10
B70: =CHOOSE($K$3,R55,Z55,AH55,AP55,AX55,R80,Z80,AH80,AP80,AX80,R105,Z105,AH105,AP105) -> 0 | C70: =CHOOSE($K$3,S55,AA55,AI55,AQ55,AY55,S80,AA80,AI80,AQ80,AY80,S105,AA105,AI105,AQ105) -> 0 | D70: =CHOOSE($K$3,T55,AB55,AJ55,AR55,AZ55,T80,AB80,AJ80,AR80,AZ80,T105,AB105,AJ105,AR105) -> 0 | E70: =CHOOSE($K$3,V55,AD55,AL55,AT55,BB55,V80,AD80,AL80,AT80,BB80,V105,AD105,AL105,AT105) -> 0 | F70: =CHOOSE($K$3,W55,AE55,AM55,AU55,BC55,W80,AE80,AM80,AU80,BC80,W105,AE105,AM105,AU105) -> 0 | R70: ='Tornado Charts'!B44 -> Organic - NPV ($MM) | Z70: ='Tornado Charts'!J44 -> Gas Domination - NPV ($MM) | AH70: ='Tornado Charts'!R44 -> Hybrid 1 - NPV ($MM) | AP70: ='Tornado Charts'!Z44 -> Optimal Hybrid - NPV ($MM) | AX70: ='Tornado Charts'!AH44 -> 
J71: =B70 -> 0 | K71: =IF(ISERROR(INDEX($B$115:$F$134,MATCH($J71,$B$115:$B$134,0),2)),$B$113,INDEX($B$115:$F$134,MATCH($J71,$B$115:$B$134,0),2)) -> 0 | L71: =IF(ISERROR(INDEX($B$115:$F$134,MATCH($J71,$B$115:$B$134,0),2)),$B$113,INDEX($B$115:$F$134,MATCH($J71,$B$115:$B$134,0),3)) -> 0 | M71: =IF(ISERROR(INDEX($B$115:$F$134,MATCH($J71,$B$115:$B$134,0),2)),$B$113,INDEX($B$115:$F$134,MATCH($J71,$B$115:$B$134,0),4)) -> 0 | N71: =IF(ISERROR(INDEX($B$115:$F$134,MATCH($J71,$B$115:$B$134,0),2)),$B$113,INDEX($B$115:$F$134,MATCH($J71,$B$115:$B$134,0),5)) -> 0 | R71: ='Tornado Charts'!B45 -> 0 | S71: Project NPV, $MM | V71: Input | Z71: ='Tornado Charts'!J45 -> 0 | AA71: Project NPV, $MM | AD71: Input | AH71: ='Tornado Charts'!R45 -> 0 | AI71: Project NPV, $MM | AL71: Input | AP71: ='Tornado Charts'!Z45 -> 0 | AQ71: Project NPV, $MM | AT71: Input | AX71: ='Tornado Charts'!AH45 -> 0 | AY71: Project NPV, $MM | BB71: Input
R72: Variable | S72: Downside | T72: Upside | U72: Range | V72: Downside | W72: Upside | X72: Base Case | Z72: Variable | AA72: Downside | AB72: Upside | AC72: Range | AD72: Downside | AE72: Upside | AF72: Base Case | AH72: Variable | AI72: Downside | AJ72: Upside | AK72: Range | AL72: Downside | AM72: Upside | AN72: Base Case | AP72: Variable | AQ72: Downside | AR72: Upside | AS72: Range | AT72: Downside | AU72: Upside | AV72: Base Case | AX72: Variable | AY72: Downside | AZ72: Upside | BA72: Range | BB72: Downside | BC72: Upside | BD72: Base Case
B73: =CHOOSE($K$3,R56,Z56,AH56,AP56,AX56,R81,Z81,AH81,AP81,AX81,R106,Z106,AH106,AP106) -> 0 | C73: =CHOOSE($K$3,S56,AA56,AI56,AQ56,AY56,S81,AA81,AI81,AQ81,AY81,S106,AA106,AI106,AQ106) -> 0 | D73: =CHOOSE($K$3,T56,AB56,AJ56,AR56,AZ56,T81,AB81,AJ81,AR81,AZ81,T106,AB106,AJ106,AR106) -> 0 | E73: =CHOOSE($K$3,V56,AD56,AL56,AT56,BB56,V81,AD81,AL81,AT81,BB81,V106,AD106,AL106,AT106) -> 0 | F73: =CHOOSE($K$3,W56,AE56,AM56,AU56,BC56,W81,AE81,AM81,AU81,BC81,W106,AE106,AM106,AU106) -> 0 | R73: ='Tornado Charts'!B47 -> 0 | S73: ='Tornado Charts'!C47 -> 0 | T73: ='Tornado Charts'!D47 -> 0 | U73: ='Tornado Charts'!E47 -> 0 | V73: ='Tornado Charts'!F47 -> 0 | W73: ='Tornado Charts'!G47 -> 0 | X73: ='Tornado Charts'!H47 -> 0 | Z73: ='Tornado Charts'!J47 -> 0 | AA73: ='Tornado Charts'!K47 -> 0 | AB73: ='Tornado Charts'!L47 -> 0 | AC73: ='Tornado Charts'!M47 -> 0 | AD73: ='Tornado Charts'!N47 -> 0 | AE73: ='Tornado Charts'!O47 -> 0 | AF73: ='Tornado Charts'!P47 -> 0 | AH73: ='Tornado Charts'!R47 -> 0 | AI73: ='Tornado Charts'!S47 -> 0 | AJ73: ='Tornado Charts'!T47 -> 0 | AK73: ='Tornado Charts'!U47 -> 0 | AL73: ='Tornado Charts'!V47 -> 0 | AM73: ='Tornado Charts'!W47 -> 0 | AN73: ='Tornado Charts'!X47 -> 0 | AP73: ='Tornado Charts'!Z47 -> 0 | AQ73: ='Tornado Charts'!AA47 -> 0 | AR73: ='Tornado Charts'!AB47 -> 0 | AS73: ='Tornado Charts'!AC47 -> 0 | AT73: ='Tornado Charts'!AD47 -> 0 | AU73: ='Tornado Charts'!AE47 -> 0 | AV73: ='Tornado Charts'!AF47 -> 0 | AX73: ='Tornado Charts'!AH47 -> 0 | AY73: ='Tornado Charts'!AI47 -> 0 | AZ73: ='Tornado Charts'!AJ47 -> 0 | BA73: ='Tornado Charts'!AK47 -> 0 | BB73: ='Tornado Charts'!AL47 -> 0 | BC73: ='Tornado Charts'!AM47 -> 0 | BD73: ='Tornado Charts'!AN47 -> 0
J74: =B73 -> 0 | K74: =IF(ISERROR(INDEX($B$115:$F$134,MATCH($J74,$B$115:$B$134,0),2)),$B$113,INDEX($B$115:$F$134,MATCH($J74,$B$115:$B$134,0),2)) -> 0 | L74: =IF(ISERROR(INDEX($B$115:$F$134,MATCH($J74,$B$115:$B$134,0),2)),$B$113,INDEX($B$115:$F$134,MATCH($J74,$B$115:$B$134,0),3)) -> 0 | M74: =IF(ISERROR(INDEX($B$115:$F$134,MATCH($J74,$B$115:$B$134,0),2)),$B$113,INDEX($B$115:$F$134,MATCH($J74,$B$115:$B$134,0),4)) -> 0 | N74: =IF(ISERROR(INDEX($B$115:$F$134,MATCH($J74,$B$115:$B$134,0),2)),$B$113,INDEX($B$115:$F$134,MATCH($J74,$B$115:$B$134,0),5)) -> 0 | R74: ='Tornado Charts'!B48 -> 0 | S74: ='Tornado Charts'!C48 -> 0 | T74: ='Tornado Charts'!D48 -> 0 | U74: ='Tornado Charts'!E48 -> 0 | V74: ='Tornado Charts'!F48 -> 0 | W74: ='Tornado Charts'!G48 -> 0 | X74: ='Tornado Charts'!H48 -> 0 | Z74: ='Tornado Charts'!J48 -> 0 | AA74: ='Tornado Charts'!K48 -> 0 | AB74: ='Tornado Charts'!L48 -> 0 | AC74: ='Tornado Charts'!M48 -> 0 | AD74: ='Tornado Charts'!N48 -> 0 | AE74: ='Tornado Charts'!O48 -> 0 | AF74: ='Tornado Charts'!P48 -> 0 | AH74: ='Tornado Charts'!R48 -> 0 | AI74: ='Tornado Charts'!S48 -> 0 | AJ74: ='Tornado Charts'!T48 -> 0 | AK74: ='Tornado Charts'!U48 -> 0 | AL74: ='Tornado Charts'!V48 -> 0 | AM74: ='Tornado Charts'!W48 -> 0 | AN74: ='Tornado Charts'!X48 -> 0 | AP74: ='Tornado Charts'!Z48 -> 0 | AQ74: ='Tornado Charts'!AA48 -> 0 | AR74: ='Tornado Charts'!AB48 -> 0 | AS74: ='Tornado Charts'!AC48 -> 0 | AT74: ='Tornado Charts'!AD48 -> 0 | AU74: ='Tornado Charts'!AE48 -> 0 | AV74: ='Tornado Charts'!AF48 -> 0 | AX74: ='Tornado Charts'!AH48 -> 0 | AY74: ='Tornado Charts'!AI48 -> 0 | AZ74: ='Tornado Charts'!AJ48 -> 0 | BA74: ='Tornado Charts'!AK48 -> 0 | BB74: ='Tornado Charts'!AL48 -> 0 | BC74: ='Tornado Charts'!AM48 -> 0 | BD74: ='Tornado Charts'!AN48 -> 0
R75: ='Tornado Charts'!B49 -> 0 | S75: ='Tornado Charts'!C49 -> 0 | T75: ='Tornado Charts'!D49 -> 0 | U75: ='Tornado Charts'!E49 -> 0 | V75: ='Tornado Charts'!F49 -> 0 | W75: ='Tornado Charts'!G49 -> 0 | X75: ='Tornado Charts'!H49 -> 0 | Z75: ='Tornado Charts'!J49 -> 0 | AA75: ='Tornado Charts'!K49 -> 0 | AB75: ='Tornado Charts'!L49 -> 0 | AC75: ='Tornado Charts'!M49 -> 0 | AD75: ='Tornado Charts'!N49 -> 0 | AE75: ='Tornado Charts'!O49 -> 0 | AF75: ='Tornado Charts'!P49 -> 0 | AH75: ='Tornado Charts'!R49 -> 0 | AI75: ='Tornado Charts'!S49 -> 0 | AJ75: ='Tornado Charts'!T49 -> 0 | AK75: ='Tornado Charts'!U49 -> 0 | AL75: ='Tornado Charts'!V49 -> 0 | AM75: ='Tornado Charts'!W49 -> 0 | AN75: ='Tornado Charts'!X49 -> 0 | AP75: ='Tornado Charts'!Z49 -> 0 | AQ75: ='Tornado Charts'!AA49 -> 0 | AR75: ='Tornado Charts'!AB49 -> 0 | AS75: ='Tornado Charts'!AC49 -> 0 | AT75: ='Tornado Charts'!AD49 -> 0 | AU75: ='Tornado Charts'!AE49 -> 0 | AV75: ='Tornado Charts'!AF49 -> 0 | AX75: ='Tornado Charts'!AH49 -> 0 | AY75: ='Tornado Charts'!AI49 -> 0 | AZ75: ='Tornado Charts'!AJ49 -> 0 | BA75: ='Tornado Charts'!AK49 -> 0 | BB75: ='Tornado Charts'!AL49 -> 0 | BC75: ='Tornado Charts'!AM49 -> 0 | BD75: ='Tornado Charts'!AN49 -> 0
B76: =CHOOSE($K$3,R57,Z57,AH57,AP57,AX57,R82,Z82,AH82,AP82,AX82,R107,Z107,AH107,AP107) -> 0 | C76: =CHOOSE($K$3,S57,AA57,AI57,AQ57,AY57,S82,AA82,AI82,AQ82,AY82,S107,AA107,AI107,AQ107) -> 0 | D76: =CHOOSE($K$3,T57,AB57,AJ57,AR57,AZ57,T82,AB82,AJ82,AR82,AZ82,T107,AB107,AJ107,AR107) -> 0 | E76: =CHOOSE($K$3,V57,AD57,AL57,AT57,BB57,V82,AD82,AL82,AT82,BB82,V107,AD107,AL107,AT107) -> 0 | F76: =CHOOSE($K$3,W57,AE57,AM57,AU57,BC57,W82,AE82,AM82,AU82,BC82,W107,AE107,AM107,AU107) -> 0 | R76: ='Tornado Charts'!B50 -> 0 | S76: ='Tornado Charts'!C50 -> 0 | T76: ='Tornado Charts'!D50 -> 0 | U76: ='Tornado Charts'!E50 -> 0 | V76: ='Tornado Charts'!F50 -> 0 | W76: ='Tornado Charts'!G50 -> 0 | X76: ='Tornado Charts'!H50 -> 0 | Z76: ='Tornado Charts'!J50 -> 0 | AA76: ='Tornado Charts'!K50 -> 0 | AB76: ='Tornado Charts'!L50 -> 0 | AC76: ='Tornado Charts'!M50 -> 0 | AD76: ='Tornado Charts'!N50 -> 0 | AE76: ='Tornado Charts'!O50 -> 0 | AF76: ='Tornado Charts'!P50 -> 0 | AH76: ='Tornado Charts'!R50 -> 0 | AI76: ='Tornado Charts'!S50 -> 0 | AJ76: ='Tornado Charts'!T50 -> 0 | AK76: ='Tornado Charts'!U50 -> 0 | AL76: ='Tornado Charts'!V50 -> 0 | AM76: ='Tornado Charts'!W50 -> 0 | AN76: ='Tornado Charts'!X50 -> 0 | AP76: ='Tornado Charts'!Z50 -> 0 | AQ76: ='Tornado Charts'!AA50 -> 0 | AR76: ='Tornado Charts'!AB50 -> 0 | AS76: ='Tornado Charts'!AC50 -> 0 | AT76: ='Tornado Charts'!AD50 -> 0 | AU76: ='Tornado Charts'!AE50 -> 0 | AV76: ='Tornado Charts'!AF50 -> 0 | AX76: ='Tornado Charts'!AH50 -> 0 | AY76: ='Tornado Charts'!AI50 -> 0 | AZ76: ='Tornado Charts'!AJ50 -> 0 | BA76: ='Tornado Charts'!AK50 -> 0 | BB76: ='Tornado Charts'!AL50 -> 0 | BC76: ='Tornado Charts'!AM50 -> 0 | BD76: ='Tornado Charts'!AN50 -> 0
J77: =B76 -> 0 | K77: =IF(ISERROR(INDEX($B$115:$F$134,MATCH($J77,$B$115:$B$134,0),2)),$B$113,INDEX($B$115:$F$134,MATCH($J77,$B$115:$B$134,0),2)) -> 0 | L77: =IF(ISERROR(INDEX($B$115:$F$134,MATCH($J77,$B$115:$B$134,0),2)),$B$113,INDEX($B$115:$F$134,MATCH($J77,$B$115:$B$134,0),3)) -> 0 | M77: =IF(ISERROR(INDEX($B$115:$F$134,MATCH($J77,$B$115:$B$134,0),2)),$B$113,INDEX($B$115:$F$134,MATCH($J77,$B$115:$B$134,0),4)) -> 0 | N77: =IF(ISERROR(INDEX($B$115:$F$134,MATCH($J77,$B$115:$B$134,0),2)),$B$113,INDEX($B$115:$F$134,MATCH($J77,$B$115:$B$134,0),5)) -> 0 | R77: ='Tornado Charts'!B51 -> 0 | S77: ='Tornado Charts'!C51 -> 0 | T77: ='Tornado Charts'!D51 -> 0 | U77: ='Tornado Charts'!E51 -> 0 | V77: ='Tornado Charts'!F51 -> 0 | W77: ='Tornado Charts'!G51 -> 0 | X77: ='Tornado Charts'!H51 -> 0 | Z77: ='Tornado Charts'!J51 -> 0 | AA77: ='Tornado Charts'!K51 -> 0 | AB77: ='Tornado Charts'!L51 -> 0 | AC77: ='Tornado Charts'!M51 -> 0 | AD77: ='Tornado Charts'!N51 -> 0 | AE77: ='Tornado Charts'!O51 -> 0 | AF77: ='Tornado Charts'!P51 -> 0 | AH77: ='Tornado Charts'!R51 -> 0 | AI77: ='Tornado Charts'!S51 -> 0 | AJ77: ='Tornado Charts'!T51 -> 0 | AK77: ='Tornado Charts'!U51 -> 0 | AL77: ='Tornado Charts'!V51 -> 0 | AM77: ='Tornado Charts'!W51 -> 0 | AN77: ='Tornado Charts'!X51 -> 0 | AP77: ='Tornado Charts'!Z51 -> 0 | AQ77: ='Tornado Charts'!AA51 -> 0 | AR77: ='Tornado Charts'!AB51 -> 0 | AS77: ='Tornado Charts'!AC51 -> 0 | AT77: ='Tornado Charts'!AD51 -> 0 | AU77: ='Tornado Charts'!AE51 -> 0 | AV77: ='Tornado Charts'!AF51 -> 0 | AX77: ='Tornado Charts'!AH51 -> 0 | AY77: ='Tornado Charts'!AI51 -> 0 | AZ77: ='Tornado Charts'!AJ51 -> 0 | BA77: ='Tornado Charts'!AK51 -> 0 | BB77: ='Tornado Charts'!AL51 -> 0 | BC77: ='Tornado Charts'!AM51 -> 0 | BD77: ='Tornado Charts'!AN51 -> 0
R78: ='Tornado Charts'!B52 -> 0 | S78: ='Tornado Charts'!C52 -> 0 | T78: ='Tornado Charts'!D52 -> 0 | U78: ='Tornado Charts'!E52 -> 0 | V78: ='Tornado Charts'!F52 -> 0 | W78: ='Tornado Charts'!G52 -> 0 | X78: ='Tornado Charts'!H52 -> 0 | Z78: ='Tornado Charts'!J52 -> 0 | AA78: ='Tornado Charts'!K52 -> 0 | AB78: ='Tornado Charts'!L52 -> 0 | AC78: ='Tornado Charts'!M52 -> 0 | AD78: ='Tornado Charts'!N52 -> 0 | AE78: ='Tornado Charts'!O52 -> 0 | AF78: ='Tornado Charts'!P52 -> 0 | AH78: ='Tornado Charts'!R52 -> 0 | AI78: ='Tornado Charts'!S52 -> 0 | AJ78: ='Tornado Charts'!T52 -> 0 | AK78: ='Tornado Charts'!U52 -> 0 | AL78: ='Tornado Charts'!V52 -> 0 | AM78: ='Tornado Charts'!W52 -> 0 | AN78: ='Tornado Charts'!X52 -> 0 | AP78: ='Tornado Charts'!Z52 -> 0 | AQ78: ='Tornado Charts'!AA52 -> 0 | AR78: ='Tornado Charts'!AB52 -> 0 | AS78: ='Tornado Charts'!AC52 -> 0 | AT78: ='Tornado Charts'!AD52 -> 0 | AU78: ='Tornado Charts'!AE52 -> 0 | AV78: ='Tornado Charts'!AF52 -> 0 | AX78: ='Tornado Charts'!AH52 -> 0 | AY78: ='Tornado Charts'!AI52 -> 0 | AZ78: ='Tornado Charts'!AJ52 -> 0 | BA78: ='Tornado Charts'!AK52 -> 0 | BB78: ='Tornado Charts'!AL52 -> 0 | BC78: ='Tornado Charts'!AM52 -> 0 | BD78: ='Tornado Charts'!AN52 -> 0
B79: =CHOOSE($K$3,R58,Z58,AH58,AP58,AX58,R83,Z83,AH83,AP83,AX83,R108,Z108,AH108,AP108) -> 0 | C79: =CHOOSE($K$3,S58,AA58,AI58,AQ58,AY58,S83,AA83,AI83,AQ83,AY83,S108,AA108,AI108,AQ108) -> 0 | D79: =CHOOSE($K$3,T58,AB58,AJ58,AR58,AZ58,T83,AB83,AJ83,AR83,AZ83,T108,AB108,AJ108,AR108) -> 0 | E79: =CHOOSE($K$3,V58,AD58,AL58,AT58,BB58,V83,AD83,AL83,AT83,BB83,V108,AD108,AL108,AT108) -> 0 | F79: =CHOOSE($K$3,W58,AE58,AM58,AU58,BC58,W83,AE83,AM83,AU83,BC83,W108,AE108,AM108,AU108) -> 0 | R79: ='Tornado Charts'!B53 -> 0 | S79: ='Tornado Charts'!C53 -> 0 | T79: ='Tornado Charts'!D53 -> 0 | U79: ='Tornado Charts'!E53 -> 0 | V79: ='Tornado Charts'!F53 -> 0 | W79: ='Tornado Charts'!G53 -> 0 | X79: ='Tornado Charts'!H53 -> 0 | Z79: ='Tornado Charts'!J53 -> 0 | AA79: ='Tornado Charts'!K53 -> 0 | AB79: ='Tornado Charts'!L53 -> 0 | AC79: ='Tornado Charts'!M53 -> 0 | AD79: ='Tornado Charts'!N53 -> 0 | AE79: ='Tornado Charts'!O53 -> 0 | AF79: ='Tornado Charts'!P53 -> 0 | AH79: ='Tornado Charts'!R53 -> 0 | AI79: ='Tornado Charts'!S53 -> 0 | AJ79: ='Tornado Charts'!T53 -> 0 | AK79: ='Tornado Charts'!U53 -> 0 | AL79: ='Tornado Charts'!V53 -> 0 | AM79: ='Tornado Charts'!W53 -> 0 | AN79: ='Tornado Charts'!X53 -> 0 | AP79: ='Tornado Charts'!Z53 -> 0 | AQ79: ='Tornado Charts'!AA53 -> 0 | AR79: ='Tornado Charts'!AB53 -> 0 | AS79: ='Tornado Charts'!AC53 -> 0 | AT79: ='Tornado Charts'!AD53 -> 0 | AU79: ='Tornado Charts'!AE53 -> 0 | AV79: ='Tornado Charts'!AF53 -> 0 | AX79: ='Tornado Charts'!AH53 -> 0 | AY79: ='Tornado Charts'!AI53 -> 0 | AZ79: ='Tornado Charts'!AJ53 -> 0 | BA79: ='Tornado Charts'!AK53 -> 0 | BB79: ='Tornado Charts'!AL53 -> 0 | BC79: ='Tornado Charts'!AM53 -> 0 | BD79: ='Tornado Charts'!AN53 -> 0
J80: =B79 -> 0 | K80: =IF(ISERROR(INDEX($B$115:$F$134,MATCH($J80,$B$115:$B$134,0),2)),$B$113,INDEX($B$115:$F$134,MATCH($J80,$B$115:$B$134,0),2)) -> 0 | L80: =IF(ISERROR(INDEX($B$115:$F$134,MATCH($J80,$B$115:$B$134,0),2)),$B$113,INDEX($B$115:$F$134,MATCH($J80,$B$115:$B$134,0),3)) -> 0 | M80: =IF(ISERROR(INDEX($B$115:$F$134,MATCH($J80,$B$115:$B$134,0),2)),$B$113,INDEX($B$115:$F$134,MATCH($J80,$B$115:$B$134,0),4)) -> 0 | N80: =IF(ISERROR(INDEX($B$115:$F$134,MATCH($J80,$B$115:$B$134,0),2)),$B$113,INDEX($B$115:$F$134,MATCH($J80,$B$115:$B$134,0),5)) -> 0 | R80: ='Tornado Charts'!B54 -> 0 | S80: ='Tornado Charts'!C54 -> 0 | T80: ='Tornado Charts'!D54 -> 0 | U80: ='Tornado Charts'!E54 -> 0 | V80: ='Tornado Charts'!F54 -> 0 | W80: ='Tornado Charts'!G54 -> 0 | X80: ='Tornado Charts'!H54 -> 0 | Z80: ='Tornado Charts'!J54 -> 0 | AA80: ='Tornado Charts'!K54 -> 0 | AB80: ='Tornado Charts'!L54 -> 0 | AC80: ='Tornado Charts'!M54 -> 0 | AD80: ='Tornado Charts'!N54 -> 0 | AE80: ='Tornado Charts'!O54 -> 0 | AF80: ='Tornado Charts'!P54 -> 0 | AH80: ='Tornado Charts'!R54 -> 0 | AI80: ='Tornado Charts'!S54 -> 0 | AJ80: ='Tornado Charts'!T54 -> 0 | AK80: ='Tornado Charts'!U54 -> 0 | AL80: ='Tornado Charts'!V54 -> 0 | AM80: ='Tornado Charts'!W54 -> 0 | AN80: ='Tornado Charts'!X54 -> 0 | AP80: ='Tornado Charts'!Z54 -> 0 | AQ80: ='Tornado Charts'!AA54 -> 0 | AR80: ='Tornado Charts'!AB54 -> 0 | AS80: ='Tornado Charts'!AC54 -> 0 | AT80: ='Tornado Charts'!AD54 -> 0 | AU80: ='Tornado Charts'!AE54 -> 0 | AV80: ='Tornado Charts'!AF54 -> 0 | AX80: ='Tornado Charts'!AH54 -> 0 | AY80: ='Tornado Charts'!AI54 -> 0 | AZ80: ='Tornado Charts'!AJ54 -> 0 | BA80: ='Tornado Charts'!AK54 -> 0 | BB80: ='Tornado Charts'!AL54 -> 0 | BC80: ='Tornado Charts'!AM54 -> 0 | BD80: ='Tornado Charts'!AN54 -> 0
R81: ='Tornado Charts'!B55 -> 0 | S81: ='Tornado Charts'!C55 -> 0 | T81: ='Tornado Charts'!D55 -> 0 | U81: ='Tornado Charts'!E55 -> 0 | V81: ='Tornado Charts'!F55 -> 0 | W81: ='Tornado Charts'!G55 -> 0 | X81: ='Tornado Charts'!H55 -> 0 | Z81: ='Tornado Charts'!J55 -> 0 | AA81: ='Tornado Charts'!K55 -> 0 | AB81: ='Tornado Charts'!L55 -> 0 | AC81: ='Tornado Charts'!M55 -> 0 | AD81: ='Tornado Charts'!N55 -> 0 | AE81: ='Tornado Charts'!O55 -> 0 | AF81: ='Tornado Charts'!P55 -> 0 | AH81: ='Tornado Charts'!R55 -> 0 | AI81: ='Tornado Charts'!S55 -> 0 | AJ81: ='Tornado Charts'!T55 -> 0 | AK81: ='Tornado Charts'!U55 -> 0 | AL81: ='Tornado Charts'!V55 -> 0 | AM81: ='Tornado Charts'!W55 -> 0 | AN81: ='Tornado Charts'!X55 -> 0 | AP81: ='Tornado Charts'!Z55 -> 0 | AQ81: ='Tornado Charts'!AA55 -> 0 | AR81: ='Tornado Charts'!AB55 -> 0 | AS81: ='Tornado Charts'!AC55 -> 0 | AT81: ='Tornado Charts'!AD55 -> 0 | AU81: ='Tornado Charts'!AE55 -> 0 | AV81: ='Tornado Charts'!AF55 -> 0 | AX81: ='Tornado Charts'!AH55 -> 0 | AY81: ='Tornado Charts'!AI55 -> 0 | AZ81: ='Tornado Charts'!AJ55 -> 0 | BA81: ='Tornado Charts'!AK55 -> 0 | BB81: ='Tornado Charts'!AL55 -> 0 | BC81: ='Tornado Charts'!AM55 -> 0 | BD81: ='Tornado Charts'!AN55 -> 0
B82: =CHOOSE($K$3,R59,Z59,AH59,AP59,AX59,R84,Z84,AH84,AP84,AX84,R109,Z109,AH109,AP109) -> 0 | C82: =CHOOSE($K$3,S59,AA59,AI59,AQ59,AY59,S84,AA84,AI84,AQ84,AY84,S109,AA109,AI109,AQ109) -> 0 | D82: =CHOOSE($K$3,T59,AB59,AJ59,AR59,AZ59,T84,AB84,AJ84,AR84,AZ84,T109,AB109,AJ109,AR109) -> 0 | E82: =CHOOSE($K$3,V59,AD59,AL59,AT59,BB59,V84,AD84,AL84,AT84,BB84,V109,AD109,AL109,AT109) -> 0 | F82: =CHOOSE($K$3,W59,AE59,AM59,AU59,BC59,W84,AE84,AM84,AU84,BC84,W109,AE109,AM109,AU109) -> 0 | R82: ='Tornado Charts'!B56 -> 0 | S82: ='Tornado Charts'!C56 -> 0 | T82: ='Tornado Charts'!D56 -> 0 | U82: ='Tornado Charts'!E56 -> 0 | V82: ='Tornado Charts'!F56 -> 0 | W82: ='Tornado Charts'!G56 -> 0 | X82: ='Tornado Charts'!H56 -> 0 | Z82: ='Tornado Charts'!J56 -> 0 | AA82: ='Tornado Charts'!K56 -> 0 | AB82: ='Tornado Charts'!L56 -> 0 | AC82: ='Tornado Charts'!M56 -> 0 | AD82: ='Tornado Charts'!N56 -> 0 | AE82: ='Tornado Charts'!O56 -> 0 | AF82: ='Tornado Charts'!P56 -> 0 | AH82: ='Tornado Charts'!R56 -> 0 | AI82: ='Tornado Charts'!S56 -> 0 | AJ82: ='Tornado Charts'!T56 -> 0 | AK82: ='Tornado Charts'!U56 -> 0 | AL82: ='Tornado Charts'!V56 -> 0 | AM82: ='Tornado Charts'!W56 -> 0 | AN82: ='Tornado Charts'!X56 -> 0 | AP82: ='Tornado Charts'!Z56 -> 0 | AQ82: ='Tornado Charts'!AA56 -> 0 | AR82: ='Tornado Charts'!AB56 -> 0 | AS82: ='Tornado Charts'!AC56 -> 0 | AT82: ='Tornado Charts'!AD56 -> 0 | AU82: ='Tornado Charts'!AE56 -> 0 | AV82: ='Tornado Charts'!AF56 -> 0 | AX82: ='Tornado Charts'!AH56 -> 0 | AY82: ='Tornado Charts'!AI56 -> 0 | AZ82: ='Tornado Charts'!AJ56 -> 0 | BA82: ='Tornado Charts'!AK56 -> 0 | BB82: ='Tornado Charts'!AL56 -> 0 | BC82: ='Tornado Charts'!AM56 -> 0 | BD82: ='Tornado Charts'!AN56 -> 0
J83: =B82 -> 0 | K83: =IF(ISERROR(INDEX($B$115:$F$134,MATCH($J83,$B$115:$B$134,0),2)),$B$113,INDEX($B$115:$F$134,MATCH($J83,$B$115:$B$134,0),2)) -> 0 | L83: =IF(ISERROR(INDEX($B$115:$F$134,MATCH($J83,$B$115:$B$134,0),2)),$B$113,INDEX($B$115:$F$134,MATCH($J83,$B$115:$B$134,0),3)) -> 0 | M83: =IF(ISERROR(INDEX($B$115:$F$134,MATCH($J83,$B$115:$B$134,0),2)),$B$113,INDEX($B$115:$F$134,MATCH($J83,$B$115:$B$134,0),4)) -> 0 | N83: =IF(ISERROR(INDEX($B$115:$F$134,MATCH($J83,$B$115:$B$134,0),2)),$B$113,INDEX($B$115:$F$134,MATCH($J83,$B$115:$B$134,0),5)) -> 0 | R83: ='Tornado Charts'!B57 -> 0 | S83: ='Tornado Charts'!C57 -> 0 | T83: ='Tornado Charts'!D57 -> 0 | U83: ='Tornado Charts'!E57 -> 0 | V83: ='Tornado Charts'!F57 -> 0 | W83: ='Tornado Charts'!G57 -> 0 | X83: ='Tornado Charts'!H57 -> 0 | Z83: ='Tornado Charts'!J57 -> 0 | AA83: ='Tornado Charts'!K57 -> 0 | AB83: ='Tornado Charts'!L57 -> 0 | AC83: ='Tornado Charts'!M57 -> 0 | AD83: ='Tornado Charts'!N57 -> 0 | AE83: ='Tornado Charts'!O57 -> 0 | AF83: ='Tornado Charts'!P57 -> 0 | AH83: ='Tornado Charts'!R57 -> 0 | AI83: ='Tornado Charts'!S57 -> 0 | AJ83: ='Tornado Charts'!T57 -> 0 | AK83: ='Tornado Charts'!U57 -> 0 | AL83: ='Tornado Charts'!V57 -> 0 | AM83: ='Tornado Charts'!W57 -> 0 | AN83: ='Tornado Charts'!X57 -> 0 | AP83: ='Tornado Charts'!Z57 -> 0 | AQ83: ='Tornado Charts'!AA57 -> 0 | AR83: ='Tornado Charts'!AB57 -> 0 | AS83: ='Tornado Charts'!AC57 -> 0 | AT83: ='Tornado Charts'!AD57 -> 0 | AU83: ='Tornado Charts'!AE57 -> 0 | AV83: ='Tornado Charts'!AF57 -> 0 | AX83: ='Tornado Charts'!AH57 -> 0 | AY83: ='Tornado Charts'!AI57 -> 0 | AZ83: ='Tornado Charts'!AJ57 -> 0 | BA83: ='Tornado Charts'!AK57 -> 0 | BB83: ='Tornado Charts'!AL57 -> 0 | BC83: ='Tornado Charts'!AM57 -> 0 | BD83: ='Tornado Charts'!AN57 -> 0
R84: ='Tornado Charts'!B58 -> 0 | S84: ='Tornado Charts'!C58 -> 0 | T84: ='Tornado Charts'!D58 -> 0 | U84: ='Tornado Charts'!E58 -> 0 | V84: ='Tornado Charts'!F58 -> 0 | W84: ='Tornado Charts'!G58 -> 0 | X84: ='Tornado Charts'!H58 -> 0 | Z84: ='Tornado Charts'!J58 -> 0 | AA84: ='Tornado Charts'!K58 -> 0 | AB84: ='Tornado Charts'!L58 -> 0 | AC84: ='Tornado Charts'!M58 -> 0 | AD84: ='Tornado Charts'!N58 -> 0 | AE84: ='Tornado Charts'!O58 -> 0 | AF84: ='Tornado Charts'!P58 -> 0 | AH84: ='Tornado Charts'!R58 -> 0 | AI84: ='Tornado Charts'!S58 -> 0 | AJ84: ='Tornado Charts'!T58 -> 0 | AK84: ='Tornado Charts'!U58 -> 0 | AL84: ='Tornado Charts'!V58 -> 0 | AM84: ='Tornado Charts'!W58 -> 0 | AN84: ='Tornado Charts'!X58 -> 0 | AP84: ='Tornado Charts'!Z58 -> 0 | AQ84: ='Tornado Charts'!AA58 -> 0 | AR84: ='Tornado Charts'!AB58 -> 0 | AS84: ='Tornado Charts'!AC58 -> 0 | AT84: ='Tornado Charts'!AD58 -> 0 | AU84: ='Tornado Charts'!AE58 -> 0 | AV84: ='Tornado Charts'!AF58 -> 0 | AX84: ='Tornado Charts'!AH58 -> 0 | AY84: ='Tornado Charts'!AI58 -> 0 | AZ84: ='Tornado Charts'!AJ58 -> 0 | BA84: ='Tornado Charts'!AK58 -> 0 | BB84: ='Tornado Charts'!AL58 -> 0 | BC84: ='Tornado Charts'!AM58 -> 0 | BD84: ='Tornado Charts'!AN58 -> 0
B85: =CHOOSE($K$3,R60,Z60,AH60,AP60,AX60,R85,Z85,AH85,AP85,AX85,R110,Z110,AH110,AP110) -> 0 | C85: =CHOOSE($K$3,S60,AA60,AI60,AQ60,AY60,S85,AA85,AI85,AQ85,AY85,S110,AA110,AI110,AQ110) -> 0 | D85: =CHOOSE($K$3,T60,AB60,AJ60,AR60,AZ60,T85,AB85,AJ85,AR85,AZ85,T110,AB110,AJ110,AR110) -> 0 | E85: =CHOOSE($K$3,V60,AD60,AL60,AT60,BB60,V85,AD85,AL85,AT85,BB85,V110,AD110,AL110,AT110) -> 0 | F85: =CHOOSE($K$3,W60,AE60,AM60,AU60,BC60,W85,AE85,AM85,AU85,BC85,W110,AE110,AM110,AU110) -> 0 | R85: ='Tornado Charts'!B59 -> 0 | S85: ='Tornado Charts'!C59 -> 0 | T85: ='Tornado Charts'!D59 -> 0 | U85: ='Tornado Charts'!E59 -> 0 | V85: ='Tornado Charts'!F59 -> 0 | W85: ='Tornado Charts'!G59 -> 0 | X85: ='Tornado Charts'!H59 -> 0 | Z85: ='Tornado Charts'!J59 -> 0 | AA85: ='Tornado Charts'!K59 -> 0 | AB85: ='Tornado Charts'!L59 -> 0 | AC85: ='Tornado Charts'!M59 -> 0 | AD85: ='Tornado Charts'!N59 -> 0 | AE85: ='Tornado Charts'!O59 -> 0 | AF85: ='Tornado Charts'!P59 -> 0 | AH85: ='Tornado Charts'!R59 -> 0 | AI85: ='Tornado Charts'!S59 -> 0 | AJ85: ='Tornado Charts'!T59 -> 0 | AK85: ='Tornado Charts'!U59 -> 0 | AL85: ='Tornado Charts'!V59 -> 0 | AM85: ='Tornado Charts'!W59 -> 0 | AN85: ='Tornado Charts'!X59 -> 0 | AP85: ='Tornado Charts'!Z59 -> 0 | AQ85: ='Tornado Charts'!AA59 -> 0 | AR85: ='Tornado Charts'!AB59 -> 0 | AS85: ='Tornado Charts'!AC59 -> 0 | AT85: ='Tornado Charts'!AD59 -> 0 | AU85: ='Tornado Charts'!AE59 -> 0 | AV85: ='Tornado Charts'!AF59 -> 0 | AX85: ='Tornado Charts'!AH59 -> 0 | AY85: ='Tornado Charts'!AI59 -> 0 | AZ85: ='Tornado Charts'!AJ59 -> 0 | BA85: ='Tornado Charts'!AK59 -> 0 | BB85: ='Tornado Charts'!AL59 -> 0 | BC85: ='Tornado Charts'!AM59 -> 0 | BD85: ='Tornado Charts'!AN59 -> 0
J86: =B85 -> 0 | K86: =IF(ISERROR(INDEX($B$115:$F$134,MATCH($J86,$B$115:$B$134,0),2)),$B$113,INDEX($B$115:$F$134,MATCH($J86,$B$115:$B$134,0),2)) -> 0 | L86: =IF(ISERROR(INDEX($B$115:$F$134,MATCH($J86,$B$115:$B$134,0),2)),$B$113,INDEX($B$115:$F$134,MATCH($J86,$B$115:$B$134,0),3)) -> 0 | M86: =IF(ISERROR(INDEX($B$115:$F$134,MATCH($J86,$B$115:$B$134,0),2)),$B$113,INDEX($B$115:$F$134,MATCH($J86,$B$115:$B$134,0),4)) -> 0 | N86: =IF(ISERROR(INDEX($B$115:$F$134,MATCH($J86,$B$115:$B$134,0),2)),$B$113,INDEX($B$115:$F$134,MATCH($J86,$B$115:$B$134,0),5)) -> 0 | R86: ='Tornado Charts'!B60 -> 0 | S86: ='Tornado Charts'!C60 -> 0 | T86: ='Tornado Charts'!D60 -> 0 | U86: ='Tornado Charts'!E60 -> 0 | V86: ='Tornado Charts'!F60 -> 0 | W86: ='Tornado Charts'!G60 -> 0 | X86: ='Tornado Charts'!H60 -> 0 | Z86: ='Tornado Charts'!J60 -> 0 | AA86: ='Tornado Charts'!K60 -> 0 | AB86: ='Tornado Charts'!L60 -> 0 | AC86: ='Tornado Charts'!M60 -> 0 | AD86: ='Tornado Charts'!N60 -> 0 | AE86: ='Tornado Charts'!O60 -> 0 | AF86: ='Tornado Charts'!P60 -> 0 | AH86: ='Tornado Charts'!R60 -> 0 | AI86: ='Tornado Charts'!S60 -> 0 | AJ86: ='Tornado Charts'!T60 -> 0 | AK86: ='Tornado Charts'!U60 -> 0 | AL86: ='Tornado Charts'!V60 -> 0 | AM86: ='Tornado Charts'!W60 -> 0 | AN86: ='Tornado Charts'!X60 -> 0 | AP86: ='Tornado Charts'!Z60 -> 0 | AQ86: ='Tornado Charts'!AA60 -> 0 | AR86: ='Tornado Charts'!AB60 -> 0 | AS86: ='Tornado Charts'!AC60 -> 0 | AT86: ='Tornado Charts'!AD60 -> 0 | AU86: ='Tornado Charts'!AE60 -> 0 | AV86: ='Tornado Charts'!AF60 -> 0 | AX86: ='Tornado Charts'!AH60 -> 0 | AY86: ='Tornado Charts'!AI60 -> 0 | AZ86: ='Tornado Charts'!AJ60 -> 0 | BA86: ='Tornado Charts'!AK60 -> 0 | BB86: ='Tornado Charts'!AL60 -> 0 | BC86: ='Tornado Charts'!AM60 -> 0 | BD86: ='Tornado Charts'!AN60 -> 0
R87: ='Tornado Charts'!B61 -> 0 | S87: ='Tornado Charts'!C61 -> 0 | T87: ='Tornado Charts'!D61 -> 0 | U87: ='Tornado Charts'!E61 -> 0 | V87: ='Tornado Charts'!F61 -> 0 | W87: ='Tornado Charts'!G61 -> 0 | X87: ='Tornado Charts'!H61 -> 0 | Z87: ='Tornado Charts'!J61 -> 0 | AA87: ='Tornado Charts'!K61 -> 0 | AB87: ='Tornado Charts'!L61 -> 0 | AC87: ='Tornado Charts'!M61 -> 0 | AD87: ='Tornado Charts'!N61 -> 0 | AE87: ='Tornado Charts'!O61 -> 0 | AF87: ='Tornado Charts'!P61 -> 0 | AH87: ='Tornado Charts'!R61 -> 0 | AI87: ='Tornado Charts'!S61 -> 0 | AJ87: ='Tornado Charts'!T61 -> 0 | AK87: ='Tornado Charts'!U61 -> 0 | AL87: ='Tornado Charts'!V61 -> 0 | AM87: ='Tornado Charts'!W61 -> 0 | AN87: ='Tornado Charts'!X61 -> 0 | AP87: ='Tornado Charts'!Z61 -> 0 | AQ87: ='Tornado Charts'!AA61 -> 0 | AR87: ='Tornado Charts'!AB61 -> 0 | AS87: ='Tornado Charts'!AC61 -> 0 | AT87: ='Tornado Charts'!AD61 -> 0 | AU87: ='Tornado Charts'!AE61 -> 0 | AV87: ='Tornado Charts'!AF61 -> 0 | AX87: ='Tornado Charts'!AH61 -> 0 | AY87: ='Tornado Charts'!AI61 -> 0 | AZ87: ='Tornado Charts'!AJ61 -> 0 | BA87: ='Tornado Charts'!AK61 -> 0 | BB87: ='Tornado Charts'!AL61 -> 0 | BC87: ='Tornado Charts'!AM61 -> 0 | BD87: ='Tornado Charts'!AN61 -> 0
B88: =CHOOSE($K$3,R61,Z61,AH61,AP61,AX61,R86,Z86,AH86,AP86,AX86,R111,Z111,AH111,AP111) -> 0 | C88: =CHOOSE($K$3,S61,AA61,AI61,AQ61,AY61,S86,AA86,AI86,AQ86,AY86,S111,AA111,AI111,AQ111) -> 0 | D88: =CHOOSE($K$3,T61,AB61,AJ61,AR61,AZ61,T86,AB86,AJ86,AR86,AZ86,T111,AB111,AJ111,AR111) -> 0 | E88: =CHOOSE($K$3,V61,AD61,AL61,AT61,BB61,V86,AD86,AL86,AT86,BB86,V111,AD111,AL111,AT111) -> 0 | F88: =CHOOSE($K$3,W61,AE61,AM61,AU61,BC61,W86,AE86,AM86,AU86,BC86,W111,AE111,AM111,AU111) -> 0 | R88: ='Tornado Charts'!B62 -> 0 | S88: ='Tornado Charts'!C62 -> 0 | T88: ='Tornado Charts'!D62 -> 0 | U88: ='Tornado Charts'!E62 -> 0 | V88: ='Tornado Charts'!F62 -> 0 | W88: ='Tornado Charts'!G62 -> 0 | X88: ='Tornado Charts'!H62 -> 0 | Z88: ='Tornado Charts'!J62 -> 0 | AA88: ='Tornado Charts'!K62 -> 0 | AB88: ='Tornado Charts'!L62 -> 0 | AC88: ='Tornado Charts'!M62 -> 0 | AD88: ='Tornado Charts'!N62 -> 0 | AE88: ='Tornado Charts'!O62 -> 0 | AF88: ='Tornado Charts'!P62 -> 0 | AH88: ='Tornado Charts'!R62 -> 0 | AI88: ='Tornado Charts'!S62 -> 0 | AJ88: ='Tornado Charts'!T62 -> 0 | AK88: ='Tornado Charts'!U62 -> 0 | AL88: ='Tornado Charts'!V62 -> 0 | AM88: ='Tornado Charts'!W62 -> 0 | AN88: ='Tornado Charts'!X62 -> 0 | AP88: ='Tornado Charts'!Z62 -> 0 | AQ88: ='Tornado Charts'!AA62 -> 0 | AR88: ='Tornado Charts'!AB62 -> 0 | AS88: ='Tornado Charts'!AC62 -> 0 | AT88: ='Tornado Charts'!AD62 -> 0 | AU88: ='Tornado Charts'!AE62 -> 0 | AV88: ='Tornado Charts'!AF62 -> 0 | AX88: ='Tornado Charts'!AH62 -> 0 | AY88: ='Tornado Charts'!AI62 -> 0 | AZ88: ='Tornado Charts'!AJ62 -> 0 | BA88: ='Tornado Charts'!AK62 -> 0 | BB88: ='Tornado Charts'!AL62 -> 0 | BC88: ='Tornado Charts'!AM62 -> 0 | BD88: ='Tornado Charts'!AN62 -> 0
J89: =B88 -> 0 | K89: =IF(ISERROR(INDEX($B$115:$F$134,MATCH($J89,$B$115:$B$134,0),2)),$B$113,INDEX($B$115:$F$134,MATCH($J89,$B$115:$B$134,0),2)) -> 0 | L89: =IF(ISERROR(INDEX($B$115:$F$134,MATCH($J89,$B$115:$B$134,0),2)),$B$113,INDEX($B$115:$F$134,MATCH($J89,$B$115:$B$134,0),3)) -> 0 | M89: =IF(ISERROR(INDEX($B$115:$F$134,MATCH($J89,$B$115:$B$134,0),2)),$B$113,INDEX($B$115:$F$134,MATCH($J89,$B$115:$B$134,0),4)) -> 0 | N89: =IF(ISERROR(INDEX($B$115:$F$134,MATCH($J89,$B$115:$B$134,0),2)),$B$113,INDEX($B$115:$F$134,MATCH($J89,$B$115:$B$134,0),5)) -> 0 | R89: ='Tornado Charts'!B63 -> 0 | S89: ='Tornado Charts'!C63 -> 0 | T89: ='Tornado Charts'!D63 -> 0 | U89: ='Tornado Charts'!E63 -> 0 | V89: ='Tornado Charts'!F63 -> 0 | W89: ='Tornado Charts'!G63 -> 0 | X89: ='Tornado Charts'!H63 -> 0 | Z89: ='Tornado Charts'!J63 -> 0 | AA89: ='Tornado Charts'!K63 -> 0 | AB89: ='Tornado Charts'!L63 -> 0 | AC89: ='Tornado Charts'!M63 -> 0 | AD89: ='Tornado Charts'!N63 -> 0 | AE89: ='Tornado Charts'!O63 -> 0 | AF89: ='Tornado Charts'!P63 -> 0 | AH89: ='Tornado Charts'!R63 -> 0 | AI89: ='Tornado Charts'!S63 -> 0 | AJ89: ='Tornado Charts'!T63 -> 0 | AK89: ='Tornado Charts'!U63 -> 0 | AL89: ='Tornado Charts'!V63 -> 0 | AM89: ='Tornado Charts'!W63 -> 0 | AN89: ='Tornado Charts'!X63 -> 0 | AP89: ='Tornado Charts'!Z63 -> 0 | AQ89: ='Tornado Charts'!AA63 -> 0 | AR89: ='Tornado Charts'!AB63 -> 0 | AS89: ='Tornado Charts'!AC63 -> 0 | AT89: ='Tornado Charts'!AD63 -> 0 | AU89: ='Tornado Charts'!AE63 -> 0 | AV89: ='Tornado Charts'!AF63 -> 0 | AX89: ='Tornado Charts'!AH63 -> 0 | AY89: ='Tornado Charts'!AI63 -> 0 | AZ89: ='Tornado Charts'!AJ63 -> 0 | BA89: ='Tornado Charts'!AK63 -> 0 | BB89: ='Tornado Charts'!AL63 -> 0 | BC89: ='Tornado Charts'!AM63 -> 0 | BD89: ='Tornado Charts'!AN63 -> 0
R90: ='Tornado Charts'!B64 -> 0 | S90: ='Tornado Charts'!C64 -> 0 | T90: ='Tornado Charts'!D64 -> 0 | U90: ='Tornado Charts'!E64 -> 0 | V90: ='Tornado Charts'!F64 -> 0 | W90: ='Tornado Charts'!G64 -> 0 | X90: ='Tornado Charts'!H64 -> 0 | Z90: ='Tornado Charts'!J64 -> 0 | AA90: ='Tornado Charts'!K64 -> 0 | AB90: ='Tornado Charts'!L64 -> 0 | AC90: ='Tornado Charts'!M64 -> 0 | AD90: ='Tornado Charts'!N64 -> 0 | AE90: ='Tornado Charts'!O64 -> 0 | AF90: ='Tornado Charts'!P64 -> 0 | AH90: ='Tornado Charts'!R64 -> 0 | AI90: ='Tornado Charts'!S64 -> 0 | AJ90: ='Tornado Charts'!T64 -> 0 | AK90: ='Tornado Charts'!U64 -> 0 | AL90: ='Tornado Charts'!V64 -> 0 | AM90: ='Tornado Charts'!W64 -> 0 | AN90: ='Tornado Charts'!X64 -> 0 | AP90: ='Tornado Charts'!Z64 -> 0 | AQ90: ='Tornado Charts'!AA64 -> 0 | AR90: ='Tornado Charts'!AB64 -> 0 | AS90: ='Tornado Charts'!AC64 -> 0 | AT90: ='Tornado Charts'!AD64 -> 0 | AU90: ='Tornado Charts'!AE64 -> 0 | AV90: ='Tornado Charts'!AF64 -> 0 | AX90: ='Tornado Charts'!AH64 -> 0 | AY90: ='Tornado Charts'!AI64 -> 0 | AZ90: ='Tornado Charts'!AJ64 -> 0 | BA90: ='Tornado Charts'!AK64 -> 0 | BB90: ='Tornado Charts'!AL64 -> 0 | BC90: ='Tornado Charts'!AM64 -> 0 | BD90: ='Tornado Charts'!AN64 -> 0
B91: =CHOOSE($K$3,R62,Z62,AH62,AP62,AX62,R87,Z87,AH87,AP87,AX87,R112,Z112,AH112,AP112) -> 0 | C91: =CHOOSE($K$3,S62,AA62,AI62,AQ62,AY62,S87,AA87,AI87,AQ87,AY87,S112,AA112,AI112,AQ112) -> 0 | D91: =CHOOSE($K$3,T62,AB62,AJ62,AR62,AZ62,T87,AB87,AJ87,AR87,AZ87,T112,AB112,AJ112,AR112) -> 0 | E91: =CHOOSE($K$3,V62,AD62,AL62,AT62,BB62,V87,AD87,AL87,AT87,BB87,V112,AD112,AL112,AT112) -> 0 | F91: =CHOOSE($K$3,W62,AE62,AM62,AU62,BC62,W87,AE87,AM87,AU87,BC87,W112,AE112,AM112,AU112) -> 0 | R91: ='Tornado Charts'!B65 -> 0 | S91: ='Tornado Charts'!C65 -> 0 | T91: ='Tornado Charts'!D65 -> 0 | U91: ='Tornado Charts'!E65 -> 0 | V91: ='Tornado Charts'!F65 -> 0 | W91: ='Tornado Charts'!G65 -> 0 | X91: ='Tornado Charts'!H65 -> 0 | Z91: ='Tornado Charts'!J65 -> 0 | AA91: ='Tornado Charts'!K65 -> 0 | AB91: ='Tornado Charts'!L65 -> 0 | AC91: ='Tornado Charts'!M65 -> 0 | AD91: ='Tornado Charts'!N65 -> 0 | AE91: ='Tornado Charts'!O65 -> 0 | AF91: ='Tornado Charts'!P65 -> 0 | AH91: ='Tornado Charts'!R65 -> 0 | AI91: ='Tornado Charts'!S65 -> 0 | AJ91: ='Tornado Charts'!T65 -> 0 | AK91: ='Tornado Charts'!U65 -> 0 | AL91: ='Tornado Charts'!V65 -> 0 | AM91: ='Tornado Charts'!W65 -> 0 | AN91: ='Tornado Charts'!X65 -> 0 | AP91: ='Tornado Charts'!Z65 -> 0 | AQ91: ='Tornado Charts'!AA65 -> 0 | AR91: ='Tornado Charts'!AB65 -> 0 | AS91: ='Tornado Charts'!AC65 -> 0 | AT91: ='Tornado Charts'!AD65 -> 0 | AU91: ='Tornado Charts'!AE65 -> 0 | AV91: ='Tornado Charts'!AF65 -> 0 | AX91: ='Tornado Charts'!AH65 -> 0 | AY91: ='Tornado Charts'!AI65 -> 0 | AZ91: ='Tornado Charts'!AJ65 -> 0 | BA91: ='Tornado Charts'!AK65 -> 0 | BB91: ='Tornado Charts'!AL65 -> 0 | BC91: ='Tornado Charts'!AM65 -> 0 | BD91: ='Tornado Charts'!AN65 -> 0
J92: =B91 -> 0 | K92: =IF(ISERROR(INDEX($B$115:$F$134,MATCH($J92,$B$115:$B$134,0),2)),$B$113,INDEX($B$115:$F$134,MATCH($J92,$B$115:$B$134,0),2)) -> 0 | L92: =IF(ISERROR(INDEX($B$115:$F$134,MATCH($J92,$B$115:$B$134,0),2)),$B$113,INDEX($B$115:$F$134,MATCH($J92,$B$115:$B$134,0),3)) -> 0 | M92: =IF(ISERROR(INDEX($B$115:$F$134,MATCH($J92,$B$115:$B$134,0),2)),$B$113,INDEX($B$115:$F$134,MATCH($J92,$B$115:$B$134,0),4)) -> 0 | N92: =IF(ISERROR(INDEX($B$115:$F$134,MATCH($J92,$B$115:$B$134,0),2)),$B$113,INDEX($B$115:$F$134,MATCH($J92,$B$115:$B$134,0),5)) -> 0 | R92: ='Tornado Charts'!B66 -> 0 | S92: ='Tornado Charts'!C66 -> 0 | T92: ='Tornado Charts'!D66 -> 0 | U92: ='Tornado Charts'!E66 -> 0 | V92: ='Tornado Charts'!F66 -> 0 | W92: ='Tornado Charts'!G66 -> 0 | X92: ='Tornado Charts'!H66 -> 0 | Z92: ='Tornado Charts'!J66 -> 0 | AA92: ='Tornado Charts'!K66 -> 0 | AB92: ='Tornado Charts'!L66 -> 0 | AC92: ='Tornado Charts'!M66 -> 0 | AD92: ='Tornado Charts'!N66 -> 0 | AE92: ='Tornado Charts'!O66 -> 0 | AF92: ='Tornado Charts'!P66 -> 0 | AH92: ='Tornado Charts'!R66 -> 0 | AI92: ='Tornado Charts'!S66 -> 0 | AJ92: ='Tornado Charts'!T66 -> 0 | AK92: ='Tornado Charts'!U66 -> 0 | AL92: ='Tornado Charts'!V66 -> 0 | AM92: ='Tornado Charts'!W66 -> 0 | AN92: ='Tornado Charts'!X66 -> 0 | AP92: ='Tornado Charts'!Z66 -> 0 | AQ92: ='Tornado Charts'!AA66 -> 0 | AR92: ='Tornado Charts'!AB66 -> 0 | AS92: ='Tornado Charts'!AC66 -> 0 | AT92: ='Tornado Charts'!AD66 -> 0 | AU92: ='Tornado Charts'!AE66 -> 0 | AV92: ='Tornado Charts'!AF66 -> 0 | AX92: ='Tornado Charts'!AH66 -> 0 | AY92: ='Tornado Charts'!AI66 -> 0 | AZ92: ='Tornado Charts'!AJ66 -> 0 | BA92: ='Tornado Charts'!AK66 -> 0 | BB92: ='Tornado Charts'!AL66 -> 0 | BC92: ='Tornado Charts'!AM66 -> 0 | BD92: ='Tornado Charts'!AN66 -> 0
B94: =CHOOSE($K$3,R63,Z63,AH63,AP63,AX63,R88,Z88,AH88,AP88,AX88,R113,Z113,AH113,AP113) -> 0 | C94: =CHOOSE($K$3,S63,AA63,AI63,AQ63,AY63,S88,AA88,AI88,AQ88,AY88,S113,AA113,AI113,AQ113) -> 0 | D94: =CHOOSE($K$3,T63,AB63,AJ63,AR63,AZ63,T88,AB88,AJ88,AR88,AZ88,T113,AB113,AJ113,AR113) -> 0 | E94: =CHOOSE($K$3,V63,AD63,AL63,AT63,BB63,V88,AD88,AL88,AT88,BB88,V113,AD113,AL113,AT113) -> 0 | F94: =CHOOSE($K$3,W63,AE63,AM63,AU63,BC63,W88,AE88,AM88,AU88,BC88,W113,AE113,AM113,AU113) -> 0 | S94: Position 11 | AA94: Position 12 | AI94: Position 13 | AQ94: Position 14
J95: =B94 -> 0 | K95: =IF(ISERROR(INDEX($B$115:$F$134,MATCH($J95,$B$115:$B$134,0),2)),$B$113,INDEX($B$115:$F$134,MATCH($J95,$B$115:$B$134,0),2)) -> 0 | L95: =IF(ISERROR(INDEX($B$115:$F$134,MATCH($J95,$B$115:$B$134,0),2)),$B$113,INDEX($B$115:$F$134,MATCH($J95,$B$115:$B$134,0),3)) -> 0 | M95: =IF(ISERROR(INDEX($B$115:$F$134,MATCH($J95,$B$115:$B$134,0),2)),$B$113,INDEX($B$115:$F$134,MATCH($J95,$B$115:$B$134,0),4)) -> 0 | N95: =IF(ISERROR(INDEX($B$115:$F$134,MATCH($J95,$B$115:$B$134,0),2)),$B$113,INDEX($B$115:$F$134,MATCH($J95,$B$115:$B$134,0),5)) -> 0 | R95: ='Tornado Charts'!B114 ->  | Z95: ='Tornado Charts'!J114 ->  | AH95: ='Tornado Charts'!R114 ->  | AP95: ='Tornado Charts'!Z114 -> 
R96: ='Tornado Charts'!B115 -> 0 | S96: Project NPV, $MM | V96: Input | Z96: ='Tornado Charts'!J115 -> 0 | AA96: Project NPV, $MM | AD96: Input | AH96: ='Tornado Charts'!R115 -> 0 | AI96: Project NPV, $MM | AL96: Input | AP96: ='Tornado Charts'!Z115 -> 0 | AQ96: Project NPV, $MM | AT96: Input
B97: =CHOOSE($K$3,R64,Z64,AH64,AP64,AX64,R89,Z89,AH89,AP89,AX89,R114,Z114,AH114,AP114) -> 0 | C97: =CHOOSE($K$3,S64,AA64,AI64,AQ64,AY64,S89,AA89,AI89,AQ89,AY89,S114,AA114,AI114,AQ114) -> 0 | D97: =CHOOSE($K$3,T64,AB64,AJ64,AR64,AZ64,T89,AB89,AJ89,AR89,AZ89,T114,AB114,AJ114,AR114) -> 0 | E97: =CHOOSE($K$3,V64,AD64,AL64,AT64,BB64,V89,AD89,AL89,AT89,BB89,V114,AD114,AL114,AT114) -> 0 | F97: =CHOOSE($K$3,W64,AE64,AM64,AU64,BC64,W89,AE89,AM89,AU89,BC89,W114,AE114,AM114,AU114) -> 0 | R97: Variable | S97: Downside | T97: Upside | U97: Range | V97: Downside | W97: Upside | X97: Base Case | Z97: Variable | AA97: Downside | AB97: Upside | AC97: Range | AD97: Downside | AE97: Upside | AF97: Base Case | AH97: Variable | AI97: Downside | AJ97: Upside | AK97: Range | AL97: Downside | AM97: Upside | AN97: Base Case | AP97: Variable | AQ97: Downside | AR97: Upside | AS97: Range | AT97: Downside | AU97: Upside | AV97: Base Case
J98: =B97 -> 0 | K98: =IF(ISERROR(INDEX($B$115:$F$134,MATCH($J98,$B$115:$B$134,0),2)),$B$113,INDEX($B$115:$F$134,MATCH($J98,$B$115:$B$134,0),2)) -> 0 | L98: =IF(ISERROR(INDEX($B$115:$F$134,MATCH($J98,$B$115:$B$134,0),2)),$B$113,INDEX($B$115:$F$134,MATCH($J98,$B$115:$B$134,0),3)) -> 0 | M98: =IF(ISERROR(INDEX($B$115:$F$134,MATCH($J98,$B$115:$B$134,0),2)),$B$113,INDEX($B$115:$F$134,MATCH($J98,$B$115:$B$134,0),4)) -> 0 | N98: =IF(ISERROR(INDEX($B$115:$F$134,MATCH($J98,$B$115:$B$134,0),2)),$B$113,INDEX($B$115:$F$134,MATCH($J98,$B$115:$B$134,0),5)) -> 0 | R98: ='Tornado Charts'!B117 -> 0 | S98: ='Tornado Charts'!C117 -> 0 | T98: ='Tornado Charts'!D117 -> 0 | U98: ='Tornado Charts'!E117 -> 0 | V98: ='Tornado Charts'!F117 -> 0 | W98: ='Tornado Charts'!G117 -> 0 | X98: ='Tornado Charts'!H117 -> 0 | Z98: ='Tornado Charts'!J117 -> 0 | AA98: ='Tornado Charts'!K117 -> 0 | AB98: ='Tornado Charts'!L117 -> 0 | AC98: ='Tornado Charts'!M117 -> 0 | AD98: ='Tornado Charts'!N117 -> 0 | AE98: ='Tornado Charts'!O117 -> 0 | AF98: ='Tornado Charts'!P117 -> 0 | AH98: ='Tornado Charts'!R117 -> 0 | AI98: ='Tornado Charts'!S117 -> 0 | AJ98: ='Tornado Charts'!T117 -> 0 | AK98: ='Tornado Charts'!U117 -> 0 | AL98: ='Tornado Charts'!V117 -> 0 | AM98: ='Tornado Charts'!W117 -> 0 | AN98: ='Tornado Charts'!X117 -> 0 | AP98: ='Tornado Charts'!Z117 -> 0 | AQ98: ='Tornado Charts'!AA117 -> 0 | AR98: ='Tornado Charts'!AB117 -> 0 | AS98: ='Tornado Charts'!AC117 -> 0 | AT98: ='Tornado Charts'!AD117 -> 0 | AU98: ='Tornado Charts'!AE117 -> 0 | AV98: ='Tornado Charts'!AF117 -> 0
R99: ='Tornado Charts'!B118 -> 0 | S99: ='Tornado Charts'!C118 -> 0 | T99: ='Tornado Charts'!D118 -> 0 | U99: ='Tornado Charts'!E118 -> 0 | V99: ='Tornado Charts'!F118 -> 0 | W99: ='Tornado Charts'!G118 -> 0 | X99: ='Tornado Charts'!H118 -> 0 | Z99: ='Tornado Charts'!J118 -> 0 | AA99: ='Tornado Charts'!K118 -> 0 | AB99: ='Tornado Charts'!L118 -> 0 | AC99: ='Tornado Charts'!M118 -> 0 | AD99: ='Tornado Charts'!N118 -> 0 | AE99: ='Tornado Charts'!O118 -> 0 | AF99: ='Tornado Charts'!P118 -> 0 | AH99: ='Tornado Charts'!R118 -> 0 | AI99: ='Tornado Charts'!S118 -> 0 | AJ99: ='Tornado Charts'!T118 -> 0 | AK99: ='Tornado Charts'!U118 -> 0 | AL99: ='Tornado Charts'!V118 -> 0 | AM99: ='Tornado Charts'!W118 -> 0 | AN99: ='Tornado Charts'!X118 -> 0 | AP99: ='Tornado Charts'!Z118 -> 0 | AQ99: ='Tornado Charts'!AA118 -> 0 | AR99: ='Tornado Charts'!AB118 -> 0 | AS99: ='Tornado Charts'!AC118 -> 0 | AT99: ='Tornado Charts'!AD118 -> 0 | AU99: ='Tornado Charts'!AE118 -> 0 | AV99: ='Tornado Charts'!AF118 -> 0
B100: =CHOOSE($K$3,R65,Z65,AH65,AP65,AX65,R90,Z90,AH90,AP90,AX90,R115,Z115,AH115,AP115) -> 0 | C100: =CHOOSE($K$3,S65,AA65,AI65,AQ65,AY65,S90,AA90,AI90,AQ90,AY90,S115,AA115,AI115,AQ115) -> 0 | D100: =CHOOSE($K$3,T65,AB65,AJ65,AR65,AZ65,T90,AB90,AJ90,AR90,AZ90,T115,AB115,AJ115,AR115) -> 0 | E100: =CHOOSE($K$3,V65,AD65,AL65,AT65,BB65,V90,AD90,AL90,AT90,BB90,V115,AD115,AL115,AT115) -> 0 | F100: =CHOOSE($K$3,W65,AE65,AM65,AU65,BC65,W90,AE90,AM90,AU90,BC90,W115,AE115,AM115,AU115) -> 0 | R100: ='Tornado Charts'!B119 -> 0 | S100: ='Tornado Charts'!C119 -> 0 | T100: ='Tornado Charts'!D119 -> 0 | U100: ='Tornado Charts'!E119 -> 0 | V100: ='Tornado Charts'!F119 -> 0 | W100: ='Tornado Charts'!G119 -> 0 | X100: ='Tornado Charts'!H119 -> 0 | Z100: ='Tornado Charts'!J119 -> 0 | AA100: ='Tornado Charts'!K119 -> 0 | AB100: ='Tornado Charts'!L119 -> 0 | AC100: ='Tornado Charts'!M119 -> 0 | AD100: ='Tornado Charts'!N119 -> 0 | AE100: ='Tornado Charts'!O119 -> 0 | AF100: ='Tornado Charts'!P119 -> 0 | AH100: ='Tornado Charts'!R119 -> 0 | AI100: ='Tornado Charts'!S119 -> 0 | AJ100: ='Tornado Charts'!T119 -> 0 | AK100: ='Tornado Charts'!U119 -> 0 | AL100: ='Tornado Charts'!V119 -> 0 | AM100: ='Tornado Charts'!W119 -> 0 | AN100: ='Tornado Charts'!X119 -> 0 | AP100: ='Tornado Charts'!Z119 -> 0 | AQ100: ='Tornado Charts'!AA119 -> 0 | AR100: ='Tornado Charts'!AB119 -> 0 | AS100: ='Tornado Charts'!AC119 -> 0 | AT100: ='Tornado Charts'!AD119 -> 0 | AU100: ='Tornado Charts'!AE119 -> 0 | AV100: ='Tornado Charts'!AF119 -> 0
J101: =B100 -> 0 | K101: =IF(ISERROR(INDEX($B$115:$F$134,MATCH($J101,$B$115:$B$134,0),2)),$B$113,INDEX($B$115:$F$134,MATCH($J101,$B$115:$B$134,0),2)) -> 0 | L101: =IF(ISERROR(INDEX($B$115:$F$134,MATCH($J101,$B$115:$B$134,0),2)),$B$113,INDEX($B$115:$F$134,MATCH($J101,$B$115:$B$134,0),3)) -> 0 | M101: =IF(ISERROR(INDEX($B$115:$F$134,MATCH($J101,$B$115:$B$134,0),2)),$B$113,INDEX($B$115:$F$134,MATCH($J101,$B$115:$B$134,0),4)) -> 0 | N101: =IF(ISERROR(INDEX($B$115:$F$134,MATCH($J101,$B$115:$B$134,0),2)),$B$113,INDEX($B$115:$F$134,MATCH($J101,$B$115:$B$134,0),5)) -> 0 | R101: ='Tornado Charts'!B120 -> 0 | S101: ='Tornado Charts'!C120 -> 0 | T101: ='Tornado Charts'!D120 -> 0 | U101: ='Tornado Charts'!E120 -> 0 | V101: ='Tornado Charts'!F120 -> 0 | W101: ='Tornado Charts'!G120 -> 0 | X101: ='Tornado Charts'!H120 -> 0 | Z101: ='Tornado Charts'!J120 -> 0 | AA101: ='Tornado Charts'!K120 -> 0 | AB101: ='Tornado Charts'!L120 -> 0 | AC101: ='Tornado Charts'!M120 -> 0 | AD101: ='Tornado Charts'!N120 -> 0 | AE101: ='Tornado Charts'!O120 -> 0 | AF101: ='Tornado Charts'!P120 -> 0 | AH101: ='Tornado Charts'!R120 -> 0 | AI101: ='Tornado Charts'!S120 -> 0 | AJ101: ='Tornado Charts'!T120 -> 0 | AK101: ='Tornado Charts'!U120 -> 0 | AL101: ='Tornado Charts'!V120 -> 0 | AM101: ='Tornado Charts'!W120 -> 0 | AN101: ='Tornado Charts'!X120 -> 0 | AP101: ='Tornado Charts'!Z120 -> 0 | AQ101: ='Tornado Charts'!AA120 -> 0 | AR101: ='Tornado Charts'!AB120 -> 0 | AS101: ='Tornado Charts'!AC120 -> 0 | AT101: ='Tornado Charts'!AD120 -> 0 | AU101: ='Tornado Charts'!AE120 -> 0 | AV101: ='Tornado Charts'!AF120 -> 0
R102: ='Tornado Charts'!B121 -> 0 | S102: ='Tornado Charts'!C121 -> 0 | T102: ='Tornado Charts'!D121 -> 0 | U102: ='Tornado Charts'!E121 -> 0 | V102: ='Tornado Charts'!F121 -> 0 | W102: ='Tornado Charts'!G121 -> 0 | X102: ='Tornado Charts'!H121 -> 0 | Z102: ='Tornado Charts'!J121 -> 0 | AA102: ='Tornado Charts'!K121 -> 0 | AB102: ='Tornado Charts'!L121 -> 0 | AC102: ='Tornado Charts'!M121 -> 0 | AD102: ='Tornado Charts'!N121 -> 0 | AE102: ='Tornado Charts'!O121 -> 0 | AF102: ='Tornado Charts'!P121 -> 0 | AH102: ='Tornado Charts'!R121 -> 0 | AI102: ='Tornado Charts'!S121 -> 0 | AJ102: ='Tornado Charts'!T121 -> 0 | AK102: ='Tornado Charts'!U121 -> 0 | AL102: ='Tornado Charts'!V121 -> 0 | AM102: ='Tornado Charts'!W121 -> 0 | AN102: ='Tornado Charts'!X121 -> 0 | AP102: ='Tornado Charts'!Z121 -> 0 | AQ102: ='Tornado Charts'!AA121 -> 0 | AR102: ='Tornado Charts'!AB121 -> 0 | AS102: ='Tornado Charts'!AC121 -> 0 | AT102: ='Tornado Charts'!AD121 -> 0 | AU102: ='Tornado Charts'!AE121 -> 0 | AV102: ='Tornado Charts'!AF121 -> 0
B103: =CHOOSE($K$3,R66,Z66,AH66,AP66,AX66,R91,Z91,AH91,AP91,AX91,R116,Z116,AH116,AP116) -> 0 | C103: =CHOOSE($K$3,S66,AA66,AI66,AQ66,AY66,S91,AA91,AI91,AQ91,AY91,S116,AA116,AI116,AQ116) -> 0 | D103: =CHOOSE($K$3,T66,AB66,AJ66,AR66,AZ66,T91,AB91,AJ91,AR91,AZ91,T116,AB116,AJ116,AR116) -> 0 | E103: =CHOOSE($K$3,V66,AD66,AL66,AT66,BB66,V91,AD91,AL91,AT91,BB91,V116,AD116,AL116,AT116) -> 0 | F103: =CHOOSE($K$3,W66,AE66,AM66,AU66,BC66,W91,AE91,AM91,AU91,BC91,W116,AE116,AM116,AU116) -> 0 | R103: ='Tornado Charts'!B122 -> 0 | S103: ='Tornado Charts'!C122 -> 0 | T103: ='Tornado Charts'!D122 -> 0 | U103: ='Tornado Charts'!E122 -> 0 | V103: ='Tornado Charts'!F122 -> 0 | W103: ='Tornado Charts'!G122 -> 0 | X103: ='Tornado Charts'!H122 -> 0 | Z103: ='Tornado Charts'!J122 -> 0 | AA103: ='Tornado Charts'!K122 -> 0 | AB103: ='Tornado Charts'!L122 -> 0 | AC103: ='Tornado Charts'!M122 -> 0 | AD103: ='Tornado Charts'!N122 -> 0 | AE103: ='Tornado Charts'!O122 -> 0 | AF103: ='Tornado Charts'!P122 -> 0 | AH103: ='Tornado Charts'!R122 -> 0 | AI103: ='Tornado Charts'!S122 -> 0 | AJ103: ='Tornado Charts'!T122 -> 0 | AK103: ='Tornado Charts'!U122 -> 0 | AL103: ='Tornado Charts'!V122 -> 0 | AM103: ='Tornado Charts'!W122 -> 0 | AN103: ='Tornado Charts'!X122 -> 0 | AP103: ='Tornado Charts'!Z122 -> 0 | AQ103: ='Tornado Charts'!AA122 -> 0 | AR103: ='Tornado Charts'!AB122 -> 0 | AS103: ='Tornado Charts'!AC122 -> 0 | AT103: ='Tornado Charts'!AD122 -> 0 | AU103: ='Tornado Charts'!AE122 -> 0 | AV103: ='Tornado Charts'!AF122 -> 0
J104: =B103 -> 0 | K104: =IF(ISERROR(INDEX($B$115:$F$134,MATCH($J104,$B$115:$B$134,0),2)),$B$113,INDEX($B$115:$F$134,MATCH($J104,$B$115:$B$134,0),2)) -> 0 | L104: =IF(ISERROR(INDEX($B$115:$F$134,MATCH($J104,$B$115:$B$134,0),2)),$B$113,INDEX($B$115:$F$134,MATCH($J104,$B$115:$B$134,0),3)) -> 0 | M104: =IF(ISERROR(INDEX($B$115:$F$134,MATCH($J104,$B$115:$B$134,0),2)),$B$113,INDEX($B$115:$F$134,MATCH($J104,$B$115:$B$134,0),4)) -> 0 | N104: =IF(ISERROR(INDEX($B$115:$F$134,MATCH($J104,$B$115:$B$134,0),2)),$B$113,INDEX($B$115:$F$134,MATCH($J104,$B$115:$B$134,0),5)) -> 0 | R104: ='Tornado Charts'!B123 -> 0 | S104: ='Tornado Charts'!C123 -> 0 | T104: ='Tornado Charts'!D123 -> 0 | U104: ='Tornado Charts'!E123 -> 0 | V104: ='Tornado Charts'!F123 -> 0 | W104: ='Tornado Charts'!G123 -> 0 | X104: ='Tornado Charts'!H123 -> 0 | Z104: ='Tornado Charts'!J123 -> 0 | AA104: ='Tornado Charts'!K123 -> 0 | AB104: ='Tornado Charts'!L123 -> 0 | AC104: ='Tornado Charts'!M123 -> 0 | AD104: ='Tornado Charts'!N123 -> 0 | AE104: ='Tornado Charts'!O123 -> 0 | AF104: ='Tornado Charts'!P123 -> 0 | AH104: ='Tornado Charts'!R123 -> 0 | AI104: ='Tornado Charts'!S123 -> 0 | AJ104: ='Tornado Charts'!T123 -> 0 | AK104: ='Tornado Charts'!U123 -> 0 | AL104: ='Tornado Charts'!V123 -> 0 | AM104: ='Tornado Charts'!W123 -> 0 | AN104: ='Tornado Charts'!X123 -> 0 | AP104: ='Tornado Charts'!Z123 -> 0 | AQ104: ='Tornado Charts'!AA123 -> 0 | AR104: ='Tornado Charts'!AB123 -> 0 | AS104: ='Tornado Charts'!AC123 -> 0 | AT104: ='Tornado Charts'!AD123 -> 0 | AU104: ='Tornado Charts'!AE123 -> 0 | AV104: ='Tornado Charts'!AF123 -> 0
R105: ='Tornado Charts'!B124 -> 0 | S105: ='Tornado Charts'!C124 -> 0 | T105: ='Tornado Charts'!D124 -> 0 | U105: ='Tornado Charts'!E124 -> 0 | V105: ='Tornado Charts'!F124 -> 0 | W105: ='Tornado Charts'!G124 -> 0 | X105: ='Tornado Charts'!H124 -> 0 | Z105: ='Tornado Charts'!J124 -> 0 | AA105: ='Tornado Charts'!K124 -> 0 | AB105: ='Tornado Charts'!L124 -> 0 | AC105: ='Tornado Charts'!M124 -> 0 | AD105: ='Tornado Charts'!N124 -> 0 | AE105: ='Tornado Charts'!O124 -> 0 | AF105: ='Tornado Charts'!P124 -> 0 | AH105: ='Tornado Charts'!R124 -> 0 | AI105: ='Tornado Charts'!S124 -> 0 | AJ105: ='Tornado Charts'!T124 -> 0 | AK105: ='Tornado Charts'!U124 -> 0 | AL105: ='Tornado Charts'!V124 -> 0 | AM105: ='Tornado Charts'!W124 -> 0 | AN105: ='Tornado Charts'!X124 -> 0 | AP105: ='Tornado Charts'!Z124 -> 0 | AQ105: ='Tornado Charts'!AA124 -> 0 | AR105: ='Tornado Charts'!AB124 -> 0 | AS105: ='Tornado Charts'!AC124 -> 0 | AT105: ='Tornado Charts'!AD124 -> 0 | AU105: ='Tornado Charts'!AE124 -> 0 | AV105: ='Tornado Charts'!AF124 -> 0
B106: =CHOOSE($K$3,R67,Z67,AH67,AP67,AX67,R92,Z92,AH92,AP92,AX92,R117,Z117,AH117,AP117) -> 0 | C106: =CHOOSE($K$3,S67,AA67,AI67,AQ67,AY67,S92,AA92,AI92,AQ92,AY92,S117,AA117,AI117,AQ117) -> 0 | D106: =CHOOSE($K$3,T67,AB67,AJ67,AR67,AZ67,T92,AB92,AJ92,AR92,AZ92,T117,AB117,AJ117,AR117) -> 0 | E106: =CHOOSE($K$3,V67,AD67,AL67,AT67,BB67,V92,AD92,AL92,AT92,BB92,V117,AD117,AL117,AT117) -> 0 | F106: =CHOOSE($K$3,W67,AE67,AM67,AU67,BC67,W92,AE92,AM92,AU92,BC92,W117,AE117,AM117,AU117) -> 0 | R106: ='Tornado Charts'!B125 -> 0 | S106: ='Tornado Charts'!C125 -> 0 | T106: ='Tornado Charts'!D125 -> 0 | U106: ='Tornado Charts'!E125 -> 0 | V106: ='Tornado Charts'!F125 -> 0 | W106: ='Tornado Charts'!G125 -> 0 | X106: ='Tornado Charts'!H125 -> 0 | Z106: ='Tornado Charts'!J125 -> 0 | AA106: ='Tornado Charts'!K125 -> 0 | AB106: ='Tornado Charts'!L125 -> 0 | AC106: ='Tornado Charts'!M125 -> 0 | AD106: ='Tornado Charts'!N125 -> 0 | AE106: ='Tornado Charts'!O125 -> 0 | AF106: ='Tornado Charts'!P125 -> 0 | AH106: ='Tornado Charts'!R125 -> 0 | AI106: ='Tornado Charts'!S125 -> 0 | AJ106: ='Tornado Charts'!T125 -> 0 | AK106: ='Tornado Charts'!U125 -> 0 | AL106: ='Tornado Charts'!V125 -> 0 | AM106: ='Tornado Charts'!W125 -> 0 | AN106: ='Tornado Charts'!X125 -> 0 | AP106: ='Tornado Charts'!Z125 -> 0 | AQ106: ='Tornado Charts'!AA125 -> 0 | AR106: ='Tornado Charts'!AB125 -> 0 | AS106: ='Tornado Charts'!AC125 -> 0 | AT106: ='Tornado Charts'!AD125 -> 0 | AU106: ='Tornado Charts'!AE125 -> 0 | AV106: ='Tornado Charts'!AF125 -> 0
J107: =B106 -> 0 | K107: =IF(ISERROR(INDEX($B$115:$F$134,MATCH($J107,$B$115:$B$134,0),2)),$B$113,INDEX($B$115:$F$134,MATCH($J107,$B$115:$B$134,0),2)) -> 0 | L107: =IF(ISERROR(INDEX($B$115:$F$134,MATCH($J107,$B$115:$B$134,0),2)),$B$113,INDEX($B$115:$F$134,MATCH($J107,$B$115:$B$134,0),3)) -> 0 | M107: =IF(ISERROR(INDEX($B$115:$F$134,MATCH($J107,$B$115:$B$134,0),2)),$B$113,INDEX($B$115:$F$134,MATCH($J107,$B$115:$B$134,0),4)) -> 0 | N107: =IF(ISERROR(INDEX($B$115:$F$134,MATCH($J107,$B$115:$B$134,0),2)),$B$113,INDEX($B$115:$F$134,MATCH($J107,$B$115:$B$134,0),5)) -> 0 | R107: ='Tornado Charts'!B126 -> 0 | S107: ='Tornado Charts'!C126 -> 0 | T107: ='Tornado Charts'!D126 -> 0 | U107: ='Tornado Charts'!E126 -> 0 | V107: ='Tornado Charts'!F126 -> 0 | W107: ='Tornado Charts'!G126 -> 0 | X107: ='Tornado Charts'!H126 -> 0 | Z107: ='Tornado Charts'!J126 -> 0 | AA107: ='Tornado Charts'!K126 -> 0 | AB107: ='Tornado Charts'!L126 -> 0 | AC107: ='Tornado Charts'!M126 -> 0 | AD107: ='Tornado Charts'!N126 -> 0 | AE107: ='Tornado Charts'!O126 -> 0 | AF107: ='Tornado Charts'!P126 -> 0 | AH107: ='Tornado Charts'!R126 -> 0 | AI107: ='Tornado Charts'!S126 -> 0 | AJ107: ='Tornado Charts'!T126 -> 0 | AK107: ='Tornado Charts'!U126 -> 0 | AL107: ='Tornado Charts'!V126 -> 0 | AM107: ='Tornado Charts'!W126 -> 0 | AN107: ='Tornado Charts'!X126 -> 0 | AP107: ='Tornado Charts'!Z126 -> 0 | AQ107: ='Tornado Charts'!AA126 -> 0 | AR107: ='Tornado Charts'!AB126 -> 0 | AS107: ='Tornado Charts'!AC126 -> 0 | AT107: ='Tornado Charts'!AD126 -> 0 | AU107: ='Tornado Charts'!AE126 -> 0 | AV107: ='Tornado Charts'!AF126 -> 0
R108: ='Tornado Charts'!B127 -> 0 | S108: ='Tornado Charts'!C127 -> 0 | T108: ='Tornado Charts'!D127 -> 0 | U108: ='Tornado Charts'!E127 -> 0 | V108: ='Tornado Charts'!F127 -> 0 | W108: ='Tornado Charts'!G127 -> 0 | X108: ='Tornado Charts'!H127 -> 0 | Z108: ='Tornado Charts'!J127 -> 0 | AA108: ='Tornado Charts'!K127 -> 0 | AB108: ='Tornado Charts'!L127 -> 0 | AC108: ='Tornado Charts'!M127 -> 0 | AD108: ='Tornado Charts'!N127 -> 0 | AE108: ='Tornado Charts'!O127 -> 0 | AF108: ='Tornado Charts'!P127 -> 0 | AH108: ='Tornado Charts'!R127 -> 0 | AI108: ='Tornado Charts'!S127 -> 0 | AJ108: ='Tornado Charts'!T127 -> 0 | AK108: ='Tornado Charts'!U127 -> 0 | AL108: ='Tornado Charts'!V127 -> 0 | AM108: ='Tornado Charts'!W127 -> 0 | AN108: ='Tornado Charts'!X127 -> 0 | AP108: ='Tornado Charts'!Z127 -> 0 | AQ108: ='Tornado Charts'!AA127 -> 0 | AR108: ='Tornado Charts'!AB127 -> 0 | AS108: ='Tornado Charts'!AC127 -> 0 | AT108: ='Tornado Charts'!AD127 -> 0 | AU108: ='Tornado Charts'!AE127 -> 0 | AV108: ='Tornado Charts'!AF127 -> 0
R109: ='Tornado Charts'!B128 -> 0 | S109: ='Tornado Charts'!C128 -> 0 | T109: ='Tornado Charts'!D128 -> 0 | U109: ='Tornado Charts'!E128 -> 0 | V109: ='Tornado Charts'!F128 -> 0 | W109: ='Tornado Charts'!G128 -> 0 | X109: ='Tornado Charts'!H128 -> 0 | Z109: ='Tornado Charts'!J128 -> 0 | AA109: ='Tornado Charts'!K128 -> 0 | AB109: ='Tornado Charts'!L128 -> 0 | AC109: ='Tornado Charts'!M128 -> 0 | AD109: ='Tornado Charts'!N128 -> 0 | AE109: ='Tornado Charts'!O128 -> 0 | AF109: ='Tornado Charts'!P128 -> 0 | AH109: ='Tornado Charts'!R128 -> 0 | AI109: ='Tornado Charts'!S128 -> 0 | AJ109: ='Tornado Charts'!T128 -> 0 | AK109: ='Tornado Charts'!U128 -> 0 | AL109: ='Tornado Charts'!V128 -> 0 | AM109: ='Tornado Charts'!W128 -> 0 | AN109: ='Tornado Charts'!X128 -> 0 | AP109: ='Tornado Charts'!Z128 -> 0 | AQ109: ='Tornado Charts'!AA128 -> 0 | AR109: ='Tornado Charts'!AB128 -> 0 | AS109: ='Tornado Charts'!AC128 -> 0 | AT109: ='Tornado Charts'!AD128 -> 0 | AU109: ='Tornado Charts'!AE128 -> 0 | AV109: ='Tornado Charts'!AF128 -> 0
R110: ='Tornado Charts'!B129 -> 0 | S110: ='Tornado Charts'!C129 -> 0 | T110: ='Tornado Charts'!D129 -> 0 | U110: ='Tornado Charts'!E129 -> 0 | V110: ='Tornado Charts'!F129 -> 0 | W110: ='Tornado Charts'!G129 -> 0 | X110: ='Tornado Charts'!H129 -> 0 | Z110: ='Tornado Charts'!J129 -> 0 | AA110: ='Tornado Charts'!K129 -> 0 | AB110: ='Tornado Charts'!L129 -> 0 | AC110: ='Tornado Charts'!M129 -> 0 | AD110: ='Tornado Charts'!N129 -> 0 | AE110: ='Tornado Charts'!O129 -> 0 | AF110: ='Tornado Charts'!P129 -> 0 | AH110: ='Tornado Charts'!R129 -> 0 | AI110: ='Tornado Charts'!S129 -> 0 | AJ110: ='Tornado Charts'!T129 -> 0 | AK110: ='Tornado Charts'!U129 -> 0 | AL110: ='Tornado Charts'!V129 -> 0 | AM110: ='Tornado Charts'!W129 -> 0 | AN110: ='Tornado Charts'!X129 -> 0 | AP110: ='Tornado Charts'!Z129 -> 0 | AQ110: ='Tornado Charts'!AA129 -> 0 | AR110: ='Tornado Charts'!AB129 -> 0 | AS110: ='Tornado Charts'!AC129 -> 0 | AT110: ='Tornado Charts'!AD129 -> 0 | AU110: ='Tornado Charts'!AE129 -> 0 | AV110: ='Tornado Charts'!AF129 -> 0
B111: Selected Tornado Data 2 | R111: ='Tornado Charts'!B130 -> 0 | S111: ='Tornado Charts'!C130 -> 0 | T111: ='Tornado Charts'!D130 -> 0 | U111: ='Tornado Charts'!E130 -> 0 | V111: ='Tornado Charts'!F130 -> 0 | W111: ='Tornado Charts'!G130 -> 0 | X111: ='Tornado Charts'!H130 -> 0 | Z111: ='Tornado Charts'!J130 -> 0 | AA111: ='Tornado Charts'!K130 -> 0 | AB111: ='Tornado Charts'!L130 -> 0 | AC111: ='Tornado Charts'!M130 -> 0 | AD111: ='Tornado Charts'!N130 -> 0 | AE111: ='Tornado Charts'!O130 -> 0 | AF111: ='Tornado Charts'!P130 -> 0 | AH111: ='Tornado Charts'!R130 -> 0 | AI111: ='Tornado Charts'!S130 -> 0 | AJ111: ='Tornado Charts'!T130 -> 0 | AK111: ='Tornado Charts'!U130 -> 0 | AL111: ='Tornado Charts'!V130 -> 0 | AM111: ='Tornado Charts'!W130 -> 0 | AN111: ='Tornado Charts'!X130 -> 0 | AP111: ='Tornado Charts'!Z130 -> 0 | AQ111: ='Tornado Charts'!AA130 -> 0 | AR111: ='Tornado Charts'!AB130 -> 0 | AS111: ='Tornado Charts'!AC130 -> 0 | AT111: ='Tornado Charts'!AD130 -> 0 | AU111: ='Tornado Charts'!AE130 -> 0 | AV111: ='Tornado Charts'!AF130 -> 0
B112: =CHOOSE(K4,L7,L8,L9,L10,L11,L12,L13,L14,L15,L16,L17,L18,L19,L20) -> Strict Investing - NPV ($MM) | R112: ='Tornado Charts'!B131 -> 0 | S112: ='Tornado Charts'!C131 -> 0 | T112: ='Tornado Charts'!D131 -> 0 | U112: ='Tornado Charts'!E131 -> 0 | V112: ='Tornado Charts'!F131 -> 0 | W112: ='Tornado Charts'!G131 -> 0 | X112: ='Tornado Charts'!H131 -> 0 | Z112: ='Tornado Charts'!J131 -> 0 | AA112: ='Tornado Charts'!K131 -> 0 | AB112: ='Tornado Charts'!L131 -> 0 | AC112: ='Tornado Charts'!M131 -> 0 | AD112: ='Tornado Charts'!N131 -> 0 | AE112: ='Tornado Charts'!O131 -> 0 | AF112: ='Tornado Charts'!P131 -> 0 | AH112: ='Tornado Charts'!R131 -> 0 | AI112: ='Tornado Charts'!S131 -> 0 | AJ112: ='Tornado Charts'!T131 -> 0 | AK112: ='Tornado Charts'!U131 -> 0 | AL112: ='Tornado Charts'!V131 -> 0 | AM112: ='Tornado Charts'!W131 -> 0 | AN112: ='Tornado Charts'!X131 -> 0 | AP112: ='Tornado Charts'!Z131 -> 0 | AQ112: ='Tornado Charts'!AA131 -> 0 | AR112: ='Tornado Charts'!AB131 -> 0 | AS112: ='Tornado Charts'!AC131 -> 0 | AT112: ='Tornado Charts'!AD131 -> 0 | AU112: ='Tornado Charts'!AE131 -> 0 | AV112: ='Tornado Charts'!AF131 -> 0
B113: =CHOOSE($K$4,R46,Z46,AH46,AP46,AX46,R71,Z71,AH71,AP71,AX71,R96,Z96,AH96,AP96) -> 0 | C113: Project NPV, $MM | E113: Input | R113: ='Tornado Charts'!B132 -> 0 | S113: ='Tornado Charts'!C132 -> 0 | T113: ='Tornado Charts'!D132 -> 0 | U113: ='Tornado Charts'!E132 -> 0 | V113: ='Tornado Charts'!F132 -> 0 | W113: ='Tornado Charts'!G132 -> 0 | X113: ='Tornado Charts'!H132 -> 0 | Z113: ='Tornado Charts'!J132 -> 0 | AA113: ='Tornado Charts'!K132 -> 0 | AB113: ='Tornado Charts'!L132 -> 0 | AC113: ='Tornado Charts'!M132 -> 0 | AD113: ='Tornado Charts'!N132 -> 0 | AE113: ='Tornado Charts'!O132 -> 0 | AF113: ='Tornado Charts'!P132 -> 0 | AH113: ='Tornado Charts'!R132 -> 0 | AI113: ='Tornado Charts'!S132 -> 0 | AJ113: ='Tornado Charts'!T132 -> 0 | AK113: ='Tornado Charts'!U132 -> 0 | AL113: ='Tornado Charts'!V132 -> 0 | AM113: ='Tornado Charts'!W132 -> 0 | AN113: ='Tornado Charts'!X132 -> 0 | AP113: ='Tornado Charts'!Z132 -> 0 | AQ113: ='Tornado Charts'!AA132 -> 0 | AR113: ='Tornado Charts'!AB132 -> 0 | AS113: ='Tornado Charts'!AC132 -> 0 | AT113: ='Tornado Charts'!AD132 -> 0 | AU113: ='Tornado Charts'!AE132 -> 0 | AV113: ='Tornado Charts'!AF132 -> 0
B114: Variable | C114: Downside | D114: Upside | E114: Downside | F114: Upside | R114: ='Tornado Charts'!B133 -> 0 | S114: ='Tornado Charts'!C133 -> 0 | T114: ='Tornado Charts'!D133 -> 0 | U114: ='Tornado Charts'!E133 -> 0 | V114: ='Tornado Charts'!F133 -> 0 | W114: ='Tornado Charts'!G133 -> 0 | X114: ='Tornado Charts'!H133 -> 0 | Z114: ='Tornado Charts'!J133 -> 0 | AA114: ='Tornado Charts'!K133 -> 0 | AB114: ='Tornado Charts'!L133 -> 0 | AC114: ='Tornado Charts'!M133 -> 0 | AD114: ='Tornado Charts'!N133 -> 0 | AE114: ='Tornado Charts'!O133 -> 0 | AF114: ='Tornado Charts'!P133 -> 0 | AH114: ='Tornado Charts'!R133 -> 0 | AI114: ='Tornado Charts'!S133 -> 0 | AJ114: ='Tornado Charts'!T133 -> 0 | AK114: ='Tornado Charts'!U133 -> 0 | AL114: ='Tornado Charts'!V133 -> 0 | AM114: ='Tornado Charts'!W133 -> 0 | AN114: ='Tornado Charts'!X133 -> 0 | AP114: ='Tornado Charts'!Z133 -> 0 | AQ114: ='Tornado Charts'!AA133 -> 0 | AR114: ='Tornado Charts'!AB133 -> 0 | AS114: ='Tornado Charts'!AC133 -> 0 | AT114: ='Tornado Charts'!AD133 -> 0 | AU114: ='Tornado Charts'!AE133 -> 0 | AV114: ='Tornado Charts'!AF133 -> 0
B115: =CHOOSE($K$4,R48,Z48,AH48,AP48,AX48,R73,Z73,AH73,AP73,AX73,R98,Z98,AH98,AP98) -> 0 | C115: =CHOOSE($K$4,S48,AA48,AI48,AQ48,AY48,S73,AA73,AI73,AQ73,AY73,S98,AA98,AI98,AQ98) -> 0 | D115: =CHOOSE($K$4,T48,AB48,AJ48,AR48,AZ48,T73,AB73,AJ73,AR73,AZ73,T98,AB98,AJ98,AR98) -> 0 | E115: =CHOOSE($K$4,V48,AD48,AL48,AT48,BB48,V73,AD73,AL73,AT73,BB73,V98,AD98,AL98,AT98) -> 0 | F115: =CHOOSE($K$4,W48,AE48,AM48,AU48,BC48,W73,AE73,AM73,AU73,BC73,W98,AE98,AM98,AU98) -> 0 | R115: ='Tornado Charts'!B134 -> 0 | S115: ='Tornado Charts'!C134 -> 0 | T115: ='Tornado Charts'!D134 -> 0 | U115: ='Tornado Charts'!E134 -> 0 | V115: ='Tornado Charts'!F134 -> 0 | W115: ='Tornado Charts'!G134 -> 0 | X115: ='Tornado Charts'!H134 -> 0 | Z115: ='Tornado Charts'!J134 -> 0 | AA115: ='Tornado Charts'!K134 -> 0 | AB115: ='Tornado Charts'!L134 -> 0 | AC115: ='Tornado Charts'!M134 -> 0 | AD115: ='Tornado Charts'!N134 -> 0 | AE115: ='Tornado Charts'!O134 -> 0 | AF115: ='Tornado Charts'!P134 -> 0 | AH115: ='Tornado Charts'!R134 -> 0 | AI115: ='Tornado Charts'!S134 -> 0 | AJ115: ='Tornado Charts'!T134 -> 0 | AK115: ='Tornado Charts'!U134 -> 0 | AL115: ='Tornado Charts'!V134 -> 0 | AM115: ='Tornado Charts'!W134 -> 0 | AN115: ='Tornado Charts'!X134 -> 0 | AP115: ='Tornado Charts'!Z134 -> 0 | AQ115: ='Tornado Charts'!AA134 -> 0 | AR115: ='Tornado Charts'!AB134 -> 0 | AS115: ='Tornado Charts'!AC134 -> 0 | AT115: ='Tornado Charts'!AD134 -> 0 | AU115: ='Tornado Charts'!AE134 -> 0 | AV115: ='Tornado Charts'!AF134 -> 0
B116: 0 | C116: 0 | D116: 0 | E116: =CHOOSE($K$4,V49,AD49,AL49,AT49,BB49,V74,AD74,AL74,AT74,BB74,V99,AD99,AL99,AT99) -> 0 | F116: =CHOOSE($K$4,W49,AE49,AM49,AU49,BC49,W74,AE74,AM74,AU74,BC74,W99,AE99,AM99,AU99) -> 0 | R116: ='Tornado Charts'!B135 -> 0 | S116: ='Tornado Charts'!C135 -> 0 | T116: ='Tornado Charts'!D135 -> 0 | U116: ='Tornado Charts'!E135 -> 0 | V116: ='Tornado Charts'!F135 -> 0 | W116: ='Tornado Charts'!G135 -> 0 | X116: ='Tornado Charts'!H135 -> 0 | Z116: ='Tornado Charts'!J135 -> 0 | AA116: ='Tornado Charts'!K135 -> 0 | AB116: ='Tornado Charts'!L135 -> 0 | AC116: ='Tornado Charts'!M135 -> 0 | AD116: ='Tornado Charts'!N135 -> 0 | AE116: ='Tornado Charts'!O135 -> 0 | AF116: ='Tornado Charts'!P135 -> 0 | AH116: ='Tornado Charts'!R135 -> 0 | AI116: ='Tornado Charts'!S135 -> 0 | AJ116: ='Tornado Charts'!T135 -> 0 | AK116: ='Tornado Charts'!U135 -> 0 | AL116: ='Tornado Charts'!V135 -> 0 | AM116: ='Tornado Charts'!W135 -> 0 | AN116: ='Tornado Charts'!X135 -> 0 | AP116: ='Tornado Charts'!Z135 -> 0 | AQ116: ='Tornado Charts'!AA135 -> 0 | AR116: ='Tornado Charts'!AB135 -> 0 | AS116: ='Tornado Charts'!AC135 -> 0 | AT116: ='Tornado Charts'!AD135 -> 0 | AU116: ='Tornado Charts'!AE135 -> 0 | AV116: ='Tornado Charts'!AF135 -> 0
B117: 0 | C117: 0 | D117: 0 | E117: 0 | F117: 0 | R117: ='Tornado Charts'!B136 -> 0 | S117: ='Tornado Charts'!C136 -> 0 | T117: ='Tornado Charts'!D136 -> 0 | U117: ='Tornado Charts'!E136 -> 0 | V117: ='Tornado Charts'!F136 -> 0 | W117: ='Tornado Charts'!G136 -> 0 | X117: ='Tornado Charts'!H136 -> 0 | Z117: ='Tornado Charts'!J136 -> 0 | AA117: ='Tornado Charts'!K136 -> 0 | AB117: ='Tornado Charts'!L136 -> 0 | AC117: ='Tornado Charts'!M136 -> 0 | AD117: ='Tornado Charts'!N136 -> 0 | AE117: ='Tornado Charts'!O136 -> 0 | AF117: ='Tornado Charts'!P136 -> 0 | AH117: ='Tornado Charts'!R136 -> 0 | AI117: ='Tornado Charts'!S136 -> 0 | AJ117: ='Tornado Charts'!T136 -> 0 | AK117: ='Tornado Charts'!U136 -> 0 | AL117: ='Tornado Charts'!V136 -> 0 | AM117: ='Tornado Charts'!W136 -> 0 | AN117: ='Tornado Charts'!X136 -> 0 | AP117: ='Tornado Charts'!Z136 -> 0 | AQ117: ='Tornado Charts'!AA136 -> 0 | AR117: ='Tornado Charts'!AB136 -> 0 | AS117: ='Tornado Charts'!AC136 -> 0 | AT117: ='Tornado Charts'!AD136 -> 0 | AU117: ='Tornado Charts'!AE136 -> 0 | AV117: ='Tornado Charts'!AF136 -> 0
B118: 0 | C118: 0 | D118: 0 | E118: 0 | F118: 0
B119: 0 | C119: 0 | D119: 0 | E119: 0 | F119: 0
B120: 0 | C120: 0 | D120: 0 | E120: 0 | F120: 0
B121: 0 | C121: 0 | D121: 0 | E121: 0 | F121: 0
B122: 0 | C122: 0 | D122: 0 | E122: 0 | F122: 0
B123: 0 | C123: 0 | D123: 0 | E123: 0 | F123: 0
B124: 0 | C124: 0 | D124: 0 | E124: 0 | F124: 0
B125: 0 | C125: 0 | D125: 0 | E125: 0 | F125: 0
B126: 0 | C126: 0 | D126: 0 | E126: 0 | F126: 0
B127: 0 | C127: 0 | D127: 0 | E127: 0 | F127: 0
B128: 0 | C128: 0 | D128: 0 | E128: 0 | F128: 0
B129: 0 | C129: 0 | D129: 0 | E129: 0 | F129: 0
B130: 0 | C130: 0 | D130: 0 | E130: 0 | F130: 0
B131: 0 | C131: 0 | D131: 0 | E131: 0 | F131: 0
B132: 0 | C132: 0 | D132: 0 | E132: 0 | F132: 0
B133: 0 | C133: 0 | D133: 0 | E133: 0 | F133: 0
B134: 0 | C134: 0 | D134: 0 | E134: 0 | F134: 0

Sheet Results (hidden)
C2: =ProjName -> HCI Teaching Model | G2: =CONCATENATE(A11,"' '",E5) -> Revenue Streams/Fuel Cost Contribution to eNPV ($MM)' ' | K2: ="Version "&VersionNum -> Version 15
C3: Results | K3: =VerDate -> 2019-04-22
F5: =CHOOSE(Strategy,strategy1,strategy2,strategy3,strategy4,strategy5,strategy6,strategy7,strategy8, strategy9, strategy10,strategy11,strategy12,strategy13,strategy14) -> Momentum | L5: Analysis Date | M5: =EvalDate -> TBD
B7: NPV ($MM) | C7: =NPV -> 
B8: DPI = | C8: =DPI ->  | E8: Total Capex | F8: =#REF!/1000000 -> 
A11: Revenue Streams/Fuel Cost Contribution to eNPV ($MM) | D11: =CONCATENATE(A11," - ",F5) -> Revenue Streams/Fuel Cost Contribution to eNPV ($MM) - Momentum
O19: User Input Cells in Tan
O21: INPUT | P21: INPUT
O22: Contributing | P22: Actual
O23: Component | P23: Increment | Q23: Cumulative | R23: (-) | S23: (+) | T23: Mask | U23: NegBar Cross | V23: PosBar Cross
O24: =#REF! ->  | P24: =#REF!/1000000 ->  | Q24: =P24 ->  | R24: =IF(P24<0,IF(Q24>0,Q23,Q24),0) ->  | S24: =IF(P24>0,IF(Q24<0,Q23,Q24),0) ->  | T24: 0 | U24: 0 | V24: 0 | W24: =IF(P24>=0,P24,0) ->  | X24: =IF(P24<0,P24,0) -> 
O25: =#REF! ->  | P25: =#REF!/1000000 ->  | Q25: =SUM($P$24:P25) ->  | T25: =IF(AND(P25=0,Q25=$P$45),0,IF(OR(U25<>0,V25<>0),0,IF(P25<0,IF(Q25>0,Q25,Q24),IF(Q25<0,Q25,Q24)))) ->  | U25: =IF(P25>0,0,IF(OR(AND(Q24>0,Q25<0),AND(Q24<0,Q25>0)),Q24,0)) ->  | V25: =IF(P25<0,0,IF(OR(AND(Q24>0,Q25<0),AND(Q24<0,Q25>0)),Q24,0)) -> 
O26: =#REF! ->  | P26: =#REF!/1000000 ->  | Q26: =SUM($P$24:P26) -> 
O27: =#REF! ->  | P27: =#REF!/1000000 ->  | Q27: =SUM($P$24:P27) -> 
O28: =#REF! ->  | P28: =#REF!/1000000 ->  | Q28: =SUM($P$24:P28) -> 
O29: =#REF! ->  | P29: =#REF!/1000000 ->  | Q29: =SUM($P$24:P29) -> 
O30: =#REF! ->  | P30: =#REF!/1000000 ->  | Q30: =SUM($P$24:P30) ->  | W30: =IF(P30>=0,P30,0) ->  | X30: =IF(P30<0,P30,0) -> 
O31: =#REF! ->  | P31: =#REF!/1000000 ->  | Q31: =SUM($P$24:P31) ->  | W31: =IF(P31>=0,P31,0) ->  | X31: =IF(P31<0,P31,0) -> 
Q32: =SUM($P$24:P32) ->  | R32: 0 | S32: 0
Q33: =SUM($P$24:P33) ->  | R33: 0 | S33: 0
Q34: =SUM($P$24:P34) ->  | R34: 0 | S34: 0
Q35: =SUM($P$24:P35) ->  | R35: 0 | S35: 0
Q36: =SUM($P$24:P36) ->  | R36: 0 | S36: 0
Q37: =SUM($P$24:P37) ->  | R37: 0 | S37: 0
Q38: =SUM($P$24:P38) ->  | R38: =IF(P38<0,IF(Q38>0,Q37,Q38),0) -> 0 | S38: =IF(P38>0,IF(Q38<0,Q37,Q38),0) -> 0
Q39: =SUM($P$24:P39) ->  | R39: 0 | S39: 0
Q40: =SUM($P$24:P40) ->  | R40: 0 | S40: 0
Q41: =SUM($P$24:P41) ->  | R41: 0 | S41: 0
Q42: =SUM($P$24:P42) ->  | R42: 0 | S42: 0
Q43: =SUM($P$24:P43) ->  | R43: 0 | S43: 0
Q44: =SUM($P$24:P44) -> 
O45: Sum | P45: =SUM(P24:P43) ->  | R45: Do Not Enter Data Into Gray Area
P46: =IF(ABS(P45-C7)<0.005,TRUE,FALSE) -> 
P47: =IF(ABS(P45-C7)>0.005,P45-C7,"") ->  | Q47: Diff
B52: =CONCATENATE("Cash Flow - ",CHOOSE(Strategy,strategy1, strategy2, strategy3,strategy4,strategy5,strategy6,strategy7,strategy8,strategy9,strategy10,strategy11,strategy12,strategy13,strategy14)) -> Cash Flow - Momentum | L52: =CONCATENATE("Discounted Cash Flow - ",CHOOSE(Strategy,strategy1, strategy2, strategy3,strategy4,strategy5,strategy6,strategy7,strategy8,strategy9,strategy10,strategy11,strategy12,strategy13,strategy14)) -> Discounted Cash Flow - Momentum

Sheet CB_DATA_ (hidden)
A1: Crystal Ball Data
A3: Workbook Variables | B3: Last Var Column | C3: 0
A4: Name:
A5: Value:
A7: Worksheet Data | B7: Last Data Column Used
B8: 14
A10: Sheet Ref
A11: =CB_DATA_!#REF! ->  | B11: ='SNS AAcq'!#REF! ->  | C11: =CNS!#REF! ->  | D11: =EIS!#REF! ->  | E11: =Inputs!#REF! ->  | F11: =SNS!#REF! ->  | G11: ='Asset Acq'!#REF! ->  | H11: =Aggregation!#REF! ->  | I11: ='WOS Expl'!#REF! ->  | J11: ='WOS AAcq'!#REF! ->  | K11: =NNS!#REF! ->  | L11: ='CNS Expl'!#REF! ->  | M11: =WOS!#REF! ->  | N11: ='CNS AAcq'!#REF! -> 
A13: Sheet Guid
A14: 5c74b13e-a6e5-4a8b-b9a8-4cde9ccafa31 | B14: 9b540172-ef7c-40b6-8956-0c6b7a1cb98d | C14: 679bd5ca-ff33-4bbd-a92a-868b538e1208 | D14: 4127280e-70ed-403d-ada3-abc68f29d0a6 | E14: e176cc64-1d6f-48b4-92c6-dc32948d3cfa | F14: c8ef105d-16fa-49cd-b446-b4b14aed83fd | G14: c0adb133-93c2-4af6-ae0b-3832302e428f | H14: c1af1c52-e948-4032-8b17-214f6309b8ba | I14: 434babe6-1c22-4f29-8eda-d5948723e071 | J14: 5a9adac5-6ea5-40bb-9010-a568024698b0 | K14: 043cf23f-ebb5-4789-abcb-27c0b2926752 | L14: 2e9a32ee-d3b6-4520-a783-f5c19da042bd | M14: 81b85a31-be8c-4c4d-9958-f7df00ad2aec | N14: b17add76-3a9b-471f-9de0-7eab96103a23
A16: Deleted sheet count
A19: Last row used
A20: 28 | B20: 34 | C20: 61 | D20: 43 | E20: 34 | F20: 49 | G20: 55 | H20: 85 | I20: 34 | J20: 31 | K20: 55 | L20: 34 | M20: 49 | N20: 31
A25: Data blocks
A26: CB_Block_0 | B26: CB_Block_0 | C26: CB_Block_0 | D26: CB_Block_0 | E26: CB_Block_0 | F26: CB_Block_0 | G26: CB_Block_0 | H26: CB_Block_0 | I26: CB_Block_0 | J26: CB_Block_0 | K26: CB_Block_0 | L26: CB_Block_0 | M26: CB_Block_0 | N26: CB_Block_0
A27: 㜸〱敤㕣㕢㙣ㅣ搵ㄹ摥㔹敦慥㜷搶㜶㙣攲㕣㐸㠰㘰敥㄰愷㈶㌶〹㄰摡㌴昵㠵摣㜰㘲ㄳ㍢〱㐴搱㘶扣㝢挶㥥㘴㘷挶捣捣㍡㜱㡡〴㙤㐱戴㉡扤㔱㈱〴㐲㉤愲ㄵ㔲晢搰换ぢ㤷ㄶ愹慡㠴搴慡ち㔲ㅦ攸㐳愵㍥〰慡摡㠷㔶㔵㈴㕥㜸㐰愲摦㜷㘶㘶㜷㜶搷㍢㜶㌶搰㍡㤵㡦攳攳㌳攷㌶攷㥣晦㝡晥晦㥦㈴㤴㐴㈲昱〹ㄲ晦㌲愵㔸戸㝡㙡搱昵㠴㌹㌰㙡㤷㑡愲攰ㄹ戶攵づっ㍢㡥戶㌸㙥戸㕥ㅢ㍡㘴昲〶摡摤㜴摥㌵捥㠹㙣㝥㐱㌸㉥㍡愵ㄳ㠹㙣㔶㑤愲㥤㤳昰户㈷㝣㔰㌹慡㌳㠵㙣㝡㜴㘴㘲收ㄴ㘶㥤昲㙣㐷散攸㍢攱㡦摤㍢㌸㌸㌰㌸㌰戴㘷攸捥㠱㥤㍢晡㐶换㈵慦散㠸扤㤶㈸㝢㡥㔶摡搱㌷㔹㥥㈹ㄹ㠵晢挴攲戴㝤㕡㔸㝢挵捣捥㍢㘶戴㕤㜷て敥摡扤㕢摦戳攷敥㑥扣㍡㜱㜴㜴㘴搲ㄱ扡晢㈹捤㤹收㤲㜷㡤㠹㠲挱扤〹攱ㄸ搶散挰攸〸晥㐵搶㡦愷扢〶愶收㠴昰昸㙡攱〸慢㈰㕣ㄵ〳㍢捣㘱搷㉤㥢昳㍣㍣搵摣㡦慤ㄶ㌴搷㑢㥢愳愲㔴㔲捤㜰搶慣㌹㠱戳㉢㘹㡢㥤收㤴戰㕣挳㌳ㄶっ㙦㌱㘳㑥㘳愲㘲㤷㜹摣ㄵ挷㌴㙢㔶ㅣ搵㑣㤱㌶て㤴㡤㘲捡㑦㠹戶㕢挲㈹愲ぢ㤳摢ㅦㄸ㜶捤搱㌹捤㤱㉢㜲㜹㌰㌱㝤昷㍢㠵摡扥㌷㌴㥦㤷㑢㤷㙦攰㥣㌷㌵敦㠷㤶ㄳ㥡㔳改搹摦扣㘷戰昹摡ㄵ摣摥扣㝦攴㡣㙡挷摣搶㝣㡣㍣捡摡摥㑡㐷㠰摦昲㐴戱ㄹ㌵挳慣㥤㔹㤶ㄹ〱愸收㤸㜵㌰敢㐴愶愴㍥〴㤵㐴〷戲㈹㤹搷㤲昹㤹㘴扥㤰捣ㄷ㤳㜹㤱捣敢挹晣㙣㌲㍦㤷捣ㅢ挹晣愹㘴晥㌴晡㠴㈹摢摥㥥っ搲敢ㅦ摥扣敢挷㜳搹昱摦扥慤㍥㌴昴戳昷て㜶慥㐳愷晢㠳㐵㡤㌹摡ㄹ愰㕡ㄵ㡢㠷〶㜶昲㘷㜹慡〰㔱攸扢昵扢昴挱挱攲敥㥤摡ㅤ㕡㥡摢㡡〱㝥つ愲昴愰㙦愷晥㠰㘱ㄵ敤㌳ㄲ㜶㔷㡦㘸慥愸ㅥ㕣㝦搰㌶㘲㤷慤愲㝢搵搲㡤㔳㥥收㠹慤昵㙤搵㐹ㅡ㠶㑤㠱慣㠴㉢摦户慤㝥搸〹慤㔴ㄶ挳㘷つ扦昹㥡扡㘶㜳搲戱㘷㥡户敥㜷挴愳㤵搶㠶ㄵつ㠳愹㉤挸戹ㅢ㜶改㌷昹敢敡ㅢ㥤戳㕤㘱挹攵昵㥢㤳㐶攱戴㜰愶〴㔹愲㈸捡慤㙥㘴㔳㐰昵晤ㄳㄶ㌶ち㙡㉤㕥ㅦ慤搵敦㍤敢㠱㤸㐵ㄱ敢㥤ㄷ㡥户㌸慤捤㤴挴愶㥡㉥晥㍢搱戰愵愶㝡扦㕤㈸扢愳戶攵㌹㜶愹戶㘵戸戸愰㠱搳ㄴ㡦搸㐵㤱㑡㈵㈴㔳〰挳㙤㙢㔳㤴挴昶收戴㈰〱ㄱ〱㌱〹昹捡㕡戴ㅢ㌸㠶摤㘱ㄷ㈵㐱㥣㑣摥戸捣㘴㕣慦攴㌱㌱ㄴㄸ搹ㄳ攵〷㕦㝡敢㌲搳㔶㈰昷搹㜶㑥㈶㝢㠳摤摦扢㈰㉣敦愰㘶ㄵ㑢挲㠹㤵㝥ち㔷愴㜶㈳㑢㕦〰㐳㘸㝡㝡ㄴ㜵捡㔹㘵㌱㝤挶㈸㝡㜳㤹㌹㘱捣捥㜹愸㠳㠴捣㘶㜹戴つ㐹扤〲㔵敡㝡㘶扤挸㜲戹㐴㘶〳㍢㘵㜲㐸㠹㌴戹㔳っ㉤搷㌰㜲㡥慢愱攵㑥㝤扦㔱昲㠴捦㤴扢㜵㐰挴㤷㙡ㄲ㝣㕤㐴㔱㐷㉢昸〲㘳㠳㍥ち㉣搵っ换㕢慣搲㙤〳㤵昸㐸戴挶ぢ㔶ㅤ㉦㈰㉢愸攵〷㌱戴〶愴愹攳〶昱㥤㈳㐸㐴㌲㠸㤱散㤸戹ㄶ挹搸㍦㠶㐷愰㝦ㄴ〹搹㝢㘷㜳ㅥ㐱㘴㙦㐴㔲づ㙡㑡㡦㙢摣㙣㈹㕤摥攷㘶ㅢ㜱㜰敡㈶㘶㥢㤹㕤挹㙣ぢ㌲攵敦攰㜰攴㜲㈸搷㈶昵㉡㍣慢㔷㌳扢〶ㄹ昸㤳㑡㥥ㄳ戰㉡敡㔰㉢搱㈳搹慦ぢ㝡戲㔴㡡㝤㔶㐴捤戸愲㘷㜶㤹ㄲ搰㠱搶戹㍡㘴㙤㑡捡搸㥢㥢攳㘶㜴㍢挴挸㤸慥搱扤㉥搳㌵㝡㄰散摡愲摣扡ㄶ㐳搵㍥㘶搷㈱换愹搷㌳㠷㜰愱挲扢㌲㡤㥥㉡攵㘵愱ㄶ昹捡㔰㡢〲㍥㐰㘴㕥〱㘲㤸㕣挳昵㘵㑤㠷愶㍡搸慦㕦昶㍡昴㡥收昴ㅤ〰扤㑥㙥慥挹ㅤ摡㡢㉥㔲㡢扥〱攴愵晣戵愹㡣戹〹捤敡捤捣㙥㐱㔶㈷㘳㜸晢扥㔸㑢㠱㔴㡢捤〸攴搶搳敡㈲戵摣改挵㜹㈱㈵㔰愷㍥慤㌹戳挲㠳〵攳搰ㄸ㜴㘱摢㜱㐴〹㤷摡愲慣攰晤㘵㜳㙤愵扢摦戱㑤搶慦改挸敥㘵㈱ㄸ㔲愹㘴㕢愲㑥㐷㡥搱㌵㈳㌶愷〸收㔰〶摦搱㥣㐹㐴〶搵愲ㄷ挷挵摦㉦搷㌸㐹ぢ㥣攴㌶ㅣ慢扡ㅤㄹ戸㠴昲攷愶ㅣ㘵〷扢㝤㑥㜶慢搵㔸㘹攱㡢戹㥤搴搹㄰ㅢ昸㐸㠷㙦戰ㅤ㠱晤挰敤㌲愷っ戳挲㉣㍡捣㐹攱ㄴ㘰㕢㌰㑡㈲攷㥢㘵挹㙡搶㜸挵㘵挲㉢摡摡ㅡ敥搳㌱昶㌵㠹㈷㜵㕣㈲㤶摡㘳ㅢ㘳敥攲㔵愴愲ㄹ㤲㑣㈵挶㌴㔴攱㐰挴㍣昶㕤㘳㌱㉤戰㤸摢㜱㜰敡㑥㘶㠳捣㠶㤰愵摦〱愷㔹改挱搳ㅤ搶扥㐰㤳㜶㍥㥦挸ㄲっ搲㐴㜸扥㈹戳摡捤搷摣挹散㉥㘴㜵敡てつ㤰㌱㠸㈸㐱ㅥ㐱㐴改挶搰㑦ㄸ攲っ㜱㘰㥤づ挷搲㘸搹昵㙣㤳㥥愵㉥㝤捣㍥㙡㝢㘳㠶㍢て㑦㔴慦ㅥㄴㅥ㤸ㄳㄶ戰换㠱敥㔳㔷㘷捦捦㡢愲慡㑦搹㘵戰戶㐳㘳慢攱㘲㡥攳㠰㉥㈹敦收㐹〵愹戵晢㌱愶㔰㜰搲搲摥㑡㙢散㡡慣摦扣昴㜵㔷㑦㜴摡昰㑡愲㐳昷㠹㡥攵慣㡥㔳㠴攷愰搸慥㑦捦㌹㐲㡣㜵改〷ㅣ愳㔸㌲㉣㐱㘰㐰挷愴戳㙥㕣捣挲㑢㌰㘹搳〷㘸㕢㕤晡戴愳㔹敥扣㐶㠷攲攲晡㥡㈷改ㄶ㐹敢㈳㠶攵攲㌵ㄲ㡡㉣㜷敢㔳㜳昶ㄹ㜸㙣换愶㜵㐰㥢㜷㔷〵㔴㠸昴㝥㤲愰㔱㤲㑡㌲愹㘴㤳搹㔶攱挳ぢ㜹㈲㐱摡㑢㌱㤳戰㑡愴㘹㌳㡦㤱摥搴敢〳ㅦつ昵㜴慥愹ㄳ摥愳㑡㘵㕢㉣ㄷ㈶愵慡㝢㌸收ㅥ㘴㠷てㅣ㍦㔴昵捣㕤㤲捦㍡㑤㉢㝦っ㡦㤷㘸㔱㜱㠴搰㐶户捥㐷ㄵ搶ㄱ㜳㐰㠱㠰㌸㥦敡搱㉦愷换㍥挴扥㜵搵攲㝥㜸㤲㍡昵㜱㙤㐶㤴攰㡦㌶㌵㙦㥤晦㐰㌵搶搴㑡㙥搰㌶㙡㥢愶㐶搴㈲㕡㑥ㄵ㌴㘲昰㜰搹戳㡦ㄸ㤶慡㈳㤳昸ㄷ㔴㘹㘷㔱愵㥤㤵㔵㥤晡㌱扡〶㘵㤹㜳搹戳㥡㘳㜸㜳愶㔱挸昲㠱敥扢㔵㠱㤳㈰㜲㜲摥㌰㠵㍣愳慦㑥㥢㍦づ㤵捤ㅤ〰戸〷挰㐷㜹㜴〴㍦㌰㌷愹㘴昰愳戴㘸㔸〲㠳㤱㤶㔲昵ぢ㤸㉤㉤愳㈳挰㜲㘴扡㄰挶㘰㕣㜸ㅣ㌵㍥ㄳ㈲搴㘳㔰〴㔶挱〸㤳愷㠹㍢愳ㅦ户って搰㈳挴昶ㅢ摥㤸ぢ㤰㈳㐳㔱㕥㙦户㑡愸㐶〶昵㔷愴挲戵㡤㑤㌵㘲㘲㕢㘳㝢㔴㙥摣戸㐴戳㉦㔱㈲㠲㘴戹㑥㔲戲㉣戱挶搵㈴㙡ㄴ㈹戸㐳㘹愳挴㤹㑤慢攷㑥㉥㜲〹㠲㐹攲㑣㐲晤愲㐴ㄴ㌸㝡〳ㄹ㐵㥢㝤㍣㝡㐴㍣㌶搴〱㜲㤴㔳㝥㕤㔷攰ㄲ㍣㠴戰㤳愲挸〵㑦愰敦㜵㐱㜱愲散搵戴㘸㘷㝢㠳㤶攱㔲㘹挲㠲㤶㔰搰㥣攲㉡㈱㘹散捤㤷㌰㤲㍡㕢㤵晥晥昱㐶〸㌱㈰㐳扡㐵㘲散挰㈰㐳㄰㔷挴愳㑡敤慣㡢㐷㕤愹捥昲改㠸搰㉣〹㠱㈹慦㌸㈶ㄶ愴ㅡ㔶搵攴㝢攵㠰捡㙤㔱昲㔱㔵ㅦ㥥㜱㈱搲㍤昲昱愰㈴〹㕣搵㡦搱㉣㠵㈰〶戰摤愰㌴㔹昰攰摡慤㑣挰㥢挱敡㠱づ㑥挴㜷㥤㔰㍢㈳〷捤挴㈰㙥敤㈶㐸㍢㉤㐲ㄴ㡣㔴㤷改摦晢㤴ㄷ㕦㘰晡改扥㐴㔸〸㠸㠸敥慥ㄸ敤〱挰㡤㝡㈶㐹㐵扤愱挳摣攷㙣㤲㘹㜵㠶㜵㔴㌱扡愸昲㌹ㅥ愲㜸攸换敡㈶搹㤴㄰攷收ㄹ㤰愶愵挵㜵晡㈱慢㔰㉡ㄷ㠵ㄴ挵㈱慦㤶ㄲ㜹㔵挰㑢㠶〰晡搴ㄴ㜳㉥挱愱ㅣ挲㔵㡡㕢㈶㤰㕡搷扢搵㝤ㄸ㉥㤹ㅣ收昰㐵ㅦㅤ㤰㌱㘶㌹改㄰㙢㠸㔳愰㝥戸扥ㅡ挰㈰㠳攷挰搲ㅡ慡挸换挶ㄱ㡦㔷昱㈲㑢㙡㡢㜴ㅢ户挷㙤敡散㤱慡㠳㠶㕦戵㉡㘰㠴㝤晡っ㉦㤳㠱㌲搲㈲㜵㜰㤲挴㠵挰扢㝢攱㜱昹㤸戸〰㔰㐸〸㈸昴昱昲ㄶ㤴挰愹㠲㤰愸㜰㈷慢㕡户㐲敦㉦㌵㙦㜵ㄸ㤹㐲㌷㌰ㄵ㕡昴昴ㄵ㥣㔱㤴㤷㔷㜰慥㐵慦ㄸて㘹搴㤹㑡ㅦ㘵㉦っ昶〰ㅡ愸㠹ㄷ改㘹ㅢ㐲挸摢㈰〳挳挲搸挴㝥ㄳ㔷㈰摢搹㔴㔷㌹愹㜹〸㝦戱戶搴㔵てㄷ㡢㔴㜷㘱㥦㕢ㄵ㔰㐵攸㠶慦㡥㙥愸ぢ捡㤲㝢愲㝥㜷㐳㕤㐳㄰㉣㌸㌴㌶㜰㔰昳ち㜳㔳摥愲ㅦ戸搵㉡㑡愴摦㠲㍤㘲挹户㔳㘷㑥㔹っ㐴㕤攰搹攷㑥㕢昶ㄹ㑢慥㉢敤㌲敡てㄸ㠲㄰捡㜶㉥㌲㤷昸〴㍦㌲㈵ㄳ改摦㘰挶㤵㉣㥢ㄳ㔴つ㈴㥣㐷㈶㥦ㅢ昴愱ㅣ㠳㈷搰摤㉢㔱〳挴㤳つ㜵㜸㈲ㄹ挱ㅡ愲㔸戳㥦ㅡ愲㈸扦〶㔸㠹㉣晥㤵ㅣ㘷晥㉡㐸㕦㜹ㄳ㌵〴㌸㥥〳㌶㤲扥づ愵ㄸ搰㐹㐶ㅥ㠴㜸㌰㈰攴晦〷㑡㈱㌵㉦㐹㑥晦〵㘲㔶摥愸〷搱㌶㠲攸昵〶㄰㈹っ〳㤱昴㝢㌸㈸昰㈱㑤昷散㐵㌹挲戹愷戵ぢ攸㘷ㅥ昰晢㍦扣㠰㡥〳挲㑣㔲㐷㠳慢敤㈶㤴㉢㉡㐲戲㐱㐵愰昳㕥慡〸㐷㌸㠶㕥㝣㕦㐵〸㙣㈰ㄳ愸㔸㕥㐵愰㙦㉦㐶ㄱ㡣戸㕡㈳㘶つ摥挰㌶㤹戴㡦ㅤ㐴攰慤㜰攱捦㠷搰㜲㐷㘱㤱摡摣㔸㍤愹㌹㥡戹㐵搶ㅦ㜰〴㠴㤹㌳㡤㐸㙥㌹㠴㈳戶㉥搹㈲〷㉤㘱慢〸慤散㙢昶㤴㤵挵慦〳㔲㝥昲捤昷㑡㔶挹㕣㠲愵㐴攱扤㈱昱㤵つ㍦㍦昰晥戹㈷昷㌱㕡㉤挰搵昴㜶㤴㕢㜱搹㔳㥦㠰㔳㌷ㄲ㈸戲㤱ㅦ收ㅣ挱㈷㑡挶㝣㐹㡣㘸㡥搴㠲㕣搵っ㡢㍥攲㐵㄰搳㐷扥搵愰㘲㈲敥挱㔷㌱〷敡捣㥤昲挳㈶㘹㈲ㅣ㠸㉣㕣摡昴㐲户愱搲㔴㤰戵愸㙤愶㝦〹㔱㜴㤱ぢ愹搵ㄲ㜹敢㘴㔲㤴㕦搴换扡摤㤴㜵晥㐵㠶㙥晦㤰㑢挱晦㐰っ㠹㕥㘴ㄸ㄰㈰戹搴㌱ㄴ搲户㈳㡢昱慣搵扢㜸㘹て㔸㘳〲愲ㄲ昴搷攲㐷㉣㌸㐵㐰㌱戴挵户㝡愳愵㉥ㅡ㡡㈶扡㙡愵㑥㌳㠵㠲扣扣戰㘲㌰慣㥤㐶㈱㑣改㈱㤴㔶㙣㡥攲㑢扡㑣摦昱收ㄳ㜶摡愴慤㉤㘷摥㙢㤵ㄱ昹〱㌹㤳㤱〲挳㕡捦㙡㕣㐸愵㡦捥敦㥡昳慢㤸㜷晢挵捡愰㡥愰〹㌲换摡㠲㕢㈹㥣㝦晣㔲㠸敤晤搵愹㌷搶户㔰挶㔹敤搸㈰㝦愱㝦㙤㡢㈱㙣扣㤵ㄴ〳づ扢愲㕥㔹㍦㍣晣㌸㠶㜰搳〹㐵慤ㄶ攵戳戲ㅢ㝦㐲捡㙡㙢㤴晦昴㕥㑢捡㍡挱搱㜴㘳搷挸晦〷㔱戱慣晣㔷攸㝢㤳㠰㝣㈸㈸㐸攵㤴晥㤳㘵㕤㌶㍣ㄱ㔸戶攱扣㤱ㄷ㘳㔵ㄶ改昲昶㑢㔳昸㜸搵㙦㤶ㅣㅣ㜶慦㔴㝤㘸㐴㘵㉣㜵摢㡥愶っ㤰扥愱昴慢㘰㐱㑤挷搷昲慤昰㜶㥢㜹ㄸ〳㌷ㅣ㌱ち㡥敤摡扡搷㌷〵愷㙦ㅦ扦㍤搳愱昳っ㉢㍦愹㘷㙡㌷攰㈴㍡ㅦ挱㤸愳ㄳ㘰搸㐷㠵昷㘹昹㈲改㔹㔸㤹㈷㠳摦㈱昵㐴摣㑢㤴づ敥ㄵ晡晤㘵慤㠴㑦㔷㈷㘰敢昴㔸戵㉡㠴㥤㙦㜱慥㡦搰攰搱㈱㐶敢㍥搸㠳㐴㘹〰捥㌱戹㠵㠷ㅦ攱戹搶㥦㐱㙤摦㘰㙦㉥㝢戶㘶㜳换愵㕦〱㑣㔷昶㤶㕡㤴攱㍢昹㐵㜲㑥捤㌳㐷搰晥㍥晣㕤戹㠱㤶戳昵〲捦㠳て扡㘹〸敢㉦挱㝣戶〲敦昷㐹っ㔵㠶㤹攱㔷搵㠲〲ㅦㄴ㕡昹㐸㡡捡て戱㉤ㄲ〰捡㠹㑣〱㔹㜳慣㝥㘹㈹慣敥㌹㡣㌱愴㔷㔵㈰敢㙡㔳㜸搵㈰㔶收㤴ㄷ搱㥦愷收敦㝥㤶㜵戸㝡挸㉢〵捡敡ㅣ戲㌰㈹扣㔲挸昵㍣㡦〱㤵昵㥣㐲㙤昳昵㍣户搴㝡ㄴ㉡〳㜲扦搱昹㝢㐲㘱愲㥡㘸㔶㉤㘶㌶戳㜹㘴㍤愱㑣改㈶㥢攴㕥㌲扥慢攱㑤㐲ち改㑦挱摦昷昶扤㜳㥥改㕦晢ㄴ挹ㄸ搱㔴扢ぢ㌲㐶戹㡢敦㐴㜷攱愲戶昹㉥㥥㔹㙡ㄷ㍤攴㤹昲㔴换㈸攰㔴昳昸㈳㜷戵㄰ㄴ㈴ㄴ㑦㠶戵㌵㝢搵㔰㉢挷㥥㐵愱慢㉤㑤挰㝣扥戹㜴愱昲ㄸ㝥ちぢ攷㐰捤㌷慦昷攲ㅢ搶㐵㝡扢摢昰〹㝦㕡㡡挲㔴昲㥥搶收ち搵㔱㑡戲昴搳搸昵㈵捣挳摤㔷㙤㡥㥣㜱㉢㝥戳㜰㐲㄰捤攴㐱㥤ぢち㝣攸〹捦㈷㑤昰挷㝣攲㈴戵㐴㠶㠳㘶搱㉦攳㥢愴㌳扥㙥㤰㌵〳㕢昴慡攰㤰㠱ㄷ愱愹㘰换戴ㄸ攷愰㍣ㄵ愲攳挱㠳攱昷㘳挹挰昳〶㜲昰昵㜲㤲てて㔲㜹㌲散晣慢搷慡㠶㘳㌴㈰㠱㘶晣捥㈴㌳搹昹敢㘱攷㈱㝣㥢㈶晢㈴㠸㔹㑣敦㠵㥤㐹㡥戲昳搷挲捥晦ㅣ摡㔲改ㅣ㔲㥦㍦㜳㥡愴ㄱ愳昱换㍢㔰攴㍢昵㙥㜴㑦敢搴㈲㍡㜴扦㥡ㄸ㈹ㅤ攸㈵愹㐷㜴㈲㈴挶挱㤷攲攳㠸昰㐲㈰っ㐴㡤晦ㅦ㐶ㅣ㐲攴搷㤸收㘹昸㄰㝣〱㉥㜷㐷㤵㑦ㅣ㥣搱㈷ㅣ㔴戴敢㠷㕣摣㉣㡢慢ち㐵愰ㄴ愵晣昳㕤挶㌵ㄱ愳㐰㔷捦㈳㜴ㄵ㈶ㄹ㐹搳㥡〸㤵敥愵㤴昲㐴〸搹挴ㄳ㔵㥣㔱扦ち攰㐰㌸㈰㘷㐱晤ㅡ㜲摦ㅤ挵㤸敤㐴て戹㥥㘴㘹㑦愲〰㜶㐸捥㐶昰㘷㥥㐲搶ㅤ晥㉦ㅤ㝤ぢ搲㔸㤴㔴捥㠵敦㠸㘲㡦晡㌴〷㝣〳㔹ㅢ㙣搷㑡㠰㝢㌹昵㥢愸㠹扥㡢㡣㐳扥敢㕢㈸㠰㝤㜲㘹㉢㍥㈳敥愰㐵㘹晤っ㠶㉡摣㌸攷㔰扦ㅤㄴ昸愰㜰搷攴攲㡡㠳㡤㤱㜵㔲㈰愹摦㘵つ㌷挵ㄵ慡摦攳ㄳ昷㈲㠷㝦㍦㈸挸攱摣㠸ㅣ㙥㐵㠷晦㠰㕤攴㑢㔱愸㤱㘳㍤㝣戹㍣㠲攷㔰攸㙡敢收㥢ㅥ挰㙦昲慣㔲㌸㔹㍣㜹昲愳敥㔴摦搶搴㠳㕦敡㝣攱扤㍦㝥昰散扢㕦摥晢㡦㡦㕦㝡改摤扦㍤㝢晥攳户㘶昶晥晥㤵㔷摥㍥晣愳昳ㅦ慣搷㕦㑥扥昶搱昸换㡦つ㥥㝥散㔱晤昸昶〳㡦㍤㜴敡晥挱挹㉢晡摢摡摡摢㙦改晤挳㤵户昶㍣昱攸ㅢ捡敦晥戲搹㔲攴攲昱㠲摡㘵㜰ㄳ㜲ㄹ捦愳㠰㘵㜰挵㥦改㌲戸㕤㜹㔰㜳挱㐱㡤愰㈲ぢ㝢〴ㄷ㈰ㅢ㘶㙢ㅢ㍡晥〳㡤㙣㤹㤸 | B27: 㜸〱敤㕣㕢㙣ㅣ搵ㄹ摥㔹敦慥㜷搶㜶㙣攲㕣㐸㠰㘰〸搷㌸㌵㜱㈰㐰㘸搳搴㤷㕣㜱㘲ㄳ㍢〱㐴搱㘶扣㝢挶㥥㘴㘷挶捣捣㍡㜱㡡〴㙤㐱昴㐲㑢㑢㠵㄰〸戵〸㔵㐸㝤㘹㡢㔴㔱㘸㔱愵慡㤵㕡㔵㐱敡〳㝤愸挴〳㐵㔵晢搰ち㐵敡ぢ㤵㤰攸昷㥤㤹搹㥤摤昵㡥㥤つ戴㑥攵攳昸昸捣戹捤㌹攷扦㥥晦晦㈷〹㈵㤱㐸㝣㡣挴扦㑣㈹ㄶ慥㥥㕣㜰㍤㘱づ㡣搸愵㤲㈸㜸㠶㙤戹〳㐳㡥愳㉤㡣ㄹ慥搷㠶づ㤹扣㠱㜶㌷㥤㜷㡤㜳㈲㥢㥦ㄷ㡥㡢㑥改㐴㈲㥢㔵㤳㘸攷㈴晣敤〹ㅦ㔴㡥敡㑣㈱㥢ㅡㄹㅥ㥦㍥㠵㔹㈷㍤摢ㄱ摢晢㑥昸㘳昷っづづっづ散摣扤昳捥㠱ㅤ摢晢㐶捡㈵慦散㠸㍤㤶㈸㝢㡥㔶摡摥㌷㔱㥥㉥ㄹ㠵㝢挵挲㤴㝤㕡㔸㝢挴昴㡥摢愷戵㍢敥ㅥ扣㘳搷㉥㝤昷敥扢㍢昱敡挴搱㤱攱〹㐷攸敥㈷㌴㘷㥡㑢扥㘳㔴ㄴっ敥㑤〸挷戰㘶〶㐶㠶昱㉦戲㝥㍣摤㌵㌰㌹㉢㠴挷㔷ぢ㐷㔸〵攱慡ㄸ搸㘱づ戹㙥搹㥣攳攱愹收㝥㙣戵愰戹㕥摡ㅣㄱ愵㤲㙡㠶戳㘶捤㜱㥣㕤㐹㕢攸㌴㈷㠵攵ㅡ㥥㌱㙦㜸ぢㄹ㜳ちㄳㄵ扢捣攳慥㌸愶㔹㌳攲愸㘶㡡戴㜹愰㙣ㄴ㔳㝥㑡戴摤ㅣ㑥ㄱ㕤㤸摣晥挰㤰㙢㡥捣㙡㡥㕣㤱换㠳㠹改扢摦㈹搴昶摤摡㝣㕥㉥㕤扥㠱㜳摥搸扣ㅦ㕡㑥㘸㑥愵㘷㝦昳㥥挱收㙢㔷㜰㕢昳晥㤱㌳慡ㅤ㜳㙢昳㌱昲㈸㙢㝢㉢ㅤ〱㝥换ㄳ挵㘶搴っ戳㜶㘶㔹㘶〴愰㥡㘳搶挱慣ㄳ㤹㤲晡ㄷ愸㈴㍡㤰㑤挹扣㤶捣㑦㈷昳㠵㘴扥㤸捣㡢㘴㕥㑦收㘷㤲昹搹㘴摥㐸收㑦㈵昳愷搱㈷㑣搹昶昶㘴㤰㕥晢㡤晢挱挱㥦㕤ㄸ㝢收摤㙢㝥昵敦㙦ㅣ㜹扢㜳つ㍡摤ㄷ㉣㙡搴搱捥〰搵慡㔸扣㜳㘰〷㝦㤶愶ち㄰㠵扥㑢扦㑢ㅦㅣ㉣敥摡愱摤慥愵戹慤ㄸ攰搷㈰㑡て晡㜶敡昷ㅢ㔶搱㍥㈳㘱㜷昵戰收㡡敡挱昵〷㙤挳㜶搹㉡扡㔷㉤摥㌸改㘹㥥搸㕣摦㔶㥤愴㘱搸㈴挸㑡戸昲㝤㕢敡㠷㥤搰㑡㘵㌱㜴搶昰㥢慦愹㙢㌶㈷ㅣ㝢扡㜹敢㝥㐷㍣㔲㘹㙤㔸搱㄰㤸摡扣㥣扢㘱㤷㝥㤳扦慥扥㤱㔹摢ㄵ㤶㕣㕥扦㌹㘱ㄴ㑥ぢ㘷㔲㤰㈵㡡愲摣敡㝡㌶〵㔴摦㍦㙥㘱愳愰搶攲昵搱㕡㝤摦㔹て挴㉣㡡㔸敦㥣㜰扣㠵㈹㙤扡㈴㌶搴㜴昱摦㠹㠶㑤㌵搵晢敤㐲搹ㅤ戱㉤捦戱㑢戵㉤㐳挵㜹つ㥣愶㜸挴㉥㡡㔴㉡㈱㤹〲ㄸ㙥㕢㥢愲㈴戶㌵愷〵〹㠸〸㠸㐹挸㔷搶愲摤挰㌱散づ扢㈸〹攲㘴昲㠶㈵㈶攳㝡㈵㡦㠹愱挰挸㥥㈸㍦昸搲㕢㤶㤸戶〲戹㑦户㜳㌲搹ㅢ散㝥摦扣戰扣㠳㥡㔵㉣〹㈷㔶晡㈹㕣㤱摡㡤㉣㝤〱っ愱改改㔱搴㈹㘷㤵㠵昴ㄹ愳攸捤㘶㘶㠵㌱㌳敢愱づㄲ㌲㥢攵搱㌶㈴昵ち㔴愹㙢㤹昵㈲换攵ㄲ㤹㜵散㤴挹㈱㈵搲攴㑥㌱戴㕣挳挸㌹慥㠶㤶㍢昵晤㐶挹ㄳ㍥㔳敥搶〱ㄱ㕦慡㐹昰㜵ㄱ㐵ㅤ慤攰ぢ㡣㜵晡〸戰㔴㌳㉣㙦愱㑡户つ㔴攲㈳搱㉡㉦㔸㜱扣㠰慣愰㤶ㅦ挴搰ㅡ㤰愶㡥ㅢ挴㜷㡥㈰ㄱ挹㈰㐶戲㘳收㕡㈴㘳晦ㄸㅥ㠱晥㔱㈴㘴敦ㅤ捤㜹〴㤱扤ㄱ㐹㌹愸㈹㍤慥㜲戳挵㜴㜹㥦㥢慤挷挱愹ㅢ㤸㙤㘴㜶㈵戳㑤挸㤴扦㠱挳㤱换愱㕣㥢搴慢昰慣㕥捤散ㅡ㘴攰㑦㉡㜹㑥挰慡愸㐳㉤㐷㡦㘴扦㉥攸挹㔲㈹昶㔹ㄱ㌵攳㡡㥥搹㘵㑡㐰〷㕡攷捡㤰戵㈹㈹㘳㙦㙡㡥㥢搱敤㄰㈳㘳扡㐶昷扡㐴搷攸㐱戰㙢㡢㜲敢㕡っ㔵晢㤸㕤㠷㉣愷㕥捦ㅣ挲㠵ち敦昲㌴㝡慡㤴㤷㠵㕡攴㉢㐳㉤ち昸〰㤱㜹〵㠸㘱㜲つ搷㤷㔵ㅤ㥡敡㘰扦㝥搹敢搰摢㥢搳㜷〰昴㍡戹戹㉡㜷㘸㉦扡㐸㉤㝡㉢挸㑢㜹户愹㡣戹ㄱ捤敡㑤捣㙥㐶㔶㈷㘳㜸晢扥㔸㑢㠱㔴㡢捤〸攴搶搲敡㈲戵摣愹㠵㌹㈱㈵㔰愷㍥愵㌹㌳挲㠳〵攳搰㈸㜴㘱摢㜱㐴〹㤷摡愲慣攰晤㘵㘳㙤愵扢摦戱㑤搶慦敡挸敥㘵㈱ㄸ㔲愹㘴㕢愲㑥㐷㡥搱㌵㈳㌶愷〸收㔰〶摦摥㥣㐹㐴〶搵愲ㄷ挷挵摦㉦㔷㌹㐹ぢ㥣攴㔶ㅣ慢扡つㄹ戸㠴昲愷愶ㅣ㘵㍢扢㝤㐶㜶慢搵㔸㘹攱㡢戹㥤搴搹㄰ㅢ昸㐸㠷㙦戰ㅤ㠶晤挰敤㌲㈷つ戳挲㉣㍡捣〹攱ㄴ㘰㕢㌰㑡㈲攷㥢㘵挹㙡㔶㜹挵㘵挲㉢摡摡ㅡ敥搳㌱昶㌵㠹㈷㜵㕣㈲㤶摡㘳ㅢ㘳敥攲㔵愴愲ㄹ㤲㑣㈵挶㌴㔴攱㐰挴㍣昶㕤㘵㌱㉤戰㤸摢㜰㜰敡づ㘶㠳捣㜶㈲㑢扦つ㑥戳摣㠳愷㍢慣㝤㥥㈶敤㝣㍥㤱㈵ㄸ愴㠹昰㝣㔳㘶戵㡢慦戹㤳搹㕤挸敡搴ㅦㅡ㈰㘳㄰㔱㠲㍣㠲㠸搲㡤愱㥦㌰挴ㄹ攲挰ㅡㅤ㡥愵㤱戲敢搹㈶㍤㑢㕤晡愸㝤搴昶㐶つ㜷づ㥥愸㕥㍤㈸摣㍦㉢㉣㘰㤷〳摤愷慥捥㥥㥢ㄳ㐵㔵㥦戴换㘰㙤㠷㐶㔷挲挵ㅣ挷〱㕤㔲摥捤㤳ち㔲㙢昷㘳㑣愱攰愴愵扤㤵搶搸㘵㔹扦㜹改敢慥㥥攸㤴攱㤵㐴㠷敥ㄳㅤ换㔹ㅤ愷〸捦㐱戱㕤㥦㥡㜵㠴ㄸ敤搲て㌸㐶戱㘴㔸㠲挰㠰㡥㐹㘷摤㤸㤸㠱㤷㘰挲愶て搰戶扡昴㈹㐷戳摣㌹㡤づ挵㠵戵㌵㑦搲㉤㤲搶㠷つ换挵㙢㈴ㄴ㔹敥搶㈷㘷敤㌳昰搸㤶㑤敢㠰㌶攷慥〸愸㄰改晤㈴㐱愳㈴㤵㘴㔲挹㈶戳慤挲㠷ㄷ昲㐴㠲戴㤷㘲㈶㘱㤵㐸搳㘶ㅥ㈳扤愹搷〷㍥ㅡ敡改㕣㔳㈷扣㐷㤵捡戶㔸㉥㑣㑡㔵㜷㜳捣㍤挸づㅦ㌸㝥愸敡㤹扢㈴㥦㜵㥡㔶晥ㄸㅥ㉦搱愲攲〸愱㡤㙥㡤㡦㉡慣㈳收㠰〲〱㜱㍥搵愳㕦㑥㤷㝤㠸㝤㙢慡挵晤昰㈴㜵敡㘳摡戴㈸挱ㅦ㙤㙡摥ㅡ晦㠱㙡慣愹㤵摣愰㙤挴㌶㑤㡤愸㐵戴㥣㉣㘸挴攰愱戲㘷ㅦ㌱㉣㔵㐷㈶昱㉦愸搲捥愲㑡㍢㉢慢㍡昵㘳㜴つ捡㌲攷戲㘷㌴挷昰㘶㑤愳㤰攵〳摤㜷㉢〲㈷㐱攴攴扣㘱ち㜹㐶㕦㥤㌶㝦ㅣ㉡㥢㍢〰㜰て㠰㡦昲攸〸㝥㘰㙥㔲挹攰㐷㘹搱戰〴〶㈳㉤愵敡攷㌰㕢㕡㐶㐷㠰攵挸㜴㈱㡣挱戸昰ㄸ㙡㝣㈶㐴愸挷愰〸慣㠲ㄱ㈶㑦ㄳ㜷㐶㍦㙥ㄹㅥ愰㐷㠸敤㌷扣㔱ㄷ㈰㐷㠶愲扣摥㙥㤶㔰㡤っ敡慦㐸㠵㙢ㅢ㥢㙡挴挴㤶挶昶愸摣戸㘱㤱㘶㕦愲㐴〴挹㔲㥤愴㘴㔹㘴㡤㉢㐹搴㈸㔲㜰㠷搲㐶㠹㌳㥢㔶捦㥤㕣攴ㄲ〴㤳挴㤹㠴晡㜹㠹㈸㜰昴〶㌲㡡㌶晢㜸昴㠸㜸㙣愸〳攴㈸愷晣扡慥挰㈵㜸〸㘱㈷㐵㤱ぢ㥥㐰摦㙢㠲攲㜸搹慢㘹搱捥昶〶㉤㐳愵搲戸〵㉤愱愰㌹挵ㄵ㐲搲搸㥢㉦㘱㈴㜵戶㉡晤晤攳㡤㄰㘲㐰㠶㜴㡢挴搸㠱㐱㠶㈰慥㠸㐷㤵摡㔹ㄷ㡦扡㔲㥤攵搳ㄱ愱㔹ㄲ〲㤳㕥㜱㔴捣㑢㌵慣慡挹昷捡〱㤵摢愲攴愳慡㍥㌴敤㐲愴㝢攴攳㐱㐹ㄲ戸慡ㅦ愳㔹ち㐱っ㘰扢㐱㘹愲攰挱戵㕢㤹㠰㌷㠳㤵〳ㅤ㥣㠸敦㍡愱㜶㐶づ㥡㠹㐱摣摡㑤㤰㜶㕡㠴㈸ㄸ愹㉥搳〷㝢㤵ㄷ㕦㘰晡搱摥㐴㔸〸㠸㠸敥慥ㄸ敤〱挰㡤㝡㈶㐹㐵扤愱挳摣攷㙣㤲㘹㜵㠶㜵㔴㌱扡愸昲㌹ㅥ愲㜸攸换敡㈶搹㤴㄰攷收ㄹ㤰愶愵㠵㌵晡㈱慢㔰㉡ㄷ㠵ㄴ挵㈱慦㤶ㄲ㜹㐵挰㑢㠶〰晡搴ㄴ㜳㉥挱愱ㅣ挲㔵㡡㕢㈶㤰㕡搷扢搵扤ㄸ㉥㤹ㅣ收昰㐵ㅦㅤ㤰㌱㘶㌹改㄰㙢㠸㔳愰㝥戸戶ㅡ挰㈰㠳攷挰搲ㅡ慡挸换挶㄰㡦㔷昱㈲㑢㙡㡢㜴ㅢ戳挷㙣敡散㤱慡㠳㠶㕦戵㈲㘰㠴㝤晡っ㉦㤳㠱㌲搲㈲㜵㜰㤲挴㠵挰扢㝢攱㌱昹㤸戸〰㔰㐸〸㈸昴昱昲ㄶ㤴挰愹㠲㤰愸㜰㈷慢㕡户㐲敦㉦㌵㙦㜵〸㤹㐲㌷㌰ㄵ㕡昴昴ㄵ㥣ㄱ㤴㤷㔶㜰慥㐵慦ㄸて㘹搴㤹㑡ㅦ㘵㉦っ昶〰ㅡ愸㠹ㄷ改㈹ㅢ㐲挸㕢㈷〳挳挲搸挴㝥ㄳ㔷㈰摢搹㔰㔷㌹愱㜹〸㝦戱㌶搵㔵てㄵ㡢㔴㜷㘱㥦㕢ㄱ㔰㐵攸㠶慦㡥慥慢ぢ捡㤲㝢愲㝥户戵慥㈱〸ㄶ摣㌹㍡㜰㔰昳ち戳㤳摥㠲ㅦ戸搵㉡㑡愴摦㠲㍤㘲搱户㔳㘷㑥㔹っ㐴㥤攷搹攷㑥㕢昶ㄹ㑢慥㉢敤㌲敡てㄸ㠲㄰捡㜶㉥㌲㤷昸ㄸ㍦㌲㈵ㄳ改㕦㘲挶攵㉣㥢ㄳ㔴つ㈴㥣㐷㈶㥦ㅢ昴愱ㅣ㠳㈷搰摤㉢㔱〳挴㤳㜵㜵㜸㈲ㄹ挱㉡愲㔸㌳㥦ㄸ愲㈸扦〰㔸㠹㉣晥㤵ㅣ㘷晥㉡㐸㕦㜹ㄳ㌵〴㌸㥥〳㌶㤲扥づ愵ㄸ搰㐹㐶ㅥ㠴㜸㌰㈰攴晦〷㑡㈱㌵㉦㑡㑥晦〵㘲㔶摥愸〷搱ㄶ㠲攸攷つ㈰㔲ㄸ〶㈲改昷㜰㔰攰㐳㥡敥搹㡢㜲㠴㜳㑦慢ㄷ搰㑦㍤攰昷㝦㜸〱ㅤ〳㠴㤹愴㡥〶㔷摢㡤㈸㔷㔴㠴㘴㠳㡡㐰攷扤㔴ㄱ㡥㜰っ扤昸扥㡡㄰搸㐰挶㔱戱戴㡡㐰摦㕥㡣㈲ㄸ㜱戵㐶捣ㅡ扣㠱㙤㌰㘹ㅦ㍢㠸挰㕢攱挲㥦て愱攵㡥挰㈲戵戱戱㝡㐲㜳㌴㜳㤳慣㍦攰〸〸㌳㘷ち㤱摣㜲〸㐷㙣㕥戴㐵づ㕡挴㔶ㄱ㕡搹㔷敤㈹换㡢㕦〷愴晣攴㥢敦㤵慣㤲戹〴㑢㠹挲㝢㐳攲㑢敢㝥㝣攰㉦攷㥥搸换㘸戵〰㔷搳摢㔰㙥挵㘵㑦㝤〲㑥摤㐸愰挸㝡㝥㤸㜳〴㥦㈸ㄹ㜳㈵㌱慣㌹㔲ぢ㜲㔵㌳㉣晡㠸ㄷ㐱㑣ㅦ昹㔶㠲㡡㠹戸〷㕦挵ㅣ愸㌳㜷捡て㥢愴㠹㜰㈰戲㜰㘹搳ぢ摤㠶㑡㔳㐱搶愲戶㤹晥㈹㐴搱㐵㉥愴㔶㑢攴慤㤳㐹㔱㝥㔲㉦敢㜶㔱搶昹ㄷㄹ扡晤㐳㉥〵晦〳㌱㈴㝡㤱㘱㐰㠰攴㔲挷㔰㐸摦㠶㉣挶戳㔶敦攲愵㍤㘰㤵〹㠸㑡搰㕦㡢ㅦ戱攰ㄴ〱挵搰ㄶ摦敡㡤㤶扡㘸㈸㥡攸慡㤵㍡捤㈴ち昲昲挲㡡挱戰㜶ち㠵㌰愵㜷愲戴㙣㜳ㄴ㕦搲㘵晡㡥㌷㥦戰搳㈶㙤㙤㌹㜳㥦㔵㐶攴〷攴㑣㐶ちっ㙢㉤慢㜱㈱㤵㍥㍡扦㙢捥慦㘲摥敤ㄷ㉢㠳㍡㠲㈶挸㉣㙢ㄳ㙥愵㜰晥昱㑢㈱戶昷㔷愷㕥㕦摦㐲ㄹ㘷戵㘳㠳晣㠵晥戵㈵㠶戰昱㔶㔲っ㌸散戲㝡㘵晤昰昰攳ㄸ挲㑤㈷ㄴ戵㕡㤴捦捡㉥晣〹㈹慢慤㔱晥搳㝢㉤㈹敢〴㐷搳㡤㕤㈳晦ㅦ㐰挵㤲昲㕦愱敦㑤〲昲挱愰㈰㤵㔳晡㑦㤶㜴搹昰㐴㘰搹㠶昳㐶㕥㡣㔵㔹愴换摢㉦㑤攲攳㔵扦㔹㜲㜰搸扤㔲昵愱ㄱ㤵戱搴㙤㍢㥡㌲㐰晡㠶搲慦㠲〵㌵ㅤ㕦换户挲摢㙤收㈱っ㕣㜷挴㈸㌸戶㙢敢㕥摦㈴㥣扥㝤晣昶㑣㠷捥㌳愴晣戰㥥愹㙤挵㐹㜴㍥㡣㌱㐷挷挱戰㡦ち敦㤳昲㐵搲戳戰㍣㑦〶扦㐳敡㠹戸㤷㈸ㅤ摣㉢昴晢捡㕡〹㥦慥㡥挳搶改戱㙡㐵〸㍢摦攲㕣ㅦ愱挱愳㐳㡣搶扤戰〷㠹搲〰㥣㘳㜲ぢて㍤捣㜳慤㍦㠳摡扥挱摥㕣昶㙣捤收㤶㑢扦〲㤸㉥敦㉤戵㈸挳㜷昲㡢攴㥣㥡㘷㡥愰晤扤昸扢㝣〳㉤㘷敢〵㥥〷ㅦ㜴搳㄰搶㕦㠲昹㙣ㄹ摥敦㤳ㄸ慡っ㌱挳慦慡〵〵㍥㈸戴昲㤱ㄴ㤵敦㘳㕢㈴〰㤴ㄳ㤹〲戲收㔸晤搲㘲㔸摤㜳ㄸ㘳㐸慦慡㐰搶搵愶昰慡㐱慣捣㈹㉦愲㍦㑦捤摦晤っ敢㜰昵㤰㔷ち㤴搵㔹㘴㘱㔲㜸愵㤰敢㜹ㅥ〳㉡敢㌹㠵摡收敢㜹㙥戱昵㈸㔴〶攴㝥愳昳昷㠴挲㐴㌵搱慣㕡捣㙣㘶㜳挸㝡㐲㤹搲㑤㌶挹扤㘴㝣㔷挳㥢㠴ㄴ搲ㅦ㠳扦敦敤㝤晢㍣搳㍦昷㉡㤲㌱愲愹㜶ㄷ㘴㡣㜲ㄷ摦㡥敥挲㐵㙤昳㕤㍣扤搸㉥㝡挸㌳攵愹㤶㔱挰愹收昱㐷敥㙡㍥㈸㐸㈸㥥っ㙢㙢昶慡愱㔶㡥㍤㡢㐲㔷㕢㥡㠰昹㙣㜳改㐲攵㌱晣ㄴㄶ捥㠱㥡㙦㕥昷攱ㅢ搶〵㝡扢摢昰〹㝦㕡㡡挲㔴昲㥥搶收ち搵㔱㑡戲昴㔳搸昵㈵捣挳摤㔷㙤㡥㥣㜱㌳㝥戳㜰㐲㄰捤攴㐱㥤ぢち㝣攸〹捦㈷㑤昰挷㝣攲㈴戵㐴㠶㠳㘶搱㉦攳㥢愴㌳扥㙥㤰㌵〳㕢昴㡡攰㤰㠱ㄷ愱愹㘰换戴ㄸ攷愰㍣ㄹ愲攳挱㠳攱昷㘳挹挰昳〶㜲昰昵㜲㤲てて㔲㜹㈲散晣摡敢㔵挳㌱ㅡ㤰㐰㌳㝥㘷㤲㤹散晣搵戰昳㑥㝣㥢㈶晢㈴㠸㔹㑣敦㠵㥤㐹㡥戲昳㔷挲捥晦搸戹愹搲㌹愴㍥㝦收㌴㐹㈳㐶攳㤷㜷愰挸㜷敡摤攸㥥搶愹㐵㜴攸㝥㌵㌱㔲㍡搰㑢㔲㡦攸㐴㐸㡣㠳㉦挵挷㄰攱㠵㐰ㄸ㠸ㅡ晦㍦㡣㌸㠴挸慦㔱捤搳昰㈱昸㍣㕣敥㡥㉡㥦㌸㌸愳㡦㍢愸㘸搷て戹戸㔹ㄶ㔷ㄴ㡡㐰㈹㑡昹攷扢㠴㙢㈲㐶㠱慥㥥㐷攸㉡㑣㌲㤲愶㌵ㄱ㉡摤㑢㈹攵昱㄰戲㠹挷慢㌸愳㝥ㄹ挰㠱㜰㐰捥㠲晡ㄵ攴扥㍢㡡㌱摢㠹ㅥ㜲㍤挹搲㥥㐰〱散㤰㥣㡤攰捦㍣㠹慣㍢晣㕦㍡晡收愵戱㈸愹㥣ぢ摦ㄱ挵ㅥ昵㈹づ昸ㅡ戲㌶搸慥㤵〰昷㜲敡搷㔱ㄳ㝤ㄷㄹ㠷㝣搷㌷㔱〰晢攴搲㤶㝤㐶摣㐱㡢搲晡㘹っ㔵戸㜱捥愱㝥㉢㈸昰㐱攱慥挹挵ㄵ〷ㅢ㈳敢愴㐰㔲㥦㘱つ㌷挵ㄵ慡摦攱ㄳ昷㈲㠷㝦㌷㈸挸攱摣㠸ㅣ㙥㐵㠷㝦㡦㕤攴㑢㔱愸㤱㘳㍤㝣戹㍣㠲攷㔰攸㙡敢收㥢敥挷㙦昲慣㔲㌸㔹㍣㜹昲挳敥㔴摦收搴〳㕦攸㝣攱扤㍦扣晦散㍢㕦摣昳昷㡦㕥㝡改㥤扦㍥㝢晥愳户愶昷晣敥㤵㔷㝥㝢昸〷攷摦㕦慢扦㥣㝣晤挳戱㤷ㅦㅤ㍣晤攸㈳晡昱㙤〷ㅥ㝤昰搴㝤㠳ㄳ㔷昴户戵戵户摦摣晢晢㉢㙦改㜹晣㤱㌷㤴㕦晦㜹愳愵挸挵攳〵戵换攰㈶攴㌲㥥㐷〱换攰㡡㍦搵㘵㜰扢昲愰㘶㠳㠳ㅡ㐶㐵ㄶ昶〸㉥㐰㌶捣搴㌶㜴晣〷晦㘹㥣㍢ | C27: 㜸〱敤㕣㕤㙣ㅣ搷㜵摥ㄹ敥㉥㜷㤶㕣㤱ㄶ㘵搹㔲ㅣ㠷㠹敤挴〹㠵㡤㈸㕢戱搵㐰㤱昹愳扦㤸㤲㘸㉤㈵挵㠹ㄳ㙡戸㍢㐳㡥戵㌳㑢捤捣㔲㘲攲搶㑥㥡戴㑤搳昶挱攸㥦ㅢ〷㑤㔳昴愱㉦㈹搲愲㑥摣㈶て〵ち戴㈸散愰て㐱㠱㍥ㄴ㜰㠳愲〵摡愲㄰搰㤷㍣〴㐸扦敦摣㤹摤搹㕤敥㤰㕥摢㉤㕤昰㔲㍣扣㜳敥捦摣㝢捦戹攷㥣㝢捥ㅤ㘵戴㑣㈶昳㌳㈴晥㘵捡㌲㜳㕦㘵㌳〸㉤户㍣搷愸搷慤㙡攸㌴扣愰㍣攳晢收收㠲ㄳ㠴㐳愸㤰㕦㜶㔰ㅥ攴㤶〳攷昳㔶㘱㜹挳昲〳㔴捡㘵㌲㠵㠲愱愳㥣㥤昰㜷㍣㝥㌰搸㙡㌴ぢ戰㌴㌷㝢㘹攵㔹昴㕡〹ㅢ扥㜵㘴昲慡㙡㝢㜲㝡扡㍣㕤㍥㜶攲搸挷捡㐷㡦㑣捥㌵敢㘱搳户㑥㝡㔶㌳昴捤晡㤱挹挵收㑡摤愹㍥㘹㙤㉥㌵㙥㔸摥㐹㙢攵攸㈳㉢收愳㡦㑦㍦㝡晣戸㝤攲挴攳愳㜸㜵收攲摣散愲㙦搹挱摢搴㘷㡥㐳㝥㜴摥慡㍡㥣㥢㘵昹㡥户㕡㥥㥢挵扦挴昸昱昴㔸戹戲㘶㔹㈱㕦㙤昹㤶㔷戵〲〳つ㐷摣㤹㈰㘸扡敢㕣㍣挳㍤㠳愹㔶捤㈰捣戹㜳㔶扤㙥戸㜱慦〵昷ㄲ搶慥㙥㙥㡥扡ㄵ换ぢ㥣搰搹㜰挲捤扣扢㠴㡥㙡㈵昷㑡㘰㕤㌶扤㔵敢愲改㕡㌹昷㙣搳愹㘵㔵捡っ㝤㈸敥㈲㌹㌰㤹㝥㜹㈶㜰攷搶㑣㕦㐶ㄴ㜰㘱㔲敡㥥昱慢㥤㜵ㅦ攸摦㉦㠷㉥㙦㘰㥦て昵慦㠷㤲慢愶摦慡㌹搵扦㘶㌴昹捥ㄱ㝣戴㝦晤挴ㅡ㜵戶昹㜰晦㌶戲㤴㥤戵戵㤱㠸扦㘵㐵㌱ㄹ㈳㑦㌰㑣㔰㈰㈰〱㡤㈲挱〸挱㈸㠰㤶晤㙦散㤲㘴㐳ㄶ改换愶扥扣愲㉦㔷昵攵㥡扥㙣改换戶扥扣慡㉦慦改换㡥扥晣慣扥㝣〳㜵攲㔴ㄸㅥ搶愳昴挳挷㥡㡦晦㝢㌸㝥昶㝢慦摦㔸㌸晣攴收换愳晢㔰改愹㘸㔰昳扥㜹ぢ慣搶收攲㘳攵愳晣搹㝥㔷㘰㔳搸挷敤挷散改改摡昱愳收㈳㘶㡥搳㑡㈱㝥〷愳㡣愳敥愸㝤捤昱㙡㡤㕢㐲扢晢㘶捤挰㙡㉦摣㔴㔴㌶摢㘸㝡戵攰㍤㕢ㄷ㔶㐲㌳戴づ㜷㤷戵㍢改㘹㔶挱戶戲〲㜹摦晤摤捤慥㥡昵愶㌵㜳摢㔱挵敦敤㉡㜶ㄷ晤挶㑡晦搲㌳扥㜵戳㔵摡㌳愲ㄹ〸戵つ改扢㘷㤶慡㐸㡤㙢㜲㙥慤ㄱ㔸㥥っ㙦捡㕤㜴慡㌷㉣扦㘲㔱㈴㕡㌵㤹敡摤㉣㡡㜶晤搴㈵てㄳ挵㙥慤㝤㈰㠹戵㑦摦づ戱㤹慤ㅡ挶扢㙥昹攱收㤲戹㔲户づ㜶㔴㔱敦㐴挱愱づ昴㤹㐶戵ㄹ捣㌵扣搰㙦搴㍢㑢㘶㙡ㅢ㈶㈴㑤敤㐲愳㘶㘵戳ㄹㄱち㄰戸㐳㐳㥡㤶昹㐸晦扤㈰㠴㐸㤰㤸ㅢ昹摥㑥戶㉢㕦挶散㌰㡢扡㐵㥥搴ㅦ摣愶㌳㡥㔷㘴㑣捡づ㑣捣㠹晡㠳㉦㝤㜸㥢㙥㕢㤴㝢㘷㉢敢晡㐴㌴晢搳ㅢ㤶ㄷ㥥㌳扤㕡摤昲㔳戵㥦挶ㄱㄹ㘳〰戹㍢㄰〸㝤㔷㡦慡㑥扢慤㙤收㙥㌹戵㜰㉤扦㘶㌹慢㙢㈱㜰搰㤰㠵〲㤷戶㈷ㄹ㜷〱㘵散㈷㤸〰㈸ㄶ㌳昹〳慣㤴㉦㈲㘵㜲㤴㑥㈹㝢戹㐳㤰戳㕤挷㕥ㅥ戵捦㌸昵搰㔲㐲㜹捣〶㐵㤴㔶ㄳ昲㤵挸愲扥㔹㔵ち攳㠰㍤〷㉥㌵ㅤ㉦摣㙣敦摢㥥㕤愲㤸㘸㑦ㄶ散㍡㔹㐰㔱搰㈹て㔲昶ㅡ㤸愶㑢ㅡ愴㔷㑥㌰ㄱ户㐱㡡㘶㐷捦㥤㑣挶晡㈹㌲〲昵㤳㑣挸摡㐷晢换〸㌲㝢㉦㤳戲㔱摦晤戸㈷捤戶戲攵㤵㌴扢ㅢぢ㘷ㅣ㈴戸㠷攰㕥㠲㐳〰摡扦㐲挲㔱捡㈱摦㤹㡣昷攰搹戸㡦攰扤〰㤰㑦〶㘵㑥㈴慡㘸㐳敤挴㡥㘴扤ㄲ散㘴㌱㡡㤵㈸愲㘵摣戲㌳㑢慥㄰㍡戲㍡㜷㠷慥捤㡡㡥晤㘰㝦摥㑣㑥㠷ㅣ㤹㔲㌵㌹搷㙤慡㈶ㄷ㠲㔵〷搴㕢敦㐳㔳㘳㤲攰晤〰㑡戱搰搸摤㤹㌵㑦㜳昲㕤㘱ㄲ㈹㐳㘸㐰攵ㅥ㌱㌱捤晦ㄴ〱搷㜳㜴搹戳㥦㘹ち㑥搹敦㝡晢昹㐸晦扤ㅤㄱ扤㑢㘷敥改ㅣ晡㡡摥愴〵晤〱㙣㉦敤㥦晡敡㤷〷㔱㙣㍣㐴昰㐱㠰㉥晤挲㤳昷㥢昵ㄲ㠸㐹散㈶㈸户㥦ㅥㄷ戱㜰㤷㌶搷㉤搱㍥愳昶㤲改慦㕡㈱扣ㄷ攷攷㘱〷㌷㝣摦慡攳㐰㕢ㄳ〴捦㉥昷㜴㈲㠳㌳㝥挳㈵㝥捦㍥づ摥ㄵ㡡㈱㥢搵㠷㌲㕤昶㜱㡡㥤㤹昰㌷㈵㌸㠷晡昷㤱晥㐲㈲搱愸㤳扤搸㉥晤㙣戹㈷㐹〶㤰㈴て㘳㔹㡤て〳㐰㑡㘸晦搰㔷愲㑣戱摡ㄱ愹搶㘹慤搲扢㤷㜲㌲改昲ㅦ昶挸㤱ㄱ攵慣㥤㠵敦㈰㈸戹ㄵ挷㙤〹㡢ㄱ㜷搱昲慢昰㉢㌸㜵慢愸㕣戲ㄴ㌵㝢戲攲㕤㈲㉢㠶㠶㝡捥搲㈹扥㌵攱㤳㉥㈹㤱扡摢㔳ぢ㔳捥攱㙤愶愲ぢ㤲㐲㈵挵㉤搴㤲㐰攴㍣搶摤ㄳ㌱〳㠸㤸㌲ㄶ捥昸㈸挱㔱㠲㘹㠰摣て㈱㘹㜶扡昰っ㠵つ㙦搰㥤扤扣㥣㈹㤰っ攲ㅥ㝣扤慦戰㝡㤴慦㌹㑥昰㌱㠰㉥昳㠷捥挷ㄴ㐶ㄴ㤲㈷ㄸ㤱搶㤲㘱㕦㜵慣㕢攴㠱㝤㌶㠲㑡㜳捤㈰㙣戸㡣㉡㤵散昹挶挵㐶㌸敦〴敢㠸㐲㑤搸㔱收摡㥡攵㠱扢㝣搸㍥㕤戸挶晡扡㔵㌳散㑡愳〹搱㜶㝥㝥㌷ㅣ捡㌱㍦搸㤲㜲㉥搷㌵愴挱捥挶攸㐲㤳ㄳ㌱㝣慤昴挴敥挸昳捤㐳摦㔸㝢㐵㤷㥣戰㙥㡤搸㙡搳㌱㕦戰戱㡡㠸ㅡ搴㠶敤愵㌵摦戲收㑢昶㔹摦愹搵ㅤ捦㈲㌱㘰㘳㌲㔰户㘰慤㈲㐲戰搸㘰晣慦攱㤵散㈵摦昴㠲㜵㤳挱挴捤晤ㅤ㑦ㄲㄲ挹搹戳㡥ㄷ攰㌵㐲㐵收挷散捡㕡攳ㄶ愲戵㑤搷㍢㙢慥〷扢㠲㉡㘴㝡㤵㠴㌴㥡慥改扡㔶搰ぢ㠳搲㠷〷昲㑣收ㄸ㝥戳〴㐲慢㑣㡥晥昲ㄴ敤㑤扢㍥㡡捦搰㑥攷㤸㐶ㄱ㌹㙡㈱㠷㔲愵㌰㜷慡昱㌸摢㥣〰昸攴搹㉢攷摢㔱戹户ㄴ慦捥搱挳㥦㈲攳㠵㉤㕡㐱㄰晡攷昶㈹㔶㈱㡥㥣㠳ㅤ〸㡡昳愹㥢晤㡡戶搴㈱昷敤㙢㘷捦㈰㡡㌴㙡㉦㤸㉢㔶ㅤ戱㘸搷っ昷愹〷㥡戱慥㔹て愲戲戹㠶敢㥡㘴㉤戲㘵愵㙡㤲㠳㘷㥡㘱攳㠲攳ㄹ㌶㠰昰㕦㠴㌲㙦〳㘵摥ㄶ搴愸㝤㤹㘱㐱挹戳慦挶慡改㍢攱㥡敢㔴ぢ㝣㘰攸㙥㔷昰㈴㌶㌹㈵㙦㥣㘲㤹㌱搹㘵捤㕦㠱挹ㄶ㤴㐱敥㌲攴㈸㤷㡥攴〷攷敡㕡ㅥ㍦摡㠰㡥㈵〸ㄸ昱㤲ㅡㅦ㐷㙦㌹戹ㄹ〱㤱㈳改㑥㝣晦攲捥昳挰㈸扦ㅣ愹㥥挲㈲昰〸㈶㠴㍣摤摢㜹晢㡡攷㠴愰ㅥ㈹㜶挶〹攷〳㤰ㅣ〰㔹㌹摥ㅥㄶ慡㈶ㅡ㑤戵戴挲晢㝡㡢㍡搴挴晤扤攵㐹扤昱攰ㄶ挵㑡愳㈴ㄴ挹㜶㤵㐴戳㙣㌱挶摤愴㙡㌴㔱摣戱戶搱搲摣愶敤㜵愷ㄴ㜹ぢ㡡㐹㜸㈶㘳㥣ㄴ㐶㐱㤰㤷摣〱ㅤ㐵㝦㝤㍡㝢㈴愲㌵戴〱㡡搴㔳ち㔷㡡挲㠱攷㜱攵愴㘶ㄵ愳㈷散敦㝤㔱昶㔲㌳散㈸㌱㙦㑦㐴㈵㌳昵晡㈵て㔶㐲搵昴㙢扢㘴㑢㘳㙥㑡挳挸敥ㅣ㔴晢慢攵㑤㙣挴㘸ㅢ㌲㈴㤲攲〷挶㌶挴收㑡㐴㔳㘹㥤㤵戸搴㉤㜴㠱㑦ㄷ㉣搳ㄳち㔴挲摡扣戵㈱㘶㔸摢㤲㥦㤰〶慤搳愲挸㔱挳㥥㔹〹愰搲㐳捡昱㈸㈷ㅢ摣戰㉦搳㉤㠵ぢっ㄰扢㔱㙥戱ㅡ㈲慣摢敡㠰㈷㠳摤㐳ㅤ慣㠸ち㥢搰㍡愳〴捤愷㌰㙥攷㈴戸㜷〶愴㈸〴愹㉤改扦㑥㘹扦昷ㄲ搳ㅦ㥦捡挴㤹㘸ㄳ㌱搴㤵㘲㍤㠰戸挹愸㈴㜷搱㐴ㅣ㉣㔷㤲㑤㠴搶㘸㡣愳㠹㔱愲挹攷㠷戸挱挳㌸搶ㄸ户㑤ㅤ㜷摣㐲〷摡戴扥戹捦㍥敦㔵敢捤㥡㈵慡㌸㤶搵愲㤱㜷〵扤攴晡㥦摡㑤㈹敢ㄲ㉤捡㜹ㅣ愵㌸㘵ㄲ㘹㜰扢摢昸〴㥡㡢㤰㐳ㅦ㑡戶㌱昸㤸攲㤶㤳㘰㔸捦ㅤ〵摡㠷晢摢㤷ㄷ攴攲ㅣ㐴㕡て㡡戲㙣〱㜷昱㕡ㄱ㘴搹㙤㠹㙡ぢ㡤㠵〶㙤昶〴敡㥣愳㔰扢㠲㐶㤸愷ㄲ㜸昹㍣㡣㤱〱㜷〷㍢挹摣㠹㈲扢㜷㥥㤷挷捣㥤㔳㤱昱愱㌱扥换㔳㔰〶慢㡡㡤㐴㠳㕢㙦㕢摤ㅡ㈳扦戴扣㡤㈷〰㌴㠶㠰㘹搰愲愶㌲㜰㘶㤱摦摥挰㘱㌰㌲㈵㍡㥡っ愴㌲㐶㌹〱㠷㍤㠸㠶摤挴㠳昴㔲〳㑡㈸㍣㈰㤷挲攲㝢㠹㔳㉥㡥㐰つ晦㘰ㄷ㜲搱っ㜱昵挵㍢搴㠵㥥愹搵㘸敥挲㍦户㉢愸㡡㙢ㅢ捡ㅣ㍤搰㜵㈱㑢收㐴晢敥㠱慥㠲攸愲攰戱昹昲㌹㌳慣慥㔵挲㑤㜵㘹㙢㐰㤶搰㜳㍦㠰㍦㘲换户搳㘶捥㝡扣㠴扡挱戵㉦摥昰ㅡ户㍣ㄹ㔷㉥攰㡤㍦㕡戱挶昰㌰〷㔹捣晣っ㍦㤲昴㑣敥晢攸㜱㈷挳㘶〷㙤〷〹晢㤱㔴㌴㑥攳㉦慤㥤㐹晣㑤攱ㄵ搸敦慤㕢〳攴㤵〳㕤扣㈲挲㘰㡦㔹扣搵户㡢㔹㌲摡㕦㠰戴㘴ㄸ㄰㍣扥㈰愲㘷戴㔷昱㐰愲㠳〶㈰㥣㜱㡥㄰攴㝢㍦晥愶㤰㑦〴㝡㜴捤㠳㤷㐲晥晦㔰㉡摥搵㕢㙥慢晦㠵㑤慤㝤ㄷ挴㄰㌲㠱㈶慤㝤愹扤搲㐹愶㈷㈳㌲㌱㈸晢愶挲摦㥣挱摥戱昳ㅤ扦攲晢㝦㜸散扣〰ち㌳㠹㘵㠶〰摢㠳挸户っ〳扤挷㌰㜸〸挵㘲ㄸ㕣㘴ㅢ挶敥㤵㘱㄰㜹㍥ㄶ㠱搸摥㌰㘰㐴㉦挵晣㑢〴㔸ㄳ捥っ㥥扢づ扡昴㡡㥤挳㔵㕢㉢㐰ㄴㅦ慡㉡㤸㠳ㅦ敡㥥㕥昴愲改㥢敥㈱挱㥦昵㉤愸㌰㝦〹㜷户愵〹㕢ㅣ摥戲㐴ㅡ㙤攱愱㠸㝤敢㝢㕥㤴㥤摤㔸〷愵㔴㔲㑥㝢慤愰攵摦㠲㝦㐴攳㘹㈱昳㠵〳摦㍥晢捦㥦晦昲㈹摥㔱㡢㜸㌵挷愰昰㈰㠱㝡㕡㄰〸攵㈶慥㠷摣捤㑦㜱㉥攰愳㈴㘷扤㙥捤㥡扥搸㍥㠱攱挶㔹挵㜸〹挶㔴捣户ㅢっ㑢摣㜶㔰㠶㘵戹换挹㈹㥦㌲㠹㘳戰㥣ㄸ戸㜸昲攲㘰愱搶㔷㙤つ㘸㘳收晥〴㡡攷㑤づ愴搳㌶攴㔹㤳㐹搳扥ㅤ㙢㌶㠵挸㘴㡥攳晣愱づ㤰摡ㄴ㜰戱㤴㐲搴㠱ㅣ㤲㍣扥昰ㅡ㠰㐸愹ち㌲戹㌲㐰㑡㍣慤㍢戰㑢㉦挰㥥㄰戰㕡㔷晤〶晣㙣〵慢〸㉡挶ㅥ昸㐱捦戱㍣昴挷慡㠹〱㕡㌹㠹㉣㈱㈳㐷ㄶ㈲ㄸ戱ㄵ散ㄵ㘴攲㤴㥢㐶㙥挷㑥㈸扥愴攴慡㜰㥢摡搸㌹㤷ㅥ戶愲㝢摡㙢攲扥〷昴㑣㕥ㄴ㠶户㥦㘸ㅣ㐳㈵㌲愷慡ㄶㄵ㡡㜰㑣㘵㕢㡤㐶愲㈲攸㉣敦㄰捥愲〸昹昱摢㈰㤶㑦戵扢扥扢扢㠴㍡捥ㅢ挶〴昹ぢ晢敢晥㤴㡤㡤户㜲挷㐰挲敥愸㔶㐱㕤〸扦㡡㈶㥣㜴㐶㌳摡㔹㜹搶ㄸ㤹㡥㜷搶㔰慦晥㘷捣㕡㜶搶㌵戶㘶昰扡㐳晦㍦つ挴戶晡㕦㘳挴㑤㐸昶改㈸挳㠷ㅣ愳㈶摢〶㙡戸㈲昰㘷㈳㘴㈳挷㘱㐳戲っ㜴慢㕣〵㥦慢慡㘲㤱攰昰㜶㘵扢㉦㐴戴摡搲戶ㅤ改㉢〰㑦㜰㐸㝦〴ㄱ搴户㍤〷摤㝢愶捤㍦〳昴㠱ぢ㑥搵㙦〴つ㍢㥣慣㈰搴㍢挹慦捤㙣搸㍣㌳摡ㅦ㜶ぢ戵〷戰ㄲ愳㥦㐳㥢㡢㤷㈰戰㉦㕡攱摢ㄵ㠱㘴㍣㘱㘷昱ぢ㝥㜹㌴㥥〸㉡㔱㍢〴㜷搹㑦㌵捤㍡㍥㔶扤〴て㘷㐸搴慥㔰㜶捡捦摣㝤㉦㠳㑢㠷㥢㔹㑦挲ぢ㘴搵换〸㠹挹ㄴ㍥昳㔹慥㙢昷ㅡ㜴搶㡤收ㄶ戰收㘰㥥戶㘲敥て㐰搳㥤扤愵㤳㘵昸㑥㝥㠳㕣㌴慥ㄳ攲ㄸ晤〹晣摤戹㕢㤶扤㑤㠰捦愳㑦戸改晥㥡慡挳㘹戶㠳㤸户㠹愶摡ㄳ〴昸㌵㔶愲っㅦ㌴晡昶戸ㄵ戵㙦㘰㕡摣〰挸㘷昲㌵㠰晥㕣晤昵慤戸㕡愳㙦㐷晡〷敢㘷㘸户㠹敤㐶㤷㠱㘰㔷㤳㔸㥥㔰〵扢㤶挴昲㜰㐲㍥㉥㙡扦㠳㌷㜰㥤搵㝡㍤㑢ㅣづ㉢㜲〸㐱摥戸〱㄰㈷㡤㠷㄰㤹挱㙦愲㐱㙢〶㉥戰晤㘷昰攲㤶㌳愰昹㈰愳㑡昶㍦ㅥ慢ㅦ㘳ㅤ挵挶㑤〲㥦㈰〰ㄸ㡦戵搰ㄸ〵㉢愵㔵㕥㠵㈴㕥㍤㠵㍣搲摦㐷㝦摦㌸昵晡㙢㑣晦㜹㑡ㄳ㔱㡡愲捥㔹㔰㤴捡㉣扥㤶㥣挵〶戰晤㘷昱搵慤㘶㌱㑥㈹换㤱ㄸ户〱㑡㐳摡㜵晣㤱㔹㙤㐶ㄹ㍥㘸㘶㡣敤㤸㉢㔹㐳摡㝥〱㤹搲搰㌸㐹㐹て㡥昱ㅣ挱捦ㄳ晣〲挱昳〴㉦㄰㝣ㄱ愰愴㡦㤳扡㔲昱㑢㐴晥㈲挱㤷〹扥㐲昰㑢〴扦っ㠰㡡㈴戸㔴晣ㄵ㈲扦㑡昰慢〴㕦㈳昸㌵㠲㕦〷㈸改ㅡ㠹㉥挳晥㡤㈸挳㠷昱㜸戴㌹ㄲ㈳攵愳㈴戱昲㜸㠹㤳敦捡㉢㐷㜲㕥改昶㠲ㅢ㜹㤰㜷㠵㠴㡢㝣晦㝤ㄵ㔳㝥挰摢〹摡捤㤸㌹捥㥤㡢晣㜷ㄹ㍤㡡㤷㠱㌹㈵㌰愳㤱㤹戹㤰摡㝡㕣昹㍢慦戴摤㑡㈸㐰〲〷慢捡㘴㝡愹摣㠸㉢ㅦ挳搷㘴㔲〷㍤慢昴㐶㕣㤹㥢㐳㉡㝢㜱攵晦㌸㜶愸㔵㌹摥ぢ慡攷ㅣㄹ㌵挵㘲㤷㌳㑣攲换㜲扡〶㜲㌶慤㠰ㄱ㕢愱㈹晦㈵散㕤ㄷ㍢㘰ㄴㄷ㔹㝣㝣摢扤㠰㝢㔹戸扥〲㔵愱晥㡢㠷昳戸慦㌵㙦㠶㈶㍥摤摥㐰愰摣㌷攴㠹㡤昳昶㈵ㅦ㠸㘱晢㝣㠰㤳㘱㙤㔷戱〸㡣㥡慣㕡摦㙤〲ち㈹〶㜰㝢㍤攲〰㥦捥晢㉦㠳愹㐰〹ち㘵戵㝡㑣搹捣ぢ㙤㥥㌱㝥ぢ挴㠱愸〶㘴挶昸㙤㐰ㄵ㐴㍡㐰挴㌸㘵㤰〸㤸摦㐵〶挲㠹㜲㠶攴捦扦〴㌰ㄶ晦扦ㅡ㤳ㅢ攲散搱㌵㍢㝥㐷㤲㝢㡣慦戳挱换〰㐳昰㌴㙢ㄱ敦ㄵ㡤㙦〰㤳㜸㔷㡥㌲敢攳晤㡤㘹㥥㤵攳㙦晤ㄱ〱敤昸愸晦㌴㍥搲摦㘴挷㐳昸㍦㑡㜲㘲昹㘷昵㥦ㅢ慣㉦昲ㄷ㡤㜶昹㌵㌱愱户搰て搷戵㙤㠴戲㐷搱㤰ㅡ㈵㌳愷慢㕤㐷晦㝣〷㙤晡愲㐶㔹㉤攸攵〸㝤㔰搰㤴摥㠲晥㕣㠴收愵㠸愲昶㐲㡣晥㙣㠴㝥㔸搰㕦㡣搱捦㐴㘸晡㘱㡡摡㤷㘲昴㘷㈲戴ㅡ〹㐵扦昴晤改〸慤㐶㐲㘵㈰攸愷㈳戴ㅡ挹㔷㘲昴愷㈲戴ㅡ〹ㄵ㠶搴扥ㄶ愱搵㐸愸㐲〴㝤㌵㐲慢㤱㔰㤳〸晡㑡㠴㔶㈳愱㙥ㄱ昴㔲㠴㔶㈳愱戶ㄱ㜴㈵㐲慢㤱㔰晦〸晡㜲㠴㔶㈳愱㐶ㄲ昴㔳ㄱ㕡㡤㠴㍡㑡搰㡢ㄱ㕡㐶㌲㑥㔵㈵摣晤ㅤ㘴㑡㐳㌹㙥㠶ㅤ敦㑡搲㜶㐰晢敥㑦搱㔴攳㔶㘳ㅦ挶㥦㐵ㄹ㍥㘸摣㘷㌲搲㠵㘸愴愷㔸攵捦㔹挴㙤挴ㄱㅡ慦昰㠹扢㐷㥡㝦㌷捡㐸㜳㑥㐴㥡㐳㠹〸㘳㐹昳㔷㔹㐵㕥㡡㑣㠷ㅤ㌳捥㤷换ㄲ晣㈵㌲愵愱㌱扥改ㅡ㝥昵摢㕡昵㝡敤晡昵㥦㡣㘵㈷て㘷㍦昵挴攸㑢㙦晣摤㡦㕦晣搱㌳㈷晦敤愷㉦扦晣愳㝦㜹昱戵㥦㝥㝦攵攴摦㝣敢㕢㝦晤挹摦㝦敤挷晢敤㙦敡慦晣㘴攱㥢捦㑤摦㜸敥愶㝤攵㈳㘷㥦㝢晡搹愷愶ㄷ敦㥡ㅡㅡㅡㅥ晥搰挴摦摥晢昰昸ぢ㌷扦愷晤搵㍦摥攳㘹㌲㜸扣愰㜳ㄸ㥣㠴っ攳〷挸㘰ㄸㅣ昱㍢㍡っ㑥㔷ㄶ㙡㌶㕡愸㔹㈰ち昰㘰㜱〰㔲㌰搳㔹㌰昲㍦ㄴ搲㌴ㄸ | D27: 㜸〱敤㕣㕤㙣ㅣ搷㜵摥ㄹ敥㉥㜷㤶㕣㤱ㄶ㈵搹㜲ㅣ㠷㠹敤㐴〹㠵㡤㈸㕢㠹㔵㐳㤱昹愳扦㤸㤲㘸㉤㈵挵㠹㤳搵㜰㜷㠶ㅣ㙢㘷㤶㥡ㄹ㔲㘲攲搶捥㕦摢㈴㑤ㅥ摣㕦㌷づ㥡愶攸㐳㕦㔲愴㐵㥤㍡㑤ㅥち戴㘸㔱㌸㐱ㅥ㡣〰㜹〸攰〴㐱晡搰愲㄰搰㤷㍣〴㐸扦敦摣㤹摤搹㈵㜷㐸慦敤㤶㉥㜸㈹ㅥ摥㌹昷㘷敥扤攷摣㜳捥㍤攷㡥㌲㕡㈶㤳昹㌵ㄲ晦㌲㘵㤹戹愷戲ㅥ㠴㤶㕢㥥㘹㌶ㅡ㔶㉤㜴㥡㕥㔰㥥昲㝤㜳㝤捥〹挲〱㔴挸㔷ㅤ㤴〷戹㙡攰㝣搲㉡㔴搷㉣㍦㐰愵㕣㈶㔳㈸ㄸ㍡捡搹〹㝦㐷攳〷㠳慤㠶戳〰ぢ㌳搳ㄷㄷ㥦㐲慦㤵戰改㕢㠷挷慦愸戶㈷㈶㈷换㤳攵愳挷㡦㝥愰㝣攴昰昸捣㙡㈳㕣昵慤ㄳ㥥戵ㅡ晡㘶攳昰昸晣敡㘲挳愹㍤㘶慤㉦㌴慦㕢摥〹㙢昱挸㠳㡢收㐳て㑦㍥㜴散㤸㝤晣昸挳挳㜸㜵收挲捣昴扣㙦搹挱ㅢ搴㘷㡥㐳㝥㘸搶慡㌹㥣㥢㘵昹㡥户㔴㥥㤹挶扦挴昸昱昴挱㜲㘵搹戲㐲扥摡昲㉤慦㘶〵〶ㅡづ戹㔳㐱戰敡慥㜰昱っ昷㌴愶㕡㌳㠳㌰攷捥㔸㡤㠶攱挶扤ㄶ摣㡢㔸扢㠶戹㍥散㔶㉣㉦㜰㐲㘷捤〹搷昳敥〲㍡慡㤷摣换㠱㜵挹昴㤶慣ぢ愶㙢攵摣㌳慢㑥㍤慢㔲㘶攰㍤㜱ㄷ挹㠱挹昴换㔳㠱㍢戳㙣晡㌲愲㠰ぢ㤳㔲昷戴㕦敢慣㝢㕦敦㝥㌹㜴㜹〳晢㝣愰㜷㍤㤴㕣㌱晤㔶捤㠹摥㌵愳挹㜷㡥攰晤扤敢㈷搶愸戳捤㝢㝢户㤱愵散慣慤つ㐵晣㉤㉢㡡挹ㄸ㜹㠲㐱㠲〲〱〹㘸ㄴ〹㠶〸㠶〱戴散㝦㘳㤷㈴ㅢ戲㐸慦㥡㝡㜵㔱慦搶昴㙡㕤慦㕡㝡搵搶慢㑢㝡㜵㔹慦㍡㝡昵㈹扤㝡ㅤ㜵攲㔴ㄸㅣ搴愳㌴昸捡敦捦㝦㈷挸㑥㍦晦挵㐳㤵晤㡦摣晣攷攱㍤愸昴㜸㌴愸㔹摦扣〹㔶㙢㜳昱搱昲ㄱ晥㙣扤㉢戰㈹散㘳昶〷敤挹挹晡戱㈳收㠳㘶㡥搳㑡㈱㝥〷愳㡣愲敥戰㝤搵昱敡捤㥢㐲扢㝢愶捤挰㙡㉦摣㐴㔴㌶摤㕣昵敡挱摢㌶㉦慣㠴㘶㘸摤摤㕤搶敥㘴㐳戳ち戶㤵ㄵ挸晢敥敤㙥㜶挵㙣慣㕡㔳户ㅣ㔵晣昶慥㘲㜷摥㙦㉥昶㉥㍤敤㕢㌷㕡愵ㅢ㐶㌴〵愱戶㈶㝤㙦㤸愵㉡㔲攳ㅡ㥦㔹㙥〶㤶㈷挳㥢㜰攷㥤摡㜵换慦㔸ㄴ㠹㔶㕤愶扡㥦㐵搱慥㥦戸攸㘱愲搸慤昵㜷㈵戱昶愹㕢㈱㌶戳㔵挷㜸㔷㉣㍦㕣㕦㌰ㄷㅢ搶㠱㡥㉡敡㥤㈸㌸搸㠱㍥摤慣慤〶㌳㑤㉦昴㥢㡤捥㤲愹晡㥡〹㐹㔳㍦摦慣㕢搹㙣㐶㠴〲〴敥挰㠰愶㘵摥搷㝢㉦〸㈱ㄲ㈴收㐶扥慢㤳敤捡㤷㌰㍢捣愲㘱㤱㈷昵晢户攸㡣攳ㄵㄹ㤳戲〳ㄳ㜳愲晥攰㑢て㙤搱㙤㡢㜲㙦㙥㘵㕤ㅦ㡢㘶㝦㙡捤昲挲戳愶㔷㙦㔸㝥慡昶搳㌸㈲㘳〴㈰㜷ㅢ〲愱攷敡㔱搵㘹户戴昵摣㑤愷ㅥ㉥攷㤷㉤㘷㘹㌹〴づㅡ戲㔰攰搲㙥㐸挶ㅤ㐰ㄹ㝢〹挶〰㡡挵㑣㝥ㅦ㉢攵㡢㐸㤹ㅣ愵㔳捡㕥敥㄰攴㙣搷戱㤷㠷敤搳㑥㈳戴㤴㔰ㅥ戱㐱ㄱ愵搵㠴㝣㈵戲愸㙦搶㤴挲搸㘷捦㠰㑢㑤挷ぢ搷摢晢㜶挳㉥㔱㑣戴㉢ぢ㜶㥣㉣愰㈸攸㤴〷㈹㝢つ㑣搳㈵つ搲㉢㈷㤸㠸摢㈰㐵戳愳攷㑥㈶㘳晤ㄴㄹ㠱晡㐹㈶㘴敤㈳扤㘵〴㤹㝤㈳㤳戲㔱捦晤戸㉢捤㌶戳攵㤵㌴摢㡦㠵㌳づ㄰摣㐹㜰ㄷ挱㐱〰敤ㄷ㤰㜰㤴㜲挸㜷㈶攳㙤㜸㌶敥㈱㜸㍢〰攴㤳㐱㤹ㄳ㠹㉡摡㔰摢戱㈳㔹慦〴㍢㔹㡣㘲㈵㡡㘸ㄹ户散捣㤲㉢㠴㡥慣捥㥤愱㙢戳愲㘳摦摤㥢㌷㤳搳㈱㐷愶㔴㑤捥㜵㡢慡挹㠵㘰搵㍥昵搶㍢搰搴ㄸ㈷㜸㈷㠰㔲㉣㌴㜶户㘷捤搳㥣㝣㑢㤸㐴捡㄰敡㔳戹㐷㑣㑣昳㍦㐵挰㙤㌸扡散摡捦㌴〵㈷散户扣晤㝣戸昷摥㡥㠸摥愵㌳㜷㜵づ㝤㐵慦搱㠲㝥ㄷ戶㤷昶㤳㥥晡攵㝥ㄴㅢて㄰扣ㅢ愰㑢扦昰攴晤㕡扤〴㘲ㄲ扢〹捡敤愵挷㐵㉣摣㠵昵ㄵ㑢戴捦戰扤㘰晡㑢㔶〸敦挵戹㔹搸挱㑤摦户ㅡ㌸搰搶〵挱戳换㥤㥤挸攰戴摦㜴㠹摦戵㡦㠳户㠴㘲挸㘶昵㠱㑣㤷㝤㥣㘲㘷㈶晣㑤〹捥愱晥㝤戰户㤰㐸㌴敡㘴㉦戶㑢㍦㕢敥㑡㤲㍥㈴挹㈱㉣慢昱㕥〰㐸〹敤㐷㍤㈵捡〴慢ㅤ㤶㙡㥤搶㉡扤㝢㈹㈷㤳㉥晦攱〶㌹㌲愴㥣戵搳昰ㅤ〴㈵户攲戸㉤㘱㌱攴捥㕢㝥つ㝥〵愷㘱ㄵ㤵㑢㤶愲㘶㔷㔶扣㐵㘴挵挰挰㠶戳㜴㡡㙦㑤昸愴㑢㑡愴敥昶搴挲㤴㜳㜸㥢愹攸㠲愴㔰㐹㜱ぢ戵㈴㄰㌹㡦㜵㜷㐵㑣ㅦ㈲愶㡣㠵㌳摥㑦㜰㠴㘰ㄲ㈰昷〳㐸㥡敤㉥㍣㐳㘱㠳㙢㜴㘷㔷慢㤹〲挹㈰敥挱敦昷ㄴ㔶て昱㌵挷〸㍥〰搰㘵晥搰昹㤸挲㠸㐲昲〴㈳搲㕡㌲散㉢㡥㜵㤳㍣戰挷㐶㔰㘹㘶㌵〸㥢㉥愳㑡㈵㝢戶㜹愱ㄹ捥㍡挱ち愲㔰㘳㜶㤴戹扡㙣㜹攰㉥ㅦ戶㑦ㄷ慥戹戲㘲搵つ扢搲㕣㠵㘸㍢㌷扢ㄳづ攵㤸ㅦ㙣㐹㌹㤷敢ㅡ㔲㝦㘷㘳㜴愱挹㠹ㄸ扥㔶㝡㘲户攵昹收愱㙦愴扤愲ぢ㑥搸戰㠶㙣戵改㤸㉦搸㔸㐵㐴つ敡㠳昶挲戲㙦㔹戳㈵晢㡣敦搴ㅢ㡥㘷㤱ㄸ戰㌱ㄹ愸㥢戳㤶㄰㈱㤸㙦㌲晥搷昴㑡昶㠲㙦㝡挱㡡挹㘰攲晡摥㡥㈷〹㠹攴散㘹挷ぢ昰ㅡ愱㈲昳㈳㜶㘵戹㜹ㄳ搱摡㔵搷㍢㘳慥〴㍢㠲㉡㘴㝡㤵㠴㌴㥡慥改扡㔶搰ぢ晤搲㠷〷昲㑣收㈸㝥戳〴㐲慢㑣㡥晥昲ㄴ敤㑤扢㍥㡡捦搰㑥攷㤸㠶ㄱ㌹㙡㈱〷㔲愵㌰㜷慡昱㌰摢ㅣ〷昸昰㤹换攷摡㔱戹搷ㄵ慦捥搱挳㥦㈲攳㠵㉤㕡㐱㄰晡攷昶㈸㔶㈱㡥㥣㠳ㅤ〸㡡昳愹㥢晤㡡戶搴㈱昷敤㘹㘷㑦㈳㡡㌴㙣捦㤹㡢㔶〳戱㘸搷っ昷愸〷㥡戱慥搹〸愲戲㤹愶敢㥡㘴㉤戲㘵愵㘶㤲㠳愷㔶挳收㜹挷㌳㙣〰攱扦〸㘵摥〲捡扣㈵愸㘱晢ㄲ挳㠲㤲㘷㕦捤㈵搳㜷挲㘵搷愹ㄵ昸挰搰摤㡥攰㐹㙣㜲㑡摥㌸挵㌲㘳扣换㥡扦っ㤳㉤㈸㠳摣㘵挸㔱㉥ㅤ挹て捥搵戵㍣㝥戴㍥ㅤ㑢㄰㌰攲㈵㌵ㅥ㐱㙦㌹戹ㄹ〱㤱㈳改㜶㝣晦攲昶㌳挰㈸扦ㅣ愹㥥挲㈲昰〸㈶㠴㍣摤摢㜹晢戲攷㠴愰ㅥ㈹㜶摡〹㘷〳㤰ㅣ〰㔹㌹摥摥㉤㔴㑤㌴㥡㘸㘹㠵㜷㙣㉣敡㔰ㄳ昷㙥㉣㑦敡㡤晢㌷㈹㔶ㅡ㈵愱㐸戶慡㈴㥡㘵㤳㌱敥㈴㔵愳㠹攲㡥戵㡤㤶收㌶㙤慦㍢愵挸敢㔰㑣挲㌳ㄹ攳㠴㌰ち㠲扣攴づ攸㈸晡敢搳搹㈳ㄱ慤愱つ㔰愴㥥㔲戸㔲ㄴづ㍣㠷㉢㈷㜵慢ㄸ㍤㘱㝦敦㠹戲ㄷ㔷挳㡥ㄲ昳搶㔸㔴㌲搵㘸㕣昴㘰㈵搴㑣扦扥㐳戶㌴收愶㌴㡣散捥㝥戵扦㕡摥挴㐶㡣戶㈱㐳㈲㈹㝥㘰㙣㐳㙣慥㐴㌴㤵搶㔹㠹㑢摤㐲ㄷ昸㜴摥㌲㍤愱㐰㈵慣捦㕡㙢㘲㠶戵㉤昹㌱㘹搰㍡㉤㡡ㅣ㌵散愹挵〰㉡㍤愴ㅣ㡦㜲戲挱つ晢ㄲ摤㔲戸挰〰戱ㅢ攵收㙢㈱挲扡慤づ㜸㌲搸㌹搴挱㡡愸戰〹慤㌳㑡搰㝣ち攳㜶㑥㠲㝢愷㑦㡡㐲㤰摡㤲晥敢愴昶愷捦㌳晤搵挹㑣㥣㠹㌶ㄱ㐳㕤㈹搶〳㠸㥢㡣㑡㜲ㄷ㡤挵挱㜲㈵搹㐴㘸つ挷㌸㥡ㄸ㈵㥡㝣㝥㠸ㅢ㍣㡣㘳㡤㜰摢㌴㜰挷㉤㜴愰㑤ㅢ敢㝢散㜳㕥慤戱㕡户㐴ㄵ挷戲㕡㌴昲㡥愰㤷㕣晦㔳扢㈹㘵㕤愲㐵㌹㠷愳ㄴ愷㑣㈲昵㙦㜷ㅢㅦ㐲㜳ㄱ㜲攸㐳挹㌶〶ㅦ㔳摣㜲ㄲっ摢㜰㐷㠱昶攱摥昶攵〵戹㌸〷㤱戶〱㐵㔹㌶㠷扢㜸慤〸戲散戶㐴戵戹收㕣㤳㌶㝢〲㜵搶㔱愸ㅤ㐱㈳捣㔳〹扣㝣ㅥ挶㐸㥦扢㠳㥤㘴㙥㐷㤱摤摢捦挸㘳收昶挹挸昸搰ㄸ摦攵㈹㈸㠳㔵挵㐶愲挱慤户慤㙥㡤㤱㕦㕡摥挶愳〰ㅡ㐳挰㌴㘸㔱㔳ㄹ㌸搳挸㙦㙤攰㌰ㄸ㤹ㄲㅤ㑤〶㔲ㄹ愳ㅣ㠳挳ㅥ㐴挳㙥攲㐱㝡愱〹㈵ㄴ敥㤳㑢㘱昱扤挴〹ㄷ㐷愰愶㝦愰ぢ㌹㙦㠶戸晡攲ㅤ散㐲㑦搵敢㌴㜷攱㥦摢ㄱ㔴挵戵つ㘵㡥敥敢扡㤰㈵㜳愲㝤㜷㕦㔷㐱㜴㔱昰攸㙣昹慣ㄹ搶㤶㉢攱扡扡戴搵㈷㑢攸戹敦挱ㅦ戱改摢㘹㌳㘷㍤㕥㐲㕤攳摡ㄷ慦㝢捤㥢㥥㡣㉢ㄷ昰挶ㅦ慤㔸㘳㜰㤰㠳㉣㘶㝥㡤ㅦ㐹㝡㈶昷㕤昴戸㥤㘱戳㠳戶㠳㠴晤㐸㉡ㅡ愷昰㤷搶捥㌸晥愶昰ち散昷搶慤〱昲捡扥㉥㕥ㄱ㘱戰换㉣摥搲ㅢ挵㉣ㄹ敤㍢㈰㉤ㄹ〶〴㡦㉦㠸攸ㄹ敤㈵㍣㤰攸愰〱〸㘷㥣㈵〴昹摥㠹扦㈹攴ㄳ㠱ㅥ㕤昳攰愵㤰晦㍦㤴㡡㜷昵愶摢敡㝦㘱㔳㙢摦〶㌱㠴㑣愰㐹㙢㕦㙡㉦㜶㤲改戱㠸㑣っ捡扥愶昰㌷㘷戰㝢散㝣搳慦昸晥ㅦㅥ㍢捦㠳挲㑣㘲㤹㈱挰㜶㍦昲㉤挳㐰摦㘰ㄸ㍣㠰㘲㌱っ㉥戰つ㘳昷捡㌰㠸㍣ㅦ昳㐰㙣㙤ㄸ㌰愲㤷㘲晥㈵〲慣〹㘷〶捦㕤〷㕣㝡挵捥攲慡慤ㄵ㈰㡡て㔵ㄵ捣挰て㜵攷㐶昴扣改㥢敥㐱挱㥦昱㉤愸㌰㝦〱㜷户愵〹㕢摣扤㘹㠹㌴摡挴㐳ㄱ晢搶㜷扤㈸摢扢戱づ㑡愹愴㥣昶㕡㐱换扦づ晦㠸挶搳㐲收㔳晢扥㜹收愷㥦晣摣㐹摥㔱㡢㜸㌵挷愰㜰㍦㠱㝡㕡㄰〸攵㈶慥㠷散攷愷㌸攷昱㔱㤲戳搲戰愶㑤㕦㙣㥦挰㜰攳慣㘲扣〴㘳㉡收摢〹㠶㈵㙥㍢㈸挳戲摣攵攴㤴㑦㤹挴㌱㔸㑥っ㕣㍣㜹㜱戰㔰敢愹戶晡戴㌱㜳㝦つ挵昳ㅡ〷搲㘹ㅢ昲慣挹愴㘹摦㡣㌵㥢㐲㘴㌲挷㜰晥㔰〷㐸㙤〲戸㔸㑡㈱敡㐰づ㐹ㅥ㕦㜸つ㐰愴㔴〵㤹㕣ㄹ㈰㈵㥥搶ㅤ搸愵ㄷ㘰㔷〸㔸慤慢㝥㝤㝥戶㠲㔵〴ㄵ㘳て㝣扦攷㔸ㅥ晡㘳搵挴〰慤㥣㐴ㄶ㤰㤱㈳ぢㄱ㡣搸ち昶㌲㌲㜱捡㑤㈲户㙤㈷ㄴ㕦㔲㜲㔵戸㑤㙤散㥣㑢て㕢搱㍤攵慤攲扥〷昴㑣㕥ㄴ㠶户㤷㘸ㅣ㐳㈵㌲愷慡ㄶㄵ㡡㜰㐴㘵㕢㡤㠶愲㈲攸㉣敦㈰捥愲〸昹昱摢㈰㤶㑦戴扢摥摦㕤㐲ㅤ攷つ㘲㠲晣㠵晤㜵㙦捡挶挶㕢戹㘳㈰㘱户㔵慢愰㉥㠴㕦㐱ㄳ㑥㍡愳ㄹ敤慣㍣㙢㡣㑣挷㍢㙢㘰愳晥㘷捣㕡㜶搶㔵戶㘶昰扡㐳晦㍦〱挴㤶晡㕦㘳挴㑤㐸昶搱㈸挳㠷ㅣ愳㈶㕢〶㙡戸㈲昰㘷㈳㘴㈳挷㘱㐳戲っ㜴慢㕣〵㥦慢慡㘲㤱攰昰㜶㘵扢㉦㐴戴摡搲戶ㅤ敡㈹〰㡦㜳㐸㝦〹ㄱ搴戳㍤〷扤昱㑣㥢㝦ㄲ攸㝤攷㥤㥡摦っ㥡㜶㌸㕥㐱愸㜷㥣㕦㥢搹戰㜹愶戴扦攸ㄶ㙡昷㘱㈵㠶㍦㠱㌶ㄷ㉥㐲㘰㕦戰挲㌷㉡〲挹㜸挲昶攲ㄷ晣昲㘸㌴ㄱ㔴愲㜶〸敥戰ㅦ㕦㌵ㅢ昸㔸昵㈲㍣㥣㈱㔱㍢㐲搹㈹㍦㜳昷扤っ㉥ㅤ㙥㘶㍤〶㉦㤰搵㈸㈳㈴㈶㔳昸搸挷戹慥摤㙢搰㔹㌷㥡㕢挰㥡晤㜹摡㡡戹㍦〷㑤户昷㤶㑥㤶攱㍢昹つ㜲搱戸㐶㠸㘳昴㠷昰㜷晢㙥㔹昶㌶〶㍥㡦㍥攱愶晢㙢愲〱愷搹㌶㘲摥㈶㥡㙡㡦ㄲ攰搷㔸㡣㌲㝣搰攸摢攳㔶搴扥㠶㘹㜱〳㈰㥦挹搷〱㝡㜳昵㔷㌷攳㙡㡤扥ㅤ改ㅦ慣㥦愱摤㈶戶ㅢ㕤〶㠲㕤㑡㘲㜹㐲ㄵ散㜲ㄲ换挳〹昹戸愸晤㌱摥挰㜵㔶敢昵ㄴ㜱㌸慣挸㈱〴㜹攳㍡㐰㥣㌴ㅥ㐲㘴〶㝦㠰〶慤ㄹ戸挰昶㥥挱㜳㥢捥㠰收㠳㡣㉡搹晦㘸慣㝥㡣ㄵㄴㅢ㌷〸㝣㠲〰㘰㌴搶㐲㈳ㄴ慣㤴㔶㜹ㄵ㤲㜸改㈴昲㐸㍦㡣晥扥㝡昲晢㉦㌳晤攷㐹㑤㐴㈹㡡㍡㘷㐱㔱㉡戳昸㔲㜲ㄶ㙢挰昶㥥挵ㄷ㌶㥢挵㈸愵㉣㐷㘲摣〲㈸つ㘸搷昰㐷㘶戵ㅥ㘵昸愰㤹㌱戶㘳慥㘴つ㘹晢㈹㘴㑡〳愳㈴㈵㍤㌸挶搳〴扦㐹昰㕢〴捦㄰㍣㑢昰㘹㠰㤲㍥㑡敡㑡挵捦㄰昹㔹㠲捦ㄱ㝣㥥攰户〹㝥〷〰ㄵ㐹㜰愹昸扢㐴㝥㠱攰㡢〴㕦㈲昸㍤㠲㉦〳㤴㜴㡤㐴㤷㘱㝦㈵捡昰㘱㌴ㅥ㙤㡥挴㐸昹㈸㐹慣㍣㕥攲攴扢昲捡㤱㥣㔷扡扤攰㐶ㅥ攴ㅤ㈱攱㈲摦㝦㑦挵㤴敦昳㜶㠲㜶㈳㘶㡥戳㘷㈳晦㕤㐶㡦攲㘵㘰㑥〹捣㘸㘴㘶㉥愴戶ㄲ㔷晥搶㡢㙤户ㄲち㤰挰挱慡㌲㤹㕥㉡㌷攳捡㐷昱㌵㤹搴㐱捦㉡扤ㅡ㔷收收㤰捡㕥㕣昹㍦㡥ㅥ㙣㔵㡥昷㠲敡㌹㐷㐶㑤戱搸攵っ㤳昸戲㥣慥㠱㥣㑤㉢㘰挸㔶㘸捡㝦〹㝢㌷挴づㄸ挶㐵ㄶㅦ摦㜶捦攱㕥ㄶ慥慦㐰㔵愸晦攲攱ㅣ敥㙢捤㥡愱㠹㑦户搷㄰㈸昷つ㜹㘲攳扣㝤搱〷㘲搰㍥ㄷ攰㘴㔸摦㔱㉣〲愳㈶慢搶㜷㡢㠰㐲㡡〱摣㕥㡦㌸挰愷昳晥㑢㝦㉡㔰㠲㐲㔹慤ㄱ㔳㌶昳㙣㥢㘷㡣㍦〴㜱㈰慡〱㤹㌱晥〸㔰〵㤱昶ㄱ㌱㑡ㄹ㈴〲收㑦㤰㠱㜰愲㥣㈱昹昳捦〳㡣挴晦慦挶昸㥡㌸㝢㜴捤㡥摦㤱攴ㅥ攳慢㙣昰〲挰〰㍣捤㕡挴㝢㐵攳㙢挰㈴摥㤵愳捣㝡愴户㌱捤戳㜲晣慤㍦㈲愰ㅤㅦ昵㥦挲㐷晡敢散㜸〰晦㐷㐹㑥㉣晦慣晥ㅢ晤昵㐵晥愲搱㉥扦㈶㈶昴㍡晡攱扡戶㡤㔰昶㈸ㅡ㔲愳㘴收㜴戵㙢攸㥦敦愰㑤㕦搴㈸慢〵㕤㡤搰〷〴㑤改㉤攸㑦㐴㘸㕥㡡㈸㙡捦挶攸㡦㐷攸㐳㠲晥㜴㡣㝥㌲㐲搳て㔳搴㍥ㄳ愳㍦ㄶ愱搵㐸㈸晡愵敦㡦㐶㘸㌵ㄲ㉡〳㐱㍦ㄱ愱搵㐸㍥ㅦ愳㍦ㄲ愱搵㐸愸㌰愴昶搵〸慤㐶㐲ㄵ㈲攸㉢ㄱ㕡㡤㠴㥡㐴搰㤷㈳戴ㅡ〹㜵㡢愰ㄷ㈲戴ㅡ〹戵㡤愰㉢ㄱ㕡㡤㠴晡㐷搰㤷㈲戴ㅡ〹㌵㤲愰ㅦ㡦搰㙡㈴搴㔱㠲㥥㡦搰㌲㤲㔱慡㉡攱敥㙦㈱㔳ㅡ挸㜱㌳㙣㝢㔷㤲戶㝤摡㜷㝦㠳愶ㅡ户ㅡ晢㌰晥㌶捡昰㐱攳㍥㤳㤱捥㐵㈳㍤挹㉡㝦挷㈲㙥㈳㡥搰㜸㤱㑦摣㍤搲晣摢㔱㐶㥡㜳㈲搲ㅣ㑡㐴ㄸ㑢㥡扦挴㉡昲㔲㘴㍡散㤸㔱扥㕣㤶攰ㅦ㤰㈹つ㡣昰㑤㔷昱慢摦搲㙡搷敡搷慥晤㜲㈴㍢㝥㜷昶㈳㡦づ㍦晦敡扦晤散戹㔷㥥㍣昱敦扦㝡攱㠵㔷㝥晥摣换扦晡敥攲㠹㝦昹挶㌷晥改挳㝦昶昲捦昶摡㕦搷㕦晣攵摣搷㥦㥥扣晥昴つ晢昲晢捥㍣晤挴㔳㡦㑦捥摦㌱㌱㌰㌰㌸昸㥥戱㝦扤敢搰攸戳㌷晥㕥晢挷ㅦ摦改㘹㌲㜸扣愰㜳ㄸ㥣㠴っ攳㝢挸㘰ㄸㅣ昱㥢㍡っ㑥㔷ㄶ㙡㍡㕡愸㘹㈰ち昰㘰㜱〰㔲㌰搵㔹㌰昴㍦攱㌰㌳㔶 | E27: 㜸〱敤㕣㕤㙣ㅣ搷㜵摥㤹攵㉥㜷㤶㕣㤱ㄶ㘵搹㜲ㅣ㠷㠹敤挴〹㠵㡤㈸㕢㠹搵㐰㤱昹㈳㑡㡡㈹㠹ㄶ㈹㈹㑥㥣慣㠶扢㌳攴㔸㍢戳搴捣㤰ㄲㄳ愷㜶晥摡愴㘹晢㘰昴捦㡤㠳愶㈹晡搰ㄷㄷ㘹㔱愵㙥㤳㠷〰〱㕡〴㑥㤰㠷㈰㐰ㅥ〲㌸㐱搰㍥戴㈸〴昴㈵て〱搲敦㍢㜷㘶㜷㜶㤷㍢愴搷㜶㑢ㄷ扣ㄴて敦㥣晢㌳昷摥㜳敥㌹攷㥥㜳㐷ㄹ㉤㤳挹晣〶㠹㝦㤹〶㤸戹㜷㜱㌳〸㉤户㍣搳愸搷慤㙡攸㌴扣愰㍣攵晢收收扣ㄳ㠴㔹㔴挸㔷ㅣ㤴〷戹㑡攰㝣捡㉡㔴㌶㉣㍦㐰愵㕣㈶㔳㈸ㄸ㍡捡搹〹㝦㐷攳〷㠳慤㠶〷〰㤶㘶愶㉦㉣㍦㡤㕥ㄷ挳㠶㙦ㅤㅥ扦慣摡㥥㤸㥣㉣㑦㤶㡦ㅥ㍦晡㠱昲㤱挳攳㌳敢昵㜰摤户㑥㜸搶㝡攸㥢昵挳攳ぢ敢换㜵愷晡戸戵戹搴戸㘶㜹㈷慣攵㈳て㉦㥢㡦㍣㍡昹挸戱㘳昶昱攳㡦づ攳搵㤹昳㌳搳ぢ扥㘵〷㙦㔰㥦㌹づ昹㤱㔹慢敡㜰㙥㤶攵㍢摥㑡㜹㘶ㅡ晦ㄲ攳挷搳〷换㡢慢㤶ㄵ昲搵㤶㙦㜹㔵㉢㌰搰㜰挸㥤ち㠲㜵㜷㡤㡢㘷戸㜳㤸㙡搵っ挲㥣㍢㘳搵敢㠶ㅢ昷㕡㜰㉦㘰敤敡收收戰扢㘸㜹㠱ㄳ㍡ㅢ㑥戸㤹㜷㤷搰㔱慤攴㕥ち慣㡢愶户㘲㥤㌷㕤㉢攷㥥㕥㜷㙡〳㉡㘵戲敦㠹扢㐸づ㑣愶㕦㥥ち摣㤹㔵搳㤷ㄱ〵㕣㤸㤴扡㜳㝥戵扤敥晤扤晢攵搰攵つ散昳挱摥昵㔰㜲搹昴㥢㌵㈷㝡搷㡣㈶摦㍥㠲昷昷慥㥦㔸愳昶㌶敦敤摤㐶㤶戲扤戶㌶ㄴ昱户慣㈸㈶㘳攴〹〶〹ち〴㈴愰㔱㈴ㄸ㈲ㄸ〶搰〶晥ㅢ扢㈴搹㤰㐵㝡挵搴㉢换㝡愵慡㔷㙡㝡挵搲㉢戶㕥㔹搱㉢慢㝡挵搱㉢㑦敢㤵㙢愸ㄳ愷挲攰愰ㅥ愵攷扦ㄴ晣㘴捡㌲收㕥晡捣㘳摦扦㜵挷㑢ㅢ挳晢㔰改㠹㘸㔰戳扥㜹〳慣搶攲攲愳攵㈳晣搹㝥㔷㘰㔳搸挷散て摡㤳㤳戵㘳㐷捣㠷捤ㅣ愷㤵㐲晣㌶㐶ㄹ㐵摤㘱晢㡡攳搵ㅡ㌷㠴㜶昷㑥㥢㠱搵㕡戸㠹愸㙣扡戱敥搵㠲户㙤㕤戸ㄸ㥡愱㜵㑦㘷㔹慢㤳慥㘶㡢搸㔶㔶㈰敦扢慦戳搹㘵戳扥㙥㑤摤㜴㔴昱摢㍢㡡摤〵扦戱摣扢㜴捥户慥㌷㑢扢㐶㌴〵愱戶㈱㝤㜷捤㔲ㄵ愹㜱㡤捦慣㌶〲换㤳攱㑤戸ぢ㑥昵㥡攵㉦㕡ㄴ㠹㔶㑤愶㝡㈷㡢愲㕤㍦㜱挱挳㐴戱㕢㙢敦㑡㘲敤㔳㌷㐳㙣㘶慢㠶昱慥㔹㝥戸戹㘴㉥搷慤㠳㙤㔵搴㍢㔱㜰愸つ㍤搷愸慥〷㌳つ㉦昴ㅢ昵昶㤲愹摡㠶〹㐹㔳㍢搷愸㔹〳〳ㄹㄱち㄰戸搹慣愶㘵摥搷㝢㉦〸㈱ㄲ㈴收㐶扥扢㥤敤捡ㄷ㌱㍢捣愲㙥㤱㈷昵〷戶改㡣攳ㄵㄹ㤳戲〳ㄳ㜳愲晥攰㑢ㅦ摡愶摢㈶攵摥摣捡扡㍥ㄶ捤晥搴㠶攵㠵㘷㑣慦㔶户晣㔴敤愷㜱㐴挶〸㐰敥㌶〴㐲捦搵愳慡搳㙥㙡㥢戹ㅢ㑥㉤㕣捤慦㕡捥捡㙡〸ㅣ㌴㘴愱挰愵敤㑡挶ㅤ㐰ㄹ晢〹挶〰㡡挵㑣晥〰㉢攵㡢㐸㤹ㅣ愵㔳捡㕥㙥ㄳ攴㙣搷戶㤷㠷敤㌹愷ㅥ㕡㑡㈸㡦搸愰㠸搲㙡㐲扥ㄲ㔹搴㌷慢㑡㘱ㅣ戰㘷挰愵愶攳㠵㥢慤㝤摢戵㑢ㄴㄳ敤挹㠲㕤㈷ぢ㈸ち摡攵㐱捡㕥〳搳㜴㐸㠳昴捡〹㈶攲㌶㐸搱散攸戹㥤挹㔸㍦㐵㐶愰㝥㤲〹㔹晢㐸㙦ㄹ㐱㘶敦㘶㔲㌶敡戹ㅦ昷愴搹㔶戶扣㤲㘶㜷㘲攱㡣㠳〴㜷ㄱ摣㑤㜰〸㐰晢㌷㐸㌸㑡㌹攴摢㤳昱㌶㍣ㅢ昷ㄲ扣ㅤ〰昲挹愰捣㠹㐴ㄵ㙤愸㥤搸㤱慣㔷㠲㥤㉣㐶戱ㄲ㐵戴㡣㥢㜶㘶挹ㄵ㐲㐷㔶攷敥搰戵〳愲㘳摦摤㥢㌷㤳搳㈱㐷愶㔴㑤捥㜵㥢慡挹㠵㘰搵㍥昵搶㍢搰搴ㄸ㈷㜸㈷㠰㔲㉣㌴㜶㜷㘶捤搳㥣㝣㑢㤸㐴捡㄰敡㔳戹㐷㑣㑣昳㍦㐵挰㜵ㅤ㕤昶散㘷㥡㠲ㄳ昶㕢摥㝥㍥摣㝢㙦㐷㐴敦搰㤹㝢㍡㠷扥愲搷㘸㐱扦ぢ摢㑢晢㔹㑦晤昲〰㡡㡤〷〹摥つ搰愱㕦㜸昲㝥慤㕥〲㌱㠹摤〴攵昶搳攳㈲ㄶ敥搲收㥡㈵摡㘷搸㕥㌲晤ㄵ㉢㠴昷攲散㉣散攰㠶敦㕢㜵ㅣ㘸㙢㠲攰搹攵慥㜶㘴㌰攷㌷㕣攲昷散攳攰㉤愱ㄸ〶〶昴㙣愶挳㍥㑥戱㌳ㄳ晥愶〴攷㔰晦㍥摣㕢㐸㈴ㅡ戵戳ㄷ摢愵㥦㉤昷㈴㐹ㅦ㤲攴㈱㉣慢昱㕥〰㐸〹敤㈷㍤㈵捡〴慢ㅤ㤶㙡敤搶㉡扤㝢㈹㈷㤳づ晦㘱㤷ㅣㄹ㔲捥摡㘹昸づ㠲㤲扢攸戸㑤㘱㌱攴㉥㔸㝥ㄵ㝥〵愷㙥ㄵ㤵㑢㤶愲㘶㑦㔶扣㐵㘴㐵㌶摢㜵㤶㑥昱慤〹㥦㜴㐸㠹搴摤㥥㕡㤸㜲づ㙦㌱ㄵ㕤㤰ㄴ㉡㈹㙥愱愶〴㈲攷戱敥㥥㠸改㐳挴㤴戱㜰挶晢〹㡥㄰㑣〲攴㝥〸㐹戳搳㠵㘷㈸㙣㜰㠳敥散㑡㈵㔳㈰ㄹ挴㍤昸㠳㥥挲敡ㄱ扥收ㄸ挱〷〰㍡捣ㅦ㍡ㅦ㔳ㄸ㔱㐸㥥㘰㐴㕡㑢㠶㝤搹戱㙥㤰〷昶搹〸㉡捤慣〷㘱挳㘵㔴愹㘴捦㌶捥㌷挲㔹㈷㔸㐳ㄴ㙡捣㡥㌲㔷㔶㉤て摣攵挳昶改挰㌵搶搶慣㥡㘱㉦㌶搶㈱摡捥捥敥㠶㐳㌹收〷㕢㔲捥攵扡㠶搴摦搹ㄸ㕤㘸㜲㈲㠶慦㤵㥥搸ㅤ㜹扥㜹攸ㅢ㘹慤攸㤲ㄳ搶慤㈱㕢㙤㍡收ぢ㌶㔶ㄱ㔱㠳摡愰扤戴敡㕢搶㙣挹㍥敤㍢戵扡攳㔹㈴〶㙣㑣〶敡收慤ㄵ㐴〸ㄶㅡ㡣晦㌵扣㤲扤攴㥢㕥戰㘶㌲㤸戸戹扦敤㐹㐲㈲㌹㝢摡昱〲扣㐶愸挸晣㠸扤戸摡戸㠱㘸敤扡敢㥤㌶搷㠲㕤㐱ㄵ㌲扤㑡㐲ㅡ㑤搷㜴㕤㉢攸㠵㝥改挳〳㜹㈶㜳ㄴ扦〳〴㐲慢㑣㡥晥昲ㄴ敤㑤扢㍥㡡捦搰㑥攷㤸㠶ㄱ㌹㙡㈲戳愹㔲㤸㍢搵㜸㤴㙤㡥〳㝣攴昴愵戳慤愸摣敢㡡㔷攷攸攱㑦㤱昱挲ㄶ捤㈰〸晤㜳晢ㄴ慢㄰㐷捥挱づ〴挵昹搴挹㝥㐵㕢敡㤰晢昶戵戲㜳㠸㈲つ摢昳收戲㔵㐷㉣摡㌵挳㝤敡㠱㘶慣㙢搶㠳愸㙣愶攱扡㈶㔹㡢㙣戹㔸㌵挹挱㔳敢㘱攳㥣攳ㄹ㌶㠰昰㕦㠴㌲㙦〲㘵摥ㄴ搴戰㝤㤱㘱㐱挹戳慦挶㡡改㍢攱慡敢㔴ぢ㝣㘰攸㙥㔷昰㈴㌶㌹㈵㙦㥣㘲㤹㌱摥㘱捤㕦㠲挹ㄶ㤴㐱敥㌲攴㈸㤷㡥攴〷攷敡㕡ㅥ㍦㕡㥦㡥㈵〸ㄸ昱㤲ㅡㅦ㐲㙦㌹戹ㄹ〱㤱㈳改㜶㝣晦攲昶戳挰㈸扦ㅣ愹㥥挲㈲昰〸㈶㠴㍣摤摢㜹晢㤲攷㠴愰ㅥ㈹㌶攷㠴戳〱㐸づ㠰慣ㅣ㙦敦ㄱ慡㈶ㅡ㑤㌴戵挲㍢扡㡢摡搴挴㝤摤攵㐹扤昱挰ㄶ挵㑡愳㈴ㄴ挹㜶㤵㐴戳㙣㌱挶摤愴㙡㌴㔱摣戱戶搱搲摣愶慤㜵愷ㄴ㜹ㅤ㡡㐹㜸㈶㘳㥣㄰㐶㐱㤰㤷摣〱ㅤ㐵㝦㝤㍡㝢㈴愲㌵戴〱㡡搴㔳ち㔷㡡挲㠱㘷㜱攵愴㘶ㄵ愳㈷散敦㝤㔱昶挲㝡搸㔶㘲摥ㅣ㡢㑡愶敡昵ぢㅥ慣㠴慡改搷㜶挹㤶挶摣㤴㠶㤱摤搹慦昶㔷换㥢搸㠸搱㌶㘴㐸㈴挵て㡣㙤㠸捤㤵㠸愶搲㍡㉢㜱愹㥢攸〲㥦捥㔹愶㈷ㄴ㔸っ㙢戳搶㠶㤸㘱㉤㑢㝥㑣ㅡ㌴㑦㡢㈲㐷つ㝢㙡㌹㠰㑡て㈹挷愳㥣㙣㜰挳扥㐸户ㄴ㉥㌰㐰散㐶戹㠵㙡㠸戰㙥戳〳㥥っ㜶て㜵戰㈲㉡㙣㐲敢㡣ㄲ㌴㥦挲戸敤㤳攰摥改㤳愲㄰愴戶愴晦㍡愹晤昹ぢ㑣㝦㜳㌲ㄳ㘷愲㑤挴㔰㔷㡡昵〰攲㈶愳㤲摣㐵㘳㜱戰㕣㐹㌶ㄱ㕡挳㌱㡥㈶㐶㠹㈶㥦ㅦ攲〶て攳㔸㈳摣㌶㜵摣㜱ぢㅤ㘸搳晡收㍥晢慣㔷慤慦搷㉣㔱挵戱慣ㄶ㡤扣㉢攸㈵搷晦搴㙥㑡㔹㤷㘸㔱捥攲㈸挵㈹㤳㐸晤摢摤挶㠷搱㕣㠴ㅣ晡㔰戲㡤挱挷ㄴ户㥣〴挳扡敥㈸搰㍥摣摦扡扣㈰ㄷ攷㈰搲扡㔰㤴㘵昳戸㡢搷㡣㈰换㙥㑢㔴㥢㙦捣㌷㘸戳㈷㔰㘷ㅣ㠵摡ㄵ㌴挲㍣㤵挰换攷㘱㡣昴戹㍢搸㐹收㜶ㄴ搹扤晤慣㍣㘶㙥㥦㡣㡣て㡤昱㕤㥥㠲㌲㔸㔵㙣㈴ㅡ摣㝡换敡搶ㄸ昹愵攵㙤㍣〶愰㌱〴㑣㠳ㄶ㌵㤵㠱㌳㡤晣昶〶づ㠳㤱㈹搱搱㘴㈰㤵㌱捡㌱㌸散㐱㌴散㈶ㅥ愴㤷ㅡ㔰㐲攱〱戹ㄴㄶ摦㑢㥣㜰㜱〴㙡昸〷㍢㤰ぢ㘶㠸慢㉦摥愱づ昴㔴慤㐶㜳ㄷ晥戹㕤㐱㔵㕣摢㔰收攸㠱㡥ぢ㔹㌲㈷摡㜷昷㜷ㄴ㐴ㄷ〵㡦捥㤶捦㤸㘱㜵㜵㌱摣㔴㤷戶晡㘴〹㍤昷ㅤ昸㈳戶㝣㍢㙤收〱㡦㤷㔰㌷戸昶挵㙢㕥攳㠶㈷攳捡〵扣昱㐷㉢搶ㄸㅣ攴㈰㡢㤹摦攰㐷㤲㥥挹㝤ㅢ㍤敥㘴搸散愰攵㈰㘱㍦㤲㡡挶㈹晣愵戵㌳㡥扦㈹扣〲晢扤㜹㙢㠰扣㜲愰㠳㔷㐴ㄸ散㌱㡢户昲㐶㌱㑢㐶晢㈷㤰㤶っ〳㠲挷ㄷ㐴昴㡣昶㌲ㅥ㐸㜴搰〰㠴㌳捥㄰㠲㝣敦挴摦ㄴ昲㠹㐰㡦慥㜹昰㔲挸晦ㅦ㑡挵扢㝡换㙤昵扦戰愹戵㙦㠱ㄸ㐲㈶搰愴戹㉦戵㕢敤㘴㝡㍣㈲ㄳ㠳戲慦㈹晣捤ㄹ散ㅤ㍢摦昴㉢扥晦㠷挷捥㜳愰㌰㤳㔸㘶〸戰㍤㠰㝣搳㌰搰扢っ㠳〷㔱㉣㠶挱㜹戶㘱散㕥ㄹ〶㤱攷㘳〱㠸敤つ〳㐶昴㔲捣扦㐴㠰㌵攱捣攰戹敢愰㑢慦搸ㄹ㕣戵戵〲㐴昱愱慡㠲ㄹ昸愱敥敡㐶㉦㤸扥改ㅥㄲ晣㘹摦㠲ち昳㤷㜰㜷㕢㥡戰挵㍤㕢㤶㐸愳㉤㍣ㄴ戱㙦㝤捦㡢戲戳ㅢ敢愰㤴㑡捡㘹慦ㄵ戴晣敢昰㡦㘸㍣㉤㘴㍥㝤攰愵搳㍦晦搴ㄷ㑥昲㡥㕡挴慢㌹〶㠵晢〹搴搳㠲㐰㈸㌷㜱㍤攴㑥㝥㡡㜳づㅦ㈵㌹㙢㜵㙢摡昴挵昶〹っ㌷捥㉡挶㑢㌰愶㘲扥摤㘰㔸攲戶㠳㌲㉣换ㅤ㑥㑥昹㤴㐹ㅣ㠳攵挴挰挵㤳ㄷ〷ぢ戵㥥㙡慢㑦ㅢ㌳昷户㔰㍣慦㜱㈰敤戶㈱捦㥡㑣㥡昶㔲慣搹ㄴ㈲㤳㌹㠶昳㠷㍡㐰㙡ㄳ挰挵㔲ち㔱〷㜲㐸昲昸挲㙢〰㈲愵ㄶ㤱挹㤵〱㔲攲㘹㥤㠱㕤㝡〱昶㠴㠰搵扣敡搷攷㘷㉢㔸㐵㔰㌱昶挰昷㝢㡥攵愱㍦㔶㑤っ搰捡㐹㘴〹ㄹ㌹戲㄰挱㠸慤㘰㉦㈱ㄳ愷摣㈴㜲㍢㜶㐲昱㈵㈵㔷㠵摢搴挶捥戹昴戰ㄵ摤㔳摥㍡敥㝢㐰捦攴㐵㘱㜸晢㠹挶㌱㔴㈲㜳慡㙡㔱愱〸㐷㔴戶搹㘸㈸㉡㠲捥昲づ攱㉣㡡㤰ㅦ扦つ㘲昹㐴慢敢㍢㍢㑢愸攳扣㐱㑣㤰扦戰扦敥㑢搹搸㜸㉢㜷っ㈴散㡥㙡ㄵ搴㠵昰换㘸挲㐹㘷㌴愳㤵㤵㘷㡤㤱改㜸㘷㘵扢昵㍦㘳搶戲戳慥戰㌵㠳搷㙤晡晦㐹㈰戶搵晦ㅡ㈳㙥㐲戲㡦㐵ㄹ㍥攴ㄸ㌵搹㌶㔰挳ㄵ㠱㍦ㅢ㈱ㅢ㌹づㅢ㤲㘵愰㕢攵ㄶ昱戹慡㉡ㄶ〹づ㙦搷㐰攷㠵㠸㘶㕢摡戶㐳㍤〵攰㜱づ改慦㈱㠲㝡戶攷愰扢捦戴昹愷㠰㍥㜰捥愹晡㡤愰㘱㠷攳㡢〸昵㡥昳㙢㌳ㅢ㌶捦㤴昶㔷㥤㐲敤㝥慣挴昰㈷搱收晣〵〸散昳㔶昸㐶㐵㈰ㄹ㑦搸㔹晣㠲㕦ㅥ㡤㈶㠲㑡搴づ挱ㅤ昶ㄳ敢㘶ㅤㅦ慢㕥㠰㠷㌳㈴㙡㔷㈸㍢攵㘷敥扣㤷挱愵挳捤慣挷攱〵戲敡㘵㠴挴㘴ちㅦ晦〴搷戵㜳つ摡敢㐶㜳ぢ㔸戳㍦㑦㕢㌱昷㤷愰改捥摥搲捥㌲㝣㈷扦㐱㉥ㅡ㔷〹㜱㡣晥㌰晥敥摣㉤换摥挶挰攷搱㈷摣㜴㝦㑤搴攱㌴摢㐱捣摢㐴㔳敤㌱〲晣ㅡ换㔱㠶てㅡ㝤㝢摣㡡摡搷㌰㉤㙥〰攴㌳昹ㅡ㐰㙦慥晥敡㔶㕣慤搱户㈳晤㠳昵㌳戴摢挴㜶愳换㐰戰㉢㐹㉣㑦愸㠲㕤㑤㘲㜹㌸㈱ㅦㄷ戵㍦挵ㅢ戸捥㙡扤㥥㈶づ㠷ㄵ㌹㠴㈰㙦㕣〳㠸㤳挶㐳㠸捣攰㡦搰愰㌹〳ㄷ搸摥㌳㜸㝥换ㄹ搰㝣㤰㔱㈵晢ㅦ㡤搵㡦戱㠶㘲攳㍡㠱㑦㄰〰㡣挶㕡㘸㠴㠲㤵搲㉡慦㐲ㄲ㉦㥦㐴ㅥ改㐷搱摦㔷㑦晥攰ㄵ愶晦㍣愹㠹㈸㐵㔱晢㉣㈸㑡㘵ㄶ㕦㐹捥㘲〳搸摥戳昸昲㔶戳ㄸ愵㤴攵㐸㡣㥢〰愵慣㜶ㄵ㝦㘴㔶㥢㔱㠶て㥡ㄹ㘳摢收㑡搶㤰戶㥦㐶愶㤴ㅤ㈵㈹改挱㌱㥥㈱昸っ挱㙦ㄳ㍣㑢昰ㅣ挱㘷〱㑡晡㈸愹㉢ㄵ㍦㐷攴攷〹扥㐰昰㐵㠲摦㈱昸㕤〰㔴㈴挱愵攲㤷㠸晣㌲挱敦ㄱ㝣㠵攰昷〹晥〰愰愴㙢㈴扡っ晢て愳っㅦ㐶攳搱收㐸㡣㤴㡦㤲挴捡攳㈵㑥扥㉢慦ㅣ挹㜹愵摢ぢ㙥攴㐱摥ㄵㄲ㉥昲晤昷㔴㑣昹㍥㙦㈷㘸搷㘳收㌸㜳㈶昲摦㘵昴㈸㕥〶收㤴挰㡣㐶㘶收㐲㙡㙢㜱攵㙦摥㙡戹㤵㔰㠰〴づ㔶㤵挹昴㔲戹ㄱ㔷㍥㡡慦挹愴づ㝡㔶改搵戸㌲㌷㠷㔴昶攲捡晦㜱昴㔰戳㜲扣ㄷ㔴捦㌹㌲㙡㡡挵㉥㘷㤸挴㤷攵㜴つ攴㙣㕡〱㐳戶㐲㔳晥㑢搸扢㉥㜶挰㌰㉥戲昸昸戶㝢ㅥ昷戲㜰㝤〵慡㐲晤ㄷて㘷㜱㕦㙢搶っ㑤㝣扡扤㠱㐰戹㙦挸ㄳㅢ攷敤ぢ㍥㄰㠳昶搹〰㈷挳摡慥㘲ㄱㄸ㌵〳㙡㝤户〹㈸愴ㄸ挰慤昵㠸〳㝣㍡敦扦昴愷〲㈵㈸㌴愰搵㘳捡㘶㥥㙢昱㡣昱挷㈰づ㐴㌵㈰㌳挶㥦〰慡㈰搲〱㈲㐶㈹㠳㐴挰晣ㄹ㌲㄰㑥㤴㌳㈴㝦晥〵㠰㤱昸晦搵ㄸ摦㄰㘷㡦慥搹昱㍢㤲摣㘳㝣㤵つ㕥〴挸挲搳慣㐵扣㔷㌴扥〶㑣攲㕤㌹捡慣て昵㌶愶㜹㔶㡥扦昵㐷〴戴敤愳晥㔳昸㐸㝦㤳ㅤ㘷昱㝦㤴攴挴昲ㅦ搰㝦慢扦扥挸㕦㌴摡攵搷挴㠴㕥㐷㍦㕣搷㤶ㄱ捡ㅥ㐵㐳㙡㤴捣㥣慥㜶ㄵ晤昳ㅤ戴改㡢ㅡ㘵戵愰㉢ㄱ晡愰愰㈹扤〵晤挹〸捤㑢ㄱ㐵敤戹ㄸ晤㠹〸晤㤰愰㍦ㅢ愳㥦㡡搰昴挳ㄴ戵捦挵攸㡦㐷㘸㌵ㄲ㡡㝥改晢㘳ㄱ㕡㡤㠴捡㐰搰㑦㐶㘸㌵㤲㉦挶攸㡦㐶㘸㌵ㄲ㉡っ愹㝤㈵㐲慢㤱㔰㠵〸晡㜲㠴㔶㈳愱㈶ㄱ昴愵〸慤㐶㐲摤㈲攸愵〸慤㐶㐲㙤㈳攸挵〸慤㐶㐲晤㈳攸㡢ㄱ㕡㡤㠴ㅡ㐹搰㑦㐴㘸㌵ㄲ敡㈸㐱㉦㐴㘸ㄹ挹㈸㔵㤵㜰昷㌷㤱㈹㘵㜳摣っ㍢摥㤵愴㙤㥦昶摤摦愱愹挶慤挶㍥㡣扦㡦㌲㝣搰戸捦㘴愴昳搱㐸㑦戲捡㍦戰㠸摢㠸㈳㌴㙥昱㠹扢㐷㥡㝦㉢捡㐸㜳㑥㐴㥡㐳㠹〸㘳㐹昳㤷㔹㐵㕥㡡㑣㥢ㅤ㌳捡㤷换ㄲ晣㌳㌲愵散〸摦㜴〵扦晡㑤慤㝡戵㜶昵敡慦㐶〶挶敦ㄹ昸攸㘳挳㉦扣晡晤㕦㍣晦攳愷㑥晣晢慦㕦㝣昱挷扦㝣晥㤵㕦㝦㝢昹挴扦㝣攳ㅢ摦晢挸㕦扣昲㡢晤昶搷昵㕢扦㥡晦晡㌳㤳搷㥥戹㙥㕦㝡摦改㘷㥥㝣晡㠹挹㠵㍢㈶戲搹挱挱昷㡣晤敢摤て㡤㍥㜷晤ㅦ戵敦晥昴㉥㑦㤳挱攳〵敤挳攰㈴㘴ㄸ摦㐱〶挳攰㠸摦搴㘱㜰扡戲㔰搳搱㐲㑤〳㔱㠰〷㡢〳㤰㠲愹昶㠲愱晦〱〶捥㌴㜳 | F27: 㜸〱敤㕣㙢㙣ㅣ搷㜵摥ㄹ㜲㤷㍢㑢慥㐸㡢㤲㙣㌹㡥挳挴㜶攲㠴挲㐶㤴㉤摢㙡愰挸㝣攸ㄵ㔳ㄲ慤愵愴㌸㜱戲ㅡ敥捥㤰㘳敤捣㔲㌳戳㤴㤸愸戵昳㙡昳㘸㡢挲㐹ㅦ㙥㙣㌴㑤㤱ㅦ昹㤳㈲㉤敡挴㘹㠲愲㐰㠱ㄶ㠵㔳昴㐷㔰愰㍦ち戸㐱搱晥㘸㔱〸攸㥦ㄴ〸㤰㝥摦戹㌳扢戳㑢敥㤰㕥摢㉤㕤昰㔲㍣扣㜳敥㘳敥扤攷摣㜳捥㍤攷㡥㌲㕡㈶㤳昹〵ㄲ晦㌲つ㌲㜳㑦㜹㍤〸㉤户㌴摢愸搷慤㙡攸㌴扣愰㌴敤晢收晡扣ㄳ㠴〳愸㤰慢㌸㈸て戲㤵挰昹㤴㤵慦慣㔹㝥㠰㑡搹㑣㈶㥦㌷㜴㤴戳ㄳ晥㡥挵て〶㕢㡤っ〲㉣捥捥㕣㔸㝡〶扤㤶挳㠶㙦ㅤ㥡戸慣摡ㅥ㥦㥡㉡㑤㤵㡥ㅣ㍢昲㐸改昰愱㠹搹㘶㍤㙣晡搶㜱捦㙡㠶扥㔹㍦㌴戱搰㕣慡㍢搵㈷慣昵挵挶㌵换㍢㙥㉤ㅤ㝥㘸挹㝣昸戱愹㠷㡦ㅥ戵㡦ㅤ㝢㙣〴慦捥㥣㥦㥤㔹昰㉤㍢㜸㤳晡捣㜲挸て捦㔹㔵㠷㜳戳㉣摦昱㤶㑢戳㌳昸㤷ㄸ㍦㥥ㅥ㉤㤵㔷㉣㉢攴慢㉤摦昲慡㔶㘰愰攱戰㍢ㅤ〴㑤㜷㤵㡢㘷戸愷㌰搵慡ㄹ㠴㔹㜷搶慡搷つ㌷敥㌵敦㕥挰摡搵捤昵ㄱ户㙣㜹㠱ㄳ㍡㙢㑥戸㥥㜳ㄷ搱㔱慤攸㕥ち慣㡢愶户㙣㥤㌷㕤㉢敢㥥㙥㍡戵㐱㤵㌲〳敦㡢扢㐸づ㑣愶㕦㥡づ摣搹ㄵ搳㤷ㄱ〵㕣㤸㤴扡愷晣㙡㘷摤晢㝡昷换愱换ㅢ搸攷〳扤敢愱攴戲改户㙡㑥昶慥ㄹ㑤扥㜳〴ㅦ散㕤㍦戱㐶㥤㙤摥摦扢㡤㉣㘵㘷㙤㙤㌸攲㙦㔹㔱㑣挶挸ㄱっㄱ攴〹㐸㐰愳㐰㌰㑣㌰〲愰つ晥ㄷ㜶㐹戲㈱㡢昴㡡愹㔷㤶昴㑡㔵慦搴昴㡡愵㔷㙣扤戲慣㔷㔶昴㡡愳㔷㥥搱㉢搷㔰㈷㑥昹愱㈱㍤㑡㑢㡦㌶晦攲㔶攵慢㡦扦㌴㌹晥㕢晢ㅦ昹敦㑢㈳㝢㔰改挹㘸㔰㜳扥㜹〳慣搶收攲㈳愵挳晣搹㝡㔷㘰㔳搸㐷敤㐷敤愹愹摡搱挳收㐳㘶㤶搳㑡㈱㝥〷愳㡣愱敥㠸㝤挵昱㙡㡤ㅢ㐲扢㝢㘶捣挰㙡㉦摣㘴㔴㌶搳㘸㝡戵攰ㅤ㥢ㄷ㤶㐳㌳戴敥敥㉥㙢㜷戲愱㔹ㄹ摢捡ち攴㝤昷㜶㌷扢㙣搶㥢搶昴㑤㐷ㄵ扦戳慢搸㕤昰ㅢ㑢扤㑢㑦昹搶昵㔶改㠶ㄱ㑤㐳愸慤㐹摦ㅢ㘶愹㡡搴戸㈶㘶㔷ㅡ㠱攵挹昰㈶摤〵愷㝡捤昲换ㄶ㐵愲㔵㤳愹敥㘷㔱戴敢㈷㉦㜸㤸㈸㜶㙢敤㍤㐹慣㝤昲㘶㠸捤㙣搵㌰摥㔵换て搷ㄷ捤愵扡㜵愰愳㡡㝡㈷ちづ㜶愰㑦㌵慡捤㘰戶攱㠵㝥愳摥㔹㌲㕤㕢㌳㈱㘹㙡攷ㅡ㌵㙢㜰㌰㈳㐲〱〲㜷㘰㐰搳㌲ㅦ攸扤ㄷ㠴㄰〹ㄲ㜳㈳摦搵挹㜶愵㡢㤸ㅤ㘶㔱户挸㤳晡晤㕢㜴挶昱㡡㡣㐹搹㠱㠹㌹㔱㝦昰愵て㙥搱㙤㡢㜲㙦㙤㘵㕤ㅦ㡦㘶㝦㜲捤昲挲㌳愶㔷慢㕢㝥慡昶搳㌸㈲㘳ㄴ㈰㝢ㅢ〲愱攷敡㔱搵㘹㌷戵昵散つ愷ㄶ慥攴㔶㉣㘷㜹㈵〴づㅡ㌲㥦攷搲㙥㐸挶ㅤ㐰ㄹ㝢〹挶〱ち㠵㑣㙥ㅦ㉢攵ち㐸㤹㉣愵㔳捡㕥敥㄰攴㙣搷戱㤷㐷散㔳㑥㍤戴㤴㔰ㅥ戵㐱ㄱ愵搵㠴㝣㐵戲愸㙦㔶㤵挲搸㘷捦㠲㑢㑤挷ぢ搷摢晢㜶挳㉥㔱㑣戴㉢ぢ㜶㥣㉣愰㈸攸㤴〷㈹㝢つ㑣搳㈵つ搲㉢㈷㤸㠸摢㈰㐵戳愳攷㑥㈶㘳晤ㄴㄹ㠱晡㐹㈶㘴敤挳扤㘵〴㤹㝤㈳㤳戲㔱捦晤戸㉢捤㌶戳攵㤵㌴摢㡦㠵㌳づ㄰摣㐹㜰ㄷ挱㐱〰敤㕦㈱攱㈸攵㤰敦㑣挶㍢昰㙣摣㐳昰㑥〰挸㈷㠳㌲㈷ㄲ㔵戴愱戶㘳㐷戲㕥ㄱ㜶戲ㄸ挵㑡ㄴ搱㌲㙥搹㤹㐵㔷〸ㅤ㔹㥤㍢㐳搷づ㡡㡥㝤㙦㙦摥㑣㑥㠷ㅣ㤹㔲㌵㌹搷㉤慡㈶ㄷ㠲㔵晢搴㕢敦㐲㔳㘳㠲攰摤〰㑡戱搰搸摤㥥㌵㑦㜳昲㙤㘱ㄲ㈹㐳愸㑦攵ㅥ㌱㌱捤晦ㄴ〱户攱攸戲㙢㍦搳ㄴ㥣戴摦昶昶昳愱摥㝢㍢㈲㝡㤷捥摣搵㌹昴ㄵ扤㑥ぢ晡㍤搸㕥摡㍦昵搴㉦昷愳搸㜸㠰攰扤〰㕤晡㠵㈷敦搷敢㈵㄰㤳搸㑤㔰㙥㉦㍤㉥㘲攱㉥慥慦㕡愲㝤㐶散㐵搳㕦戶㐲㜸㉦捥捥挱づ㙥昸扥㔵挷㠱戶㈶〸㥥㕤敥散㐴〶愷晣㠶㑢晣慥㝤ㅣ扣㉤ㄴ挳攰愰㍥㤰改戲㡦㔳散捣㠴扦㈹挱㌹搴扦て昵ㄶㄲ㠹㐶㥤散挵㜶改㘷换㕤㐹搲㠷㈴㜹㄰换㙡扣ㅦ〰㔲㐲晢㠷㥥ㄲ㘵㤲搵づ㐹戵㑥㙢㤵摥扤㤴㤳㐹㤷晦㜰㠳ㅣㄹ㔶捥摡ㄹ昸づ㠲愲㕢㜶摣㤶戰ㄸ㜶ㄷ㉣扦ち扦㠲㔳户ち捡㈵㑢㔱戳㉢㉢摥㈶戲㘲㘰㘰挳㔹㍡挵户㈶㝣搲㈵㈵㔲㜷㝢㙡㘱捡㌹扣捤㔴㜴㐱㔲愸愴戸㠵㕡ㄲ㠸㥣挷扡扢㈲愶てㄱ㔳挲挲ㄹㅦ㈴㌸㑣㌰〵㤰晤㍢㐸㥡敤㉥㍣㐳㘱㐳㙢㜴㘷㔷㉡㤹㍣挹㈰敥挱ㅦ昷ㄴ㔶て昳㌵㐷〹ㅥ〱攸㌲㝦攸㝣㑣㘱㐴㈱㜹㠲ㄱ㘹㉤ㄹ昶㘵挷扡㐱ㅥ搸㘳㈳愸㌴摢っ挲㠶换愸㔲搱㥥㙢㥣㙦㠴㜳㑥戰㡡㈸搴戸ㅤ㘵慥慣㔸ㅥ戸换㠷敤搳㠵㙢慣慥㕡㌵挳㉥㌷㥡㄰㙤㘷攷㜶挲愱ㅣ昳㠳㉤㈹攷㜲㕤㐳敡敦㙣㡣㉥㌴㌹ㄱ挳搷㑡㑦散戶㍣摦㍣昴㡤戶㔷㜴搱〹敢搶戰慤㌶ㅤ昳㜹ㅢ慢㠸愸㐱㙤挸㕥㕣昱㉤㙢慥㘸㥦昶㥤㕡摤昱㉣ㄲ〳㌶㈶〳㜵昳搶㌲㈲〴ぢつ挶晦ㅡ㕥搱㕥昴㑤㉦㔸㌵ㄹ㑣㕣摦摢昱㈴㈱㤱慣㍤攳㜸〱㕥㈳㔴㘴㝥搴㉥慦㌴㙥㈰㕡摢㜴扤搳收㙡戰㈳愸㐲愶㔷㐹㐸愳改㥡慥㙢㜹㍤摦㉦㝤㜸㈰捦㘴㡥攰㜷㤰㐰㘸㤵挹搲㕦㥥愲扤㘹搷㐷昱ㄹ摡改ㅣ搳〸㈲㐷㉤攴㐰慡ㄴ收㑥㌵ㅥ㘳㥢㘳〰ㅦ㌹㝤改㙣㍢㉡昷㠶攲搵㔹㝡昸㔳㘴扣戰㐵㉢〸㐲晦摣ㅥ挵㉡挴㤱㜳戰〳㐱㜱㍥㜵戳㕦挱㤶㍡攴扥㍤敤散㈹㐴㤱㐶散㜹㜳挹慡㈳ㄶ敤㥡攱ㅥ昵㐰㌳搶㌵敢㐱㔴㌶摢㜰㕤㤳慣㐵戶㉣㔷㑤㜲昰㜴㌳㙣㥣㜳㍣挳〶㄰晥㡢㔰收㑤愰捣㥢㠲ㅡ戱㉦㌲㉣㈸㜹昶搵㔸㌶㝤㈷㕣㜱㥤㙡㥥てっ摤敤〸㥥挴㈶愷攴㡤㔳㉣㌳㈶扡慣昹㑢㌰搹㠲ㄲ挸㕤㠲ㅣ攵搲㤱晣攰㕣㕤换攱㐷敢搳戱〴〱㈳㕥㔲攳㐳攸㉤㉢㌷㈳㈰㜲㈴摤㡥敦㕦摣㝥ㄶㄸ攵㤷㈳搵㔳㔸〴ㅥ挱㠴㤰愷㝢㍢㘷㕦昲㥣㄰搴㈳挵㑥㌹攱㕣〰㤲〳㈰㉢挷摢扢㠵慡㠹㐶㤳㉤慤昰慥㡤㐵ㅤ㙡攲摥㡤攵㐹扤㜱晦㈶挵㑡愳㈴ㄴ挹㔶㤵㐴戳㙣㌲挶㥤愴㙡㌴㔱摣戱戶搱搲摣愶敤㜵愷ㄴ㜹〳㡡㐹㜸㈶㘳ㅣㄷ㐶㐱㤰㤷摣〱ㅤ㐵㝦㝤㍡㝢㈴愲㌵戴〱ち搴㔳ち㔷㡣挲㠱㘷㜱攵愴㘶ㄵ愲㈷散敦㍤㔱昶㐲㌳散㈸㌱㙦㡥㐷㈵搳昵晡〵て㔶㐲搵昴㙢㍢㘴㑢㘳㙥㑡挳挸敥散㔷晢慢攵㑤㙣挴㘸ㅢ㌲㈴㤲攲〷挶㌶挴收㑡㐴㔳㘹㥤ㄵ戹搴㉤㜴㥥㑦攷㉣搳ㄳち㤴挳摡㥣戵㈶㘶㔸摢㤲ㅦ㤷〶慤搳愲挸㔱挳㥥㕥ち愰搲㐳捡昱㈸㈷ㅢ摣戰㉦搲㉤㠵ぢっ㄰扢㔱㙥愱ㅡ㈲慣摢敡㠰㈷㠳㥤㐳ㅤ慣㠸ち㥢搰㍡愳〴捤愵㌰㙥攷㈴戸㜷晡愴㈸〴愹㉤改㍦㑦㘸扦晦〲搳户㑦㘴攲㑣戴㠹ㄸ敡㑡戱ㅥ㐰摣㘴㔴㤲扢㘸㍣づ㤶㉢挹㈶㐲㙢㈴挶搱挴㈸搲攴昳㐳摣攰㘱ㅣ㙢㤴摢愶㡥㍢㙥愱〳㙤㕡㕦摦㘳㥦昵慡昵㘶捤ㄲ㔵ㅣ换㙡搱挸㍢㠲㕥㜲晤㑦敤愶㤴㜵㠹ㄶ攵㉣㡥㔲㥣㌲㠹搴扦摤㙤㝣ㄸ捤㐵挸愱て㈵摢ㄸ㝣㑣㜱换㐹㌰㙣挳ㅤ〵摡㠷㝢摢㤷ㄷ攴攲ㅣ㐴摡〶ㄴ㘵搹㍣敥攲戵㈲挸戲摢ㄲ搵收ㅢ昳つ摡散〹搴ㄹ㐷愱㜶〴㡤㌰㑦㈵昰㜲㌹ㄸ㈳㝤敥づ㜶㤲戹ㅤ㐵㜶㙦㍦㉢㡦㤹摢㈷㈲攳㐳㘳㝣㤷愷愰っ㔶ㄵㅢ㠹〶户摥戶扡㌵㐶㝥㘹㜹ㅢ㡦〳㘸っ〱搳愰㐵㑤㘵攰捣㈰扦戵㠱挳㘰㘴㑡㜴㌴ㄹ㐸㘵㡣㜲ㅣづ㝢㄰つ扢㠹〷改挵〶㤴㔰戸㑦㉥㠵挵昷ㄲ㈷㕤ㅣ㠱ㅡ晥㠱㉥攴㠲ㄹ攲敡㡢㜷戰ぢ㍤㕤慢搱摣㠵㝦㙥㐷㔰ㄵ搷㌶㤴㌹扡慦敢㐲㤶捣㠹昶摤㝤㕤〵搱㐵挱㈳㜳愵㌳㘶㔸㕤㈹㠷敢敡搲㔶㥦㉣愱㘷㝦〴㝦挴愶㙦愷捤㍣攸昱ㄲ敡ㅡ搷扥㜰捤㙢摣昰㘴㕣搹㠰㌷晥㘸挵ㅡ㐳㐳ㅣ㘴㈱昳ぢ晣㐸搲㌳搹ㅦ愲挷敤っ㥢ㅤ戴ㅤ㈴散㐷㔲挱㌸㠹扦戴㜶㈶昰㌷㠵㔷㘰扦户㙥つ㤰㔷昶㜵昱㡡〸㠳㕤㘶昱㤶摦㉣㘶挹㘸㍦〰㘹挹㌰㈰㜸㝣㐱㐴捦㘸慦攰㠱㐴〷つ㐰㌸攳っ㈱挸昷㙥晣㑤㈱㥦〸昴攸㥡〷㉦㠵晣晦愱㔴扣慢㌷摤㔶晦ぢ㥢㕡晢ㅥ㠸㈱㘴〲㑤㕡晢㔲㝢戹㤳㑣㑦㐴㘴㘲㔰昶㜵㠵扦㌹㠳摤㘳攷㕢㝥挵昷晦昰搸㜹づㄴ㘶ㄲ换っ〱戶晢㤱㙦ㄹ〶晡〶挳攰〱ㄴ㡢㘱㜰㥥㙤ㄸ扢㔷㠶㐱攴昹㔸〰㘲㙢挳㠰ㄱ扤ㄴ昳㉦ㄱ㘰㑤㌸㌳㜸敥㍡攰搲㉢㜶〶㔷㙤慤〰㔱㝣愸慡㘰ㄶ㝥愸㍢㌷愲ㄷ㑣摦㜴てち晥戴㙦㐱㠵昹㡢戸扢㉤㑤搸攲敥㑤㑢愴搱㈶ㅥ㡡搸户扥敢㐵搹摥㡤㜵㔰㑡㈵攵戴搷昲㕡敥つ昸㐷㌴㥥ㄶ㌲㥦摥昷㥤搳晦晣愹捦㥦攰ㅤ戵㠸㔷戳っち昷ㄳ愸愷〵㠱㔰㙥攲㝡挸㝥㝥㡡㜳づㅦ㈵㌹慢㜵㙢挶昴挵昶〹っ㌷捥㉡挶㑢㌰愶㘲扥㥤㘰㔸攲戶㠳㌲㉣㑢㕤㑥㑥昹㤴㐹ㅣ㠳愵挴挰挵㤳ㄷ〷ぢ戵㥥㙡慢㑦ㅢ㌳晢挷㔰㍣慦㜳㈰㥤戶㈱捦㥡㑣㥡昶㥤㔸戳㈹㐴㈶㜳ㄴ攷て㜵㠰搴㈶㠱㡢愵ㄴ愲づ攴㤰攴昱㠵搷〰㐴㑡㤵㤱挹㤶〰㔲攲㘹摤㠱㕤㝡〱㜶㠵㠰搵扡敡搷攷㘷㉢㔸㐵㔰㌱昶挰昷㝢㡥攵愱㍦㔶㑤っ搰捡㐹㘴ㄱㄹ㌹戲㄰挱㠸慤㘰㉦㈱ㄳ愷散ㄴ㜲摢㜶㐲昱㈵㐵㔷㠵摢搴挶捥扡昴戰ㄵ摣㤳㕥ㄳ昷㍤愰㘷㜲愲㌰扣扤㐴攳ㄸ㉡㤱㌹㔵戵愰㔰㠴愳㉡摢㙡㌴ㅣㄵ㐱㘷㜹〷㜱ㄶ㐵挸㡦摦〶戱㝣戲摤昵晥敥ㄲ敡㌸㙦〸ㄳ攴㉦散慦㝢㔳㌶㌶摥捡ㅤ〳〹扢慤㕡㜹㜵㈱晣㌲㥡㜰搲ㄹ捤㘸㘷攵㔹㘳㘴㍡摥㔹〳ㅢ昵㍦㘳搶戲戳慥戰㌵㠳搷ㅤ晡晦㈹㈰戶搴晦ㅡ㈳㙥㐲戲㡦㐵ㄹ㍥㘴ㄹ㌵搹㌲㔰挳ㄵ㠱㍦ㅢ㈱ㅢ㌹づㅢ㤲㘵愰㕢攵捡昸㕣㔵ㄵ㡢〴㠷户㙢戰晢㐲㐴慢㉤㙤摢攱㥥〲昰ㄸ㠷昴㉤㠸愰㥥敤㌹攸㡤㘷摡摣搳㐰敦㍢攷㔴晤㐶搰戰挳㠹㌲㐲扤ㄳ晣摡捣㠶捤㌳慤晤㔱户㔰扢て㉢㌱昲㐹戴㌹㝦〱〲晢扣ㄵ扥㔹ㄱ㐸挶ㄳ戶ㄷ扦攰㤷㐷㘳㠹愰ㄲ戵㐳㜰㠷晤㘴搳慣攳㘳搵ぢ昰㜰㠶㐴敤〸㘵愷晣捣摤昷㌲戸㜴戸㤹昵〴扣㐰㔶扤㠴㤰㤸㑣攱攳㥦攰扡㜶慦㐱㘷摤㘸㙥〱㙢昶攷㘹㉢㘴晦㄰㌴摤摥㕢㍡㔹㠶敦攴㌷挸〵攳㉡㈱㡥搱ㅦ挶摦敤扢㘵搹摢㌸昸㍣晡㠴㥢敥慦挹㍡㥣㘶摢㠸㜹㥢㘸慡㍤㑥㠰㕦㘳㈹捡昰㐱愳㙦㡦㕢㔱㝢〹搳攲〶㐰㍥㤳慢〱昴收敡慦㙦挶搵ㅡ㝤㍢搲㍦㔸㍦㐳扢㑤㙣㌷扡っ〴扢㥣挴昲㠴㉡搸㤵㈴㤶㠷ㄳ昲㜱㐱晢㕤扣㠱敢慣搶敢ㄹ攲㜰㔸㤱㐳〸昲挶㌵㠰㌸㘹㍣㠴挸っ扥㠶〶慤ㄹ戸挰昶㥥挱昳㥢捥㠰收㠳㡣㉡搹晦㔸慣㝥㡣㔵ㄴㅢ搷〹㝣㠲〰㘰㉣搶㐲愳ㄴ慣㤴㔶㌹ㄵ㤲㜸攵〴昲㐸㝦ㅦ晤㝤敤挴㡦㕦㘵晡㡦ㄳ㥡㠸㔲ㄴ㜵捥㠲愲㔴㘶昱㤵攴㉣搶㠰敤㍤㡢㉦㙤㌶㡢㌱㑡㔹㡥挴戸〹㔰ㅣ搰慥攲㡦捣㙡㍤捡昰㐱㌳㘳㙣挷㕣挹ㅡ搲昶搳挸ㄴ〷挶㐸㑡㝡㜰㡣㕢〴扦㑣昰㉢〴捦ㄲ㍣㐷昰ㄹ㠰愲㍥㐶敡㑡挵捦ㄲ昹㌹㠲捦ㄳ㝣㠱攰㔷〹㝥つ〰ㄵ㐹㜰愹昸㐵㈲扦㐴昰㘵㠲慦㄰晣㍡挱㙦〰ㄴ㜵㡤㐴㤷㘱晦㘶㤴攱挳㔸㍣摡㉣㠹㤱昲㔱㤲㔸㜹扣挴挹㜷攵㤴㈳㌹愷㜴㝢摥㡤㍣挸㍢㐲挲㐵扥晦㥥㡡㈹搷攷敤〴敤㝡捣ㅣ㘷捥㐴晥扢㡣ㅥ挵换挰㥣ㄲ㤸搱挸捣㕣㐸㙤㌵慥晣摤㤷摢㙥㈵ㄴ㈰㠱㠳㔵㘵㌲扤㔴㙥挴㤵㡦攰㙢㌲愹㠳㥥㔵㝡㉤慥捣捤㈱㤵扤戸昲扦ㅦ㌹搸慡ㅣ敦〵搵㜳㤶㡣㥡㘲戱换ㄹ㈶昱㘵㌹㕤〳㔹㥢㔶挰戰慤搰㤴晦ㄲ昶慥㡢ㅤ㌰㠲㡢㉣㍥扥敤㥥挷扤㉣㕣㕦㠱慡㔰晦挵挳㔹摣搷㥡㌳㐳ㄳ㥦㙥慦㈱㔰敥ㅢ昲挴挶㌹晢㠲て挴㤰㝤㌶挰挹戰戶愳㔸〴㐶捤愰㕡摦㉤〲ち㈹〶㜰㝢㍤攲〰㥦捥晢㉦晤愹㐰〹ちつ㙡昵㤸戲㤹攷摡㍣㘳晣㌶㠸〳㔱つ挸㡣昱㍢㠰㉡㠸戴㡦㠸㌱捡㈰ㄱ㌰扦㠷っ㠴ㄳ攵っ挹㥦㝢〱㘰㌴晥㝦㌵㈶搶挴搹愳㙢㜶晣㡥㈴昷ㄸ㕦㘷㠳ㄷ〱〶攰㘹搶㈲摥㉢ㄸ㉦〱㤳㜸㔷㤶㌲敢㐳扤㡤㘹㥥㤵攳㙦晤ㄱ〱敤昸愸晦㈴㍥搲㕦㘷挷〳昸㍦㑡戲㘲昹て敡扦搴㕦㕦攴㉦ㅡ敤昲㙢㘲㐲㙦愰ㅦ慥㙢摢〸㘵㡦愲㈱㌵㑡㘶㑥㔷扢㡡晥昹づ摡昴〵㡤戲㕡搰㤵〸㝤㐰搰㤴摥㠲晥㘴㠴收愵㠸㠲昶㕣㡣晥㐴㠴㝥㔰搰㥦㠹搱㑦㐷㘸晡㘱ち摡㘷㘳昴挷㈳戴ㅡ〹㐵扦昴晤戱〸慤㐶㐲㘵㈰攸愷㈲戴ㅡ挹ㄷ㘲昴㐷㈳戴ㅡ〹ㄵ㠶搴扥ㄲ愱搵㐸愸㐲〴㝤㌹㐲慢㤱㔰㤳〸晡㔲㠴㔶㈳愱㙥ㄱ昴㘲㠴㔶㈳愱戶ㄱ㜴㌹㐲慢㤱㔰晦〸晡㘲㠴㔶㈳愱㐶ㄲ昴㤳ㄱ㕡㡤㠴㍡㑡搰ぢㄱ㕡㐶㌲㐶㔵㈵摣晤㕤㘴㡡〳㔹㙥㠶㙤敦㑡搲戶㑦晢敥㑦搰㔴攳㔶㘳ㅦ挶㥦㐶ㄹ㍥㘸摣㘷㌲搲昹㘸愴㈷㔸攵捦㔸挴㙤挴ㄱㅡ㉦昳㠹扢㐷㥡㝦㉦捡㐸㜳㑥㐴㥡㐳㠹〸㘳㐹昳㔷㔸㐵㕥㡡㑣㠷ㅤ㌳挶㤷换ㄲ晣㌹㌲挵㠱㔱扥改ち㝥昵㥢㕡昵㙡敤敡搵㥦㡤づ㑥摣㍤昸搱挷㐷㕥㜸敤㙦㝦晡晣㑦㥥㍥晥㙦㍦㝦昱挵㥦晣换昳慦晥晣㠷㑢挷晦晡㥢摦晣慢㡦晣挱慢㍦摤㙢㝦㐳㝦昹㘷昳摦戸㌵㜵敤搶㜵晢搲〷㑥摦㝡敡㤹㈷愷ㄶ敥㤸ㅣㄸㄸㅡ㝡摦昸摦摣昵攰搸㜳搷扦慦晤攵㍦摥改㘹㌲㜸扣愰㜳ㄸ㥣㠴っ攳㐷挸㘰ㄸㅣ昱㕢㍡っ㑥㔷ㄶ㙡㈶㕡愸ㄹ㈰昲昰㘰㜱〰㔲㌰摤㔹㌰晣㍦挰ㄹ㌳㝡 | G27: 㜸〱敤㕣㕤㙣ㅣ搷㜵摥㤹晤攱捥㤲㉢搲愲㉣㕢㡥攳㌰戱㥤㌸愶戰ㄱ㘵㉢戱ㅡ㈸㌲㝦昴ㄷ㔳ㄲ慤愵愴㌸㜱㐲つ㜷㘷挸戱㜶㘶愹㤹㈱㈵㈶㙥敤晣戸㘹㥡㈶て㐶㝦攲挴㐱㝥㡡㍥攴㈵㐱ㄲ搴㠹搳攴愱㐰㠱ㄶ㠵㔳〴㠸ㄱ㈰て〱摣愰㘸ㅦ㕡ㄴ〲晡㤲㠷愰改昷㥤㍢戳㍢扢攴づ改戵摤搲〵㉦挵挳㍢攷晥捣扤昷㥣㝢捥戹攷摣㔱㐶换㘴㌲扦㐳攲㕦愶ㅣ㌳㜷㔶搷㠳搰㜲㉢搳捤㐶挳慡㠵㑥搳ぢ㉡㤳扥㙦慥捦㍡㐱㤸㐵㠵挲㠲㠳昲㈰扦㄰㌸ㅦ户㡡ぢ㙢㤶ㅦ愰㔲㍥㤳㈹ㄶつㅤ攵散㠴扦㈳昱㠳挱㔶㐳㌹㠰昹改愹昳㡢㑦愰搷㙡搸昴慤㠳㘳㤷㔴摢㘳ㄳㄳ㤵㠹捡攱愳㠷摦㕢㌹㜴㜰㙣㝡戵ㄱ慥晡搶㌱捦㕡つ㝤戳㜱㜰㙣㙥㜵戱攱搴ㅥ戱搶攷㥢㔷㉤敦㤸戵㜸攸㠱㐵昳挱㠷㈶ㅥ㍣㜲挴㍥㝡昴愱㈱扣㍡㜳㙥㝡㙡捥户散攰㜵敡㌳捦㈱㍦㌸㘳搵ㅣ捥捤戲㝣挷㕢慡㑣㑦攱㕦㘲晣㜸㝡㕦愵扡㙣㔹㈱㕦㙤昹㤶㔷戳〲〳つ〷摤挹㈰㔸㜵㔷戸㜸㠶㝢ㄲ㔳慤㤹㐱㤸㜷愷慤㐶挳㜰攳㕥㡢敥㜹慣㕤挳㕣ㅦ㜲慢㤶ㄷ㌸愱戳收㠴敢〵㜷ㅥㅤ搵换敥挵挰扡㘰㝡㑢搶㌹搳戵昲敥愹㔵愷㥥㔳㈹㤳㝤㔷摣㐵㜲㘰㌲晤捡㘴攰㑥㉦㥢扥㡣㈸攰挲愴搴㍤改搷㍡敢摥摤扢㕦づ㕤摥挰㍥敦敤㕤て㈵㤷㑣扦㔵㜳扣㜷捤㘸昲㥤㈳㜸㑦敦晡㠹㌵敡㙣昳敥摥㙤㘴㈹㍢㙢㙢㠳ㄱ㝦换㡡㘲㌲㐶㠱㘰㠰愰㐸㐰〲ㅡ㈵㠲㐱㠲㈱〰㉤昷㕦搸㈵挹㠶㉣搲ㄷ㑣㝤㘱㔱㕦愸改ぢ㜵㝤挱搲ㄷ㙣㝤㘱㐹㕦㔸搶ㄷㅣ㝤攱〹㝤攱㉡敡挴愹㌸㌰愰㐷改戳㡦摤㍦晡摦捦晣晣挴㡦㝥昸戲戳晥昳晤捦っ敤㐱愵㐷愳㐱捤昸收㜵戰㕡㥢㡢て㔷づ昱㘷敢㕤㠱㑤㘱ㅦ戱摦㘷㑦㑣搴㡦ㅣ㌲ㅦ㌰昳㥣㔶ち昱㍢ㄸ㘵〴㜵㠷散换㡥㔷㙦㕥ㄷ摡摤㌹㘵〶㔶㝢攱挶愳戲愹收慡㔷て摥戲㜹㘱㌵㌴㐳敢㡥敥戲㜶㈷ㅢ㥡㔵戱慤慣㐰摥㜷㔷㜷戳㑢㘶㘳搵㥡扣攱愸攲户㜶ㄵ扢㜳㝥㜳戱㜷改㐹摦扡搶㉡摤㌰愲㐹〸戵㌵改㝢挳㉣㔵㤱ㅡ搷搸昴㜲㌳戰㍣ㄹ摥戸㍢攷搴慥㕡㝥搵愲㐸戴敡㌲搵㕢㔹ㄴ敤晡昱昳ㅥ㈶㡡摤㕡㝦㐷ㄲ㙢㥦戸ㄱ㘲㌳㕢㜵㡣㜷挵昲挳昵㜹㜳戱㘱敤敦愸愲摥㠹㠲〳ㅤ攸㤳捤摡㙡㌰摤昴㐲扦搹攸㉣㤹慣慦㤹㤰㌴昵戳捤扡㤵换㘵㐴㈸㐰攰㘶戳㥡㤶戹扦昷㕥㄰㐲㈴㐸捣㡤㝣㝢㈷摢㔵㉥㘰㜶㤸㐵挳㈲㑦敡昷㙣搱ㄹ挷㉢㌲㈶㘵〷㈶收㐴晤挱㤷摥户㐵户㉤捡扤戱㤵㜵㝤㌴㥡晤㠹㌵换ぢ㑦㥢㕥扤㘱昹愹摡㑦攳㠸㡣㘱㠰晣㑤〸㠴㥥慢㐷㔵愷摤搰搶昳搷㥤㝡戸㕣㔸戶㥣愵攵㄰㌸㘸挸㘲㤱㑢扢㈱ㄹ户〰㘵散㈵ㄸ〵㈸㤵㌲㠵㝤慣㔴㈸㈱㘵昲㤴㑥㈹㝢戹㐳㤰戳㕤挷㕥ㅥ戲㑦㍡㡤搰㔲㐲㜹搸〶㐵㤴㔶ㄳ昲㤵挹愲扥㔹㔳ち㘳㥦㍤つ㉥㌵ㅤ㉦㕣㙦敦摢つ扢㐴㌱搱慥㉣搸㜱戲㠰愲愰㔳ㅥ愴散㌵㌰㑤㤷㌴㐸慦㥣㘰㈲㙥㠳ㄴ捤㡥㥥㍢㤹㡣昵㔳㘴〴敡㈷㤹㤰戵て昵㤶ㄱ㘴昶㡤㑣捡㐶㍤昷攳慥㌴摢捣㤶㔷搲散㔶㉣㥣戱㥦攰㌶㠲摢〹づ〰㘸晦ち〹㐷㈹㠷㝣㘷㌲摥㠲㘷攳㑥㠲户〲㐰㍥ㄹ㤴㌹㤱愸愲つ戵ㅤ㍢㤲昵捡戰㤳挵㈸㔶愲㠸㤶㜱换捥㉣扢㐲攸挸敡摣ㄹ扡㌶㈷㍡昶㥤扤㜹㌳㌹ㅤ㜲㘴㑡搵攴㕣户愸㥡㕣〸㔶敤㔳㙦扤つ㑤㡤㌱㠲户〳㈸挵㐲㘳㜷㝢搶㍣捤挹㌷㠵㐹愴っ愱㍥㤵㝢挴挴㌴晦㔳〴摣㠶愳换慥晤㑣㔳㜰摣㝥搳摢捦〷㝢敦敤㠸攸㕤㍡㜳㔷攷搰㔷昴㉡㉤攸㜷㘰㝢㘹扦敡愹㕦敥㐱戱㜱㉦挱㍢〱扡昴ぢ㑦摥慦搶㑢㈰㈶戱㥢愰摣㕥㝡㕣挴挲㥤㕦㕦戱㐴晢っ搹昳愶扦㘴㠵昰㕥㥣㤹㠱ㅤ摣昴㝤慢㠱〳㙤㕤㄰㍣扢摣搶㠹っ㑥晡㑤㤷昸㕤晢㌸㜸㔳㈸㠶㕣㑥捦㘶扡散攳ㄴ㍢㌳攱㙦㑡㜰づ昵敦〳扤㠵㐴愲㔱㈷㝢戱㕤晡搹㜲㔷㤲昴㈱㐹敥挳戲ㅡ敦〶㠰㤴搰㝥搱㔳愲㡣戳摡㐱愹搶㘹慤搲扢㤷㜲㌲改昲ㅦ㙥㤰㈳㠳捡㔹㍢〵摦㐱㔰㜶慢㡥摢ㄲㄶ㠳敥㥣攵搷攰㔷㜰ㅡ㔶㐹戹㘴㈹㙡㜶㘵挵㥢㐴㔶㘴戳ㅢ捥搲㈹扥㌵攱㤳㉥㈹㤱扡摢㔳ぢ㔳捥攱㙤愶愲ぢ㤲㐲㈵挵㉤搴㤲㐰攴㍣搶摤ㄵ㌱㝤㠸㤸ちㄶ捥㜸て挱㈱㠲〹㠰晣㍦㐱搲㙣㜷攱ㄹちㅢ㔸愳㍢㝢㘱㈱㔳㈴ㄹ挴㍤昸搳㥥挲敡㐱扥收〸挱㝢〱扡捣ㅦ㍡ㅦ㔳ㄸ㔱㐸㥥㘰㐴㕡㑢㠶㝤挹戱慥㤳〷昶搸〸㉡㑤慦〶㘱搳㘵㔴愹㙣捦㌴捦㌵挳ㄹ㈷㔸㐱ㄴ㙡搴㡥㌲㤷㤷㉤て摣攵挳昶改挲㌵㔷㔶慣扡㘱㔷㥢慢㄰㙤㘷㘶㜶挲愱ㅣ昳㠳㉤㈹攷㜲㕤㐳敡敦㙣㡣㉥㌴㌹ㄱ挳搷㑡㑦散戶㍣摦㍣昴つ户㔷㜴摥〹ㅢ搶愰慤㌶ㅤ昳㐵ㅢ慢㠸愸㐱㝤挰㥥㕦昶㉤㙢愶㙣㥦昲㥤㝡挳昱㉣ㄲ〳㌶㈶〳㜵戳搶ㄲ㈲〴㜳㑤挶晦㥡㕥搹㥥昷㑤㉦㔸㌱ㄹ㑣㕣摦摢昱㈴㈱㤱扣㍤攵㜸〱㕥㈳㔴㘴㝥搸慥㉥㌷慦㈳㕡扢敡㝡愷捣㤵㘰㐷㔰㠵㑣慦㤲㤰㐶搳㌵㕤搷㡡㝡戱㕦晡昰㐰㥥挹ㅣ挶㙦㡥㐰㘸㤵挹搳㕦㥥愲扤㘹搷㐷昱ㄹ摡改ㅣ搳㄰㈲㐷㉤㘴㌶㔵ち㜳愷ㅡて戱捤㔱㠰て㥥扡㜸愶ㅤ㤵㝢㑤昱敡㍣㍤晣㈹㌲㕥搸愲ㄵ〴愱㝦㙥㡦㘲ㄵ攲挸㌹搸㠱愰㌸㥦扡搹慦㘴㑢ㅤ㜲摦㥥㜶昶㈴愲㐸㐳昶慣戹㘸㌵㄰㡢㜶捤㜰㡦㝡愰ㄹ敢㥡㡤㈰㉡㥢㙥扡慥㐹搶㈲㕢㔶㙢㈶㌹㜸㜲㌵㙣㥥㜵㍣挳〶㄰晥㡢㔰收つ愰捣ㅢ㠲ㅡ戲㉦㌰㉣㈸㜹昶搵㕣㌲㝤㈷㕣㜶㥤㕡㤱てっ摤敤〸㥥挴㈶愷攴㡤㔳㉣㌳挶扡慣昹㡢㌰搹㠲ち挸㕤㠱ㅣ攵搲㤱晣攰㕣㕤㉢攰㐷敢搳戱〴〱㈳㕥㔲攳晤攸㉤㉦㌷㈳㈰㜲㈴摤㡣敦㕦摣㝣ちㄸ攵㤷㈳搵㔳㔸〴ㅥ挱㠴㤰愷㝢扢㘰㕦昴㥣㄰搴㈳挵㑥㍡攱㑣〰㤲〳㈰㉢挷摢㍢㠴慡㠹㐶攳㉤慤昰戶㡤㐵ㅤ㙡攲慥㡤攵㐹扤㜱捦㈶挵㑡愳㈴ㄴ挹㔶㤵㐴戳㙣㌲挶㥤愴㙡㌴㔱摣戱戶搱搲摣愶敤㜵愷ㄴ㜹つ㡡㐹㜸㈶㘳ㅣㄳ㐶㐱㤰㤷摣〱ㅤ㐵㝦㝤㍡㝢㈴愲㌵戴〱㑡搴㔳ち㔷㡥挲㠱㘷㜰攵愴㙥㤵愲㈷散敦㍤㔱昶晣㙡搸㔱㘲摥ㄸ㡤㑡㈶ㅢ㡤昳ㅥ慣㠴㥡改搷㜷挸㤶挶摣㤴㠶㤱摤搹慦昶㔷换㥢搸㠸搱㌶㘴㐸㈴挵て㡣㙤㠸捤㤵㠸愶搲㍡㉢㜳愹㕢攸㈲㥦捥㕡愶㈷ㄴ愸㠶昵ㄹ㙢㑤捣戰戶㈵㍦㉡つ㕡愷㐵㤱愳㠶㍤戹ㄸ㐰愵㠷㤴攳㔱㑥㌶戸㘱㕦愰㕢ちㄷㄸ㈰㜶愳摣㕣㉤㐴㔸户搵〱㑦〶㍢㠷㍡㔸ㄱㄵ㌶愱㜵㐶〹㕡㐸㘱摣捥㐹㜰敦昴㐹㔱〸㔲㕢搲㝦ㅥ搷扥晣ㅣ搳户㡥㘷攲㑣戴㠹ㄸ敡㑡戱ㅥ㐰摣㘴㔴㤲扢㘸㌴づ㤶㉢挹㈶㐲㙢㈸挶搱挴㈸搳攴昳㐳摣攰㘱ㅣ㙢㤸摢愶㠱㍢㙥愱〳㙤摡㔸摦㘳㥦昱㙡㡤搵扡㈵慡㌸㤶搵愲㤱㜷〴扤攴晡㥦摡㑤㈹敢ㄲ㉤捡ㄹㅣ愵㌸㘵ㄲ愹㝦扢摢昸〰㥡㡢㤰㐳ㅦ㑡戶㌱昸㤸攲㤶㤳㘰搸㠶㍢ち戴て昷戶㉦㉦挸挵㌹㠸戴つ㈸捡戲㔹摣挵㙢㐵㤰㘵户㈵慡捤㌶㘷㥢戴搹ㄳ愸搳㡥㐲敤〸ㅡ㘱㥥㑡攰ㄵち㌰㐶晡摣ㅤ散㈴㜳㌳㡡散摥㝣㑡ㅥ㌳㌷㡦㐷挶㠷挶昸㉥㑦㐱ㄹ慣㉡㌶ㄲつ㙥扤㙤㜵㙢㡣晣搲昲㌶ㅥ〶搰ㄸ〲愶㐱㡢㥡捡挰㤹㐲㝥㙢〳㠷挱挸㤴攸㘸㌲㤰捡ㄸ攵㈸ㅣ昶㈰ㅡ㜶ㄳて搲昳㑤㈸愱㜰㥦㕣ち㡢敦㈵㡥扢㌸〲㌵晤晤㕤挸㌹㌳挴搵ㄷ敦㐰ㄷ㝡戲㕥愷戹ぢ晦摣㡥愰㉡慥㙤㈸㜳㜴㕦搷㠵㉣㤹ㄳ敤扢扢扢ち愲㡢㠲㠷㘷㉡愷捤戰戶㕣つ搷搵愵慤㍥㔹㐲捦晦〴晥㠸㑤摦㑥㥢㌹攷昱ㄲ敡ㅡ搷扥㜴搵㙢㕥昷㘴㕣昹㠰㌷晥㘸挵ㅡ〳〳ㅣ㘴㈹昳㍢晣㐸搲㌳昹ㅦ愳挷敤っ㥢ㅤ戴ㅤ㈴散㐷㔲挹㌸㠱扦戴㜶挶昰㌷㠵㔷㘰扦户㙥つ㤰㔷昶㜵昱㡡〸㠳㕤㘶昱㤶㕥㉦㘶挹㘸㍦〲㘹挹㌰㈰㜸㝣㐱㐴捦㘸㉦攲㠱㐴〷つ㐰㌸攳㌴㈱挸昷㜶晣㑤㈱㥦〸昴攸㥡〷㉦㠵晣晦愱㔴扣慢㌷摤㔶晦ぢ㥢㕡晢〱㠸㈱㘴〲㑤㕡晢㔲㝢愱㤳㑣㡦㐴㘴㘲㔰昶㔵㠵扦㌹㠳摤㘳攷ㅢ㝥挵昷晦昰搸㜹ㄶㄴ㘶ㄲ换っ〱戶㝢㤰㙦ㄹ〶晡〶挳攰㕥ㄴ㡢㘱㜰㡥㙤ㄸ扢㔷㠶㐱攴昹㤸〳㘲㙢挳㠰ㄱ扤ㄴ昳㉦ㄱ㘰㑤㌸㌳㜸敥摡敦搲㉢㜶ㅡ㔷㙤慤〰㔱㝣愸慡㘰ㅡ㝥愸摢㌶愲攷㑣摦㜴て〸晥㤴㙦㐱㠵昹昳戸扢㉤㑤搸攲㡥㑤㑢愴搱㈶ㅥ㡡搸户扥敢㐵搹摥㡤㜵㔰㑡㈵攵戴搷㡡㕡攱㌵昸㐷㌴㥥ㄶ㌲㥦搸昷敤㔳晦晣昱捦ㅣ攷ㅤ戵㠸㔷昳っち昷ㄳ愸愷〵㠱㔰㙥攲㝡挸慤晣ㄴ攷㉣㍥㑡㜲㔶ㅡ搶㤴改㡢敤ㄳㄸ㙥㥣㔵㡣㤷㘰㑣挵㝣㍢挱戰挴㙤〷㘵㔸㔶扡㥣㥣昲㈹㤳㌸〶㉢㠹㠱㡢㈷㉦づㄶ㙡㍤搵㔶㥦㌶㘶晥㍢㔰㍣慦㜲㈰㥤戶㈱捦㥡㑣㥡昶敤㔸戳㈹㐴㈶㜳〴攷て㜵㠰搴挶㠱㡢愵ㄴ愲づ攴㤰攴昱㠵搷〰㐴㑡㔵㤱挹㔷〰㔲攲㘹摤㠱㕤㝡〱㜶㠵㠰搵扡敡搷攷㘷㉢㔸㐵㔰㌱昶挰昷㝢㡥攵愱㍦㔶㑤っ搰捡㐹㘴ㅥㄹ㌹戲㄰挱㠸慤㘰㉦㈲ㄳ愷晣〴㜲摢㜶㐲昱㈵㘵㔷㠵摢搴挶捥扢昴戰㤵摣ㄳ摥㉡敥㝢㐰捦ㄴ㐴㘱㜸㝢㠹挶㌱㔴㈲㜳慡㙡㐹愱〸㠷㔵戶搵㘸㌰㉡㠲捥昲づ攰㉣㡡㤰ㅦ扦つ㘲昹㜸扢敢㕢扢㑢愸攳扣〱㑣㤰扦戰扦敥㑡搹搸㜸㉢㜷っ㈴散戶㙡ㄵ搵㠵昰㑢㘸挲㐹㘷㌴愳㥤㤵㘷㡤㤱改㜸㘷㘵㌷敡㝦挶慣㘵㘷㕤㘶㙢〶慦㍢昴晦㘳㐰㙣愹晦㌵㐶摣㠴㘴ㅦ㡥㌲㝣挸㌳㙡戲㘵愰㠶㉢〲㝦㌶㐲㌶㜲ㅣ㌶㈴换㐰户捡㔵昱戹慡㉡ㄶ〹づ㙦㔷慥晢㐲㐴慢㉤㙤摢挱㥥〲昰㈸㠷昴㔷㄰㐱㍤摢㜳搰ㅢ捦戴㠵挷㠱摥㜷搶愹昹捤愰㘹㠷㘳㔵㠴㝡挷昸戵㤹つ㥢㘷㔲晢换㙥愱㜶㌷㔶㘲攸㘳㘸㜳敥㍣〴昶㌹㉢㝣扤㈲㤰㡣㈷㙣㉦㝥挱㉦㡦㐶ㄲ㐱㈵㙡㠷攰ㄶ晢搱㔵戳㠱㡦㔵捦挳挳ㄹㄲ戵㈳㤴㥤昲㌳㜷摦换攰搲攱㘶搶㈳昰〲㔹㡤ち㐲㘲㌲㠵㡦㝣㤴敢摡扤〶㥤㜵愳戹〵慣搹㥦愷慤㤴晦〶㘸扡扤户㜴戲っ摦挹㙦㤰㑢挶ㄵ㐲ㅣ愳㍦㠰扦摢㜷换戲户㔱昰㜹昴〹㌷摤㕦攳つ㌸捤戶ㄱ昳㌶搱㔴㝢㤸〰扦挶㘲㤴攱㠳㐶摦ㅥ户愲昶㔵㑣㡢ㅢ〰昹㑣愱づ搰㥢慢扦戲ㄹ㔷㙢昴敤㐸晦㘰晤っ敤㌶戱摤攸㌲㄰散㔲ㄲ换ㄳ慡㘰㤷㤳㔸ㅥ㑥挸挷㈵敤㉦昰〶慥戳㕡慦㈷㠸挳㘱㐵づ㈱挸ㅢ㔷〱攲愴昱㄰㈲㌳昸㔳㌴㘸捤挰〵戶昷っ㥥摤㜴〶㌴ㅦ㘴㔴挹晥㐷㘲昵㘳慣愰搸戸㐶攰ㄳ〴〰㈳戱ㄶㅡ愶㘰愵戴㉡愸㤰挴㡢挷㤱㐷晡㔹昴昷㤵攳㍦㝤㠹改㍦㡥㙢㈲㑡㔱搴㌹ぢ㡡㔲㤹挵攷㤳戳㔸〳戶昷㉣㍥户搹㉣㐶㈸㘵㌹ㄲ攳〶㐰㌹慢㕤挱ㅦ㤹搵㝡㤴攱㠳㘶挶搸㡥戹㤲㌵愴敤㈷㤰㈹㘷㐷㐸㑡㝡㜰㡣㈷〹㝥㥦攰て〸㥥㈲㜸㥡攰㤳〰㘵㝤㠴搴㤵㡡㥦㈲昲搳〴㥦㈱㜸㠶攰て〹㍥ぢ㠰㡡㈴戸㔴晣㈳㈲㍦㐷昰挷〴㥦㈷昸ㄳ㠲㉦〰㤴㜵㡤㐴㤷㘱㝦㌱捡昰㘱㈴ㅥ㙤㥥挴㐸昹㈸㐹慣㍣㕥攲攴扢ち捡㤱㕣㔰扡扤攸㐶ㅥ攴ㅤ㈱攱㈲摦㝦㑦挵㔴攸昳㜶㠲㜶㉤㘶㡥搳愷㈳晦㕤㐶㡦攲㘵㘰㑥〹捣㘸㘴㘶㉥愴戶ㄲ㔷晥敥ぢ㙤户ㄲち㤰挰挱慡㌲㤹㕥㉡㌷攳捡㠷昱㌵㤹搴㐱捦㉡扤ㄲ㔷收收㤰捡㕥㕣昹摦てㅦ㘸㔵㡥昷㠲敡㌹㑦㐶㑤戱搸攵っ㤳昸戲㥣慥㠱扣㑤㉢㘰搰㔶㘸捡㝦〹㝢㌷挴づㄸ挲㐵ㄶㅦ摦㜶捦攲㕥ㄶ慥慦㐰㔵愸晦攲攱っ敥㙢捤㤸愱㠹㑦户搷㄰㈸昷つ㜹㘲攳㠲㝤摥〷㘲挰㍥ㄳ攰㘴㔸摦㔱㉣〲愳㈶愷搶㜷㡢㠰㐲㡡〱摣㕥㡦㌸挰愷昳晥㑢㝦㉡㔰㠲㐲㌹慤ㄱ㔳㌶昳㜴㥢㘷㡣㍦〳㜱㈰慡〱㤹㌱晥ㅣ㔰〵㤱昶ㄱ㌱㐲ㄹ㈴〲收㑢挸㐰㌸㔱捥㤰晣㠵攷〰㠶攳晦㔷㘳㙣㑤㥣㍤扡㘶挷敦㐸㜲㡦昱ㄵ㌶㜸ㅥ㈰ぢ㑦戳ㄶ昱㕥挹昸㉡㌰㠹㜷攵㈹戳摥摦摢㤸收㔹㌹晥搶ㅦㄱ搰㡥㡦晡㑦攰㈳晤㜵㜶㥣挵晦㔱㤲ㄷ换㍦愷晦㕥㝦㝤㤱扦㘸戴换慦㠹〹扤㠶㝥戸慥㙤㈳㤴㍤㡡㠶搴㈸㤹㌹㕤敤ち晡攷㍢㘸搳㤷㌴捡㙡㐱㉦㐴攸晤㠲愶昴ㄶ昴挷㈲㌴㉦㐵㤴戴愷㘳昴㐷㈳昴㝤㠲晥㘴㡣㝥㍣㐲搳て㔳搲㍥ㄵ愳㍦ㄲ愱搵㐸㈸晡愵敦て㐷㘸㌵ㄲ㉡〳㐱㍦ㄶ愱搵㐸㥥㠹搱ㅦ㡡搰㙡㈴㔴ㄸ㔲晢㜲㠴㔶㈳愱ちㄱ昴愵〸慤㐶㐲㑤㈲攸㡢ㄱ㕡㡤㠴扡㐵搰昳ㄱ㕡㡤㠴摡㐶搰搵〸慤㐶㐲晤㈳攸ぢㄱ㕡㡤㠴ㅡ㐹搰㡦㐶㘸㌵ㄲ敡㈸㐱捦㐵㘸ㄹ挹〸㔵㤵㜰昷㜷㤱㈹㘷昳摣っ摢摥㤵愴㙤㥦昶摤昷搰㔴攳㔶㘳ㅦ挶昷愳っㅦ㌴敥㌳ㄹ改㙣㌴搲攳慣昲搷㉣攲㌶攲〸㡤ㄷ昸挴摤㈳捤㝦㄰㘵愴㌹㈷㈲捤愱㐴㠴戱愴昹㡢慣㈲㉦㐵愶挳㡥ㄹ攱换㘵〹晥〶㤹㜲㜶㤸㙦扡㡣㕦晤㠶㔶扢㔲扦㜲攵㌷挳戹戱㍢㜲ㅦ㝡㜸攸戹㔷晥昱搷捦扥晣昸戱㝦晢敤昳捦扦晣㉦捦扥昴摢ㅦ㉦ㅥ晢晢㙦㝥昳敦㍥昸戵㤷㝥扤搷晥扡晥挲㙦㘶扦晥攴挴搵㈷慦搹ㄷ敦㍦昵攴㘳㑦㍣㍡㌱㜷换㜸㌶㍢㌰昰慥搱㝦戸晤扥㤱愷慦晤㔰晢摢㕦摥收㘹㌲㜸扣愰㜳ㄸ㥣㠴っ攳㈷挸㘰ㄸㅣ昱ㅢ㍡っ㑥㔷ㄶ㙡㉡㕡愸㈹㈰㡡昰㘰㜱〰㔲㌰搹㔹㌰昸㍦戲㝡㌵㐹 | H27: 㜸〱敤㕣㙢㙣ㅣ搷㜵摥ㄹ㜲㤷㍢㑢㔲愴㐵㔹戶ㅣ挷㘶㘲㍢戱㐳㘱㉤敡㤱搸〹ㄴ㤵て㔱愲㑤㠹㤴㐸挹㙥ㅣ㜷㍤摣㥤㈱挷摡㤹愵㘷㘶㈹搱㜱㙢攷搵㈴捤愳愹摡〴㜰㥢㌶㠲㤱愲㜰㡢〶攸㡦ㅡ〹ㅡ戴㐹㥢㈲㝤㌸㐵㝦〴〵㡡㍥攰〶㐵晢愳㐵㘱愰㐰㤱ㅦ㈹搲敦㍢㜷㘶㜷㜶挹ㅤ搲㙢扢愵ぢ㡥扣㠷㜷捥扤㜷收摥㝢㥥昷㥣㍢捥㘸㤹㑣收㈷戸昸㤷㔷㉦ぢ户㉦㙥〴愱攵ㄶ愷㙡搵慡㔵づ㥤㥡ㄷㄴ㈷㝣摦摣㤸㜳㠲戰〷つ㜲㈵〷昵㐱戶ㄴ㌸㑦㕢昹搲扡攵〷㘸㤴捤㘴昲㜹㐳㐷㍤ㅦ挲摦㜰㝣㘳戰搷㐰㉦挰搲搴攴晣昲㤳㜸敡㘲㔸昳慤挳愳㤷㔵摦㤳攳攳挵昱攲搱〷㡦扥户㜸攴昰攸㔴扤ㅡ搶㝤敢愴㘷搵㐳摦慣ㅥㅥ㕤愸㉦㔷㥤昲挳搶挶㔲敤㡡攵㥤戴㤶㡦ㅣ㕢㌶㡦㍦㌰㝥晣挴〹晢挱〷ㅦㄸ挰慢㌳攷愷㈶ㄷ㝣换づ摥愰㘷㘶㌹攴攳搳㔶搹攱摣㉣换㜷扣㤵攲搴㈴晥㑢㡣ㅦ㜷敦㉢㉥慥㕡㔶挸㔷㕢扥攵㤵慤挰㐰挷㝥㜷㈲〸敡敥ㅡㄷ捦㜰㘷㌰搵戲ㄹ㠴㔹㜷捡慡㔶つ㌷㝥㙡摥㥤挷摡㔵捤㡤〱㜷搱昲〲㈷㜴搶㥤㜰㈳攷㉥攱㐱㤵㐱昷㔲㘰㕤㌴扤ㄵ敢扣改㕡㔹昷㑣摤愹昴慡㉢搳昳敥昸ㄱ挹㠱挹昴㡢ㄳ㠱㍢戵㙡晡㌲愲㠰ぢ㤳搲㜶挶㉦户戶扤慢昳㜳㌹㜴㜹〳㥦㜹㑦攷㜶愸戹㙣晡㡤㤶㘳㥤㕢㐶㤳㙦ㅤ挱晤㥤摢㈷搶愸戵捦㝤㥤晢挸㔲戶戶搶晡㈳晥㤶ㄵ挵㘴㡣ㅣ㐱ㅦ㐱㥥㠰〴㌴ち〴晤〴〳〰㕡敦㝦㐲㑡㤲ㅤ㔹愵㤷㑣扤戴慣㤷捡㝡愹愲㤷㉣扤㘴敢愵ㄵ扤戴慡㤷ㅣ扤昴愴㕥扡㠲㌶昱㤵敦敢搳愳敢敦㥥晦慦㝦㍣昶挷㘳搳扦昹昷晦敤晣攱挷捣㡦て散㐳愳ぢ搱愰愶㝤昳㉡㔸慤挹挵㐷㡢㐷昸㙦㝢愹㠰㔰搸㈷散昷搹攳攳㤵ㄳ㐷捣㘳㘶㤶搳㑡㈱㝥ぢ愳っ愳敤㠰晤㠸攳㔵㙡㔷㠵㜶户㑦㥡㠱搵㕣戸戱愸㙥戲㔶昷㉡挱摢戶慥㕣っ捤搰扡慤扤慥昹㤰㑤摤ㄶ㈱㔶㔶㈰敦扢愳扤摢㘵戳㕡户㈶慥㌹慡晡敤㙤搵敥㠲㕦㕢敥㕣㍢攳㕢㑦㌵㙡㌷㡤㘸〲㑡㙤㕤㥥扤㘹㤶慡㑡㡤㙢㜴㙡戵ㄶ㔸㥥っ㙦捣㕤㜰捡㔷㉣㝦搱愲㑡戴㉡㌲搵㥢㔹ㄵ㐹晤搸扣㠷㠹㐲㕡㉢敦㑣㘲敤搳搷㐲〸戳㔵挱㜸搷㉣㍦摣㔸㌲㤷慢搶挱㤶㈶敡㥤愸㌸搴㠲㥥愹㤵敢挱㔴捤ぢ晤㕡戵戵㘶愲戲㙥㐲搳㔴捥搵㉡㔶㙦㙦㐶㤴〲ㄴ㙥㑦㡦愶㘵摥搳㔹ㄶ㠴㄰〹ㄲ㔳㤰㙦㙤㘵扢攲㐵捣づ戳愸㕡攴㐹晤敥㙤ㅥ挶昱㡡㡥㐹㤱挰挴㥣㘸㍦昸搲㝢户㜹㙣㠳㜲㙦㙥㘳㕤ㅦ㠹㘶㝦㝡摤昲挲戳愶㔷愹㕡㝥慡昵搳㌸㈲㘳〸㈰晢㉡ㄴ㐲挷搵愳愹搳慥㘹ㅢ搹慢㑥㈵㕣捤慤㕡捥捡㙡〸ㅣ㉣㘴㍥捦愵摤㜴ㄹ㌷〱㘵散㈷ㄸ〱㈸ㄴ㌲戹〳㙣㤴㉢攰捡㘴愹㥤㔲㘴戹㐵㤱戳㕦㡢㉣て搸㌳㑥㌵戴㤴㔲ㅥ戲㐱ㄱ㘵搵㠴㝣㠳㘴㔱摦㉣㉢㠳㜱挰㥥〲㤷㥡㡥ㄷ㙥㌴攵㜶㤳㤴㈸㈶摡搳〵扢㑥ㄷ㔰ㄵ戴敡㠳ㄴ㔹〳搳戴㘹㠳昴挶〹㈶愲ㄸ愴㔸㜶㍣戹㤵挹搸㍥㐵㐷愰㝤㤲〹搹晡㐸㘷ㅤ㐱㘶摦捣愴散搴㔱ㅥ昷戴搹㔶扥扣搲㘶㌷㘳攱㡣㠳〴户㄰摣㑡㜰〸㐰晢ㄷ㘸㌸㙡㌹㤴㕢㉦攳㙤戸㌷㙥㈷㜸㍢〰昴㤳㐱㥤ㄳ愹㉡晡㔰㍢昱㈳搹㙥㄰㝥戲㌸挵㑡ㄵ搱㌳㙥昸㤹㠳慥㄰㍡昲㍡㜷㠷慤敤ㄵㅢ晢慥捥扣㤹㥣づ㌹㌲愵㘹㜲慥摢㌴㑤㉥〴㥢㜶㘹户敥㐴㔷㘳㤴攰ㅤ〰捡戰搰搹摤㤹㌷㑦㜷昲㉤攱ㄲ㈹㐷愸㑢攳ㅥ㌱㌱摤晦ㄴ〵户㘹敢戲攷㍦搳ㄵㅣ戳摦昲晥昳攱捥戲ㅤㄱ扤捤㘶敥搹ㅣ挶㡡㕥愳〷晤㑥㠸㤷昶てㅤ敤换摤愸㌶敥㈱㜸ㄷ㐰㥢㝤攱捥晢戵㐶〹挴㈵㜶ㄳ㤴摢捦㠸㡢㜸戸㑢ㅢ㙢㤶㔸㥦〱㝢挹昴㔷慣㄰搱㡢搹㘹昸挱㌵摦户慡搸搰㔶〴挱扤换㉤慤挸㘰挶慦戹挴敦昹挷挱㕢挲㌰昴昶敡㍤㤹㌶晦㌸挵捦㑣挴㥢ㄲ㥣㐳晢㝢慣戳㤲㐸㜴㙡㘵㉦昶㑢摦㕢敥㘹㤲㉥㌴挹扤㔸㔶攳㍥〰㘸〹敤㙦㍡㙡㤴㌱㌶㍢㉣捤㕡扤㔵㐶昷㔲㜶㈶㙤昱挳㑤㝡愴㕦〵㙢㈷ㄱ㍢〸〶摤㐵挷㙤㈸㡢㝥㜷挱昲换㠸㉢㌸㔵慢愰㐲戲㔴㌵㝢扡攲㉤愲㉢㝡㝡㌶敤愵㔳㘲㙢挲㈷㙤㕡㈲㔵摡㔳㉢㔳昶攱㑤愶㘲〸㤲㑡㈵㈵㉣搴搰㐰攴㍣戶摤㔳㌱㕤愸㤸㈲ㄶ捥戸㥦攰〸挱㌸㐰昶慦愰㘹㜶扡昰㑣㠵昵慤㌳㥣㕤㉡㘵昲㈴㠳㠴〷扦摦㔱㔹ㅤ攷㙢㑥㄰扣ㄷ愰捤晤㘱昰㌱㠵ㄱ㠵攴〹㐶愴户㘴搸㤷ㅤ敢㉡㜹㘰㥦㡤愴搲㔴㍤〸㙢㉥戳㑡㠳昶㜴敤㝣㉤㥣㜶㠲㌵㘴愱㐶散愸昰挸慡攵㠱扢㝣昸㍥㙤戸摡摡㥡㔵㌱散挵㕡ㅤ慡㙤㜶㝡㌷㙣捡㌱㍦昸㤲戲㉦搷㌵㕣摤敤㡤昱〸㑤㜶挴㠸戵㌲ㄲ扢愳挸㌷㌷㝤㐳捤ㄵ㕤㜲挲慡搵㙦㉢愱㘳㌹㙦㘳ㄵ㤱㌵愸昴搹㑢慢扥㘵㑤て摡㘷㝣愷㔲㜵㍣㡢挴㠰㡦挹㐴摤㥣戵㠲っ挱㐲㡤昹扦㥡㌷㘸㉦昹愶ㄷ慣㤹㑣㈶㙥散㙦戹㤳㤴㐸搶㥥㜴扣〰慦ㄱ㉡戲㍣㘴㉦慥搶慥㈲㕢㕢㜷扤㌳收㕡戰㉢愸㐲愶㔷㤷㤰㐶搳㌵㕤搷昲㝡扥㕢晡㜰㐳㥥挹ㅣ挵慦㤷㐰㘸㤵挹㌲㕥㥥㘲扤改搷㐷昹ㄹ晡改ㅣ搳〰㌲㐷つ㘴㑦慡ㄶ愶愴ㅡて戰捦㠳〰て㥤戹㌴摢捣捡扤慥㝣㜵㤶ㄱ晥ㄴㅤ㉦㙣搱㐸㠲㌰㍥户㑦戱ち㜱攴ㅣ㐸㈰㈸捥扢㜶昶㉢搸搲㠶摣户慦㔹㥣㐱ㄶ㘹挰㥥㌳㤷慤㉡㜲搱慥ㄹ敥㔳㌷㜴㘳㕤戳ㅡ㐴㜵㔳㌵搷㌵挹㕡㘴换挵戲㐹づ㥥愸㠷戵㜳㡥㘷搸〰挲㝦ㄱ捡扣〶㤴㜹㑤㔰〳昶㐵愶〵愵捣㘷搵㔶㑣摦〹㔷㕤愷㥣攷つ㔳㜷扢㠲㈷㈱攴搴扣昱ㄵ敢㡣搱㌶㙦晥ㄲ㕣戶愰〸㜲ㄷ愱㐷戹㜴㈴㍦㌸㔷搷㜲昸愷㜵ㄹ㔸㠲㠲㤱㈸愹昱〱㍣㉤㉢㈷㈳愰㜲攴㝡㌵㍥㝦昱敡戳挰愸戸ㅣ愹㥥挲㈲㠸〸㈶㤴㍣挳摢㌹晢㤲攷㠴愰ㅥ㈹㌶攳㠴搳〱㐸づ㠰愲㙣㙦㙦ㄳ慡㈶㍡㡤㌵慣挲㥤㥢慢㕡捣挴ㅤ㥢敢㤳㜶攳敥㉤慡㤵㐵㐹ㄸ㤲敤ㅡ㠹㘵搹㘲㡣扢挹搴㘸㘲戸㘳㙢愳愵㠵㑤㥢敢㑥㉤昲㍡っ㤳昰㑣挶㌸㈹㡣㈲㌶捡昸㈰捡㜰ち戲㡣搹愷戳㐸㈲㘳㐳㍦愰㐰㕢愵㜰㠳㔱㑡㜰ㄶ挷㑥㉡㔶㈱扡㠳㡣敦㡢㡡昳昵戰愵挶扣㌶ㄲ搵㑣㔴慢昳ㅥ㍣㠵戲改㔷㜶㠹㔸㘳㙥捡捡㠸㠴㜶敢〱攰㈹戸ㄲ挲ㄸ㠹㈲搳㈲㈹戱㘰㠸㈲〴㉣㤱㔱愵㠷㌶挸愵㙥愰昳扣㍢㘷㤹㥥㔰㘰㌱慣㑣㕢敢攲㡡㌵扤昹ㄱ改搰搸㌱㡡㉥㌵散㠹攵〰㘶㍤愴㉥㡦㑡㈲攴㠶㝤㤱愱㈹ㅣ㘲㠰敡㡤㑡ぢ攵㄰愹摤挶〳戸㍢搸㍤搴挱㡡愸搴〹㍤㌴㙡搱㕣ち攳戶㑥㠲昲搳㈵㐵愱㑣㙤戹晥攳㤴昶慢捦昳㝡昱㔴㈶㉥㔰捤㐲㠸㤸敥㑡昱㈰㐰摣㘴㘶㤲㔲㌴ㄲ㈷捣㤵㜶ㄳ挵㌵㄰攳攸㘶っ搲敤昳㐳㥣攲㘱㉥㙢㠸㘲㔳挵㌹户搰㠱㐵慤㙥散戳㘷扤㜲戵㕥戱挴ㅣ挷晡㕡慣昲慥愰㤷ㅣ〱㔴搲㤴戲㉥搱愲捣㘲㍢挵㈹㤳㐸摤晢摥挶㈹㜴ㄷ㐵㠷㘷㈸戲㌰〱㤹ㄲ㥡㤳㠴搸愶㜳ち昴ㄱ昷㌷て㌰挸攱㌹愸戴㑤㈸敡戲㌹㥣挷㙢㘴㤱㐵摡ㄲ捤收㙡㜳㌵晡敤〹搴㔹㐷愱㜶〵㡤㌰㑦愵昰㜲㌹㌸㈴㕤㑡〷ㅦ〲㙤㈷㝦㌲慦㍥ㅢ晤〵㈹㠴〲ㅡ㜳扣摣〹㘵戰慡㄰㈴㍡摤㝡搳昳搶㤸晤愵昷㙤㑣〰㘸㑣〳搳愹㐵㑢攵攴㑣愱扣扤㤳㜳㈷㕡愵㘴㐸㤳挹㔴收㈹㐷㄰戴〷搱㈰㑤摣㑣㉦搵㘰㠴挲〳㜲㌰㉣㍥㥢㌸收㘲ㅢ㔴昳て戶㈱ㄷ捣㄰挷㕦扣㐳㙤攸㠹㑡㠵㉥㉦㘲㜴扢㠲慡㌸扡愱㕣搲〳㙤㠷戲㘴㑥昴昱敥㙡慢㠸づぢㅥ㥤㉥㥥㌵挳昲敡㘲戸愱づ㙥㜵挹ㄲ㝡昶㕢㠸㐹㙣昹㜶晡捤扤ㅥて愲慥㜳敤ぢ㔷扣摡㔵㑦挶㤵つ㜸敡てㅣ㠲㈳㤴㝤ㅣ㘴㈱昳ㄳ晣㤳㑢捦㘴晦〰㑦摣挹戰昹㠰㘶㤰㠴捦㤱慢㘰捣攰㉦ㄵ昵㈸晥愶昰ち㝣昸挶挹〱昲捡㠱㌶㕥ㄱ㘵戰挷㉣摥捡ㅢ挵㉣ㄹ敤㥢㈰㉤ㄹ〶〴㡦て㠹攸ㄹ敤ㅢ戸㈱搱㐱〳㄰捥㤸㈵〴昹摥㠱扦㈹攴ㄳ㠵ㅥㅤ昵攰挱㤰晦㍦㤴㡡愵㝡㑢戱晡㕦㄰㙡敤㈵㄰㐳挸〴㥡㌴攴㔲晢晤㔶㌲捤㐵㘴㘲㘲昶㌵愵挰㌹㠳扤慤攷㥢㝥捣昷晦㜰敢㜹ㅥㄴ收㈵㥥ㄹ㤲㙣㜷愳摣㜰っ昴㑤㡥挱㍤愸ㄶ挷㘰㥥㝤㤸扦㔷㡥㐱ㄴ晤戸〰挴昶㡥〱戳㝡㈹敥㕦㈲挹㥡〸㘸㜰摦㜵搰㘵㘴散㉣㡥摢㕡〱㌲昹㌰㔵挱ㄴ㘲㔱户㙣㐶㉦㤸扥改ㅥㄲ晣ㄹ摦㠲〹昳㤷㜰㝥㕢扡戰挷㙤㕢搶㐸愷㉤愲ㄴ㜱㝣㝤㉦㤲戲戳㔳敢愰㤴扡㔴攰㕥换㙢戹搷ㄱ㈳搱戸㕢挸㝣攴挰搷捦晣搳搳㥦㌸挵㜳㙡ㄱ慦㘶㤹ㄸ敥㈶㔹㑦て〲改摣挴ㄱ㤱㥢昹㌹捥㌹㝣㤸攴慣㔵慤㐹搳ㄷ摦㈷㌰摣戸愸ㄸ㉦挱㤸㡡昹㜶㠳㘳㠹ㄳて捡戱㉣戶〵㍡攵㜳㈶〹づㄶㄳ〳㤷㘸㕥㥣㌰搴㍡㥡慤㉥㝤捣散搷㘱㜸㕥攳㐰㕡㝤㐳敥㌵㜹㘹摡敦挶㤶㑤㈱㌲㤹ㄳ搸㝦愸つ愴挶㠴㝦慣愵㤰㜹㈰㠷㈴户㉦㍣ち㈰㕡㙡〹㠵㙣ㄱ㈰㈵愷搶㥥摣㘵ㄴ㘰㑦〹㔸㡤攳㝥㕤㝥扡㠲㔵〴ㄵ攳㈸㝣户晢㔸㙥晡㘳搳㜴㍦换昸ㄹ㤷〰㘴换㐲〴戳戶㠲扤㡣㐲㝣㘵挷㔱摡㜱㄰㡡㉦ㄹ㜴㔵捡㑤〹㜶搶㘵㠴慤攰㥥昶敡㌸昳〱㍢㤳ㄳ㠳攱敤㈷ㅡ摢㔰挹捥愹愶〵㠵㈲ㅣ㔲挵㐶愷晥愸ち㌶换㍢㠴扤㈸搲㝥晣㍥㠸昵㘳捤㐷摦摣㕥㐳ㅢ攷昵㘱㠲晣挱晦扡㈳㐵戰昱㔶㑡っ㌴散㡥㕡攵搵愱昰㐷搰㠵㤳捥㘸㐶戳㈸昷ㅡ戳搳戱㘴昵㙣戶晦捣㕢㡢㘴㍤捡摥㑣㘰户搸晦て〱戱慤晤搷㤸㜵ㄳ㤲㍤ㄶㄵ㜸㤳㘵收㘴摢㘴つ㔷〴昱㙣愴㙤㘴㍢㙣㐸㤱挹㙥㔵㕡挴㈷慢慡㕡㌴㌸愲㕤扤敤㠷㈲ㅡ㝤改摢昶㜷㔴㠰捣ち㘵扦〶ㄵ搴戱㍦〷扤㜹㑦㥢㝢ㅣ攸〳攷㥣戲㕦ぢ㙡㜶㌸扡㠸㜴敦㈸扦㌸戳攱昳㑣㘸㉦戴㉢戵扢戰ㄲ〳㈵昴㌹㍦て㠵㝤摥ち摦愸㉣㈴㜳ち㍢换㘱昰敢愳攱㐴㘲㠹搶㈱戸挹扥㔰㌷慢昸㘰㜵ㅥㄱ捥㤰愸㕤㘱散㔴㥣戹晤㙣〶㤷づ愷戳ㅥ㐶ㄴ挸慡ㄶ㤱ㄶ㤳㈹㍣昶㌸搷戵㝤つ㕡摢㐶㜳ぢ搸戲扢㐸㕢㈱㝢〳㌴摤搹㕢㕡㔹㠶敦攴㜷挸〵挳㈴㠴昳捤摣て摢ㄸ换〰昴㜴昸换㥥〲搸㜹戰㤶晤㐷挰晤搱挷摤っ㡡㡤㔵ㄱ㑡摢㐱㌶扣㡣慥摡〴〱㝥㐶㈵㉡昰㐶㘳挴㡦〲慡晤ㅡ㈶㑢戱㐰ㄹ㍢㐳㠰捥扣晥晣㔶扣慥捤昰㈹昸ㄹ慢㝣㐲昴搳ㄸ㐸㄰慣㤳挴㜲摦㉡搸㈷㤳㔸㙥㔹挸摤〵敤㑢㜸〳㔷㕦慤㘲㤵㌸慣愲㙣㑤㔰㌶㕣㠰昸搲戸㌵㤱ㄹ㕣㐷㠷挶っ㙡挰㜶㥥挱ㄷ户㥣〱㥤ちㄹ㔵昲昹挳戱㔱㌲㝣㔴ㅢ〱㐱㐸㔰〷ㄸ㡥㙤搳㄰搵㉤㜵㔸㑥㈵㉡扥㐹摡攲晡敢攸敦㉢愷扥晦㌲慦㝦㍦愵㠹㠲㐵㔵敢㉣愸㘰㘵ㄶ㥦㐹捥攲ㅡ戰㥤㘷昱愹慤㘶㌱晣ㄸ晡㜰㈴挶搳〰㠳㍤㥡㠹㍦㌲慢㡦㐴〵摥っ㤳ㄱㄹ戱㌱㥥㈱昸㔹㠲㥦㈳㜸㤶攰㌹㠲㡦〲っ敡㥡昰づ敦㕢ㄶ㠵㍣㈴㉦昹㌸㕢昵っ㤳收昲戸㑦戰改㈷〹㝥㥥攰㔳〴㥦㈶昸っ挰愰㍥㑣㌶㤰㠶扦㐰攴㘷〹㍥㐷昰㜹㠲㉦㄰晣㈲〰ㅡ㤲㌳愴攱ㄷ㠹晣㈵㠲敢〴扦㑣昰㉢〴㕦〲挰〰挹ㅤ㌲扦㉦㐷〵㤹㕦㍣摡㉣愹㤶昲㕤㤳㌸㠹㍣〷捡㜷攵㔴ㅣ㍡愷㕣㠳扣ㅢ〵愰㜷㠵㠲㡣㔲〷ㅤ敤㕡慥换〳づ㥡ㄳ㜳搱搹戳㔱昸㉦愳㐷改㌶㜰戱捡㉡㤰敢戹㤰摡㙡摣昸昷㕥㙡㐶愵㔰㠱ぢ慣慥ㅡ㔳㍡愴昱㑡摣昸㈸㍥㐸㤳㌶㜸戲扡㕥㠹ㅢ㔳㡡愴戱ㅤ㌷晥户愳㠷ㅡ㡤㘳愱㔱㑦捥㤲愳㔳ㅣ㝥搹〲㈵㍥㑥ㅦ㐲昳慣㑤㈷愲摦㔶㘸㥡て挹㥡㔷挵㡤ㄸ挰㔹ㄸㅦ㥦㠷捦攱㘸ㄷ㑥挰挰搲愸晦㑢挴㉣㡥㝣㑤㥢愱㠹慦扦搷㤱㘷昷つ戹㘳攷㥣㍤敦〳搱㘷捦〶搸㔸㔶㜶ㄵ㡢挰㈷敡㔵敢扢㑤㍥㈲挵㝦㙥慥㐷㥣ㅦ搴㜹㠴愶㍢ぢ㉡㌹愵㕥慤ㄲ㔳㌶昳㕣㤳㘷㡣㕦〷㜱愰搳〱㔹㌰㝥〳㔰攵愰づ㄰㌱㑣㘵㈵ち收〶ち㠳㍤㔹慡愹て㜴昶㤷戹ㅤ㡥㍦改㐷㤲戳攵摢晤搳昸ㄶ㝦㠳ぢ搳㠳晦ㄵ㐹㔶㥣晢㕥晤晤摤㍤㡢㍣㐰扦㕣㝥㈵㑣散㜵㍣㠷㜳㙦晡㤹㝣愲㤸㍢㡤捡㤸搳搵㝥〶捦攷㍢攸戶ㄷ㌴慡㘷㐱㍦ㅥ愱てち㥡ち㕢搰ㅦ㡥搰㍣昷㔰搰㥥㡢搱㡦㐵攸㝢〵晤搱ㄸ晤愱〸㝤㥦愰愹挵㈹㕣戹摦〲ㄸ㡡晦挷㈷愳敢ㄲ㠹搳戵㐷搱㔸㘲搱㐹搹㌴㕥㘴㠷摦〶攸㐱ㅡ㐰㡢㈴扢㘰晣づ㌰〹㑡㙡戴〸㌲挰挵攸㤵㙡㤶㥦㡣搱ㄷ㈳戴㥡㈵慤㠶戴扥㄰愱搵㉣㘹㐷〴扤㄰愱搵㉣㍦ㅤ愳攷㈳戴㥡㈵㙤㡤戴㍥ㅦ愱搵㉣㘹㜲〴㝤㉥㐲慢㤱搰〸〹㝡㉥㐲慢㤱搰㉣〹晡攱〸慤㐶㐲㐳㈵攸㠷㈲戴ㅡ〹㑤㤷愰㘷㈳戴ㅡ〹㡤㤹愰愱㕢㠵㤶㙡㈴戴㘹㠲㍥ㄳ愱搵㐸㘸攵〴㍤ㄳ愱搵㐸慥挷攸搳ㄱ㕡㡤㠴㤶㔰㕡㑦㐷㘸㌵ㄲ摡㐶㐱㑦㐵㘸㌵ㄲ㕡㑢㐱㑦㐶㘸ㄹ挹昰㤷㠱ㄶ㌹晢㈳ㄴ㈰㘷ㄴ换ㅤ敢〷㜲㜰㤷㉥改户搱㔵愳搰昳ㄹ挶㜷愲〲㙦戴ㅢ〰㌲搲て㐶㈳㍤〵㠴昱㈷慣㝡ㄱ㠰㈳㌴扥换㍢㜲㥡㜴晦搳愸㈰摤㌹ㄱ改晥晥㘴昷敦戱挹户愳㜶慤扥っ㕦㉥㑢昰攷㈸っ昶っ昱㑤㡦攰愷㕦搳捡㑦㔴㥥㜸攲㐷㐳扤愳户昵㍥晡㔳〳捦扦昲ㄷ㍦扣晥㠳て㥦晣搷ㅦ㝦攵㉢㍦昸攷敢㉦晦昸㕢换㈷扦昷挲ぢ摦㝤攸慢㉦晦㜰扦㝤㐳㝦改㐷㜳㌷㥥ㄹ扦昲捣㔳昶愵昷㥣㜹收愷㥦扣㌰扥㜰搳㔸㑦㑦㕦摦扢㐷晥散搶㝢㠷㥦㝢敡ㅢ摡㜷晥昶ㄶ㑦㤳挱攳〵慤挳攰㈴㘴ㄸ㝦㠹〲㠶挱ㄱ扦愹挳攰㜴㘵愱㡥㐷ぢ㌵〹㐴ㅥ愱㌸づ㐰㉡㡥戵㔶昴晦て㑡て㙢搳 | I27: 㜸〱敤㕣㕢㙣ㅣ搵ㄹ摥㔹敦慥㜷搶㜶㙣攲㕣㐸㠰㘰〸搷㌸㌵㜱㈰㐰㘸搳搴㤷㕣㜱㘲ㄳ㍢〱㐴搱㘶扣㝢挶㥥㘴㘷挶捣捣㍡㜱㡡〴愵㈰㕡㤵摥㘸ㄱ〲愱ㄶ愱ち愹㉦扤扣㔰愰愸ㄲ㔲㈵慡㉡㐸㝤愰て㤵晡㐰㔱㔵ㅥ㕡㔵愹㉡㔵㍣㈰搱敦㍢㌳戳㍢扢敢ㅤ㍢ㅢ㘸㥤捡挷昱昱㤹㜳㥢㜳捥㝦㍤晦晦㑦ㄲ㑡㈲㤱昸〴㠹㝦㤹㔲㉣㕣㍤戹攰㝡挲ㅣㄸ戱㑢㈵㔱昰っ摢㜲〷㠶ㅣ㐷㕢ㄸ㌳㕣慦つㅤ㌲㜹〳敤㙥㍡敦ㅡ攷㐴㌶㍦㉦ㅣㄷ㥤搲㠹㐴㌶慢㈶搱捥㐹昸摢ㄳ㍥愸ㅣ搵㤹㐲㌶㌵㌲㍣㍥㝤ち戳㑥㝡戶㈳戶昷㥤昰挷敥ㄹㅣㅣㄸㅣ搸戹㝢攷㥤〳㍢戶昷㡤㤴㑢㕥搹ㄱ㝢㉣㔱昶ㅣ慤戴扤㙦愲㍣㕤㌲ち昷㡡㠵㈹晢戴戰昶㠸改ㅤ户㑦㙢㜷摣㍤㜸挷慥㕤晡敥摤㜷㜷攲搵㠹愳㈳挳ㄳ㡥搰摤㑦㘹捥㌴㤷㝣挷愸㈸ㄸ摣㥢㄰㡥㘱捤っ㡣っ攳㕦㘴晤㜸扡㙢㘰㜲㔶〸㡦慦ㄶ㡥戰ち挲㔵㌱戰挳ㅣ㜲摤戲㌹挷挳㔳捤晤搸㙡㐱㜳扤戴㌹㈲㑡㈵搵っ㘷捤㥡攳㌸扢㤲戶搰㘹㑥ち换㌵㍣㘳摥昰ㄶ㌲收ㄴ㈶㉡㜶㤹挷㕤㜱㑣戳㘶挴㔱捤ㄴ㘹昳㐰搹㈸愶晣㤴㘸扢㌹㥣㈲扡㌰戹晤㠱㈱搷ㅣ㤹搵ㅣ戹㈲㤷〷ㄳ搳㜷扦㔳愸敤扢戵昹扣㕣扡㝣〳攷扣戱㜹㍦戴㥣搰㥣㑡捦晥收㍤㠳捤搷慥攰戶收晤㈳㘷㔴㍢收搶收㘳攴㔱搶昶㔶㍡〲晣㤶㈷㡡捤愸ㄹ㘶敤捣戲捣〸㐰㌵挷慣㠳㔹㈷㌲㈵昵㉦㔰㐹㜴㈰㥢㤲㜹㉤㤹㥦㑥收ぢ挹㝣㌱㤹ㄷ挹扣㥥捣捦㈴昳戳挹扣㤱捣㥦㑡收㑦愳㑦㤸戲敤敤挹㈰㕤㜸敢戱㕦扦㍤戴敤挰㥢敦晣㘰敡挳㝦晦搳敤㕣㠳㑥昷〵㡢ㅡ㜵戴㌳㐰戵㉡ㄶ敦ㅣ搸挱㥦愵愹〲㐴愱敦搲敦搲〷〷㡢扢㜶㘸户㙢㘹㙥㉢〶昸㌵㠸搲㠳扥㥤晡晤㠶㔵戴捦㐸搸㕤㍤慣戹愲㝡㜰晤㐱摢戰㕤戶㡡敥㔵㡢㌷㑥㝡㥡㈷㌶搷户㔵㈷㘹ㄸ㌶〹戲ㄲ慥㝣摦㤶晡㘱㈷戴㔲㔹っ㥤㌵晣收㙢敡㥡捤〹挷㥥㙥摥扡摦ㄱ㡦㔴㕡ㅢ㔶㌴〴愶㌶㉦攷㙥搸愵摦攴慦慢㙦㘴搶㜶㠵㈵㤷搷㙦㑥ㄸ㠵搳挲㤹ㄴ㘴㠹愲㈸户扡㥥㑤〱搵昷㡦㕢搸㈸愸戵㜸㝤戴㔶摦㜷搶〳㌱㡢㈲搶㍢㈷ㅣ㙦㘱㑡㥢㉥㠹つ㌵㕤晣㜷愲㘱㔳㑤昵㝥扢㔰㜶㐷㙣换㜳散㔲㙤换㔰㜱㕥〳愷㈹ㅥ戱㡢㈲㤵㑡㐸愶〰㠶摢搶愶㈸㠹㙤捤㘹㐱〲㈲〲㘲ㄲ昲㤵戵㘸㌷㜰っ扢挳㉥㑡㠲㌸㤹扣㘱㠹挹戸㕥挹㘳㘲㈸㌰戲㈷捡て扥昴㤶㈵愶慤㐰敥戳敤㥣㑣昶〶扢摦㌷㉦㉣敦愰㘶ㄵ㑢挲㠹㤵㝥ち㔷愴㜶㈳㑢㕦〰㐳㘸㝡㝡ㄴ㜵捡㔹㘵㈱㝤挶㈸㝡戳㤹㔹㘱捣捣㝡愸㠳㠴捣㘶㜹戴つ㐹扤〲㔵敡㕡㘶扤挸㜲戹㐴㘶ㅤ㍢㘵㜲㐸㠹㌴戹㔳っ㉤搷㌰㜲㡥慢愱攵㑥㝤扦㔱昲㠴捦㤴扢㜵㐰挴㤷㙡ㄲ㝣㕤㐴㔱㐷㉢昸〲㘳㥤㍥〲㉣搵っ换㕢愸搲㙤〳㤵昸㐸戴捡ぢ㔶ㅣ㉦㈰㉢愸攵〷㌱戴〶愴愹攳〶昱㥤㈳㐸㐴㌲㠸㤱散㤸戹ㄶ挹搸㍦㠶㐷愰㝦ㄴ〹搹㝢㐷㜳ㅥ㐱㘴㙦㐴㔲づ㙡㑡㡦慢摣㙣㌱㕤摥攷㘶敢㜱㜰敡〶㘶ㅢ㤹㕤挹㙣ㄳ㌲攵慦攰㜰攴㜲㈸搷㈶昵㉡㍣慢㔷㌳扢〶ㄹ昸㤳㑡㥥ㄳ戰㉡敡㔰换搱㈳搹慦ぢ㝡戲㔴㡡㝤㔶㐴捤戸愲㘷㜶㤹ㄲ搰㠱搶戹㌲㘴㙤㑡捡搸㥢㥡攳㘶㜴㍢挴挸㤸慥搱扤㉥搱㌵㝡㄰散摡愲摣扡ㄶ㐳搵㍥㘶搷㈱换愹搷㌳㠷㜰愱挲扢㍣㡤㥥㉡攵㘵愱ㄶ昹捡㔰㡢〲㍥㐰㘴㕥〱㘲㤸㕣挳昵㘵㔵㠷愶㍡搸慦㕦昶㍡昴昶收昴ㅤ〰扤㑥㙥慥捡ㅤ摡㡢㉥㔲㡢摥ち昲㔲晥搴㔴挶摣㠸㘶昵㈶㘶㌷㈳慢㤳㌱扣㝤㕦慣愵㐰慡挵㘶〴㜲㙢㘹㜵㤱㕡敥搴挲㥣㤰ㄲ愸㔳㥦搲㥣ㄹ攱挱㠲㜱㘸ㄴ扡戰敤㌸愲㠴㑢㙤㔱㔶昰晥戲戱戶搲摤敦搸㈶敢㔷㜵㘴昷戲㄰っ愹㔴戲㉤㔱愷㈳挷攸㥡ㄱ㥢㔳〴㜳㈸㠳㙦㙦捥㈴㈲㠳㙡搱㡢攳攲敦㤷慢㥣愴〵㑥㜲㉢㡥㔵摤㠶っ㕣㐲昹㐳㔳㡥戲㥤摤㍥㈷扢搵㙡慣戴昰挵摣㑥敡㙣㠸つ㝣愴挳㌷搸づ挳㝥攰㜶㤹㤳㠶㔹㘱ㄶㅤ收㠴㜰ち戰㉤ㄸ㈵㤱昳捤戲㘴㌵慢扣攲㌲攱ㄵ㙤㙤つ昷改ㄸ晢㥡挴㤳㍡㉥ㄱ㑢敤戱㡤㌱㜷昱㉡㔲搱っ㐹愶ㄲ㘳ㅡ慡㜰㈰㘲ㅥ晢慥戲㤸ㄶ㔸捣㙤㌸㌸㜵〷戳㐱㘶㍢㤱愵摦〵愷㔹敥挱搳ㅤ搶㍥㑦㤳㜶㍥㥦挸ㄲっ搲㐴㜸扥㈹戳摡挵搷摣挹散㉥㘴㜵敡てつ㤰㌱㠸㈸㐱ㅥ㐱㐴改挶搰㑦ㄸ攲っ㜱㘰㡤づ挷搲㐸搹昵㙣㤳㥥愵㉥㝤搴㍥㙡㝢愳㠶㍢〷㑦㔴慦ㅥㄴ敥㥦ㄵㄶ戰换㠱敥㔳㔷㘷捦捤㠹愲慡㑦摡㘵戰戶㐳愳㉢攱㘲㡥攳㠰㉥㈹敦收㐹〵愹戵晢㌱愶㔰㜰搲搲摥㑡㙢散戲慣摦扣昴㜵㔷㑦㜴捡昰㑡愲㐳昷㠹㡥攵慣㡥㔳㠴攷愰搸慥㑦捤㍡㐲㡣㜶改〷ㅣ愳㔸㌲㉣㐱㘰㐰挷愴戳㙥㑣捣挰㑢㌰㘱搳〷㘸㕢㕤晡㤴愳㔹敥㥣㐶㠷攲挲摡㥡㈷改ㄶ㐹敢挳㠶攵攲㌵ㄲ㡡㉣㜷敢㤳戳昶ㄹ㜸㙣换愶㜵㐰㥢㜳㔷〴㔴㠸昴㝥㤲愰㔱㤲㑡㌲愹㘴㤳搹㔶攱挳ぢ㜹㈲㐱摡㑢㌱㤳戰㑡愴㘹㌳㡦㤱摥搴敢〳ㅦつ昵㜴慥愹ㄳ摥愳㑡㘵㕢㉣ㄷ㈶愵慡扢㌹收ㅥ㘴㠷てㅣ㍦㔴昵捣㕤㤲捦㍡㑤㉢㝦っ㡦㤷㘸㔱㜱㠴搰㐶户挶㐷ㄵ搶ㄱ㜳㐰㠱㠰㌸㥦敡搱㉦愷换㍥挴扥㌵搵攲㝥㜸㤲㍡昵㌱㙤㕡㤴攰㡦㌶㌵㙦㡤晦㐰㌵搶搴㑡㙥搰㌶㘲㥢愶㐶搴㈲㕡㑥ㄶ㌴㘲昰㔰搹戳㡦ㄸ㤶慡㈳㤳昸ㄷ㔴㘹㘷㔱愵㥤㤵㔵㥤晡㌱扡〶㘵㤹㜳搹㌳㥡㘳㜸戳愶㔱挸昲㠱敥扢ㄵ㠱㤳㈰㜲㜲摥㌰㠵㍣愳慦㑥㥢㍦づ㤵捤ㅤ〰戸〷挰㐷㜹㜴〴㍦㌰㌷愹㘴昰愳戴㘸㔸〲㠳㤱㤶㔲昵ぢ㤸㉤㉤愳㈳挰㜲㘴扡㄰挶㘰㕣㜸っ㌵㍥ㄳ㈲搴㘳㔰〴㔶挱〸㤳愷㠹㍢愳ㅦ户って搰㈳挴昶ㅢ摥愸ぢ㤰㈳㐳㔱㕥㙦㌷㑢愸㐶〶昵㔷愴挲戵㡤㑤㌵㘲㘲㑢㘳㝢㔴㙥摣戰㐸戳㉦㔱㈲㠲㘴愹㑥㔲戲㉣戲挶㤵㈴㙡ㄴ㈹戸㐳㘹愳挴㤹㑤慢攷㑥㉥㜲〹㠲㐹攲㑣㐲晤愲㐴ㄴ㌸㝡〳ㄹ㐵㥢㝤㍣㝡㐴㍣㌶搴〱㜲㤴㔳㝥㕤㔷攰ㄲ㍣㠴戰㤳愲挸〵㑦愰敦㌵㐱㜱扣散搵戴㘸㘷㝢㠳㤶愱㔲㘹摣㠲㤶㔰搰㥣攲ち㈱㘹散捤㤷㌰㤲㍡㕢㤵晥晥昱㐶〸㌱㈰㐳扡㐵㘲散挰㈰㐳㄰㔷挴愳㑡敤慣㡢㐷㕤愹捥昲改㠸搰㉣〹㠱㐹慦㌸㉡收愵ㅡ㔶搵攴㝢攵㠰捡㙤㔱昲㔱㔵ㅦ㥡㜶㈱搲㍤昲昱愰㈴〹㕣搵㡦搱㉣㠵㈰〶戰摤愰㌴㔱昰攰摡慤㑣挰㥢挱捡㠱づ㑥挴㜷㥤㔰㍢㈳〷捤挴㈰㙥敤㈶㐸㍢㉤㐲ㄴ㡣㔴㤷改ㅦ㝢㤵ㄷ㕦㘰晡挹摥㐴㔸〸㠸㠸敥慥ㄸ敤〱挰㡤㝡㈶㐹㐵扤愱挳摣攷㙣㤲㘹㜵㠶㜵㔴㌱扡愸昲㌹ㅥ愲㜸攸换敡㈶搹㤴㄰攷收ㄹ㤰愶愵㠵㌵晡㈱慢㔰㉡ㄷ㠵ㄴ挵㈱慦㤶ㄲ㜹㐵挰㑢㠶〰晡搴ㄴ㜳㉥挱愱ㅣ挲㔵㡡㕢㈶㤰㕡搷扢搵扤ㄸ㉥㤹ㅣ收昰㐵ㅦㅤ㤰㌱㘶㌹改㄰㙢㠸㔳愰㝥戸戶ㅡ挰㈰㠳攷挰搲ㅡ慡挸换挶㄰㡦㔷昱㈲㑢㙡㡢㜴ㅢ戳挷㙣敡散㤱慡㠳㠶㕦戵㈲㘰㠴㝤晡っ㉦㤳㠱㌲搲㈲㜵㜰㤲挴㠵挰扢㝢攱㌱昹㤸戸〰㔰㐸〸㈸昴昱昲ㄶ㤴挰愹㠲㤰愸㜰㈷慢㕡户㐲敦㉦㌵㙦㜵〸㤹㐲㌷㌰ㄵ㕡昴昴ㄵ㥣ㄱ㤴㤷㔶㜰慥㐵慦ㄸて㘹搴㤹㑡ㅦ㘵㉦っ昶〰ㅡ愸㠹ㄷ改㈹ㅢ㐲挸㕢㈷〳挳挲搸挴㝥ㄳ㔷㈰摢搹㔰㔷㌹愱㜹〸㝦戱㌶搵㔵てㄵ㡢㔴㜷㘱㥦㕢ㄱ㔰㐵攸㠶慦㡥慥慢ぢ捡㤲㝢愲㝥户戵慥㈱〸ㄶ摣㌹㍡㜰㔰昳ち戳㤳摥㠲ㅦ戸搵㉡㑡愴摦㠲㍤㘲搱户㔳㘷㑥㔹っ㐴㥤攷搹攷㑥㕢昶ㄹ㑢慥㉢敤㌲敡てㄸ㠲㄰捡㜶㉥㌲㤷昸〴㍦㌲㈵ㄳ改㕦㘱挶攵㉣㥢ㄳ㔴つ㈴㥣㐷㈶㥦ㅢ昴愱ㅣ㠳㈷搰摤㉢㔱〳挴㤳㜵㜵㜸㈲ㄹ挱㉡愲㔸㌳㥦ㅡ愲㈸㙦〲慣㐴ㄶ晦㑡㡥㌳㝦ㄵ愴慦扣㠱ㅡ〲ㅣ捦〱ㅢ㐹㕦㠷㔲っ攸㈴㈳て㐲㍣ㄸ㄰昲晦〳愵㤰㥡ㄷ㈵愷晦〲㌱㉢慦搷㠳㘸ぢ㐱昴换〶㄰㈹っ〳㤱昴㝢㌸㈸昰㈱㑤昷散㐵㌹挲戹愷搵ぢ攸㘷ㅥ昰晢㍦扣㠰㡥〱挲㑣㔲㐷㠳慢敤㐶㤴㉢㉡㐲戲㐱㐵愰昳㕥慡〸㐷㌸㠶㕥㝣㕦㐵〸㙣㈰攳愸㔸㕡㐵愰㙦㉦㐶ㄱ㡣戸㕡㈳㘶つ摥挰㌶㤸戴㡦ㅤ㐴攰慤㜰攱捦㠷搰㜲㐷㘰㤱摡搸㔸㍤愱㌹㥡戹㐹搶ㅦ㜰〴㠴㤹㌳㠵㐸㙥㌹㠴㈳㌶㉦摡㈲〷㉤㘲慢〸慤散慢昶㤴攵挵慦〳㔲㝥昲捤昷㑡㔶挹㕣㠲愵㐴攱扤㈱昱㤵㜵㍦㍤昰攷㜳㑦敥㘵戴㕡㠰慢改㙤㈸户攲戲愷㍥〱愷㙥㈴㔰㘴㍤㍦捣㌹㠲㑦㤴㡣戹㤲ㄸ搶ㅣ愹〵戹慡ㄹㄶ㝤挴㡢㈰愶㡦㝣㉢㐱挵㐴摣㠳慦㘲づ搴㤹㍢攵㠷㑤搲㐴㌸㄰㔹戸戴改㠵㙥㐳愵愹㈰㙢㔱摢㑣晦ㅣ愲攸㈲ㄷ㔲慢㈵昲搶挹愴㈸㍦慢㤷㜵扢㈸敢晣㡢っ摤晥㈱㤷㠲晦㠱ㄸㄲ扤挸㌰㈰㐰㜲愹㘳㈸愴㙦㐳ㄶ攳㔹慢㜷昱搲ㅥ戰捡〴㐴㈵攸慦挵㡦㔸㜰㡡㠰㘲㘸㡢㙦昵㐶㑢㕤㌴ㄴ㑤㜴搵㑡㥤㘶ㄲ〵㜹㜹㘱挵㘰㔸㍢㠵㐲㤸搲㍢㔱㕡戶㌹㡡㉦改㌲㝤挷㥢㑦搸㘹㤳戶戶㥣戹捦㉡㈳昲〳㜲㈶㈳〵㠶戵㤶搵戸㤰㑡ㅦ㥤摦㌵攷㔷㌱敦昶㡢㤵㐱ㅤ㐱ㄳ㘴㤶戵〹户㔲㌸晦昸愵㄰摢晢慢㔳慦慦㙦愱㡣戳摡戱㐱晥㐲晦摡ㄲ㐳搸㜸㉢㈹〶ㅣ㜶㔹扤戲㝥㜸昸㜱っ攱愶ㄳ㡡㕡㉤捡㘷㘵ㄷ晥㠴㤴搵搶㈸晦改扤㤶㤴㜵㠲愳改挶慥㤱晦て愰㘲㐹昹慦搰昷㈶〱昹㘰㔰㤰捡㈹晤㈷㑢扡㙣㜸㈲戰㙣挳㜹㈳㉦挶慡㉣搲攵敤㤷㈶昱昱慡摦㉣㌹㌸散㕥愹晡搰㠸捡㔸敡戶ㅤ㑤ㄹ㈰㝤㐳改㔷挱㠲㥡㡥慦攵㕢攱敤㌶昳㄰〶慥㍢㘲ㄴㅣ摢戵㜵慦㙦ㄲ㑥摦㍥㝥㝢愶㐳攷ㄹ㔲㝥㕣捦搴戶攲㈴㍡ㅦ挶㤸愳攳㘰搸㐷㠵昷㘹昹㈲改㔹㔸㥥㈷㠳摦㈱昵㐴摣㑢㤴づ敥ㄵ晡㝤㘵慤㠴㑦㔷挷㘱敢昴㔸戵㈲㠴㥤㙦㜱慥㡦搰攰搱㈱㐶敢㕥搸㠳㐴㘹〰捥㌱戹㠵㠷ㅥ收戹搶㥦㐱㙤摦㘰㙦㉥㝢戶㘶㜳换愵㕦〱㑣㤷昷㤶㕡㤴攱㍢昹㐵㜲㑥捤㌳㐷搰晥㕥晣㕤扥㠱㤶戳昵〲捦㠳て扡㘹〸敢㉦挱㝣戶っ敦昷㐹っ㔵㠶㤸攱㔷搵㠲〲ㅦㄴ㕡昹㐸㡡捡て戱㉤ㄲ〰捡㠹㑣〱㔹㜳慣㝥㘹㌱慣敥㌹㡣㌱愴㔷㔵㈰敢㙡㔳㜸搵㈰㔶收㤴ㄷ搱㥦愷收敦㝥㠶㜵戸㝡挸㉢〵捡敡㉣戲㌰㈹扣㔲挸昵㍣㡦〱㤵昵㥣㐲㙤昳昵㍣户搸㝡ㄴ㉡〳㜲扦搱昹㝢㐲㘱愲㥡㘸㔶㉤㘶㌶戳㌹㘴㍤愱㑣改㈶㥢攴㕥㌲扥慢攱つ㐲ち改昷挱摦昷昷扥㝢㥥改敦㝢ㄵ挹ㄸ搱㔴扢ぢ㌲㐶戹㡢㙦㐷㜷攱愲戶昹㉥㥥㔹㙣ㄷ㍤攴㤹昲㔴换㈸攰㔴昳昸㈳㜷㌵ㅦㄴ㈴ㄴ㑦㠶戵㌵㝢搵㔰㉢挷㥥㐵愱慢㉤㑤挰㝣扥戹㜴愱昲ㄸ㝥ちぢ攷㐰捤㌷慦晢昰つ敢〲扤摤㙤昸㠴㍦㉤㐵㘱㉡㜹㑦㙢㜳㠵敡㈸㈵㔹晡㘹散晡ㄲ收攱敥慢㌶㐷捥戸ㄹ扦㔹㌸㈱㠸㘶昲愰捥〵〵㍥昴㠴攷㤳㈶昸㘳㍥㜱㤲㕡㈲挳㐱戳攸㤷昱㑤搲ㄹ㕦㌷挸㥡㠱㉤㝡㐵㜰挸挰㡢搰㔴戰㘵㕡㡣㜳㔰㥥ち搱昱攰挱昰晢戱㘴攰㜹〳㌹昸㝡㌹挹㠷〷愹㍣ㄹ㜶晥挵㙢㔵挳㌱ㅡ㤰㐰㌳㝥㘷㤲㤹散晣戵戰昳㑥㝣㥢㈶晢㈴㠸㔹㑣敦㠷㥤㐹㡥戲昳ㄳ㘱攷扦敤摣㔴改ㅣ㔲㥦㍦㜳㥡愴ㄱ愳昱换㍢㔰攴㍢昵㙥㜴㑦敢搴㈲㍡㜴扦㥡ㄸ㈹ㅤ攸㈵愹㐷㜴㈲㈴挶挱㤷攲㘳㠸昰㐲㈰っ㐴㡤晦ㅦ㐶ㅣ㐲攴搷愸收㘹昸㄰㝣ㅥ㉥㜷㐷㤵㑦ㅣ㥣搱挷ㅤ㔴戴敢㠷㕣摣㉣㡢㉢ち㐵愰ㄴ愵晣昳㕤挲㌵ㄱ愳㐰㔷捦㈳㜴ㄵ㈶ㄹ㐹搳㥡〸㤵敥愵㤴昲㜸〸搹挴攳㔵㥣㔱扦ち攰㐰㌸㈰㘷㐱㝤〲戹敦㡥㘲捣㜶愲㠷㕣㑦戲戴㈷㔱〰㍢㈴㘷㈳昸㌳㑦㈱敢づ晦㤷㡥扥㜹㘹㉣㑡㉡攷挲㜷㐴戱㐷㝤㥡〳扥㡥慣つ戶㙢㈵挰扤㥣晡つ搴㐴摦㐵挶㈱摦昵㑤ㄴ挰㍥戹戴㘵㥦ㄱ㜷搰愲戴㝥〶㐳ㄵ㙥㥣㜳愸摦ちち㝣㔰戸㙢㜲㜱挵挱挶挸㍡㈹㤰搴敦戰㠶㥢攲ち搵敦昲㠹㝢㤱挳扦ㄷㄴ攴㜰㙥㐴づ户愲挳扦捦㉥昲愵㈸搴挸戱ㅥ扥㕣ㅥ挱㜳㈸㜴戵㜵昳㑤昷攳㌷㜹㔶㈹㥣㉣㥥㍣昹㔱㜷慡㙦㜳敡㠱㉦㜵扥昰晥敦㍥㜸昶扤㉦敦昹昰攳㤷㕥㝡敦㉦捦㥥晦昸慤改㍤敦扣昲捡㙦づ晦攸晣〷㙢昵㤷㤳慦㝤㌴昶昲愳㠳愷ㅦ㝤㐴㍦扥敤挰愳て㥥扡㙦㜰攲㡡晥戶戶昶昶㥢㝢㝦㝢攵㉤㍤㡦㍦昲扡昲昶ㅦ㌷㕡㡡㕣㍣㕥㔰扢っ㙥㐲㉥攳㜹ㄴ戰っ慥昸㌳㕤〶户㉢て㙡㌶㌸愸㘱㔴㘴㘱㡦攰〲㘴挳㑣㙤㐳挷㝦〰搵攷㥣㔱 | J27: 㜸〱敤㕣㕢㙣ㅣ搵ㄹ摥㔹敦慥㜷搶㜶㙣攲㕣㐸戸ㄹ挲摤愹㠹つ攱搶愶愹㉦㜱㘲㜰㘲ㄳ㍢〱㐴搱㘶扣㝢挶㥥㘴㘷挶捣捣㍡㌶㐵㠲㔲㄰慤㑡㘹㑢㠵㄰〸戵〸㔵愸㝤改攵㠵〲㐵慡㕡㔵㉡慡㐰㙡㈵㉡戵㔲ㅦ㈸慡摡㠷㔶㔵愴扥昰㠰㐴扦敦捣捣敥散慥㜷散㉣搰㥡捡挷昱昱㤹㜳㥢㜳捥㝦㍤晦晦㑦ㄲ㑡㈲㤱昸㄰㠹㝦㤹㔲㉣㕣㍣戳攲㝡挲ㅣㄸ戵㑢㈵㔱昰っ摢㜲〷㠶ㅤ㐷㕢㤹㌴㕣慦つㅤ㌲㜹〳敤㙥㍡敦ㅡて㡡㙣㝥㐹㌸㉥㍡愵ㄳ㠹㙣㔶㑤愲㥤㤳昰户㈷㝣㔰㌹慡㌳㠵㙣㜶㜴㘴㙡敥㌴㘶㥤昱㙣㐷散敤㍢改㡦㍤㌰㌸㌸㌰㌸㌰㜴摢搰捤〳晢昶昶㡤㤶㑢㕥搹ㄱ〷㉣㔱昶ㅣ慤戴户㙦扡㍣㔷㌲ち㜷㡡㤵㔹晢㡣戰づ㠸戹㝤㌷捥㘹㌷摤㍡㜸搳晥晤晡㙤户摤摡㠹㔷㈷㡥㡤㡥㑣㍢㐲㜷㍦愶㌹搳㕣昲㑤㘳愲㘰㜰㙦㐲㌸㠶㌵㍦㌰㍡㠲㝦㤱昵攳改㤶㠱㤹〵㈱㍣扥㕡㌸挲㉡〸㔷挵挰づ㜳搸㜵换收㈲て㑦㌵挷戱搵㠲收㝡㘹㜳㔴㤴㑡慡ㄹ捥㥡㌵愷㜰㜶㈵㙤愵搳㥣ㄱ㤶㙢㜸挶㤲攱慤㘴捣㔹㑣㔴散㌲㑦戸攲戸㘶捤㡢㘳㥡㈹搲收攱戲㔱㑣昹㈹搱㜶㑤㌸㐵㜴㘱㜲晢〳挳慥㌹扡愰㌹㜲㐵㉥て㈶愶敦戸㔳愸敤扢愷昹扣㕣扡㝣〳攷扣慡㜹㍦戴㥣搴㥣㑡捦晥收㍤㠳捤搷慥攰㠶收晤㈳㘷㔴㍢收扡收㘳攴㔱搶昶㔶㍡〲晣㤶㈷㡡捤愸ㄹ㘶敤捣戲捣〸㐰㌵挷慣㠳㔹㈷㌲㈵昵㙦㔰㐹㜴㈰㥢㤲㜹㉤㤹㥦㑢收ぢ挹㝣㌱㤹ㄷ挹扣㥥捣捦㈷昳ぢ挹扣㤱捣㥦㑥收捦愰㑦㤸戲敤敤挹㈰晤㝥昷ㅦ㑦㑦㍣㜵晦㥤慦扦昹挴慦㝥㔱昸挱㕤㥤㕢搰改慥㘰㔱㘳㡥㜶ㄶ愸㔶挵攲愱㠱㝤晣㔹㥢㉡㐰ㄴ晡㝥晤ㄶ㝤㜰戰戸㝦㥦㜶愳㤶收戶㘲㠰㕦㠳㈸㍤攸摢愹摦㙤㔸㐵晢慣㠴摤挵㈳㥡㉢慡〷搷ㅦ戴㡤搸㘵慢攸㕥戴㝡攳㡣愷㜹㘲㜷㝤㕢㜵㤲㠶㘱㌳㈰㉢攱捡昷㕤㕡㍦散愴㔶㉡㡢攱㘵挳㙦扥愴慥搹㥣㜶散戹收慤攳㡥㜸愰搲摡戰愲㘱㌰戵㈵㌹㜷挳㉥晤㈶㝦㕤㝤愳ぢ戶㉢㉣戹扣㝥㜳摡㈸㥣ㄱ捥㡣㈰㑢ㄴ㐵戹搵敤㙣ち愸扥㝦捡挲㐶㐱慤挵㉢愲戵晡愱㘵て挴㉣㡡㔸敦愲㜰扣㤵㔹㙤慥㈴㜶搴㜴昱摦㠹㠶㕤㌵搵攳㜶愱散㡥摡㤶攷搸愵摡㤶攱攲㤲〶㑥㔳㍣㙡ㄷ㐵㉡㤵㤰㑣〱っ户慤㑤㔱ㄲ搷㌷愷〵〹㠸〸㠸㐹挸ㄷ搶愲摤挰㜱散づ扢㈸〹攲㘴昲捡㌵㈶攳㝡㈵㡦㠹愱挰挸㥥㈸㍦昸搲㙢搷㤸戶〲戹㑦戶㜳㌲搹ㅢ散晥搰㤲戰扣㈳㥡㔵㉣〹㈷㔶晡㈹㕣㤱摡㡤㉣㝤づっ愱改改㔱搴㈹换捡㑡晡慣㔱昴ㄶ㌲ぢ挲㤸㕦昰㔰〷〹㤹捤昲㘸ㅢ㤲㝡〱慡搴慤捣㝡㤱攵㜲㠹捣㌶㜶捡攴㤰ㄲ㘹㜲愷ㄸ㕡慥㘱攴ㅣ㔷㐳换㥤晡戸㔱昲㠴捦㤴扢㜵㐰挴㤷㙡ㄲ㝣㕤㐴㔱㐷㉢昸〲㘳㥢㍥ち㉣搵っ换㕢愹搲㙤〳㤵昸㐸戴挹ぢ㌶ㅣ㉦㈰㉢愸攵〷㌱戴〶愴愹攳〶昱㥤㈳㐸㐴㌲㠸㤱散㤸戹ㄶ挹搸㍦㠶㐷愰㝦ㄴ〹搹㝢㕦㜳ㅥ㐱㘴㙦㐴㔲づ㙡㑡㡦㥢摣㙣㌵㕤摥攷㘶摢㜱㜰敡づ㘶㍢㤹㕤挸㙣ㄷ㌲攵㙦攰㜰攴㜲㈸搷㈶昵㈲㍣慢ㄷ㌳扢〴ㄹ昸㤳㑡㥥ㄳ戰㉡敡㔰敢搱㈳搹慦ぢ㝡戲㔴㡡㝤㔶㐴捤戸愲㘷㜶㤹ㄲ搰㠱搶戹㌱㘴㙤㑡捡搸慢㥢攳㘶㜴㍢挴挸㤸慥搱扤慥搱㌵㝡㄰散摡愲摣扡っ㐳搵㍥㘶㤷㈳换愹㔷㌰㠷㜰愱挲扢㍥㡤㥥㉡攵愷㐲㉤昲㤵愱ㄶ〵㝣㠰挸扣〲挴㌰戹㠶敢换愶づ㑤㜵戰㕦晦搴敢搰㝢㥢搳㜷〰昴㍡戹戹㈹㜷㘸㉦㍡㑦㉤㝡て挸㑢昹㜳㔳ㄹ㜳ㄵ㥡搵慢㤹㕤㠳慣㑥挶昰昶㝤扥㤶〲愹ㄶ㥢ㄱ挸㙤愵搵㐵㙡戹戳㉢㡢㐲㑡愰㑥㝤㔶㜳收㠵〷ぢ挶挴ㄸ㜴㘱摢㜱㐴〹㤷摡愲慣攰晤㘵㘷㙤愵㍢敥搸㈶敢㌷㜵㘴昷㔳㈱ㄸ㔲愹㘴㕢愲㑥㐷㡥搱㌵㈳㌶愷〸收㔰〶摦搸㥣㐹㐴〶搵愲ㄷ挷挵摦㉦㌷㌹㐹ぢ㥣攴㍡ㅣ慢㝡㍤㌲㜰〹攵て㑤㌹捡㕥㜶晢㡣散㔶慢戱搲挲ㄷ㜳㍢愹戳㈱㌶昰㤱づ摦㘰㍢〲晢㠱摢㘵捥ㄸ㘶㠵㔹㜴㤸搳挲㈹挰戶㘰㤴㐴捥㌷换㤲搵㙣昲㡡㑦〹慦㘸㙢㙢戸㑦挷搸搷㈴㥥搴㜱㠹㔸㙡㡦㙤㡣戹㡢㔷㤱㡡㘶㐸㌲㤵ㄸ搳㔰㠵〳ㄱ昳搸㜷㤳挵戴挰㘲㙥挰挱愹晢㤸つ㌲ㅢ㐲㤶㝥ㅢ㥣㘶扤〷㑦㜷㔸晢ㄲ㑤摡昹㝣㈲㑢㌰㐸ㄳ攱㕢㑤㤹搵㝥扥收㘶㘶户㈰慢㔳㝦㘸㠰㡣㐱㐴〹昲〸㈲㑡㌷㠶㝥搲㄰㘷㠹〳㕢㜴㌸㤶㐶换慥㘷㥢昴㉣㜵改㘳昶㌱摢ㅢ㌳摣㐵㜸愲㝡昵愰㜰昷㠲戰㠰㕤づ㜴㥦扡㍡㝢㜱㔱ㄴ㔵㝤挶㉥㠳戵㑤㡣㙤㠴㡢㌹㡥〳扡愴扣㥢㈷ㄵ愴搶敥挷㤸㐲挱㐹㑢㝢㉢慤戱敢戲㝥昳搲搷㕤㍤搱㔹挳㉢㠹づ摤㈷㍡㤶戳㍡㑥ㄱ㥥㠳㘲扢㍥扢攰〸㌱搶愵ㅦ㜶㡣㘲挹戰〴㠱〱ㅤ㤳捥扡㐹㌱て㉦挱戴㑤ㅦ愰㙤㜵改戳㡥㘶戹㡢ㅡㅤ㡡㉢㕢㙢㥥愴㕢㈴慤㡦ㄸ㤶㡢搷㐸㈸戲摣慤捦㉣搸㘷攱戱㉤㥢搶㘱㙤搱摤㄰㔰㈱搲晢㐹㠲㐶㐹㉡挹愴㤲㑤㘶㕢㠵て㉦攴㠹〴㘹㉦挵㑣挲㉡㤱愶捤㍣㐶㝡㔳慦て㝣㌴搴搳戹愶㑥㜸㡦㉡㤵㙤戱㕣㤸㤴慡摥挶㌱户㈳扢攳昰㠹㠹慡㘷敥㈳昹慣搳戴昲挷昰㜸㠹ㄶㄵ㐷〸㙤㜴㕢㝣㔴㘱ㅤ㌱〷ㄴ〸㠸昳愹ㅥ晤㜲扡散㐳散摢㔲㉤㡥挳㤳搴愹㑦㙡㜳愲〴㝦戴愹㜹㕢晣〷慡戱愶㔶㜲㠳戶㔱摢㌴㌵愲ㄶ搱㜲愶愰ㄱ㠳㠷换㥥㝤搴戰㔴ㅤ㤹挴扦愰㑡㕢㐶㤵戶㉣慢㍡昵攳㜴つ捡㌲攷戲攷㌵挷昰ㄶ㑣愳㤰攵〳摤㜷ㅢ〲㈷㐱攴攴扣㘱ち㜹㐶㕦㥤㌶㝦〲㉡㥢㍢〰㜰て㠰㡦昲攸〸㝥㘰㙥㔲挹攰㐷㘹搱戰〴〶㈳㉤愵敡攷㌰㕢㕡㐶㐷㠰攵挸㜴㉥㡣挱㌸昷㌰㙡㝣㈶㐴愸挷愰〸慣㠲ㄱ㈶㑦ㄳ㜷㐶㍦㘱ㄹㅥ愰㐷㠸㡤ㅢ摥㤸ぢ㤰㈳㐳㔱㕥㙦㜷㑢愸㐶〶昵㔷愴挲㘵㡤㑤㌵㘲攲搲挶昶愸摣戸㜲㤵㘶㕦愲㐴〴挹㕡㥤愴㘴㔹㘵㡤ㅢ㐹搴㈸㔲㜰㠷搲㐶㠹㌳㥢㔶捦㥤㕣攴㈳〸㈶㠹㌳〹昵昳ㄲ㔱攰攸つ㘴ㄴ㙤昶昱攸ㄱ昱搸㔰〷挸㔱㑥昹㜵㕤㠱㑢㜰〲㘱㈷㐵㤱ぢ㥥㐰摦㕢㠲攲㔴搹慢㘹搱㤶㝢㠳㤶攱㔲㘹捡㠲㤶㔰搰㥣攲〶㈱㘹散捤㤷㌰㤲㍡㕢㤵晥晥昱㐶〸㌱㈰㐳扡㐵㘲散挰㈰㐳㄰㔷挴愳㑡敤慣㡢㐷㕤愹捥昲改愸搰㉣〹㠱ㄹ慦㌸㈶㤶愴ㅡ㔶搵攴㝢攵㠰捡㙤㔱昲㔱㔵ㅦ㥥㜳㈱搲㍤昲昱愰㈴〹㕣搵㡦搳㉣㠵㈰〶戰摤愰㌴㕤昰攰摡慤㑣挰㥢挱挶㠱づ㑥挴㜷㥤㔰㍢㈳〷捤挴㈰㙥敤㈶㐸㍢㉤㐲ㄴ㡣㔴㤷改㕦〷㤵攷㥦㘳晡攱挱㐴㔸〸㠸㠸敥慥ㄸ敤〱挰㡤㝡㈶㐹㐵扤愱挳摣攷㙣㤲㘹㜵㠶㜵㔴㌱扡愸昲㌹ㅥ愲㜸攸换敡㈶搹㤴㄰攷收ㄹ㤰愶愵㤵㉤晡㠴㔵㈸㤵㡢㐲㡡攲㤰㔷㑢㠹扣㈱攰㈵㐳〰㝤㙡㡡㌹㤷攰㔰㈶㜰㤵攲㤶〹愴搶昵㙥昵㈰㠶㑢㈶㠷㌹㝣搱㐷〷㘴㡣㔹㑥㍡挴ㅡ攲ㄴ愸ㅦ㙥慤〶㌰挸攰㌹戰戴㠶㉡昲戲㐹挴攳㔵扣挸㤲摡㈲摤㈶敤㐹㥢㍡㝢愴敡㠸攱㔷㙤〸ㄸ㘱㥦㍥挳换㘴愰㡣戴㐸ㅤ㥣㈴㜱㉥昰敥㥥㝢㔸㍥㈶捥〱ㄴㄲ〲ち㝤扣扣〵㈵㜰慡㈰㈴㉡摣挹慡搶慤搰晢㑢捤㕢ㅤ㐶愶搰つ㑣㠵ㄶ㍤㝤〵㘷ㄴ攵戵ㄵ㥣换搰㉢挶㐳ㅡ㜵愶搲㐷搹ぢ㠳㍤㠰〶㙡攲㐵㝡搶㠶㄰昲戶挹挰戰㌰㌶戱摦挴ㄵ挸㜶㜶搴㔵㑥㙢ㅥ挲㕦慣㕤㜵搵挳挵㈲搵㕤搸攷㌶〴㔴ㄱ扡攱慢愳摢敡㠲戲攴㥥愸摦敤愹㙢〸㠲〵㠷挶〶㡥㘸㕥㘱㘱挶㕢昱〳户㕡㐵㠹昴ㅢ戰㐷慣晡㜶敡捣㈹㡢㠱愸㑢㍣晢摣ㄹ换㍥㙢挹㜵愵㕤㐶晤〱㐳㄰㐲搹捥㐵收ㄲㅦ攲㐷愶㘴㈲晤㜳捣戸㥥㘵㜳㠲慡㠱㠴昳挸攴㜳㠳㍥㤴㘳昰〴扡㝢㈵㙡㠰㜸戲慤づ㑦㈴㈳搸㐴ㄴ㙢晥㘳㐳ㄴ攵㜵㠰㤵挸攲㕦挹㜱收㉦㠳昴㤵搷㔰㐳㠰攳㌹㘰㈳改换㔱㡡〱㥤㘴攴㐱㠸〷〳㐲晥㝦愰ㄴ㔲昳慡攴昴㕦㈰㘶攵搵㝡㄰㕤㑡㄰晤慣〱㐴ち挳㐰㈴晤摥ㄱㄴ昸㤰愶㝢昶扣ㅣ攱摣搳收〵昴ㄳて昸晤ㅦ㕥㐰㈷〱㘱㈶愹愳挱搵㜶ㄵ捡ㄵㄵ㈱搹愰㈲搰㜹㉦㔵㠴愳ㅣ㐳㉦扥慦㈲〴㌶㤰㈹㔴慣慤㈲搰户ㄷ愳〸㐶㕣慤ㄱ戳〶㙦㘰㍢㑣摡挷㡥㈰昰㔶戸昰攷㐳㘸戹愳戰㐸敤㙣慣㥥搶ㅣ捤摣㈵敢て㍢〲挲捣㤹㐵㈴户ㅣ挲ㄱ扢㔷㙤㤱㠳㔶戱㔵㠴㔶昶㑤㝢捡晡攲搷〱㈹㍦昹收㝢㈵慢㘴㍥㠲愵㐴攱扤㈱昱愵㙤㍦㍡晣㤷〷ㅦ㍢挸㘸戵〰㔷搳搷愳摣㡡换㥥晡〴㥣扡㤱㐰㤱敤晣㌰攷㈸㍥㔱㌲ㄶ㑢㘲㐴㜳愴ㄶ攴慡㘶㔸昴ㄱ㉦㠲㤸㍥昲㙤〴ㄵㄳ㜱て扥㡡㌹㔰㘷敥㤴ㅦ㌶㐹ㄳ攱㐰㘴攱搲愶ㄷ扡つ㤵愶㠲慣㐵㙤㌳晤ㄳ㠸愲昳㕣㐸慤㤶挸㕢㈷㤳愲晣戸㕥搶敤愷慣昳㉦㌲㜴晢㠷㕣ち晥〷㘲㐸昴㈲挳㠰〰挹愵㡥愳㤰扥〱㔹㡣㘷慤摥挵㑢㝢挰㈶ㄳ㄰㤵愰扦ㄶ㍦㘲挱㈹〲㡡愱㉤扥搵ㅢ㉤㜵搱㔰㌴搱㔵㉢㜵㥡ㄹㄴ攴攵㠵ㄵ㠳㘱敤㉣ち㘱㑡て愱戴㙥㜳ㄴ㕦搲㘵晡㡥㌷㥦戰搳㈶㙤㙤㌹昳㤰㔵㐶攴〷攴㑣㐶ちっ㙢㉢慢㜱㈱㤵㍥㍡扦㙢捥慦㘲摥敤ㄷ㉢㠳㍡㠲㈶挸㉣㙢ㄷ㙥愵㜰晥昱㑢㈱戶昷㔷愷摥㕥摦㐲ㄹ㘷戵㘳㠳晣㠵晥㜵㘹っ㘱攳慤愴ㄸ㜰搸㜵昵捡晡攱攱㈷㌰㠴㥢㑥㈸㙡戵㈸㥦㤵晤昸ㄳ㔲㔶㕢愳晣愷昷㕡㔲搶㐹㡥愶ㅢ扢㐶晥摦㠳㡡㌵攵扦㐲摦㥢〴攴扤㐱㐱㉡愷昴㥦慣改戲攱㠹挰戲つ攷㡤扣ㄸ慢戲㐸㤷户㕦㥡挱挷慢㝥戳攴攰戰㝢愵敡㐳㈳㉡㘳愹摢㜶㌴㘵㠰昴つ愵㕦〶ぢ㙡㍡扥㤶㙦㠵户摢捣㝤ㄸ戸敤愸㔱㜰㙣搷搶扤扥ㄹ㌸㝤晢昸敤㤹づ㥤㘷㔸昹㝥㍤㔳摢㠳㤳攸扣ㅦ㘳㡥㑤㠱㘱ㅦㄳ摥挷攵㡢愴㘷㘱㝤㥥っ㝥㠷搴ㄳ㜱㉦㔱㍡戸ㄷ攸㜷㤵戵ㄲ㍥㕤㥤㠲慤搳㘳搵㠶㄰㜶扥挵戹㍥㐲㠳㐷㠷ㄸ慤㍢㘱てㄲ愵〱㌸挷攴ㄶ敥扢㥦攷㕡㝦〶戵㝤㠳扤戹散搹㥡捤㉤㤷㝥〹㌰㕤摦㕢㙡㔱㠶敦攴ㄷ挹㌹㌵捦ㅣ㐱晢〷昱㜷晤〶㕡捥搶ぢ㍣て㍥攸愶㈱慣扦〴昳搹㍡扣摦愷㌰㔴ㄹ㘶㠶㕦㔵ぢち㝣㔰㘸攵㈳㈹㉡摦挵戶㐸〰㈸㈷㌲〵㘴捤戱晡㠵搵戰扡攷づ㡣㈱扤慡〲㔹㔷㥢挲慢〶戱㌲愷㍣㡦晥㍣㌵㝦昷昳慣挳搵㐳㕥㈹㔰㔶ㄷ㤰㠵㐹攱㤵㐲慥攷㔹っ愸慣攷㌴㙡㥢慦攷㤹搵搶愳㔰ㄹ㤰晢㡤捥摦ㄳちㄳ搵㐴戳㙡㌱戳㤹㉤㈲敢〹㘵㑡㌷搹㈴昷㤲昱㕤つ慦ㄱ㔲㐸扦ぢ晥扥㝢昰敤户㤸晥㜹㔰㤱㡣ㄱ㑤戵扢㈰㘳㤴扢㜸㉡扡ぢㄷ戵捤㜷昱攴㙡扢攸㈱捦㤴愷㕡㐶〱愷㥡挷ㅦ戹慢愵愰㈰愱㜸㉡慣慤搹慢㠶㕡㌹㜶ㄹ㠵慥戶㌴〱昳搹收搲㠵捡㘳昸㈹㉣㥣〳㌵摦扣ㅥ挲㌷慣㉢昴㜶户攱ㄳ晥戴ㄴ㠵愹攴敤慤捤ㄵ慡愳㤴㘴改㈷戰敢㡦㌰て㜷㕦戵㌹㜲挶摤昸捤挲〹㐱㌴㤳〷昵㘰㔰攰㐳㑦㜸㍥㘹㠲㍦收ㄳ㈷愹㈵㌲ㅣ㌴㡢㝥ㄹ摦㈴㥤昱㜵㠳慣ㄹ搸愲㌷〴㠷っ扣〸㑤〵㕢愶挵㌸〷攵昱㄰ㅤ㡦ㅣ〹扦ㅦ㑢〶㥥㌷㤰㠳慦㤷㤳㝣㜸㤰捡㘳㘱攷㥦扥㔲㌵ㅣ愳〱〹㌴攳㜷㈶㤹挹捥㕦〹㍢て攱摢㌴搹㈷㐱捣㘲㝡㌷散㑣㜲㤴㥤ㅦつ㍢晦㘳㘸㔷愵㜳㐸㝤晥捣㘹㤲㐶㡣挶㉦敦㐰㤱敦搴扢搱㍤慤㔳㡢攸搰晤㙡㘲愴㜴愰㤷愴ㅥ搱㠹㤰ㄸ〷㕦㡡㑦㈲挲ぢ㠱㌰㄰㌵晥㝦ㄸ㌱㠱挸慦㌱捤搳昰㈱昸ㄲ㕣敥㡥㉡㥦㌸㌸愳㑦㌹愸㘸搷㈷㕣摣㉣㡢ㅢち㐵愰ㄴ愵晣昳㕤挳㌵ㄱ愳㐰㔷捦㈳㜴ㄵ㈶ㄹ㐹搳㥡〸㤵敥愵㤴昲㐸〸搹挴㈳㔵㥣㔱扦っ攰㐰㌸㈰㘷㐱㝤ㄴ戹敦㡥㘲捣㜶愲㠷㕣㑦戲戴挷㔰〰㍢㈴㘷㈳昸㌳㡦㈳敢づ晦㤷㡥扥㈵㘹㉣㑡㉡て㠶敦㠸㘲㡦晡〴〷㝣ㄵ㔹ㅢ㙣搷㑡㠰㝢㌹昵㙢愸㠹扥㡢㡣㐳扥敢敢㈸㠰㝤㜲㘹敢㍥㈳敥愰㐵㘹晤㈴㠶㉡摣㌸攷㔰扦ㄱㄴ昸愰㜰搷攴攲㡡㠳㡤㤱㜵㔲㈰愹摦㘴つ㌷挵ㄵ慡摦攲ㄳ昷㈲㠷㝦㍢㈸挸攱摣㠸ㅣ㙥㐵㠷㝦㠷㕤攴㑢㔱愸㤱㘳㍤㝣戹㍣㠲㘷㔰攸㙡敢收㥢敥挶㙦㜲㔹㈹㥣㉡㥥㍡昵㝥㜷慡㙦㜷敡㥥㉦㜴㍥昷敥㙦摦㝢晡㥤㉦ㅥ昸晢〷㉦扣昰捥㕦㥦㝥敢㠳㌷收づ晣收愵㤷㝥㝤挷昷摥㝡㙦慢晥㘲昲㤵昷㈷㕦㝣㘸昰捣㐳て攸㈷慥㍦晣搰扤愷敦ㅡ㥣扥愰扦慤慤扤晤㥡摥㌷㉦扣戶攷㤱〷㕥㔵㝥昹愷㥤㤶㈲ㄷ㡦ㄷ搴㉥㠳㥢㤰换㜸ㄶ〵㉣㠳㉢晥㐴㤷挱敤捡㠳㕡〸づ㙡〴ㄵ㔹搸㈳戸〰搹㌰㕦摢搰昱ㅦ昱〱㥡摤 | K27: 㜸〱敤㕣㙢㙣ㅣ搷㜵摥㤹㝤㜰㘷挹ㄵ㘹㤱㤶㉤挷㜱㤸搸㑥㥣㔰搸㠸戲㤵㔸つㄴ㤹て扤㘲㑡愲戵㤴ㄴ㈷㑥愸攱敥っ㌹搶捥㉣㌵㌳愴挴㐴慤㥤㔷摢㌴㝤挱㘸㤲扡㜱ㅥ㑤搱ㅦ晤㤳㈲㉤攲搴㙤昲愳㐰㠱ㄶ㠵㔳戴㐰㔰愰㍦ち戸㐱搱晥㘸㔱〸捤㥦晣〸攰㝥摦戹㌳扢戳㑢敥㤰㕥摢㉤㕤昰㔲㍣扣㜳敥㘳敥扤攷摣㜳捥㍤攷㡥㌲㕡㈶㤳㜹ㄵ㠹㝦㤹㜲捣摣㕢摤〸㐲换慤捣㌴ㅢつ慢ㄶ㍡㑤㉦愸㑣昹扥戹㌱攷〴㘱ㄶㄵち㡢づ捡㠳晣㘲攰㝣捡㉡㉥慥㕢㝥㠰㑡昹㑣愶㔸㌴㜴㤴戳ㄳ晥㡥挴て〶㕢つ攵〰ㄶ㘶愶㉦㉣㍤㡤㕥慢㘱搳户づ㡤㕦㔶㙤㡦㑦㑥㔶㈶㉢㐷㡥ㅤ昹㐰攵昰愱昱㤹戵㐶戸收㕢挷㍤㙢㉤昴捤挶愱昱昹戵愵㠶㔳㝢摣摡㔸㘸㕥戳扣攳搶搲攱㠷㤷捣㐷ㅥ㥤㝣攴攸㔱晢搸戱㐷㠷昰敡捣昹㤹改㜹摦戲㠳㌷愸捦㍣㠷晣挸慣㔵㜳㌸㌷换昲ㅤ㙦戹㌲㌳㡤㝦㠹昱攳改㠳㤵敡㡡㘵㠵㝣戵攵㕢㕥捤ちっ㌴ㅣ㜴愷㠲㘰捤㕤攵攲ㄹ敥㈹㑣戵㘶〶㘱摥㥤戱ㅡつ挳㡤㝢㉤扡ㄷ戰㜶つ㜳㘳挸慤㕡㕥攰㠴捥扡ㄳ㙥ㄴ摣〵㜴㔴㉦扢㤷〲敢愲改㉤㕢攷㑤搷捡扢愷搷㥣㝡㑥愵㑣昶㍤㜱ㄷ挹㠱挹昴㉢㔳㠱㍢戳㘲晡㌲愲㠰ぢ㤳㔲昷㤴㕦敢慣㝢㝦敦㝥㌹㜴㜹〳晢㝣戰㜷㍤㤴㕣㌶晤㔶捤㠹摥㌵愳挹㜷㡥攰晤扤敢㈷搶愸戳捤㝢㝢户㤱愵散慣慤つ㐶晣㉤㉢㡡挹ㄸ〵㠲〱㠲㈲〱〹㘸㤴〸〶〹㠶〰戴摣㑦戱㑢㤲つ㔹愴㉦㥡晡攲㤲扥㔸搳ㄷ敢晡愲愵㉦摡晡攲戲扥戸愲㉦㍡晡攲搳晡攲㌵搴㠹㔳㜱㘰㐰㡦搲搸㍦摣晡慤慦昸㍦㍤昳㡤晦㝥搵晡敤㔷慦㝤㙦㘸ㅦ㉡㍤ㄱつ㙡搶㌷㙦㠰搵摡㕣㝣愴㜲㤸㍦摢敦ち㙣ち晢愸晤㐱㝢㜲戲㝥昴戰昹戰㤹攷戴㔲㠸摦挱㈸㈳愸㍢㘴㕦㜱扣㝡昳㠶搰敥摥㘹㌳戰摡ぢ㌷ㄱ㤵㑤㌷搷扣㝡昰戶慤ぢ慢愱ㄹ㕡昷㜴㤷戵㍢搹搴慣㡡㙤㘵〵昲扥晢扡㥢㕤㌶ㅢ㙢搶搴㑤㐷ㄵ扦扤慢搸㥤昷㥢㑢扤㑢㑦昹搶昵㔶改愶ㄱ㑤㐱愸慤㑢摦㥢㘶愹㡡搴戸挶㘷㔶㥡㠱攵挹昰㈶摣㜹愷㜶捤昲慢ㄶ㐵愲㔵㤷愹摥挹愲㘸搷㑦㕣昰㌰㔱散搶晡扢㤲㔸晢攴捤㄰㥢搹慡㘳扣慢㤶ㅦ㙥㉣㤸㑢つ敢㐰㐷ㄵ昵㑥ㄴㅣ散㐰㥦㙡搶搶㠲㤹愶ㄷ晡捤㐶㘷挹㔴㝤摤㠴愴愹㥦㙢搶慤㕣㉥㈳㐲〱〲㌷㥢搵戴捣晢㝡敦〵㈱㐴㠲挴摣挸㜷㜷戲㕤攵㈲㘶㠷㔹㌴㉣昲愴晥挰㌶㥤㜱扣㈲㘳㔲㜶㘰㘲㑥搴ㅦ㝣改㐳摢㜴摢愲摣㥢㕢㔹搷㐷愳搹㥦㕣户扣昰㡣改搵ㅢ㤶㥦慡晤㌴㡥挸ㄸ〶挸摦㠶㐰攸戹㝡㔴㜵摡㑤㙤㈳㝦挳愹㠷㉢㠵ㄵ换㔹㕥〹㠱㠳㠶㉣ㄶ戹戴㥢㤲㜱〷㔰挶㝥㠲㔱㠰㔲㈹㔳ㄸ㘳愵㐲〹㈹㤳愷㜴㑡搹换ㅤ㠲㥣敤㍡昶昲㤰㝤捡㘹㠴㤶ㄲ捡挳㌶㈸愲戴㥡㤰慦㑣ㄶ昵捤㥡㔲ㄸ㘳昶っ戸搴㜴扣㜰愳扤㙦㌷敤ㄲ挵㐴㝢戲㘰搷挹〲㡡㠲㑥㜹㤰戲搷挰㌴㕤搲㈰扤㜲㠲㠹戸つ㔲㌴㍢㝡敥㘴㌲搶㑦㤱ㄱ愸㥦㘴㐲搶㍥摣㕢㐶㤰搹㌷㌳㈹ㅢ昵摣㡦㝢搲㙣㉢㕢㕥㐹戳㍢戱㜰挶〱㠲扢〸敥㈶㌸〸愰晤ㅢ㈴ㅣ愵ㅣ昲㥤挹㜸ㅢ㥥㡤㝢〹摥づ〰昹㘴㔰收㐴愲㡡㌶搴㑥散㐸搶㉢挳㑥ㄶ愳㔸㠹㈲㕡挶㉤㍢戳散ち愱㈳慢㜳㜷攸摡㥣攸搸㜷昷收捤攴㜴挸㤱㈹㔵㤳㜳摤愶㙡㜲㈱㔸戵㑦扤昵づ㌴㌵挶〹摥〹愰ㄴぢ㡤摤㥤㔹昳㌴㈷摦ㄲ㈶㤱㌲㠴晡㔴敥ㄱㄳ搳晣㑦ㄱ㜰㥢㡥㉥㝢昶㌳㑤挱〹晢㉤㙦㍦ㅦ敡扤户㈳愲㜷改捣㍤㥤㐳㕦搱㙢戴愰摦㠵敤愵晤㜳㑦晤昲〰㡡㡤〷〹摥つ搰愵㕦㜸昲㝥慤㕥〲㌱㠹摤〴攵昶搳攳㈲ㄶ敥挲挶慡㈵摡㘷挸㕥㌰晤㘵㉢㠴昷攲散㉣散攰愶敦㕢つㅣ㘸敢㠲攰搹攵慥㑥㘴㜰捡㙦扡挴敦搹挷挱㕢㐲㌱攴㜲㝡㌶搳㘵ㅦ愷搸㤹〹㝦㔳㠲㜳愸㝦ㅦ敥㉤㈴ㄲ㡤㍡搹㡢敤搲捦㤶㝢㤲愴て㐹昲㄰㤶搵㜸㉦〰愴㠴昶㡦㍤㈵捡〴慢ㅤ㤲㙡㥤搶㉡扤㝢㈹㈷㤳㉥晦攱㈶㌹㌲愸㥣戵搳昰ㅤ〴㘵户敡戸㉤㘱㌱攸捥㕢㝥つ㝥〵愷㘱㤵㤴㑢㤶愲㘶㑦㔶扣㐵㘴㐵㌶扢改㉣㥤攲㕢ㄳ㍥改㤲ㄲ愹扢㍤戵㌰攵ㅣ摥㘶㉡扡㈰㈹㔴㔲摣㐲㉤〹㐴捥㘳摤㍤ㄱ搳㠷㠸愹㘰攱㡣昷ㄳㅣ㈶㤸〴挸晦ㅤ㈴捤㑥ㄷ㥥愱戰㠱㜵扡戳ㄷㄷ㌳㐵㤲㐱摣㠳㍦敡㈹慣ㅥ攱㙢㡥ㄲ㝣〰愰换晣愱昳㌱㠵ㄱ㠵攴〹㐶愴戵㘴搸㤷ㅤ敢〶㜹㘰㥦㡤愰搲捣㕡㄰㌶㕤㐶㤵捡昶㙣昳㝣㌳㥣㜵㠲㔵㐴愱㐶敤㈸㜳㘵挵昲挰㕤㍥㙣㥦㉥㕣㜳㜵搵慡ㅢ㜶戵戹〶搱㜶㜶㜶㌷ㅣ捡㌱㍦搸㤲㜲㉥搷㌵愴晥捥挶攸㐲㤳ㄳ㌱㝣慤昴挴敥挸昳捤㐳摦㜰㝢㐵ㄷ㥣戰㘱つ摡㙡搳㌱㕦戴戱㡡㠸ㅡ搴〷散㠵ㄵ摦戲㘶换昶㘹摦愹㌷ㅣ捦㈲㌱㘰㘳㌲㔰㌷㘷㉤㈳㐲㌰摦㘴晣慦改㤵敤〵摦昴㠲㔵㤳挱挴㡤晤ㅤ㑦ㄲㄲ挹摢搳㡥ㄷ攰㌵㐲㐵收㠷敤敡㑡昳〶愲戵㙢慥㜷摡㕣つ㜶〵㔵挸昴㉡〹㘹㌴㕤搳㜵慤愸ㄷ晢愵てて攴㤹捣ㄱ晣收〸㠴㔶㤹㍣晤攵㈹摡㥢㜶㝤ㄴ㥦愱㥤捥㌱つ㈱㜲搴㐲㘶㔳愵㌰㜷慡昱㈸摢ㅣ〳昸挸改㑢㘷摢㔱戹搷ㄵ慦捥搳挳㥦㈲攳㠵㉤㕡㐱㄰晡攷昶㈹㔶㈱㡥㥣㠳ㅤ〸㡡昳愹㥢晤㑡戶搴㈱昷敤㙢㘷㑦㈱㡡㌴㘴捦㤹㑢㔶〳戱㘸搷っ昷愹〷㥡戱慥搹〸愲戲㤹愶敢㥡㘴㉤戲㘵戵㘶㤲㠳愷搶挲收㌹挷㌳㙣〰攱扦〸㘵摥〴捡扣㈹愸㈱晢㈲挳㠲㤲㘷㕦捤㘵搳㜷挲ㄵ搷愹ㄵ昹挰搰摤慥攰㐹㙣㜲㑡摥㌸挵㌲㘳扣换㥡扦〴㤳㉤愸㠰摣ㄵ挸㔱㉥ㅤ挹て捥搵戵〲㝥戴㍥ㅤ㑢㄰㌰攲㈵㌵㍥㠴摥昲㜲㌳〲㈲㐷搲敤昸晥挵敤㘷㠰㔱㝥㌹㔲㍤㠵㐵攰ㄱ㑣〸㜹扡户ぢ昶㈵捦〹㐱㍤㔲散㤴ㄳ捥〶㈰㌹〰戲㜲扣扤㐷愸㥡㘸㌴搱搲ち敦搸㕣搴愱㈶敥摢㕣㥥搴ㅢて㙣㔱慣㌴㑡㐲㤱㙣㔷㐹㌴换ㄶ㘳摣㑤慡㐶ㄳ挵ㅤ㙢ㅢ㉤捤㙤摡㕥㜷㑡㤱搷愱㤸㠴㘷㌲挶㜱㘱ㄴ〴㜹挹ㅤ搰㔱昴搷愷戳㐷㈲㕡㐳ㅢ愰㐴㍤愵㜰攵㈸ㅣ㜸ㄶ㔷㑥敡㔶㈹㝡挲晥摥ㄷ㘵㉦慣㠵ㅤ㈵收捤搱愸㘴慡搱戸攰挱㑡愸㤹㝥㝤㤷㙣㘹捣㑤㘹ㄸ搹㥤晤㙡㝦戵扣㠹㡤ㄸ㙤㐳㠶㐴㔲晣挰搸㠶搸㕣㠹㘸㉡慤戳㌲㤷扡㠵㉥昲改㥣㘵㝡㐲㠱㙡㔸㥦戵搶挵っ㙢㕢昲愳搲愰㜵㕡ㄴ㌹㙡搸㔳㑢〱㔴㝡㐸㌹ㅥ攵㘴㠳ㅢ昶㐵扡愵㜰㠱〱㘲㌷捡捤搷㐲㠴㜵㕢ㅤ昰㘴戰㝢愸㠳ㄵ㔱㘱ㄳ㕡㘷㤴愰㠵ㄴ挶敤㥣〴昷㑥㥦ㄴ㠵㈰戵㈵晤搷〹敤昷㥥㘷晡愳ㄳ㤹㌸ㄳ㙤㈲㠶扡㔲慣〷㄰㌷ㄹ㤵攴㉥ㅡ㡤㠳攵㑡戲㠹搰ㅡ㡡㜱㌴㌱捡㌴昹晣㄰㌷㜸ㄸ挷ㅡ收戶㘹攰㡥㕢攸㐰㥢㌶㌶昶搹㘷扤㕡㘳慤㙥㠹㉡㡥㘵戵㘸攴㕤㐱㉦戹晥愷㜶㔳捡扡㐴㡢㜲ㄶ㐷㈹㑥㤹㐴敡摦敥㌶㍥㡣收㈲攴搰㠷㤲㙤っ㍥愶戸攵㈴ㄸ戶改㡥〲敤挳晤敤换ぢ㜲㜱づ㈲㙤ㄳ㡡戲㙣づ㜷昱㕡ㄱ㘴搹㙤㠹㙡㜳捤戹㈶㙤昶〴敡㡣愳㔰扢㠲㐶㤸愷ㄲ㜸㠵〲㡣㤱㍥㜷〷㍢挹摣㡥㈲扢户㥦㤱挷捣敤ㄳ㤱昱愱㌱扥换㔳㔰〶慢㡡㡤㐴㠳㕢㙦㕢摤ㅡ㈳扦戴扣㡤挷〰㌴㠶㠰㘹搰愲愶㌲㜰愶㤱摦摥挰㘱㌰㌲㈵㍡㥡っ愴㌲㐶㌹ち㠷㍤㠸㠶摤挴㠳昴㐲ㄳ㑡㈸ㅣ㤳㑢㘱昱扤挴〹ㄷ㐷愰愶㝦愰ぢ㌹㙦㠶戸晡攲ㅤ散㐲㑦搵敢㌴㜷攱㥦摢ㄵ㔴挵戵つ㘵㡥㡥㜵㕤挸㤲㌹搱扥扢扦慢㈰扡㈸㜸㘴戶㜲挶っ㙢㉢搵㜰㐳㕤摡敡㤳㈵昴晣て攱㡦搸昲敤戴㤹㜳ㅥ㉦愱慥㜳敤㑢搷扣收つ㑦挶㤵て㜸攳㡦㔶慣㌱㌰挰㐱㤶㌲慦攲㐷㤲㥥挹晦〰㍤敥㘴搸散愰敤㈰㘱㍦㤲㑡挶㐹晣愵戵㌳㡥扦㈹扣〲晢扤㜵㙢㠰扣㌲搶挵㉢㈲っ昶㤸挵㕢㝥愳㤸㈵愳晤㌹㐸㑢㠶〱挱攳ぢ㈲㝡㐶㝢〹て㈴㍡㘸〰挲ㄹ㘷〸㐱扥㜷攲㙦ち昹㐴愰㐷搷㍣㜸㈹攴晦て愵攲㕤扤攵戶晡㕦搸搴摡昷㐱っ㈱ㄳ㘸搲摡㤷摡㡢㥤㘴㝡㍣㈲ㄳ㠳戲慦㈹晣捤ㄹ散ㅤ㍢摦昴㉢扥晦㠷挷捥㜳愰㌰㤳㔸㘶〸戰㍤㠰㝣换㌰搰㌷ㄹ〶て愲㔸っ㠳昳㙣挳搸扤㌲っ㈲捦挷㍣㄰摢ㅢ〶㡣攸愵㤸㝦㠹〰㙢挲㤹挱㜳搷〱㤷㕥戱㌳戸㙡㙢〵㠸攲㐳㔵〵㌳昰㐳摤戵ㄹ㍤㙦晡愶㝢㔰昰愷㝤ぢ㉡捣㕦挰摤㙤㘹挲ㄶ昷㙣㔹㈲㡤戶昰㔰挴扥昵㍤㉦捡捥㙥慣㠳㔲㉡㈹愷扤㔶搴ち慦挳㍦愲昱戴㤰昹昴搸㜷㑥晦换愷㍥㝦㠲㜷搴㈲㕥捤㌳㈸摣㑦愰㥥ㄶ〴㐲戹㠹敢㈱㜷昲㔳㥣㜳昸㈸挹㔹㙤㔸搳愶㉦戶㑦㘰戸㜱㔶㌱㕥㠲㌱ㄵ昳敤〶挳ㄲ户ㅤ㤴㘱㔹改㜲㜲捡愷㑣攲ㄸ慣㈴〶㉥㥥扣㌸㔸愸昵㔴㕢㝤摡㤸昹㍦㠶攲㜹㡤〳改戴つ㜹搶㘴搲戴敦挴㥡㑤㈱㌲㤹愳㌸㝦愸〳愴㌶〱㕣㉣愵㄰㜵㈰㠷㈴㡦㉦扣〶㈰㔲慡㡡㑣扥〲㤰ㄲ㑦敢づ散搲ぢ戰㈷〴慣搶㔵扦㍥㍦㕢挱㉡㠲㡡戱〷扥摦㜳㉣て晤戱㙡㘲㠰㔶㑥㈲ぢ挸挸㤱㠵〸㐶㙣〵㝢〹㤹㌸攵㈷㤱摢戱ㄳ㡡㉦㈹扢㉡摣愶㌶㜶摥愵㠷慤攴㥥昴搶㜰摦〳㝡愶㈰ち挳摢㑦㌴㡥愱ㄲ㤹㔳㔵㑢ち㐵㌸慣戲慤㐶㠳㔱ㄱ㜴㤶㜷㄰㘷㔱㠴晣昸㙤㄰换㈷摡㕤摦搹㕤㐲ㅤ攷つ㘰㠲晣㠵晤㜵㕦捡挶挶㕢戹㘳㈰㘱㜷㔴慢愸㉥㠴㕦㐶ㄳ㑥㍡愳ㄹ敤慣㍣㙢㡣㑣挷㍢㉢扢㔹晦㌳㘶㉤㍢敢ち㕢㌳㜸摤愱晦㥦〴㘲㕢晤慦㌱攲㈶㈴晢㔸㤴攱㐳㥥㔱㤳㙤〳㌵㕣ㄱ昸戳ㄱ戲㤱攳戰㈱㔹〶扡㔵慥㡡捦㔵㔵戱㐸㜰㜸扢㜲摤ㄷ㈲㕡㙤㘹摢づ昶ㄴ㠰挷㌸愴㍦㠴〸敡搹㥥㠳摥㝣愶㉤㍣〵昴搸㌹愷收㌷㠳愶ㅤ㡥㔷ㄱ敡ㅤ攷搷㘶㌶㙣㥥㈹敤て扡㠵摡晤㔸㠹愱㑦愲捤昹ぢ㄰搸攷慤昰㡤㡡㐰㌲㥥戰戳昸〵扦㍣ㅡ㐹〴㤵愸ㅤ㠲㍢散㈷搶捣〶㍥㔶扤〰て㘷㐸搴慥㔰㜶捡捦摣㝤㉦㠳㑢㠷㥢㔹㡦挳ぢ㘴㌵㉡〸㠹挹ㄴ㍥晥〹慥㙢昷ㅡ㜴搶㡤收ㄶ戰㘶㝦㥥戶㔲晥昷㐱搳㥤扤愵㤳㘵昸㑥㝥㠳㕣㌲慥ㄲ攲ㄸ晤㘱晣摤戹㕢㤶扤㡤㠲捦愳㑦戸改晥㥡㘸挰㘹戶㠳㤸户㠹愶摡㘳〴昸㌵㤶愲っㅦ㌴晡昶戸ㄵ戵慦㘳㕡摣〰挸㘷ち㜵㠰摥㕣晤戵慤戸㕡愳㙦㐷晡〷敢㘷㘸户㠹敤㐶㤷㠱㘰㤷㤳㔸㥥㔰〵扢㤲挴昲㜰㐲㍥㉥㘹㕦挵ㅢ戸捥㙡扤㥥㈶づ㠷ㄵ㌹㠴㈰㙦㕣〳㠸㤳挶㐳㠸捣攰㜷搰愰㌵〳ㄷ搸摥㌳㜸㙥换ㄹ搰㝣㤰㔱㈵晢ㅦ㠹搵㡦戱㡡㘲攳㍡㠱㑦㄰〰㡣挴㕡㘸㤸㠲㤵搲慡愰㐲ㄲ㉦㥤㐰ㅥ改敦愳扦慦㥣昸搱换㑣晦㜹㐲ㄳ㔱㡡愲捥㔹㔰㤴捡㉣扥㤴㥣挵㍡戰扤㘷昱挵慤㘶㌱㐲㈹换㤱ㄸ㌷〱捡㔹敤㉡晥挸慣㌶愲っㅦ㌴㌳挶㜶捣㤵慣㈱㙤㍦㡤㑣㌹㍢㐲㔲搲㠳㘳摣㈲昸㐵㠲㕦㈲㜸㠶攰㔹㠲捦〰㤴昵ㄱ㔲㔷㉡㝥㤶挸捦ㄱ㝣㥥攰ぢ〴扦㑣昰㉢〰愸㐸㠲㑢挵㕦㈵昲㡢〴扦㐶昰㈵㠲㕦㈷昸つ㠰戲慥㤱攸㌲散摦㡣㌲㝣ㄸ㠹㐷㥢㈷㌱㔲㍥㑡ㄲ㉢㡦㤷㌸昹慥㠲㜲㈴ㄷ㤴㙥㉦扡㤱〷㜹㔷㐸戸挸昷摦㔳㌱ㄵ晡扣㥤愰㕤㡦㤹攳捣㤹挸㝦㤷搱愳㜸ㄹ㤸㔳〲㌳ㅡ㤹㤹ぢ愹慤挶㤵扦晢㘲摢慤㠴〲㈴㜰戰慡㑣愶㤷捡捤戸昲ㄱ㝣㑤㈶㜵搰戳㑡慦挴㤵戹㌹愴戲ㄷ㔷晥㡦㈳〷㕢㤵攳扤愰㝡捥㤳㔱㔳㉣㜶㌹挳㈴扥㉣愷㙢㈰㙦搳ちㄸ戴ㄵ㥡昲㕦挲摥つ戱〳㠶㜰㤱挵挷户摤㜳戸㤷㠵敢㉢㔰ㄵ敡扦㜸㌸㡢晢㕡戳㘶㘸攲搳敤㜵〴捡㝤㐳㥥搸戸㘰㕦昰㠱ㄸ戰捦〶㌸ㄹ搶㜷ㄵ㡢挰愸挹愹昵摤㈶愰㤰㘲〰户搷㈳づ昰改扣晦搲㥦ち㤴愰㔰㑥㙢挴㤴捤㍣摢收ㄹ攳换㈰づ㐴㌵㈰㌳挶㔷〰㔵㄰㘹㡣㠸ㄱ捡㈰ㄱ㌰扦㡢っ㠴ㄳ攵っ挹㕦㜸ㅥ㘰㌸晥㝦㌵挶搷挵搹愳㙢㜶晣㡥㈴昷ㄸ㕦㘳㠳ㄷ〰戲昰㌴㙢ㄱ敦㤵㡣慦〳㤳㜸㔷㥥㌲敢㐳扤㡤㘹㥥㤵攳㙦晤ㄱ〱敤昸愸晦㈴㍥搲摦㘰挷㔹晣ㅦ㈵㜹戱晣㜳晡㉦昴搷ㄷ昹㡢㐶扢晣㥡㤸搰敢攸㠷敢摡㌶㐲搹愳㘸㐸㡤㤲㤹搳搵慥愲㝦扥㠳㌶㝤㐹愳慣ㄶ昴㘲㠴㍥㈰㘸㑡㙦㐱㝦㌲㐲昳㔲㐴㐹㝢㌶㐶㝦㈲㐲㍦㈴攸捦挴攸愷㈲㌴晤㌰㈵敤戳㌱晡攳ㄱ㕡㡤㠴愲㕦晡晥㔸㠴㔶㈳愱㌲㄰昴㤳ㄱ㕡㡤攴ぢ㌱晡愳ㄱ㕡㡤㠴ち㐳㙡㕦㠹搰㙡㈴㔴㈱㠲扥ㅣ愱搵㐸愸㐹〴㝤㈹㐲慢㤱㔰户〸㝡㈱㐲慢㤱㔰摢〸扡ㅡ愱搵㐸愸㝦〴㝤㌱㐲慢㤱㔰㈳〹晡㠹〸慤㐶㐲ㅤ㈵攸昹〸㉤㈳ㄹ愱慡ㄲ敥晥㉥㌲攵㙣㥥㥢㘱挷扢㤲戴敤搳扥晢ㄳ㌴搵戸搵搸㠷昱愷㔱㠶てㅡ昷㤹㡣㜴㉥ㅡ改〹㔶昹ㅥ㡢戸㡤㌸㐲攳㐵㍥㜱昷㐸昳敦㐷ㄹ㘹捥㠹㐸㜳㈸ㄱ㘱㉣㘹晥ㄲ慢挸㑢㤱改戰㘳㐶昸㜲㔹㠲扦㐰愶㥣ㅤ收㥢慥攰㔷扦愹搵慥搶慦㕥晤搹㜰㙥晣㥥摣㐷ㅦㅢ㝡晥㤵扦晤挹㜳㍦㝥敡昸扦晦晣㠵ㄷ㝥晣慦捦扤晣昳ㅦ㉣ㅤ晦敢㙦㝦晢慦㍥昲捤㤷㝦戲摦晥㤶晥攲捦收扥㜵㙢昲摡慤敢昶愵昷㥤扥昵攴搳㑦㑣捥摦㌱㤱捤づっ扣㘷昴㙦敥㝥㘸攴搹敢㝦愶晤攵㍦摤攵㘹㌲㜸扣愰㜳ㄸ㥣㠴っ攳㠷挸㘰ㄸㅣ昱㥢㍡っ㑥㔷ㄶ㙡㍡㕡愸㘹㈰㡡昰㘰㜱〰㔲㌰搵㔹㌰昸㍦㉣愶㌶搱 | L27: 㜸〱敤㕣㕢㙣ㅣ搵ㄹ摥㔹敦慥㜷搶㜶㙣攲㕣㐸㠰㘰〸搷㌸㜵攲㐰㠰搰愶愹㉦㜱㉥㌸戱㠹㥤〰愲㘸㌳摥㍤㘳㑦戲㌳㘳㘶㘶㥤㤸㈲㐱㈹㠸㔶愵㌷㉡㠴㐰愸㐵愸㐲㙡ㅦ㝡㤱㉡ち㉤㉦㤵㉡戵慡㠲搴〷晡㠰搴〷㡡㉡晡搰慡㡡搴ㄷㅥ㤰攸昷㥤㤹搹㥤摤昵㡥㥤つ戴㑥攵攳昸昸捣戹捤㌹攷扦㥥晦晦㈷〹㈵㤱㐸㝣㠲挴扦㑣㈹ㄶ慥㥤㕡㜴㍤㘱づ㡣搸愵㤲㈸㜸㠶㙤戹〳㐳㡥愳㉤㡥ㅢ慥搷㠶づ㤹扣㠱㜶㌷㥤㜷㡤挷㐴㌶扦㈰ㅣㄷ㥤搲㠹㐴㌶慢㈶搱捥㐹昸摢ㄳ㍥愸ㅣ搵㤹㐲㌶㍤㌲㍣㌱㜳〶戳㑥㜹戶㈳㜶昶㥤昲挷敥ㅦㅣㅣㄸㅣ搸戳㙦捦㕤〳扢㜷昶㡤㤴㑢㕥搹ㄱ晢㉤㔱昶ㅣ慤戴戳㙦戲㍣㔳㌲ち昷㠹挵㘹晢慣戰昶㡢㤹摤㜷捣㘸㜷摥㌳㜸攷摥扤晡扥㝤昷㜴攲搵㠹攳㈳挳㤳㡥搰摤㑦㘹捥㌴㤷㝣攷愸㈸ㄸ摣㥢㄰㡥㘱捤づ㡣っ攳㕦㘴晤㜸扡㝢㘰㙡㑥〸㡦慦ㄶ㡥戰ち挲㔵㌱戰挳ㅣ㜲摤戲㌹捦挳㔳捤㌱㙣戵愰戹㕥摡ㅣㄱ愵㤲㙡㠶戳㘶捤〹㥣㕤㐹㕢散㌴愷㠴攵ㅡ㥥戱㘰㜸㡢ㄹ㜳ㅡㄳㄵ扢捣㤳慥㌸愱㔹戳攲戸㘶㡡戴㜹愸㙣ㄴ㔳㝥㑡戴摤ㅡ㑥ㄱ㕤㤸摣晥挰㤰㙢㡥捣㘹㡥㕣㤱换㠳㠹改㍢收ㄴ㙡晢㙥㙦㍥㉦㤷㉥摦挰㌹㙦㙥摥て㉤愷㌴愷搲戳扦㜹捦㘰昳戵㉢搸搵扣㝦攴㡣㙡挷摣摥㝣㡣㍣捡摡摥㑡㐷㠰摦昲㐴戱ㄹ㌵挳慣㥤㔹㤶ㄹ〱愸收㤸㜵㌰敢㐴愶愴晥つ㉡㠹づ㘴㔳㌲慦㈵昳㌳挹㝣㈱㤹㉦㈶昳㈲㤹搷㤳昹搹㘴㝥㉥㤹㌷㤲昹㌳挹晣㔹昴〹㔳戶扤㍤ㄹ愴慤ㅦ㙥㕢晦换昷慥戹敦㈷㐳摡慥昷㉥㜴㍥搱戹づ㥤敥てㄶ㌵敡㘸攷㠰㙡㔵㉣摥㌳戰㥢㍦换㔳〵㠸㐲摦慢摦慤てづㄶ昷敥搶敥搰搲摣㔶っ昰㙢㄰愵〷㝤㍢昵〷っ慢㘸㥦㤳戰扢㜶㔸㜳㐵昵攰晡㠳戶㘱扢㙣ㄵ摤㙢㤶㙥㥣昲㌴㑦㙣慤㙦慢㑥搲㌰㙣ち㘴㈵㕣昹扥㙤昵挳㑥㘹愵戲ㄸ㍡㙦昸捤搷搵㌵㥢㤳㡥㍤搳扣㜵捣ㄱ㡦㔶㕡ㅢ㔶㌴〴愶戶㈰攷㙥搸愵摦攴慦慢㙦㘴捥㜶㠵㈵㤷搷㙦㑥ㅡ㠵戳挲㤹ㄲ㘴㠹愲㈸户扡㤱㑤〱搵昷㑦㔸搸㈸愸戵㜸㘳戴㔶㍦㜸摥〳㌱㡢㈲搶㍢㉦ㅣ㙦㜱㕡㥢㈹㠹㑤㌵㕤晣㜷愲㘱㑢㑤昵㤸㕤㈸扢㈳戶攵㌹㜶愹戶㘵愸戸愰㠱搳ㄴ㡦搹㐵㤱㑡㈵㈴㔳〰挳㙤㙢㔳㤴挴㡥收戴㈰〱ㄱ〱㌱〹昹敡㕡戴ㅢ㌸㠱摤㘱ㄷ㈵㐱㥣㑣摥戴捣㘴㕣慦攴㌱㌱ㄴㄸ搹ㄳ攵〷㕦㝡摢㌲搳㔶㈰昷搹㜶㑥㈶㝢㠳摤ㅦ㕣㄰㤶㜷㔸戳㡡㈵攱挴㑡㍦㠵㉢㔲扢㤱愵㉦㠲㈱㌴㍤㍤㡡㍡攵扣戲㤸㍥㘷ㄴ扤戹捣㥣㌰㘶攷㍣搴㐱㐲㘶戳㍣摡㠶愴㕥㠵㉡㜵㍤戳㕥㘴戹㕣㈲戳㠱㥤㌲㌹愴㐴㥡摣㈹㠶㤶㙢ㄸ㌹挷搵搰㜲愷㍥㘶㤴㍣攱㌳攵㙥ㅤ㄰昱愵㥡〴㕦ㄷ㔱搴搱ち扥挰搸愰㡦〰㑢㌵挳昲ㄶ慢㜴摢㐰㈵㍥ㄲ慤昱㠲㔵挷ぢ挸ち㙡昹㐱っ慤〱㘹敡戸㐱㝣攷〸ㄲ㤱っ㘲㈴㍢㘶慥㐵㌲昶㡦攱ㄱ攸ㅦ㐵㐲昶摥摤㥣㐷㄰搹ㅢ㤱㤴㠳㥡搲攳ㅡ㌷㕢㑡㤷昷戹搹㐶ㅣ㥣扡㠹搹㘶㘶㔷㌳摢㠲㑣昹㄰ㅣ㡥㕣づ攵摡愴㕥㠳㘷昵㕡㘶搷㈱〳㝦㔲挹㜳〲㔶㐵ㅤ㙡㈵㝡㈴晢㜵㐱㑦㤶㑡戱捦㡡愸ㄹ㔷昴捣㉥㔳〲㍡搰㍡㔷㠷慣㑤㐹ㄹ㝢㑢㜳摣㡣㙥㠷ㄸㄹ搳㌵扡搷㘵扡㐶て㠲㕤㕢㤴㕢搷㘳愸摡挷散〶㘴㌹昵㐶收㄰㉥㔴㜸㔷愶搱㔳愵扣㈲搴㈲㕦ㄹ㙡㔱挰〷㠸捣㉢㐰っ㤳㙢戸扥慣改搰㔴〷晢昵㉢㕥㠷摥搹㥣扥〳愰搷挹捤㌵戹㐳㝢搱㈵㙡搱摢㐱㕥捡㕦㥡捡㤸㥢搱慣摥挲散㔶㘴㜵㌲㠶户敦㑢戵ㄴ㐸戵搸㡣㐰㙥㍤慤㉥㔲换㥤㕥㥣ㄷ㔲〲㜵敡搳㥡㌳㉢㍣㔸㌰㡥㡣㐲ㄷ戶ㅤ㐷㤴㜰愹㉤捡ち摥㕦㌶搷㔶扡㘳㡥㙤戲㝥㑤㐷㜶慦〸挱㤰㑡㈵摢ㄲ㜵㍡㜲㡣慥ㄹ戱㌹㐵㌰㠷㌲昸㡥收㑣㈲㌲愸ㄶ扤㌸㉥晥㝥戹挶㐹㕡攰㈴户攳㔸搵ㅤ挸挰㈵㤴㍦㌷攵㈸㍢搹敤㜳戲㕢慤挶㑡ぢ㕦捣敤愴捥㠶搸挰㐷㍡㝣㠳敤㌰散〷㙥㤷㌹㘵㤸ㄵ㘶搱㘱㑥ち愷〰摢㠲㔱ㄲ㌹摦㉣㑢㔶戳挶㉢慥㄰㕥搱搶搶㜰㥦㡥戱慦㐹㍣愹攳ㄲ戱搴ㅥ摢ㄸ㜳ㄷ慦㈲ㄵ捤㤰㘴㉡㌱愶愱ち〷㈲收戱敦ㅡ㡢㘹㠱挵散挲挱愹扢㤹つ㌲摢㠳㉣晤づ㌸捤㑡て㥥敥戰昶〵㥡戴昳昹㐴㤶㘰㤰㈶挲ぢ㑤㤹搵㕥扥收㉥㘶㜷㈳慢㔳㝦㘸㠰㡣㐱㐴〹昲〸㈲㑡㌷㠶㝥捡㄰攷㠸〳敢㜴㌸㤶㐶捡慥㘷㥢昴㉣㜵改愳昶㜱摢ㅢ㌵摣㜹㜸愲㝡昵愰昰挰㥣戰㠰㕤づ㜴㥦扡㍡㝢㝥㕥ㄴ㔵㝤捡㉥㠳戵ㅤㄹ㕤つㄷ㜳ㅣ〷㜴㐹㜹㌷㑦㉡㐸慤摤㡦㌱㠵㠲㤳㤶昶㔶㕡㘳㔷㘴晤收愵慦扢㝡愲搳㠶㔷ㄲㅤ扡㑦㜴㉣㘷㜵㥣㈲㍣〷挵㜶㝤㝡捥ㄱ㘲戴㑢㍦攴ㄸ挵㤲㘱〹〲〳㍡㈶㥤㜵攳㘲ㄶ㕥㠲㐹㥢㍥㐰摢敡搲愷ㅤ捤㜲攷㌵㍡ㄴㄷ搷搷㍣㐹户㐸㕡ㅦ㌶㉣ㄷ慦㤱㔰㘴戹㕢㥦㥡戳捦挱㘳㕢㌶慤㐳摡扣扢㉡愰㐲愴昷㤳〴㡤㤲㔴㤲㐹㈵㥢捣戶ちㅦ㕥挸ㄳ〹搲㕥㡡㤹㠴㔵㈲㑤㥢㜹㡣昴愶㕥ㅦ昸㘸愸愷㜳㑤㥤昰ㅥ㔵㉡摢㘲戹㌰㈹㔵摤挷㌱昷㈲㍢㝡攸攴㤱慡㘷敥戲㝣搶㘹㕡昹㘳㜸扣㐴㡢㡡㈳㠴㌶扡㜵㍥慡戰㡥㤸〳ち〴挴昹㔴㡦㝥㌹㕤昶㈱昶慤慢ㄶ挷攰㐹敡搴挷戵ㄹ㔱㠲㍦摡搴扣㜵晥〳搵㔸㔳㉢戹㐱摢㠸㙤㥡ㅡ㔱㡢㘸㌹㔵搰㠸挱㐳㘵捦㍥㘶㔸慡㡥㑣攲㕦㔰愵㥤㐷㤵㜶㕥㔶㜵敡㈷攸ㅡ㤴㘵捥㘵捦㙡㡥攱捤㤹㐶㈱换〷扡敦㔶〵㑥㠲挸挹㜹挳ㄴ昲㡣扥㍡㙤晥㈴㔴㌶㜷〰攰ㅥ〰ㅦ攵搱ㄱ晣挰摣愴㤲挱㡦搲愲㘱〹っ㐶㕡㑡搵㉦㘰戶戴㡣㡥〰换㤱改㘲ㄸ㠳㜱昱〹搴昸㑣㠸㔰㡦㐱ㄱ㔸〵㈳㑣㥥㈶敥㡣㝥搲㌲㍣㐰㡦㄰ㅢ㌳扣㔱ㄷ㈰㐷㠶愲扣摥㙥㤵㔰㡤っ敡慦㐸㠵敢ㅢ㥢㙡挴挴戶挶昶愸摣戸㘹㠹㘶㕦愲㐴〴挹㜲㥤愴㘴㔹㘲㡤慢㐹搴㈸㔲㜰㠷搲㐶㠹㌳㥢㔶捦㥤㕣攴㌲〴㤳挴㤹㠴晡㐵㠹㈸㜰昴〶㌲㡡㌶晢㜸昴㠸㜸㙣愸〳攴㈸愷晣扡慥挰㈵㜸〴㘱㈷㐵㤱ぢ㥥㐰摦敢㠲攲㐴搹慢㘹搱捥昷〶㉤㐳愵搲㠴〵㉤愱愰㌹挵㔵㐲搲搸㥢㉦㘱㈴㜵戶㉡晤晤攳㡤㄰㘲㐰㠶㜴㡢挴搸㠱㐱㠶㈰慥㠸㐷㤵摡㔹ㄷ㡦扡㔲㥤攵搳㌱愱㔹ㄲ〲㔳㕥㜱㔴㉣㐸㌵慣慡挹昷捡〱㤵摢愲攴愳慡㍥㌴攳㐲愴㝢攴攳㐱㐹ㄲ戸慡㥦愰㔹ち㐱っ㘰扢㐱㘹戲攰挱戵㕢㤹㠰㌷㠳搵〳ㅤ㥣㠸敦㍡愱㜶㐶づ㥡㠹㐱摣摡㑤㤰㜶㕡㠴㈸ㄸ愹㉥搳扦づ㈸㉦扦挴昴攳〳㠹戰㄰㄰ㄱ摤㕤㌱摡〳㠰ㅢ昵㑣㤲㡡㝡㐳㠷戹捦搹㈴搳敡っ敢愸㘲㜴㔱攵㜳㍣㐴昱搰㤷搵㑤戲㈹㈱捥捤㌳㈰㑤㑢㡢敢昴㈳㔶愱㔴㉥ち㈹㡡㐳㕥㉤㈵昲慡㠰㤷っ〱昴愹㈹收㕣㠲㐳㌹㠲慢ㄴ户㑣㈰戵慥㜷慢〷㌰㕣㌲㌹捣攱㡢㍥㍡㈰㘳捣㜲搲㈱搶㄰愷㐰晤㜰㝤㌵㠰㐱〶捦㠱愵㌵㔴㤱㤷㡤㈳ㅥ慦攲㐵㤶搴ㄶ改㌶㙥㡦摢搴搹㈳㔵㠷つ扦㙡㔵挰〸晢昴ㄹ㕥㈶〳㘵愴㐵敡攰㈴㠹㡢㠱㜷昷攲ㄳ昲㌱㜱ㄱ愰㤰㄰㔰攸攳攵㉤㈸㠱㔳〵㈱㔱攱㑥㔶戵㙥㠵摥㕦㙡摥敡㄰㌲㠵㙥㘰㉡戴攸改㉢㌸㈳㈸㉦慦攰㕣㡦㕥㌱ㅥ搲愸㌳㤵㍥捡㕥ㄸ散〱㌴㔰ㄳ㉦搲搳㌶㠴㤰户㐱〶㠶㠵戱㠹晤㈶慥㐰戶戳愹慥㜲㔲昳㄰晥㘲㙤愹慢ㅥ㉡ㄶ愹敥挲㍥户㉡愰㡡搰つ㕦ㅤ摤㔰ㄷ㤴㈵昷㐴晤㙥㝢㕤㐳㄰㉣戸㘷㜴攰戰收ㄵ收愶扣㐵㍦㜰慢㔵㤴㐸扦つ㝢挴㤲㙦愷捥㥣戲ㄸ㠸扡挰戳捦㥤戵散㜳㤶㕣㔷摡㘵搴ㅦ㌰〴㈱㤴敤㕣㘴㉥昱〹㝥㘴㑡㈶搲扦挱㡣㉢㔹㌶㈷愸ㅡ㐸㌸㡦㑣㍥㌷攸㐳㌹〶㑦愰扢㔷愲〶㠸㈷ㅢ敡昰㐴㌲㠲㌵㐴戱㘶㍦㌵㐴㔱㝥つ戰ㄲ㔹晣㉢㌹捥晣㜵㤰扥昲ㄶ㙡〸㜰㍣〷㙣㈴㝤〳㑡㌱愰㤳㡣㍣〸昱㘰㐰挸晦て㤴㐲㙡㕥㤲㥣晥ぢ挴慣扣㔹て愲㙤〴搱慦ㅡ㐰愴㌰っ㐴搲敦搱愰挰㠷㌴摤戳㤷攴〸攷㥥搶㉥愰㥦㜹挰敦晦昰〲㍡づ〸㌳㐹ㅤつ慥戶㥢㔱慥愸〸挹〶ㄵ㠱捥㝢愹㈲ㅣ攳ㄸ㝡昱㝤ㄵ㈱戰㠱㑣愰㘲㜹ㄵ㠱扥扤ㄸ㐵㌰攲㙡㡤㤸㌵㜸〳摢㘴搲㍥㜶ㄸ㠱户挲㠵㍦ㅦ㐲换ㅤ㠱㐵㙡㜳㘳昵愴收㘸收ㄶ㔹㝦挸ㄱ㄰㘶捥㌴㈲戹攵㄰㡥搸扡㘴㡢ㅣ戴㠴慤㈲戴戲慦搹㔳㔶ㄶ扦づ㐸昹挹㌷摦㉢㔹㈵㜳ㄹ㤶ㄲ㠵昷㠶挴㔷㌶晣昴搰㕦ㅦ㝢晡〰愳搵〲㕣㑤敦㐰戹ㄵ㤷㍤昵〹㌸㜵㈳㠱㈲ㅢ昹㘱捥㌱㝣愲㘴捣㤷挴戰收㐸㉤挸㔵捤戰攸㈳㕥〴㌱㝤攴㕢つ㉡㈶攲ㅥ㝣ㄵ㜳愰捥摣㈹㍦㙣㤲㈶挲㠱挸挲愵㑤㉦㜴ㅢ㉡㑤〵㔹㡢摡㘶晡攷㄰㐵㤷戸㤰㕡㉤㤱户㑥㈶㐵昹㔹扤慣摢㑢㔹攷㕦㘴攸昶て戹ㄴ晣て挴㤰攸㐵㠶〱〱㤲㑢㥤㐰㈱扤ぢ㔹㡣㘷慤摥挵㑢㝢挰ㅡㄳ㄰㤵愰扦ㄶ㍦㘲挱㈹〲㡡愱㉤扥搵ㅢ㉤㜵搱㔰㌴搱㔵㉢㜵㥡㈹ㄴ攴攵㠵ㄵ㠳㘱敤㌴ち㘱㑡敦㐱㘹挵收㈸扥愴换昴ㅤ㙦㍥㘱愷㑤摡摡㜲收㐱慢㡣挸て挸㤹㡣ㄴㄸ搶㝡㔶攳㐲㉡㝤㜴㝥搷㥣㕦挵扣摢㉦㔶〶㜵〴㑤㤰㔹搶ㄶ摣㑡攱晣攳㤷㐲㙣敦慦㑥扤戱扥㠵㌲捥㙡挷〶昹ぢ晤㙢㕢っ㘱攳慤愴ㄸ㜰搸ㄵ昵捡晡攱攱㈷㌱㠴㥢㑥㈸㙡戵㈸㥦㤵扤昸ㄳ㔲㔶㕢愳晣愷昷㕡㔲搶㈹㡥愶ㅢ扢㐶晥㍦㠸㡡㘵攵扦㐲摦㥢〴攴㐳㐱㐱㉡愷昴㥦㉣敢戲攱㠹挰戲つ攷㡤扣ㄸ慢戲㐸㤷户㕦㥡挲挷慢㝥戳攴攰戰㝢愵敡㐳㈳㉡㘳愹摢㜶㌴㘵㠰昴つ愵㕦〷ぢ㙡㍡扥㤶㙦㠵户摢捣挳ㄸ戸攱㤸㔱㜰㙣搷搶扤扥㈹㌸㝤晢昸敤㤹づ㥤㘷㐸昹㔱㍤㔳摢㡥㤳攸㝣〴㘳㡥㑦㠰㘱ㅦㄷ摥愷攵㡢愴㘷㘱㘵㥥っ㝥㠷搴ㄳ㜱㉦㔱㍡戸㔷改昷㤷戵ㄲ㍥㕤㥤㠰慤搳㘳搵慡㄰㜶扥挵戹㍥㐲㠳㐷㠷ㄸ慤晢㘰てㄲ愵〱㌸挷攴ㄶㅥ㝥㠴攷㕡㝦〶戵㝤㠳扤戹散搹㥡捤㉤㤷㝥つ㌰㕤搹㕢㙡㔱㠶敦攴ㄷ挹㌹㌵捦ㅣ㐱晢〷昰㜷攵〶㕡捥搶ぢ㍣て㍥攸愶㈱慣扦〴昳搹ち扣摦愷㌱㔴ㄹ㘲㠶㕦㔵ぢち㝣㔰㘸攵㈳㈹㉡㍦挰戶㐸〰㈸㈷㌲〵㘴捤戱晡㤵愵戰扡攷㈸挶㤰㕥㔵㠱慣慢㑤攱㔵㠳㔸㤹㔳㕥㐶㝦㥥㥡扦晢㔹搶攱敡㈱慦ㄴ㈸慢㜳挸挲愴昰㑡㈱搷昳㈲〶㔴搶㜳〶戵捤搷昳挲㔲敢㔱愸っ挸晤㐶攷敦〹㠵㠹㙡愲㔹戵㤸搹捣收㤱昵㠴㌲愵㥢㙣㤲㝢挹昸慥㠶户〸㈹愴㍦〵㝦摦㍦昰捥〵愶㝦ㅥ㔰㈴㘳㐴㔳敤㉥挸ㄸ攵㉥扥ㅤ摤㠵㡢摡收扢㜸㙥愹㕤昴㤰㘷捡㔳㉤愳㠰㔳捤攳㡦摣搵㐲㔰㤰㔰㍣ㅤ搶搶散㔵㐳慤ㅣ㝢ㅥ㠵慥戶㌴〱昳昹收搲㠵捡㘳昸㈹㉣㥣〳㌵摦扣ㅥ挴㌷慣㡢昴㜶户攱ㄳ晥戴ㄴ㠵愹攴扤慤捤ㄵ慡愳㤴㘴改㘷戱敢换㤸㠷扢慦摡ㅣ㌹攳㔶晣㘶攱㠴㈰㥡挹㠳㝡㉣㈸昰愱㈷㍣㥦㌴挱ㅦ昳㠹㤳搴ㄲㄹづ㥡㐵扦㡣㙦㤲捥昸扡㐱搶っ㙣搱慢㠲㐳〶㕥㠴愶㠲㉤搳㘲㥣㠳昲㑣㠸㡥㠷て㠷摦㡦㈵〳捦ㅢ挸挱搷换㐹㍥㍣㐸攵改戰昳㉦摥愸ㅡ㡥搱㠰〴㥡昱㍢㤳捣㘴攷慦㠵㥤昷攰摢㌴搹㈷㐱捣㘲㝡㍦散㑣㜲㤴㥤㥦ち㍢晦㘳捦㤶㑡攷㤰晡晣㤹搳㈴㡤ㄸ㡤㕦摥㠱㈲摦愹㜷愳㝢㕡愷ㄶ搱愱晢搵挴㐸改㐰㉦㐹㍤愲ㄳ㈱㌱づ扥ㄴㅦ㐷㠴ㄷ〲㘱㈰㙡晣晦㌰攲〸㈲扦㐶㌵㑦挳㠷攰ぢ㜰戹㍢慡㝣攲攰㡣㍥攱愰愲㕤㍦攲攲㘶㔹㕣㔵㈸〲愵㈸攵㥦敦㌲慥㠹ㄸ〵扡㝡ㅥ愱慢㌰挹㐸㥡搶㐴愸㜴㉦愵㤴㈷㐳挸㈶㥥慣攲㡣晡㔵〰〷挲〱㌹ぢ敡㔳挸㝤㜷ㄴ㘳戶ㄳ㍤攴㝡㤲愵㍤㡤〲搸㈱㌹ㅢ挱㥦㜹〶㔹㜷昸扦㜴昴㉤㐸㘳㔱㔲㜹㉣㝣㐷ㄴ㝢搴㘷㌹攰敢挸摡㘰扢㔶〲摣换愹摦㐰㑤昴㕤㘴ㅣ昲㕤摦㐴〱散㤳㑢㕢昱ㄹ㜱〷㉤㑡敢攷㌰㔴攱挶㌹㠷晡慤愰挰〷㠵扢㈶ㄷ㔷ㅣ㙣㡣慣㤳〲㐹晤づ㙢戸㈹慥㔰晤㉥㥦戸ㄷ㌹晣㝢㐱㐱づ攷㐶攴㜰㉢㍡晣晢散㈲㕦㡡㐲㡤ㅣ敢攱换攵ㄱ扣㠰㐲㔷㕢㌷摦昴〰㝥㤳攷㤵挲改攲改搳ㅦ㜵愷晡戶愶ㅥ晣㔲攷㑢敦晦昱㠳攷摦晤昲晥扦㝦晣捡㉢敦晥敤昹ぢㅦ扦㍤戳晦昷慦扤昶扢愳㍦扣昰挱㝡晤搵攴ㅢㅦ㡤扦晡昸攰搹挷ㅦ搵㑦敥㌸昴昸㐳㘷敥ㅦ㥣扣慡扦慤慤扤晤搶摥㍦㕣㝤㕢捦㤳㡦扥愹晣昶扤捤㤶㈲ㄷ㡦ㄷ搴㉥㠳㥢㤰换㜸ㄱ〵㉣㠳㉢晥㑣㤷挱敤捡㠳㥡ぢづ㙡ㄸㄵ㔹搸㈳戸〰搹㌰㕢摢搰昱ㅦ挶㥦㤹ㄹ | M27: 㜸〱敤㕣㕤㙣ㅣ搷㜵摥㤹晤攱捥㤲㉢搲愲㈴㕢戶攳㌰戱㥤㌸愱戰ㄱ㘵㉢戱ㅡ㈸㌲㝦㐴㐹㌱㈵搱㈲㈵挵㡥ㄳ㙡戸㍢㐳㡥戵㌳㑢捤捣㔲㘲攲搴㑥㥡戴㑤搳昶挱㘸摡扡㜱搰晣㈰㐰㕡愰㈹搲愲㑥摤㈶て〵ち昴〷㑥搱㠷愰㐰ㅦち戸㐱搱〲㙤㔱〸攸㑢ㅥ〲愴摦㜷敥捣敥散㤲㍢愴搷㜶㑢ㄷ扣ㄴて敦㥣晢㌳昷摥㜳敥㌹攷㥥㜳㐷ㄹ㉤㤳挹晣っ㠹㝦㤹㜲捣摣扢戰ㄱ㠴㤶㕢㤹㙥搴敢㔶㌵㜴ㅡ㕥㔰㤹昴㝤㜳㘳捥〹挲㉣㉡ㄴ㤶ㅣ㤴〷昹愵挰昹㤴㔵㕣㕡户晣〰㤵昲㤹㑣戱㘸攸㈸㘷㈷晣ㅤ㠹ㅦっ戶ㅡ捡〱㉣㑥㑦㕤㕣㝥〶扤㉥㠴つ摦㍡㌲㜶㐵戵㍤㌹㌱㔱㤹愸ㅣ㍢㜱散㠳㤵愳㐷挶愶㥢昵戰改㕢㈷㍤慢ㄹ晡㘶晤挸搸㝣㜳戹敥㔴ㅦ户㌶ㄶㅢ搷㉤敦愴戵㝣昴攱㘵昳㤱㐷㈷ㅥ㌹㝥摣㍥㜱攲搱㈱扣㍡㜳㘱㝡㙡摥户散攰㑤敡㌳捦㈱㍦㌲㘳㔵ㅤ捥捤戲㝣挷㕢愹㑣㑦攱㕦㘲晣㜸晡㔰㘵㘱搵戲㐲扥摡昲㉤慦㙡〵〶ㅡづ扡㤳㐱搰㜴搷戸㜸㠶㍢㡢愹㔶捤㈰捣扢搳㔶扤㙥戸㜱慦㐵昷㈲搶慥㙥㙥っ戹ぢ㤶ㄷ㌸愱戳敥㠴ㅢ〵㜷ㄱㅤ搵捡敥攵挰扡㘴㝡㉢搶〵搳戵昲敥㤹愶㔳换愹㤴挹扥㌷敥㈲㌹㌰㤹㝥㘵㌲㜰愷㔷㑤㕦㐶ㄴ㜰㘱㔲敡捥晡搵捥扡昷昷敥㤷㐳㤷㌷戰捦〷㝢搷㐳挹ㄵ搳㙦搵ㅣ敦㕤㌳㥡㝣攷〸㍥搰扢㝥㘲㡤㍡摢扣慦㜷ㅢ㔹捡捥摡摡㘰挴摦戲愲㤸㡣㔱㈰ㄸ㈰㈸ㄲ㤰㠰㐶㠹㘰㤰㘰〸㐰换晤㌷㜶㐹戲㈱㡢昴㈵㔳㕦㕡搶㤷慡晡㔲㑤㕦戲昴㈵㕢㕦㕡搱㤷㔶昵㈵㐷㕦㝡㐶㕦扡㡥㍡㜱㉡づっ攸㔱㍡昸敦戹挵扦昹捣敦㕦昸㠳搹㉦㝦晢㥥㠷㉦㍤㌵戴て㤵㥥㠸〶㌵攳㥢㌷挱㙡㙤㉥㍥㔶㌹捡㥦敤㜷〵㌶㠵㝤摣晥㤰㍤㌱㔱㍢㝥搴㝣搸捣㜳㕡㈹挴敦㘰㤴ㄱ搴ㅤ戲慦㍡㕥慤㜱㔳㘸㜷敦㤴ㄹ㔸敤㠵ㅢ㡦捡愶ㅡ㑤慦ㄶ摣戳㜵攱㐲㘸㠶搶摤摤㘵敤㑥㌶㌵㕢挰戶戲〲㜹摦㝤摤捤慥㤸昵愶㌵㜹换㔱挵敦攸㉡㜶攷晤挶㜲敦搲㔹摦扡搱㉡摤㌴愲㐹〸戵㜵改㝢搳㉣㔵㤱ㅡ搷搸昴㙡㈳戰㍣ㄹ摥戸㍢敦㔴慦㕢晥㠲㐵㤱㘸搵㘴慡〷㔹ㄴ敤晡昱㡢ㅥ㈶㡡摤㕡㝢㜷ㄲ㙢㥦扥ㄵ㘲㌳㕢㌵㡣㜷捤昲挳㡤㐵㜳戹㙥ㅤ敡愸愲摥㠹㠲挳ㅤ攸搹㐶戵ㄹ㑣㌷扣搰㙦搴㍢㑢㈶㙢敢㈶㈴㑤敤㝣愳㘶攵㜲ㄹㄱち㄰戸搹慣愶㘵摥摦㝢㉦〸㈱ㄲ㈴收㐶扥慢㤳敤㉡㤷㌰㍢捣愲㙥㤱㈷昵〷戶改㡣攳ㄵㄹ㤳戲〳ㄳ㜳愲晥攰㑢ㅦ摡愶摢ㄶ攵摥摡捡扡㍥ㅡ捤晥昴扡攵㠵㘷㑤慦㔶户晣㔴敤愷㜱㐴挶㌰㐰晥㌶〴㐲捦搵愳慡搳㙥㘹ㅢ昹㥢㑥㉤㕣㉤慣㕡捥捡㙡〸ㅣ㌴㘴戱挸愵摤㤴㡣㍢㠰㌲昶ㄳ㡣〲㤴㑡㤹挲〱㔶㉡㤴㤰㌲㜹㑡愷㤴扤摣㈱挸搹慥㘳㉦て搹戳㑥㍤戴㤴㔰ㅥ戶㐱ㄱ愵搵㠴㝣㘵戲愸㙦㔶㤵挲㌸㘰㑦㠳㑢㑤挷ぢ㌷摡晢㜶搳㉥㔱㑣戴㈷ぢ㜶㥤㉣愰㈸攸㤴〷㈹㝢つ㑣搳㈵つ搲㉢㈷㤸㠸摢㈰㐵戳愳攷㑥㈶㘳晤ㄴㄹ㠱晡㐹㈶㘴敤愳扤㘵〴㤹㝤㌳㤳戲㔱捦晤戸㈷捤戶戲攵㤵㌴㍢㠸㠵㌳づㄱ摣㐹㜰ㄷ挱㘱〰敤㕦㈱攱㈸攵㤰敦㑣挶㍤㜸㌶敥㈵㜸〷〰攴㤳㐱㤹ㄳ㠹㉡摡㔰㍢戱㈳㔹慦っ㍢㔹㡣㘲㈵㡡㘸ㄹ户散捣戲㉢㠴㡥慣捥摤愱㙢㜳愲㘳摦搳㥢㌷㤳搳㈱㐷愶㔴㑤捥㜵㥢慡挹㠵㘰搵㍥昵搶㍢搱搴ㄸ㈳㜸ㄷ㠰㔲㉣㌴㜶㜷㘶捤搳㥣㝣㕢㤸㐴捡㄰敡㔳戹㐷㑣㑣昳㍦㐵挰㙤㍡扡散搹捦㌴〵挷敤户扤晤㝣愴昷摥㡥㠸摥愵㌳昷㜴づ㝤㐵慦搳㠲㝥㌷戶㤷昶㑦㍤昵换〳㈸㌶ㅥ㈴㜸て㐰㤷㝥攱挹晢昵㝡〹挴㈴㜶ㄳ㤴摢㑦㡦㡢㔸戸㡢ㅢ㙢㤶㘸㥦㈱㝢搱昴㔷慣㄰摥㡢㜳㌳戰㠳ㅢ扥㙦搵㜱愰慤〹㠲㘷㤷㍢㍢㤱挱慣摦㜰㠹摦戳㡦㠳户㠵㘲挸攵昴㙣愶换㍥㑥戱㌳ㄳ晥愶〴攷㔰晦㍥摣㕢㐸㈴ㅡ㜵戲ㄷ摢愵㥦㉤昷㈴㐹ㅦ㤲攴㈱㉣慢昱㍥〰㐸〹敤ㅦ㝡㑡㤴㜱㔶㍢㈲搵㍡慤㔵㝡昷㔲㑥㈶㕤晥挳㑤㜲㘴㔰㌹㙢愷攰㍢〸捡敥㠲攳戶㠴挵愰㍢㙦昹㔵昸ㄵ㥣扡㔵㔲㉥㔹㡡㥡㍤㔹昱㌶㤱ㄵ搹散愶戳㜴㡡㙦㑤昸愴㑢㑡愴敥昶搴挲㤴㜳㜸㥢愹攸㠲愴㔰㐹㜱ぢ戵㈴㄰㌹㡦㜵昷㐴㑣ㅦ㈲愶㠲㠵㌳㍥㐰㜰㤴㘰〲㈰晦㜷㤰㌴㍢㕤㜸㠶挲〶搶改捥㕥㕡捡ㄴ㐹〶㜱て晥戰愷戰㝡㠴慦㌹㑥昰㐱㠰㉥昳㠷捥挷ㄴ㐶ㄴ㤲㈷ㄸ㤱搶㤲㘱㕦㜱慣㥢攴㠱㝤㌶㠲㑡搳捤㈰㙣戸㡣㉡㤵敤㤹挶㠵㐶㌸攳〴㙢㠸㐲㡤摡㔱收敡慡攵㠱扢㝣搸㍥㕤戸挶摡㥡㔵㌳散㠵㐶ㄳ愲敤摣捣㙥㌸㤴㘳㝥戰㈵攵㕣慥㙢㐸晤㥤㡤搱㠵㈶㈷㘲昸㕡改㠹摤㤱攷㥢㠷扥攱昶㡡㉥㍡㘱摤ㅡ戴搵愶㘳扥㘸㘳ㄵㄱ㌵愸つ搸㡢慢扥㘵捤㤴敤㌳扥㔳慢㍢㥥㐵㘲挰挶㘴愰㙥捥㕡㐱㠴㘰扥挱昸㕦挳㉢摢㡢扥改〵㙢㈶㠳㠹ㅢ晢㍢㥥㈴㈴㤲户愷ㅣ㉦挰㙢㠴㡡捣て摢ぢ慢㡤㥢㠸搶㌶㕤敦㡣戹ㄶ散ち慡㤰改㔵ㄲ搲㘸扡愶敢㕡㔱㉦昶㑢ㅦㅥ挸㌳㤹㘳昸捤ㄱ〸慤㌲㜹晡换㔳戴㌷敤晡㈸㍥㐳㍢㥤㘳ㅡ㐲攴愸㠵捣愶㑡㘱敥㔴攳㔱戶㌹〱昰搱㌳㤷捦戵愳㜲㙦㈸㕥㥤愷㠷㍦㐵挶ぢ㕢戴㠲㈰昴捦敤㔳慣㐲ㅣ㌹〷㍢㄰ㄴ攷㔳㌷晢㤵㙣愹㐳敥摢搷捥捥㈲㡡㌴㘴捦㤹换㔶ㅤ戱㘸搷っ昷愹〷㥡戱慥㔹て愲戲改㠶敢㥡㘴㉤戲攵㐲搵㈴〷㑦㌶挳挶㜹挷㌳㙣〰攱扦〸㘵摥〲捡扣㈵愸㈱晢ㄲ挳㠲㤲㘷㕦㡤ㄵ搳㜷挲㔵搷愹ㄶ昹挰搰摤慥攰㐹㙣㜲㑡摥㌸挵㌲㘳慣换㥡扦っ㤳㉤愸㠰摣ㄵ挸㔱㉥ㅤ挹て捥搵戵〲㝥戴㍥ㅤ㑢㄰㌰攲㈵㌵㍥㡣摥昲㜲㌳〲㈲㐷搲敤昸晥挵敤攷㠰㔱㝥㌹㔲㍤㠵㐵攰ㄱ㑣〸㜹扡户ぢ昶㘵捦〹㐱㍤㔲㙣搶〹㘷〲㤰ㅣ〰㔹㌹摥摥㉤㔴㑤㌴ㅡ㙦㘹㠵㜷㙥㉥敡㔰ㄳ昷㙤㉥㑦敡㡤〷戶㈸㔶ㅡ㈵愱㐸戶慢㈴㥡㘵㡢㌱敥㈶㔵愳㠹攲㡥戵㡤㤶收㌶㙤慦㍢愵挸ㅢ㔰㑣挲㌳ㄹ攳愴㌰ち㠲扣攴づ攸㈸晡敢搳搹㈳ㄱ慤愱つ㔰愲㥥㔲戸㜲ㄴづ㍣㠷㉢㈷㌵慢ㄴ㍤㘱㝦敦㡢戲ㄷ㥢㘱㐷㠹㜹㙢㌴㉡㤹慣搷㉦㝡戰ㄲ慡愶㕦摢㈵㕢ㅡ㜳㔳ㅡ㐶㜶㘷扦摡㕦㉤㙦㘲㈳㐶摢㤰㈱㤱ㄴ㍦㌰戶㈱㌶㔷㈲㥡㑡敢慣捣愵㙥愱㡢㝣㍡㙦㤹㥥㔰㘰㈱慣捤㔸敢㘲㠶戵㉤昹㔱㘹搰㍡㉤㡡ㅣ㌵散挹攵〰㉡㍤愴ㅣ㡦㜲戲挱つ晢ㄲ摤㔲戸挰〰戱ㅢ攵收慢㈱挲扡慤づ㜸㌲搸㍤搴挱㡡愸戰〹慤㌳㑡搰㐲ち攳㜶㑥㠲㝢愷㑦㡡㐲㤰摡㤲晥敢㤴昶㍢㉦㌲晤摥愹㑣㥣㠹㌶ㄱ㐳㕤㈹搶〳㠸㥢㡣㑡㜲ㄷ㡤挶挱㜲㈵搹㐴㘸つ挵㌸㥡ㄸ㘵㥡㝣㝥㠸ㅢ㍣㡣㘳つ㜳摢搴㜱挷㉤㜴愰㑤敢ㅢ晢散㜳㕥戵摥慣㔹愲㡡㘳㔹㉤ㅡ㜹㔷搰㑢慥晦愹摤㤴戲㉥搱愲㥣挳㔱㡡㔳㈶㤱晡户扢㡤㡦愰戹〸㌹昴愱㘴ㅢ㠳㡦㈹㙥㌹〹㠶㙤扡愳㐰晢㜰㝦晢昲㠲㕣㥣㠳㐸摢㠴愲㉣㥢挳㕤扣㔶〴㔹㜶㕢愲摡㕣㘳慥㐱㥢㍤㠱㍡敢㈸搴慥愰ㄱ收愹〴㕥愱〰㘳愴捦摤挱㑥㌲户愳挸敥敤攷攴㌱㜳晢㔴㘴㝣㘸㡣敦昲ㄴ㤴挱慡㘲㈳搱攰搶摢㔶户挶挸㉦㉤㙦攳㌱〰㡤㈱㘰ㅡ戴愸愹っ㥣㈹攴户㌷㜰ㄸ㡣㑣㠹㡥㈶〳愹㡣㔱㡥挲㘱て愲㘱㌷昱㈰扤搸㠰ㄲちて挸愵戰昸㕥攲戸㡢㈳㔰挳㍦搴㠵㥣㌷㐳㕣㝤昱づ㜷愱㈷㙢㌵㥡扢昰捦敤ち慡攲摡㠶㌲㐷て㜴㕤挸㤲㌹搱扥扢扦慢㈰扡㈸㜸㙣愶㜲搶っ慢慢ぢ攱㠶扡戴搵㈷㑢攸昹ㅦ挰ㅦ戱攵摢㘹㌳攷㍣㕥㐲㕤攷摡㤷慥㝢㡤㥢㥥㡣㉢ㅦ昰挶ㅦ慤㔸㘳㘰㠰㠳㉣㘵㝥㠶ㅦ㐹㝡㈶晦㝤昴戸㤳㘱戳㠳戶㠳㠴晤㐸㉡ㄹ愷昱㤷搶捥ㄸ晥愶昰ち散昷搶慤〱昲捡㠱㉥㕥ㄱ㘱戰挷㉣摥捡㥢挵㉣ㄹ敤捦㐰㕡㌲っ〸ㅥ㕦㄰搱㌳摡㉢㜸㈰搱㐱〳㄰捥㌸㑢〸昲扤ぢ㝦㔳挸㈷〲㍤扡收挱㑢㈱晦㝦㈸ㄵ敦敡㉤户搵晦挲愶搶扥〷㘲〸㤹㐰㤳搶扥搴㕥敥㈴搳攳ㄱ㤹ㄸ㤴㝤㕤攱㙦捥㘰敦搸昹㤶㕦昱晤㍦㍣㜶㥥〷㠵㤹挴㌲㐳㠰敤〱攴㕢㠶㠱扥挹㌰㜸㄰挵㘲ㄸ㕣㘰ㅢ挶敥㤵㘱㄰㜹㍥收㠱搸摥㌰㘰㐴㉦挵晣㑢〴㔸ㄳ捥っ㥥扢づ戹昴㡡㥤挵㔵㕢㉢㐰ㄴㅦ慡㉡㤸㠶ㅦ敡捥捤攸㜹搳㌷摤挳㠲㍦攳㕢㔰㘱晥㈲敥㙥㑢ㄳ戶戸㝢换ㄲ㘹戴㠵㠷㈲昶慤敦㜹㔱㜶㜶㘳ㅤ㤴㔲㐹㌹敤戵愲㔶㜸〳晥ㄱ㡤愷㠵捣愷て㝣攷捣㍦㝦敡昳愷㜸㐷㉤攲搵㍣㠳挲晤〴敡㘹㐱㈰㤴㥢戸ㅥ㜲㤰㥦攲㥣挷㐷㐹捥㕡摤㥡㌲㝤戱㝤〲挳㡤戳㡡昱ㄲ㡣愹㤸㙦㌷ㄸ㤶戸敤愰っ换㑡㤷㤳㔳㍥㘵ㄲ挷㘰㈵㌱㜰昱攴挵挱㐲慤愷摡敡搳挶捣晦㈱ㄴ捦敢ㅣ㐸愷㙤挸戳㈶㤳愶㝤㈷搶㙣ち㤱挹ㅣ挷昹㐳ㅤ㈰戵㜱攰㘲㈹㠵愸〳㌹㈴㜹㝣攱㌵〰㤱㔲ぢ挸攴㉢〰㈹昱戴敥挰㉥扤〰㝢㐲挰㙡㕤昵敢昳戳ㄵ慣㈲愸ㄸ㝢攰晢㍤挷昲搰ㅦ慢㈶〶㘸攵㈴戲㠸㡣ㅣ㔹㠸㘰挴㔶戰㤷㤱㠹㔳㝥〲戹ㅤ㍢愱昸㤲戲慢挲㙤㙡㘳攷㕤㝡搸㑡敥㘹慦㠹晢ㅥ搰㌳〵㔱ㄸ摥㝥愲㜱っ㤵挸㥣慡㕡㔲㈸挲㘱㤵㙤㌵ㅡ㡣㡡愰戳扣挳㌸㡢㈲攴挷㙦㠳㔸㍥摥敥晡㘰㜷〹㜵㥣㌷㠰〹昲ㄷ昶搷㝤㈹ㅢㅢ㙦攵㡥㠱㠴摤㔱慤愲扡㄰㝥〵㑤㌸改㡣㘶戴戳昲慣㌱㌲ㅤ敦慣散㘶晤捦㤸戵散慣慢㙣捤攰㜵㠷晥㝦ㄲ㠸㙤昵扦挶㠸㥢㤰散愹㈸挳㠷㍣愳㈶摢〶㙡戸㈲昰㘷㈳㘴㈳挷㘱㐳戲っ㜴慢摣〲㍥㔷㔵挵㈲挱攱敤捡㜵㕦㠸㘸戵愵㙤㍢搸㔳〰㥥攰㤰扥〵ㄱ搴戳㍤〷扤昹㑣㕢㜸ㅡ攸〳攷㥤慡摦〸ㅡ㜶㌸戶㠰㔰敦ㄸ扦㌶戳㘱昳㑣㙡摦散ㄶ㙡昷㘳㈵㠶㍥㠹㌶ㄷ㉥㐲㘰㕦戰挲㌷㉢〲挹㜸挲捥攲ㄷ晣昲㘸㈴ㄱ㔴愲㜶〸敥戰㥦㘸㥡㜵㝣慣㝡ㄱㅥ捥㤰愸㕤愱散㤴㥦戹晢㕥〶㤷づ㌷戳ㅥ㠷ㄷ挸慡㔷㄰ㄲ㤳㈹㝣晣ㄳ㕣搷敥㌵攸慣ㅢ捤㉤㘰捤晥㍣㙤愵晣搷㐱搳㥤扤愵㤳㘵昸㑥㝥㠳㕣㌲慥ㄱ攲ㄸ晤ㄱ晣摤戹㕢㤶扤㡤㠲捦愳㑦戸改晥ㅡ慦挳㘹戶㠳㤸户㠹愶摡㘳〴昸㌵㤶愳っㅦ㌴晡昶戸ㄵ戵慦㘲㕡摣〰挸㘷ち㌵㠰摥㕣晤㤵慤戸㕡愳㙦㐷晡〷敢㘷㘸户㠹敤㐶㤷㠱㘰㔷㤲㔸㥥㔰〵扢㥡挴昲㜰㐲㍥㉥㘹扦㠵㌷㜰㥤搵㝡㍤㐳ㅣづ㉢㜲〸㐱摥戸づ㄰㈷㡤㠷㄰㤹挱㙦愰㐱㙢〶㉥戰扤㘷昰挲㤶㌳愰昹㈰愳㑡昶㍦ㄲ慢ㅦ㘳つ挵挶つ〲㥦㈰〰ㄸ㠹戵搰㌰〵㉢愵㔵㐱㠵㈴㕥㌹㠵㍣搲摦㐷㝦㕦㍢昵挳㔷㤹晥昳㤴㈶愲ㄴ㐵㥤戳愰㈸㤵㔹㝣㈹㌹㡢㜵㘰㝢捦攲㡢㕢捤㘲㠴㔲㤶㈳㌱㙥〱㤴戳摡㌵晣㤱㔹㙤㐴ㄹ㍥㘸㘶㡣敤㤸㉢㔹㐳摡㝥ㅡ㤹㜲㜶㠴愴愴〷挷㜸㤶攰㌳〴㍦㑦昰ㅣ挱昳〴㥦〵㈸敢㈳愴慥㔴晣ㅣ㤱扦㐰昰㜹㠲㉦㄰晣㈲挱㉦〱愰㈲〹㉥ㄵ㝦㤹挸㉦ㄲ晣ち挱㤷〸㝥㤵攰搷〰捡扡㐶愲换戰㝦㍤捡昰㘱㈴ㅥ㙤㥥挴㐸昹㈸㐹慣㍣㕥攲攴扢ち捡㤱㕣㔰扡扤攸㐶ㅥ攴㕤㈱攱㈲摦㝦㑦挵㔴攸昳㜶㠲㜶㈳㘶㡥戳㘷㈳晦㕤㐶㡦攲㘵㘰㑥〹捣㘸㘴㘶㉥愴戶ㄶ㔷晥敥换㙤户ㄲち㤰挰挱慡㌲㤹㕥㉡㌷攲捡挷昰㌵㤹搴㐱捦㉡扤ㄶ㔷收收㤰捡㕥㕣昹㍦㡥ㅤ㙥㔵㡥昷㠲敡㌹㑦㐶㑤戱搸攵っ㤳昸戲㥣慥㠱扣㑤㉢㘰搰㔶㘸捡㝦〹㝢搷挵づㄸ挲㐵ㄶㅦ摦㜶捦攱㕥ㄶ慥慦㐰㔵愸晦攲攱ㅣ敥㙢捤㤸愱㠹㑦户搷ㄱ㈸昷つ㜹㘲攳㠲㝤搱〷㘲挰㍥ㄷ攰㘴㔸摢㔵㉣〲愳㈶愷搶㜷㥢㠰㐲㡡〱摣㕥㡦㌸挰愷昳晥㑢㝦㉡㔰㠲㐲㌹慤ㅥ㔳㌶昳㝣㥢㘷㡣㉦㠳㌸㄰搵㠰捣ㄸ扦〹愸㠲㐸〷㠸ㄸ愱っㄲ〱昳摢挸㐰㌸㔱捥㤰晣㠵ㄷ〱㠶攳晦㔷㘳㙣㕤㥣㍤扡㘶挷敦㐸㜲㡦昱ㄵ㌶㜸〹㈰ぢ㑦戳ㄶ昱㕥挹昸㉡㌰㠹㜷攵㈹戳㍥摣摢㤸收㔹㌹晥搶ㅦㄱ搰㡥㡦晡㑦攳㈳晤つ㜶㥣挵晦㔱㤲ㄷ换㍦愷晦㕣㝦㝤㤱扦㘸戴换慦㠹〹扤㠱㝥戸慥㙤㈳㤴㍤㡡㠶搴㈸㤹㌹㕤敤ㅡ晡攷㍢㘸搳㤷㌴捡㙡㐱㉦㐵攸㐳㠲愶昴ㄶ昴㈷㈳㌴㉦㐵㤴戴攷㘳昴㈷㈲昴㐳㠲晥㙣㡣㝥㍡㐲搳て㔳搲㍥ㄷ愳㍦ㅥ愱搵㐸㈸晡愵敦愷㈲戴ㅡ〹㤵㠱愰㥦㡣搰㙡㈴㕦㠸搱ㅦ㡢搰㙡㈴㔴ㄸ㔲晢㙡㠴㔶㈳愱ちㄱ昴㤵〸慤㐶㐲㑤㈲攸换ㄱ㕡㡤㠴扡㐵搰㡢ㄱ㕡㡤㠴摡㐶搰ぢㄱ㕡㡤㠴晡㐷搰㤷㈲戴ㅡ〹㌵㤲愰㥦㠸搰㙡㈴搴㔱㠲㥥㡦搰㌲㤲ㄱ慡㉡攱敥敦㈲㔳捥收戹ㄹ㜶扣㉢㐹摢㍥敤扢㍦㐲㔳㡤㕢㡤㝤ㄸ㝦ㅣ㘵昸愰㜱㥦挹㐸攷愲㤱㥥㘲㤵㍦㘱ㄱ户ㄱ㐷㘸扣捣㈷敥ㅥ㘹晥扤㈸㈳捤㌹ㄱ㘹づ㈵㈲㡣㈵捤㕦㘱ㄵ㜹㈹㌲ㅤ㜶捣〸㕦㉥㑢昰攷挸㤴戳挳㝣搳㔵晣敡户戴敡戵摡戵㙢㍦ㄹ捥㡤摤㥤晢搸㘳㐳㉦扥昶户㍦㝥攱㐷㑦㥦晣户㥦扥昴搲㡦晥攵㠵㔷㝦晡晤攵㤳㝦昵㡤㙦晣攵㐷㝦昷搵ㅦ敦户扦愶扦晣㤳戹慦㍤㍢㜱晤搹ㅢ昶攵昷㥦㜹昶挹㘷㥥㤸㤸扦㘳㍣㥢ㅤㄸ㜸敦攸㕦摦昵搰挸昳㌷晥㔴晢㡢㝦扣搳搳㘴昰㜸㐱攷㌰㌸〹ㄹ挶て㤰挱㌰㌸攲户㜴ㄸ㥣慥㉣搴㔴戴㔰㔳㐰ㄴ攱挱攲〰愴㘰戲戳㘰昰㝦〰㑥㠸㌳扡 | N27: 㜸〱敤㕣㕢㙣ㅣ搵ㄹ摥ㄹ敦慥㜷搶㜶㙣攲㜰㐹戸㤹晢挵改ㄲㅢ挲慤㑤㔳㕦㜲㌱㌸戱㠹㥤〰愲㘸㌳摥㍤㘳て搹㤹㌱㌳戳㑥㑣㔱愱ㄴ㐴慢搲ㅢㄵ㐲㈰搴㈲㔴㈱戵て愵㝤愱㐰㜹愹㔴愹㔵〵㔲ㅦ攸㐳愵㍥㔰㔴戵て慤慡㐸㝤攱〱㠹㝥摦㤹㤹摤搹㕤敦搸㉣搰㥡捡挷昱昱㤹㜳㥢㜳捥㝦㍤晦晦㑦㔲㑡㉡㤵晡㄰㠹㝦㤹搲㉣㕣㌴户敡昹挲㉡㑣㌸㤵㡡㈸昹愶㘳㝢㠵㌱搷搵㔷愷㑤捦敦㐲㠷㙣搱㐴扢㤷㈹㝡收㐳㈲㔷㕣ㄱ慥㠷㑥㤹㔴㉡㤷搳㔴戴㜳ㄲ晥づ㐴てㅡ㐷昵愶㤱捤㑦㡣捦㉣㍣㠰㔹攷㝣挷ㄵ扢㠷㑥〴㘳昷㡤㡣ㄴ㐶ち愳户㡤摥㕣搸戳㝢㘸愲㕡昱慢慥搸㘷㡢慡敦敡㤵摤㐳戳搵㠵㡡㔹扡㔳慣捥㍢愷㠴扤㑦㉣散戹㜱㐱扦改搶㤱㥢昶敥㌵㙥扢敤搶㕥扣㍡㜵㜴㘲㝣搶ㄵ㠶昷〹捤㤹攱㤲㙦㥡ㄴ㈵㤳㝢ㄳ挲㌵敤挵挲挴㌸晥挵搶㡦愷㕢ち㜳㑢㐲昸㝣戵㜰㠵㕤ㄲ㥥㠶㠱㍤搶㤸攷㔵慤㘵ㅥ㥥㘶ㅤ挴㔶㑢扡攷㘷慣〹㔱愹㘸㔶㌴㙢捥㥡挱搹㔵昴搵㕥㙢㑥搸㥥改㥢㉢愶扦㥡戵收㌱㔱戹捦㍡敥㠹㘳扡扤㈸㡥敡㤶挸㔸㠷慡㘶㌹ㅤ愴㔴搷㌵搱ㄴ昱㠵挹敤ㄷ挶㍣㙢㘲㐹㜷攵㡡㍣ㅥ㑣㐲摦㠳㙥愹戱敦ㄵ敤攷攵搲攵ㅢ㌸攷㔵敤晢愱攵㠴敥搶㝡づ户敦ㄹ㙥扥㜱〵㌷戴敦ㅦ㍢愳挶㌱搷戵ㅦ㈳㡦戲戱户搲ㄳ攲户㍣㔱㙣㐶换㌲敢㘶㤶㘳㐶〰㙡㜹㘶㍤捣㝡㤱㈹改㝦㠳㑡攲〳搹愴ㄶ㜵戵戸愰ㄶ㑢㙡戱慣ㄶ㠵㕡㌴搴攲愲㕡㕣㔲㡢愶㕡㝣㐰㉤㥥㐲㥦㈸攵扡扢搵㌰扤戱昳散㑦㐷搳㠵愹㔷扡慦㌹㝢慣攷慢㙡敦㌶㜴扡㉢㕣搴愴慢㥦〶慡搵戱㜸戴戰㠷㍦敢㔳〵㠸挲搸㙢摣㘲㡣㡣㤴昷敥搱㙦搴㌳摣㔶〲昰ㅢ㄰㘵〰㝤㝢㡤扢㑤扢散㥣㤶戰扢㘸㕣昷㐴晤攰㠶挳戶㜱愷㙡㤷扤ぢ搷㙥㥣昳㜵㕦散㙡㙥慢㑦搲㌲㙣づ㘴㈵㍣昹扥㑢㥡㠷㥤搰㉢㔵㌱㜶挶っ㥡㉦㙥㙡戶㘶㕤㘷愱㝤敢㐱㔷㍣㔸㙢㙤㔹搱ㄸ㤸摡㡡㥣扢㘵㤷㐱㔳戰慥愱㠹㈵挷ㄳ戶㕣摥戰㌵㙢㤶㑥〹㜷㑥㤰㈵㡡戲摣敡戹㙣ち愹㝥㜸挶挶㐶㐱慤攵换攳戵挶㠱㌳㍥㠸㔹㤴戱摥㘵攱晡慢昳晡㐲㐵㥣搷搰㈵㜸㈷ㅡ㜶㌶㔴ㅦ㜴㑡㔵㙦挲戱㝤搷愹㌴戶㡣㤵㔷㜴㜰㥡昲ㄱ愷㉣搲改㤴㘴ち㘰戸㕤㕤㡡㤲扡扥㍤㉤㐸㐰挴㐰㑣㐲扥愰ㄱ敤ち挷戰㍢散愲㈲㠸㤳敡㤵敢㑣挶昵㑡ㅥ㤳㐰㠱戱㍤㔱㝥昰愵搷慥㌳㙤つ㜲㥦㙥㘷㔵ㅤっ㜷㝦㘰㐵搸晥㘱摤㉥㔷㠴㥢㈸晤ㄴ慥㐸敢㐷㤶㌹ぢ㠶搰昶昴㈸敡㤴㌳捡㙡收戴㔹昶㤷戲㑢挲㕣㕣昲㔱〷〹㤹换昱㘸㕢㤲㜶づ慡戴敤捣〶㤱攵昳愹散づ㜶捡收㤱㔲ㄹ㜲愷〴㕡㙥㘰攴ㅣ搷㐰换扤挶㐱戳攲㡢㠰㈹昷ㅢ㠰㐸㈰搵㈴昸晡㠸愲慥㕥ち〴挶づ㘳〲㔸慡㥢戶扦㕡愷摢ㄶ㉡〹㤰㘸㡢ㄷ㙣㍡㕥㐰㔶搰挸てㄲ㘸つ㐸搳挴つ㤲㍢挷㤰㠸㘴㤰㈰搹㌱㜳㈳㤲戱㝦〲㡦㐰晦㌸ㄲ戲昷㥥昶㍣㠲挸摥㡡愴ㅣ搴㤶ㅥ户戸搹㕡扡㝣挰捤捥挵挱㘹攷㌱㍢㥦搹〵捣㜶㈲㔳晥〶づ㐷㉥㠷㜲㘳搲㉥挴戳㜶ㄱ戳㡢㤱㠱㍦㘹攴㌹㈱慢愲づ戵ㄱ㍤㤲晤晡愰㈷㑢愵㌸㘰㐵搴㡣㙢㝡㘶㥦㈵〱ㅤ㙡㥤㥢㐳搶愶愵㡣扤扡㍤㙥挶户㐳㡣㑣攸ㅡ摦敢㍡㕤攳〷挱慥ㅤ捡慤㑢㌱㔴ㅢ㘲㜶ㄹ戲扣㜶㌹㜳〸ㄷ㉡扣ㅢ搳攸愹㔲㝥㈶搴愲㐰ㄹ敡㔰挰㠷㠸捣㉢㐰〲㤳㙢戹扥㙣改搰㔴〷㠷㡤捦扣づ扤扢㍤㝤㠷㐰㙦㤲㥢㕢㜲㠷昶愲㡦愸㐵㕦〱昲㔲晥摣㔶挶㕣㠵㘶敤㙡㘶搷㈰㙢㤲㌱扣㝤㝦㔴㑢㠱㔴㡢慤ㄸ攴戶搳敡㈲戵摣昹搵㘵㈱㈵㔰慦㌱慦扢㡢挲㠷〵㘳㙡ㄲ扡戰攳扡愲㠲㑢㙤㔹㔶昰晥㜲㝥㘳愵㜷搰㜵㉣搶㙦改挸摥㘷㐲㌰愴搳㙡㔷慡㐹㐷㑥搰㌵㘳㌶愷ㄸ收㔰〶摦搸㥥㐹挴〶㌵愲ㄷ挷㈵摦㉦户㌸㐹〷㥣攴㍡ㅣ慢㜶㍤㌲㜰〹攵㡦㙤㌹捡㙥㜶晢㥣散搶愸戱搲挲㤷㜰㍢㘹戲㈱戶昰㤱㥥挰㘰㍢づ晢㠱搷㘷捤㤹㔶㡤㔹昴㔸戳挲㉤挱戶㘰㔶㐴㍥㌰换㤲搵㙣昱㡡捦〸慦攸敡㙡戹㑦㈷搸搷㈴㥥㌴㜱㠹㐴㙡㑦㙣㑣戸㡢搷㤱㡡㘶㐸㌲㤵〴搳㔰㡤〳ㄱ昳搸㜷㡢挵㜴挰㘲㙥挰挱㘹㝢㤸㡤㌰ㅢ㐵㤶㜹ㅢ㥣㘶愳〷㑦㜷㔸昷ち㑤摡挵㘲㉡㐷㌰㐸ㄳ攱㕢㙤㤹搵㕥扥收㘶㘶户㈰㙢㔲㝦㘸㠰㑣㐰㐴〹昲ㄸ㈲㑡㌷㠶㜱挲ㄴ愷㠹〳摢っ㌸㤶㈶慡㥥敦㔸昴㉣昵ㄹ㤳捥㔱挷㥦㌴扤㘵㜸愲〶㡤戰㜰昷㤲戰㠱㕤㉥㜴㥦愶㍡㘷㜹㔹㤴㌵㘳捥愹㠲戵㑤㑤㙥㠶㡢㌹㡥〳扡愴扣㥢慢ち㔲㘷昷㘳㑣愱攰愴愵扤㤵搶搸つ㔹扦㜹改敢慦㥦攸扣改㔷㐴㡦ㄱ㄰ㅤ换㌹〳愷〸捦㐱戹摢㤸㕦㜲㠵㤸散㌳づ戹㘶戹㘲摡㠲挰㠰㡥㐹㘷摤戴㔸㠴㤷㘰搶愱て搰戱晢㡣㜹㔷户扤㘵㥤づ挵搵敤つ㑦搲㉤㤲㌱挶㑤摢挳㙢㈴ㄴ㔹敥㌷收㤶㥣搳昰搸㔶㉤晢㤰扥散㙤ち愸㄰改㠳㈴㐱愳愸㡡慡㉡㌹㌵搷㈹㝣㜸㈱㑦愵㐸㝢㘹㘶ㄲ㔶愹っ㙤收〹搲㥢㝡㝤攸愳愱㥥捥㌵昵挲㝢㔴慢散㑡攴挲愴㔴敤㌶㡥戹ㅤ搹ㅤ㠷㡥㑦搵㍤㜳ㅦ换㘷㥤愱㤵㍦㠱挷㑢戴愸㌹㐲㘸愳摢ㄶ愰ち敢㠸㌹愰㐰㐰㥣㑦捤攸㤷㌷㘴ㅦ㘲摦戶㝡昱㈰㍣㐹扤挶戴扥㈰㉡昰㐷㕢扡扦㉤㜸愰ㅡ㙢改ㄵ㉦㙣㥢㜰㉣㑢㈷㙡ㄱ㉤攷㑡㍡㌱㜸慣敡㍢㐷㑣㕢㌳㤰㐹晣ぢ慢昴㌳愸搲捦挸慡㕥攳ㄸ㕤㠳戲捣戹㥣㐵摤㌵晤㈵换㉣攵昸㐰昷摤愶挰㐹㄰㌹㌹㙦㤴㈲㥥㌱搴愴捤ㅦ㠷捡收ㄵ〰敥〲昸㈸㡦㡥攰〷收慡㑡ㄶ㍦㑡㠷㠶㈵㌰ㄸ㘹㈹搵扥㠰搹㌲㌲㍡〲㉣㐷愶戳㔱っ挶搹㐷㔰ㄳ㌰㈱㐲㍤〱㐵㘰ㄵ㡣㌱㜹㥡戸戳挶㜱摢昴〱㍤㐲散愰改㑦㝡〰㌹㌲ㄴ攵昵㜶㤷㠴㙡㙣搰㜰㑤㉡㕣摡摡搴㈰㈶㉥㘹㙤㡦换㡤㉢搷㘸づ㈴㑡㑣㤰慣搷㐹㑡㤶㌵搶戸㤹㐴㡤㈲〵㜷㈴㙤㤴㈴戳㘹晤摣挹㐵㍥㠶㘰㤲㌸㤳搲扥㈸ㄱ〵㡥摥㔰㐶搱㘶㥦㡣ㅥ㌱㡦つ㜵㠰㍣攵㔴㔰搷ㄷ扡〴愷㄰㜶㔲ㄶ昹昰〹昴扤㉤㉣捥㔴晤㠶ㄶ晤捣㘰搸㌲㔶愹捣搸搰ㄲ㑡扡㕢摥㈴㈴㡤扤〵ㄲ㐶㔲㘷愷搲㍦㌸摥ㄸ㈱㠶㘴㐸户㐸㠲ㅤㄸ㘴〸攲㡡㜹㔴愹㥤昵昱愸㙢搵㌹㍥ㅤㄱ扡㉤㈱㌰攷㤷㈷挵㡡㔴挳敡㥡晣愰ㅣ㔰扢㉤㑡㍥慡ㄹ㘳ぢㅥ㐴扡㑦㍥ㅥ㤶㈴㠱㙢挶㌱㥡愵㄰挴〰戶ㅢ㤶㘶㑢㍥㕣扢戵〹㜸㌳搸㍣搰挱㠹〴慥ㄳ㙡㘷攴愰搹〴挴㙤摣〴㘹愷㐳㠸㠲㤱ㅡ㌲晤㙢扦昲晣㜳㑣㍦搹㥦㡡ち㈱ㄱ搱摤㤵愰㍤〰戸㜱捦㈴愹㘸㌰㜲㤸〷㥣㑤㌲慤摥愸㡥㉡㐶ㅦ㔵㍥搷㐷ㄴて㝤㔹晤㈴㥢ち攲摣㝣ㄳ搲戴戲扡捤㤸戲㑢㤵㙡㔹㐸㔱ㅣ昱㙡㈹㤱㌷〵扣㘴〸㘰㐰㑤〹攷ㄲㅥ捡ㄴ慥㔲摣㌲㠱搴戹摥慤敤挷㜰挹攴㌰㐷㈰晡攸㠰㑣㌰换㐹㠷㔸㑢㥣〲昵挳敤昵〰〶ㄹ㍣〷㤶搶㔲㐵㕥㌶㡤㜸扣㥡ㄷ㔹㔲㕢慣摢戴㌳敤㔰㘷㡦㔵ㅤ㌶㠳慡㑤〱㈳散㌳㘰㜸搹㉣㤴㤱づ愹㠳㤳愴捥㠶摥摤戳㡦挸挷搴㔹㠰㐲㐲㐰愱㡦㤷户愰ㄴ㑥ㄵ㠴㐴㠵㕢慤㙢摤ち扤扦搴扣戵㌱㘴ち摤挰㔴㘸搱㌳㔰㜰㈶㔰㕥㕦挱戹ㄴ扤ㄲ㍣愴㜱㘷㉡㝤㤴㠳㌰搸〳㘸愰㈶㕥愴攷ㅤ〸㈱㝦㠷っっ㡢㘲ㄳ㠷㉤㕣㠱ㅣ昷扣愶捡㔹摤㐷昸㡢扤戳愹㝡慣㕣愶扡ぢ晢摣愶㠰㉡㐲㌷〲㜵㜴㐷㔳㔰㤶摣ㄳ昵扢㉢㥡ㅡ挲㘰挱搱挹挲㘱摤㉦㉤捤昹慢㐱攰㔶愷㈸㤱㜹ㄳ昶㠸㌵摦㑥㥤㌹㙤㌳㄰㜵㠵㘷㥦㍦㘵㍢愷㙤戹慥㡣挷愸㍦㘰〸㐲㈸扢戹挸㝣敡㐳晣挸愴愶㌲扦挲㡣ㅢ㔹㌶㈷愸ㅢ㐸㌸㡦㑣〱㌷ㄸ㐲㌹〱㑦愰扢搷愲〶㠸㈷㍢㥡昰㐴㌲㠲㉤㐴戱ㄷ㍦㌱㐴㔱摥〰㔸㠹㉣挱㤵ㅣ㘷晥㌲㐸㕦㜹ㅤ㌵〴㌸㥥㐳㌶㤲戹っ愵〴搰㐹㐶ㅥ㠶㜸㌰㈰攴晦〷㑡ㄱ㌵慦㐹㑥晦〵㘲㔶㕥㙢〶搱㈵〴搱㉦㕢㐰愴㌰っ㐴搲敦ㅤ㘱㠱てㄹ扡㘷㍦㤲㈳㥣㝢摡扡㠰㝥敡〱扦晦挳ぢ攸㌴㈰捣㈴㜵㌴戸摡慥㐲戹愶㈲愸㉤㉡〲㥤昷㔲㐵㌸挲㌱昴攲〷㉡㐲㘸〳㤹㐱挵晡㉡〲㝤㝢〹㡡㘰捣搵ㅡ㌳㙢昰〶㜶㥥㐵晢搸㘱〴摥ちて晥㝣〸㉤㙦〲ㄶ愹昳㕢慢㘷㜵㔷户㜶捡晡㐳慥㠰㌰㜳攷ㄱ挹㉤㠷㜰挴慥㌵㕢攴愰㌵㙣ㄵ㤱㤵㝤换㥥戲戱昸㜵㐰㉡㐸㠱昹㕥挹㈹搹㡦㘱㈹㔱㜸㙦㐸㝤㘵挷捦づ晤攵愱挷昷㌳㕡㉤挴搵捣昵㈸㜷攲戲愷㍥〱愷㙥㉣㔰攴㕣㝥㤸㜳〴㥦㈸㤹换ㄵ㌱慥扢㔲ぢ昲㌴㉢㉡〶㠸ㄷ㐳捣〰昹㌶㠳㡡㠹戸㠷㐰挵㉣㌴㤹㍢攵㠷㑤搲㐴㔸㠸㉤㕣摡昴㈲户愱搲㔶㤰㜵愸㙤㘶㝥づ㔱昴ㄱㄷ搲愸㈵昲搶挹愴㈸慦㌴换扡扤㤴㜵挱㐵㠶㙥晦㠸㑢挱晦㐰っ㠹㕦㘴ㄸ㄰㈰戹搴㌱ㄴ㌲㌷㈰㑢昰慣㌵扢㜸㘹て搸㘲〲愲ㄶ昴搷攱㐷㉣㌸㐵㐰㌱戲挵㜷㝡愳愵㉥ㅡ㠹㈶扡㙡愵㑥㌳㠷㠲扣扣戰㘲㈴慡㥤㐷㈱㑡㤹㔱㤴㌶㙣㡥攲㑢晡慣挰昱ㄶ㄰㜶挶愲慤㉤㙦ㅤ戰慢㠸晣㠰㥣挹㑡㠱㘱㙦㘷㌵㉥愴搲㐷ㄷ㜴捤〷㔵捣晢㠳㘲㙤㔰㑦搸〴㤹㘵敦挴慤ㄴ捥㍦㝥㈹挴昶攱晡搴攷㌶户㔰挶搹摤搸㈰㝦愱㝦㕤㤲㐰搸㜸㉢㈹〶ㅣ㜶㐳扤㜲㐱㜸昸㜱っ攱愶㔳㡡㔶㉦捡㘷㘵㉦晥㐴㤴搵搵㉡晦改扤㤶㤴㜵㠲愳改挶㙥㤰晦昷愰㘲㕤昹慦搰昷㈶〱㜹㙦㔸㤰捡㈹晤㈷敢扡㙣㜸㈲戰㙣挳㜹㈳㉦挶㥡㉣搲攵ㅤ㤴收昰昱㙡搰㉣㌹㌸散㕥改收搰㠸摡㔸敡戶㍤㙤ㄹ㈰㝤㐳㤹㤷挱㠲摡㡥㙦攴㕢搱敤㌶㝢ㅦ〶敥㌸㘲㤶㕣挷㜳っ㝦㘸づ㑥摦㈱㝥㝢㘶㐰攷ㄹ㔳㝥摣捣搴慥挰㐹昴摥㡦㌱㐷㘷挰戰㡦ち晦㤳昲㐵搲戳戰㌱㑦〶扦㐳ㅡ㠸戹㤷㈸ㅤ扣㜳㡣扢慡㝡〵㥦慥捥挰搶改戳㙡㔳〸扢挰攲摣ㅣ愱挱愳㐳㡣搶㥤戰〷㠹㑡〱捥㌱戹㠵晢敥攷戹㌶㥦㐱㘳摦㜰㙦ㅥ㝢㜶㘶㜳换㘷㕥〲㑣㌷昶㤶㐶㤴攱㍢昹㐵㜲㕥㉢㌲㐷搰晥㝥晣摤戸㠱㤶戳つ〲捦挳て扡㘹〸ㅢ慥挰㝣戶〱敦昷㐹っ㔵挶㤸攱㔷搳挳〲ㅦㄴ㕡昹㐸㡡捡て戱㉤ㄲ〰捡愹㙣〹㔹㝢慣㝥㘱㉤慣ㅥ戸〳㘳㐸慦㥡㐰搶搷愵昰慡㐱慣捣㉢捦愳㍦㑦㉤搸晤㈲敢㜰昵㤰㔷ち㤴戵㈵㘴㔱㔲㜸愵㤰敢㜹ㄶ〳㙡敢㜹〰戵敤搷昳捣㕡敢㔱愸っ挸晤挶攷ㅦ㠸㠴㠹㘶愱㔹戳㤹㌹捣㤶㤱つ㐴㌲愵㥦㙣㤲㝢挹〶慥㠶搷〹㈹愴㍦㠴㝦摦摤晦昶㕢㑣晦摣慦㐸挶㠸愶挶㕤㤰㌱捡㕤㝣㈷扥ぢて戵敤㜷昱搴㕡扢ㄸ㈰捦㤴愷㕡㐵〱愷㕡挴ㅦ戹慢㤵戰㈰愱㜸㌲慡㙤搸慢㡥㕡㌹昶っち㝤㕤ㄹ〲收昳敤愵ぢ㤵挷攸㔳㔸㌸〷ㅡ扥㜹㍤㠰㙦㔸㔷改敤敥挲㈷晣ㄹ㈹ち搳敡敤㥤捤ㄵ愹愳㤴㘴㤹㈷戱敢㡦㌱て㜷㕦户㌹㜲挶㕤昸捤挱〹㐱㌴㤳〷昵㔰㔸攰挳㐰㜴㍥ㄹ㠲㍦攱ㄳ㈷愹㈵㌲ㅣ㌴㠷㝥搹挰㈴㥤つ㜴㠳㥣ㄵ摡愲㌷〵㠷っ扤〸㙤〵㕢戶挳㌸〷攵㠹〸ㅤてㅦ㡥扥ㅦ㔳㐳捦ㅢ挸㈱搰换㐹㍥㍣㐸攵昱愸昳㉦㕥慤ㅢ㡥搱㠰〴㥡〹㍡㤳捣㘴攷慦㐷㥤㐷昱㙤㥡散㤳㈲㘶㌱扤ㅢ㜵㈶㌹捡捥㡦㐵㥤晦㌱扡戳搶㌹愲扥㘰收っ㐹㈳㐱攳㤷㜷愰搸㜷敡晤攸㥥㌱愸㐵昴ㄸ㐱㌵㌱㔲㍡搰㉢㔲㡦攸㐵㐸㡣㡢㉦挵愷ㄱ攱㠵㐰ㄸ㠸㥡攰㍦㡣㤸㐲攴搷愴敥敢昸㄰㝣〵㉥㜷㔷㤳㑦ㅣ㥣㌵㘶㕣㔴㜴ㅢ㔳ㅥ㙥㤶攵㑤㠵㈲㔰㡡搲挱昹慥攳㥡㐸㔰愰敢攷ㄱ戹ち㔵㐶搲㜴㈶㐲愵㝢㈹慤㍣ㅡ㐱㌶昵㘸ㅤ㘷戴慦〱㌸㄰づ挸㔹搰ㅥ㐳ㅥ戸愳ㄸ戳㥤ㅡ㈰搷㤳㉣敤㜱ㄴ挰づ挹搹〸晥散ㄳ挸晡愳晦愵㘳㘸㐵ㅡ㡢㔴攵愱攸ㅤ㜱散搱㥥攴㠰㙦㈰敢㠲敤㕡〹㜱㉦慦㝤ㄳ㌵昱㜷㤱㜱挸㜷㝤ぢ〵戰㑦㉥㙤挳㘷挴ㅤ㜴㈸慤㥦挲㔰㠵ㅢ攷ㅣ摡户挳〲ㅦㄴ敥㥡㕣㕣㜱戱㌱戲㑥ち㈴敤扢慣攱愶戸㐲敤㝢㝣攲㕥攴昰敦㠷〵㌹㥣ㅢ㤱挳敤昸昰ㅦ戰㡢㝣㈹ちつ㜲㙣㠰㉦㤷㐷昰っち㝤㕤晤㝣搳摤昸㔵捦㈸愵㤳攵㤳㈷摦敦㑦て敤㑡摦昳愵摥攷摥晤晤㝢㑦扦昳攵㝤㝦晦攰㠵ㄷ摥昹敢搳㙦㝤昰收挲扥摦扥昴搲㙦敥昸搱㕢敦㙤㌷㕥㔴㕦㝤㝦晡挵㠷㐷㑥㍤晣愰㜱晣晡㐳て摦晢挰㕤㈳戳攷っ㜷㜵㜵㜷㕦㌳昸扢ぢ慥ㅤ㜸昴挱搷㤴㕦晦改㝣㕢㤱㡢挷ぢㅡ㤷挱㑤挸㘵㍣㡢〲㤶挱ㄵ㝦慡换攰㜶攵㐱㉤㠵〷㌵㡥㡡ㅣ散ㄱ㕣㠰㙣㔸㙣㙣攸昹てㄸㄲ㤸て
A28: Decisioneering:7.0.0.0 | B28: Decisioneering:7.0.0.0 | C28: Decisioneering:7.0.0.0 | D28: Decisioneering:7.0.0.0 | E28: Decisioneering:7.0.0.0 | F28: Decisioneering:7.0.0.0 | G28: Decisioneering:7.0.0.0 | H28: Decisioneering:7.0.0.0 | I28: Decisioneering:7.0.0.0 | J28: Decisioneering:7.0.0.0 | K28: Decisioneering:7.0.0.0 | L28: Decisioneering:7.0.0.0 | M28: Decisioneering:7.0.0.0 | N28: Decisioneering:7.0.0.0
B29: CB_Block_7.0.0.0:2 | C29: CB_Block_7.0.0.0:11 | D29: CB_Block_7.0.0.0:5 | E29: CB_Block_7.0.0.0:2 | F29: CB_Block_7.0.0.0:7 | G29: CB_Block_7.0.0.0:9 | H29: CB_Block_7.0.0.0:19 | I29: CB_Block_7.0.0.0:2 | J29: CB_Block_7.0.0.0:1 | K29: CB_Block_7.0.0.0:9 | L29: CB_Block_7.0.0.0:2 | M29: CB_Block_7.0.0.0:7 | N29: CB_Block_7.0.0.0:1
